Workbook

Sheet Information
A6: Income Target
A7: Accompanying Modelling Workbook for
A8: Primer on Retirement Income Strategy Design and Evaluation
A10: Authors | B10: Adam Butt, PhD, FIAA
B11: Associate Professor
B13: Gaurav Khemka, PhD, FIAA, CERA
B14: Senior Lecturer
B16: William Lim, AIAA
B17: Associate Lecturer
B19: Geoff Warren, PhD
B20: Associate Professor
B22: Research School of Finance, Actuarial Studies and Statistics
B23: College of Business and Economics
B24: AUSTRALIAN NATIONAL UNIVERSITY
A26: Sponsors | B26: Aging and Retirement Strategic Research Program Steering Committee
A28: Description
B29: This is an accompanying workbook to the Primer on Design and Evaluation of Retirement Strategies. This workbook provides a simple interactive model that evaluates the retirement strategies given the retiree’s details and decisions. The model assumes the retiree has an Income Target objective and adopts a draw-to-target (with excess) withdrawal strategy. These models are provided as a learning resource for educational purposes to supplement this Primer and are not, in any way, intended to be used for financial advice nor any commercial purpose. For ease of user customization, the workbook is not protected. Users are advised that changing cells other than the specified model inputs may result in the workbook no longer working.
A39: Disclaimer for Software
A40: Important: This Excel Model ("Software") is the property of the Society of Actuaries (SOA) Research Institute and is protected under U.S. and international copyright laws.
A41: The Software has been developed for the benefit of actuaries FOR EDUCATIONAL USE ONLY, although others may find it useful. SOA Research Institute and the authors make the Software available to individual users for their personal use on a non–exclusive basis. No commercial use, reproduction or distribution is permitted whatsoever.
A42: SOA Research Institute and the authors make no warranty, guarantee, or representation, either expressed or implied, regarding the Software, including its quality, accuracy, reliability, or suitability, and HEREBY DISCLAIM ANY WARRANTY REGARDING THE SOFTWARE'S MERCHANTABILITY OR FITNESS FOR ANY PARTICULAR PURPOSE. SOA Research Institute and the authors make no warranty that the Software is free from errors, defects, worms, viruses or other elements or codes that manifest contaminating or destructive properties. In no event shall SOA Research Institute or the authors be liable for any damages (including any lost profits, lost savings, or direct, indirect, incidental, consequential or other damages) in connection with or resulting from the use, misuse, reliance on, or performance of any aspect of the Software including any instructions or documentation accompanying the Software. SOA Research Institute and the authors make no representation or warranty of non–infringement of proprietary rights of others with respect to the Software. The entire risk as to the uses, outputs, analyses, results and performance of the Software is assumed by the user. This Disclaimer applies regardless of whether the Software is used alone or with other software.
A43: The model, accompanying documentation, and methodologies contained herein do not represent an official position, statement, or endorsement on behalf of the Society of Actuaries Research Institute or its members, nor should the material be construed to do so. It is the product of a research effort commissioned by the Society of Actuaries Research Institute to add to the library of resource tools. The model is neither intended to preclude the use of other methodologies for any purpose nor provide a statement or position on the use, application, or preferability of other methodologies as compared to the methodology described herein.
A45: Copyright © 2023 by the Society of Actuaries Research Institute. All rights reserved.

Sheet Instructions
A1: Instructions for use
A3: Worksheet tab colours
A4: The following tab colours are used throughout the workbook to denote the purpose of a worksheet:
B5: Information or instruction worksheet.
B6: Additional interactive information on the utility function used for calculations. Does not directly interact with the rest of the workbook.
B7: Inputs to the modelling (excluding retiree decisions).
B8: Retiree decisions and simple output metrics.
B9: Detailed output metrics for a single input and decision set.
B10: Summary of output metrics matching an example in the Primer.
B11: Calculation worksheets used for the output metrics. Included for those interested in the mechanics behind the modelling although changing these worksheets may result in the model no longer working.
A13: Cell colours
A14: Two cell colours are used to denote the characteristics of a cell:
B15: Model inputs. This includes retiree details, assumptions, and decisions. These can be changed to investigate the impact on the model outputs. Excel data validation is used to ensure reasonable values are entered.
B16: Model outputs. A description of the outputs is included next to, or otherwise near, the output cell.
B17: It is not recommended to change cells with no highlighting as this may result in the model no longer working.
A19: List of worksheets
A20: The following worksheets are included in the workbook. You can click on the worksheet name to go straight to the worksheet.
A21: Information | B21: Background information on the project details and workbook authors.
A22: Instructions | B22: This worksheet.
A23: Utility shape | B23: Comparisons of the loss aversion utility function shape for different parameter sets. Does not directly affect the model.
A24: Retiree Details and Assumptions | B24: Enter retiree details and assumptions in this worksheet.
A25: Decisions and Outcomes | B25: Enter retiree decisions here. Simple output metrics from the "Retiree Details and Assumptions" and "Decisions and Outcomes" inputs are presented here.
A26: Detailed Outcomes | B26: Detailed output metrics from the "Retiree Details and Assumptions" and "Decisions and Outcomes" inputs are presented here.
A27: Strategy Comparison | B27: Summary of output metrics and the corresponding model inputs in the format of the Illustrative Examples of Section 4.4 of the Primer.
A28: RSABal | B28: Balance in the retirement savings account for each age across the 1,000 simulations.
A29: RSAInc | B29: Income by drawdown from the retirement savings account for each age across the 1,000 simulations.
A30: RSARet | B30: Investment return on the retirement savings account for each age across the 1,000 simulations.
A31: ILAInc | B31: Income from the investment-linked annuity for each age across the 1,000 simulations.
A32: ILARet | B32: Investment return underlying the investment-linked annuity for each age across the 1,000 simulations.
A33: IncomeTot | B33: Total income from all sources for each age across the 1,000 simulations.
A34: IncomeTargDiff | B34: Difference between income and income target for each age across the 1,000 simulations.
A35: IncomeTargShort | B35: Shortfall between income and income target for each age across the 1,000 simulations (excess is treated as zero).
A36: IncomeTargShortID | B36: For each age and simulation, equal to 0 if the income target was met or exceeded, or 1 otherwise.
A37: Utility | B37: Calculates the loss aversion utility as a total, and at each age, across the 1,000 simulations.
A38: GroRet | B38: Investment return on the growth portfolio for each age across the 1,000 simulations.
A39: GroRand | B39: A uniform random number between 0 and 1, used to determine the investment return on the growth portfolio for each age across the 1,000 simulations.

Sheet Utility shape
A1: Loss Aversion utility function
A2: See also the discussion in Section 4.2.3 and Appendix B.2 of the Primer
A4: Level of Risk Appetite | B4: High | C4: Low | E4: Reference
A5: Literature reference | B5: Tversky and Kahneman (1992) | C5: Blake et al. (2013) | E5: Tversky, A. and Kahneman, D., 1992. Advances in prospect theory: Cumulative representation of uncertainty. Journal of Risk and Uncertainty, 5(4), pp.297-323.
A6: Gain curvature (α) | B6: 0.88 | C6: 0.44 | E6: Blake, D., Wright, D. and Zhang, Y.M. 2013. Target-driven investing: Optimal investment strategies in defined contribution pension plans under loss aversion. Journal of Economic Dynamics & Control, 37(1), pp.195-209.
A7: Loss curvature (β) | B7: 0.88 | C7: 0.88
A8: Loss penalty (λ) | B8: 2.25 | C8: 4.5
A10: Chart values
A11: Income less Target | B11: Tversky and Kahneman (1992) | C11: Blake et al. (2013)
A12: -25000 | B12: =IF(A12>0,(A12^$B$6),IF(A12<0,-$B$8*(-A12^$B$7),0)) -> -16686.67186 | C12: =IF(A12>0,(A12^$C$6),IF(A12<0,-$C$8*(-A12^$C$7),0)) -> -33373.34372
A13: =A12+1000 -> -24000 | B13: -16097.86981 | C13: -32195.73962
A14: -23000 | B14: -15506.11547 | C14: -31012.23095
A15: -22000 | B15: -14911.26461 | C15: -29822.52923
A16: -21000 | B16: -14313.15906 | C16: -28626.31811
A17: -20000 | B17: -13711.62459 | C17: -27423.24919
A18: -19000 | B18: -13106.46847 | C18: -26212.93693
A19: -18000 | B19: -12497.47632 | C19: -24994.95264
A20: -17000 | B20: -11884.40844 | C20: -23768.81687
A21: -16000 | B21: -11266.99503 | C21: -22533.99007
A22: -15000 | B22: -10644.9304 | C22: -21289.86079
A23: -14000 | B23: -10017.86534 | C23: -20035.73068
A24: -13000 | B24: -9385.397438 | C24: -18770.79488
A25: -12000 | B25: -8747.058169 | C25: -17494.11634
A26: -11000 | B26: -8102.29555 | C26: -16204.5911
A27: -10000 | B27: -7450.450233 | C27: -14900.90047
A28: -9000 | B28: -6790.721606 | C28: -13581.44321
A29: -8000 | B29: -6122.118149 | C29: -12244.2363
A30: -7000 | B30: -5443.381755 | C30: -10886.76351
A31: -6000 | B31: -4752.866528 | C31: -9505.733057
A32: -5000 | B32: -4048.332005 | C32: -8096.66401
A33: -4000 | B33: -3326.559612 | C33: -6653.119225
A34: -3000 | B34: -2582.552877 | C34: -5165.105753
A35: -2000 | B35: -1807.544152 | C35: -3615.088303
A36: -1000 | B36: -982.1606225 | C36: -1964.321245
A37: 0 | B37: 0 | C37: 0
A38: 1000 | B38: 436.5158322 | C38: 20.89296131
A39: 2000 | B39: 803.3529563 | C39: 28.34348172
A40: 3000 | B40: 1147.801278 | C40: 33.87921603
A41: 4000 | B41: 1478.470939 | C41: 38.45088996
A42: 5000 | B42: 1799.258669 | C42: 42.4176693
A43: 6000 | B43: 2112.385124 | C43: 45.96069107
A44: 7000 | B44: =IF(A44>0,(A44^$B$6),IF(A44<0,-$B$8*(-A44^$B$7),0)) -> 2419.28078 | C44: =IF(A44>0,(A44^$C$6),IF(A44<0,-$C$8*(-A44^$C$7),0)) -> 49.18618485
A45: =A44+1000 -> 8000 | B45: 2720.9414 | C45: 52.16264372
A46: 9000 | B46: 3018.098492 | C46: 54.93722319
A47: 10000 | B47: 3311.311215 | C47: 57.54399373
A48: 11000 | B48: 3601.020245 | C48: 60.00850144
A49: 12000 | B49: 3887.581408 | C49: 62.3504724
A50: 13000 | B50: 4171.28775 | C50: 64.58550728
A51: 14000 | B51: 4452.384594 | C51: 66.72619122
A52: 15000 | B52: 4731.080176 | C52: 68.78284798
A53: 16000 | B53: 5007.553348 | C53: 70.7640682
A54: 17000 | B54: 5281.959305 | C54: 72.67708927
A55: 18000 | B55: 5554.433921 | C55: 74.52807472
A56: 19000 | B56: 5825.097096 | C56: 76.32232371
A57: 20000 | B57: 6094.055375 | C57: 78.06443092
A58: 21000 | B58: 6361.404026 | C58: 79.75841037
A59: 22000 | B59: 6627.228717 | C59: 81.40779273
A60: 23000 | B60: 6891.606877 | C60: 83.01570259
A61: 24000 | B61: 7154.608805 | C61: 84.58492067
A62: 25000 | B62: 7416.298605 | C62: 86.11793428

Sheet Retiree Details and Assumptions
A1: Retiree Details
A2: User to enter retiree details and assumptions (yellow cells).
A3: The default assumptions upon first using this workbook can be found in the Primer, specifically Appendix D.1. You are welcome to amend the assumptions within the boundaries allowed.
A4: Whilst inflation is not explicitly allowed for in the calculations, using "real" return and interest rate assumptions implicitly incorporates inflation into the modelling.
A6: Personal attributes
A7: (Retiree is assumed to be 65 years old)
A8: Assets (savings at retirement) | B8: 500000 | C8: (minimum of $50,000)
A9: Guaranteed income | B9: 20000 | C9: (annual, minimum of 0. This includes social security and define benefit pensions, etc.)
A10: Income floor | B10: 25000 | C10: (annual, minimum of 0)
A12: Loss aversion utility parameters
A13: Income Target (C*) | B13: 50000 | C13: (annual, minimum of 0)
A14: Level of loss aversion | B14: Low
A15: Gain curvature (α) | B15: =IF(B$14="Low",0.44,0.88) -> 0.44 | C15: (this can also be changed manually but the option for Low/High above will no longer work if you do so, must be greater than 0)
A16: Loss curvature (β) | B16: =IF(B$14="Low",0.88,0.88) -> 0.88 | C16: (this can also be changed manually but the option for Low/High above will no longer work if you do so, must be greater than 0)
A17: Loss penalty (λ) | B17: =IF(B$14="Low",4.5,2.25) -> 4.5 | C17: (this can also be changed manually but the option for Low/High above will no longer work if you do so, minimum of 1)
A19: Assumptions
A21: Investment return (Growth) | C21: (assumed to be lognormally distributed, used for returns on the ILA and RSA as dependent on the "Growth allocation" - see below and the next worksheet)
A22: Mean | B22: 0.06 | C22: (per annum geometric net of any fees charged, between 0% and 25%)
A23: Standard Deviation | B23: 0.15 | C23: (per annum, between 0.001% and 50%) (NB: this is the sigma parameter for the lognormal distribution and hence the annual standard deviation will be a little higher)
A25: Investment Return (Risk-free) | C25: (assumed to be fixed throughout the projections, used to determine the income from the LA and for returns on the ILA and RSA as dependent on the "Growth allocation" - see below and the next worksheet)
A26: Return | B26: 0.01 | C26: (per annum, between 0% and 15%)
A28: Life Annuity (LA) assumptions
A29: Loading | B29: 0.08 | C29: (proportion of purchase price taken by provider for profit, capital requirements, etc., between 0% and 50%)
A30: Annuitisation Factor | B30: =SUMPRODUCT($E$43:$E$88,$F$43:$F$88)/(1-B29) -> 22.13111368 | C30: (the annual income from the LA is equal to the assets allocated to the LA divided by this factor)
A32: Investment-Linked Life Annuity (ILA) assumptions
A33: Assumed Interest Rate (AIR) | B33: ='Decisions and Outcomes'!B13 -> 0.01 | C33: (per annum) (input is on next worksheet as a decision for the retiree)
A34: Loading | B34: 0.08 | C34: (proportion of purchase price taken by provider for profit, capital requirements, etc., between 0% and 50%)
A35: Annuitisation Factor | B35: =SUMPRODUCT(E43:E88,G43:G88)/(1-B34) -> 22.13111368 | C35: (the annual income from the ILA is equal to the assets allocated to the ILA divided by this factor)
A37: Retirement Savings Account (RSA) withdrawal assumptions
A38: Assumed Interest Rate (AIR) | B38: =MAX(RiskFree,RSAGroAll*RetGroMean+(1-RSAGroAll)*RiskFree-1%) -> 0.0125 | C38: (set at expected return on RSA less 1%, subject to a minimum of the risk-free rate)
A41: Mortality Rate - baseline | D41: Retiree annuity calculations | I41: RSA assumptions
A42: Age | B42: Mortality rate | D42: Age | E42: Survival Probability | F42: Discount Factor (Life Annuity) | G42: Discount Factor (Investment-Linked Annuity) | H42: Future life expectation (years) | I42: Time horizon | J42: Annuitization Factor
A43: 65 | B43: 0.005664 | D43: =A43 -> 65 | E43: 1 | F43: =(1+RiskFree)^(D$43-D43) -> 1 | G43: =(1+B$33)^(D$43-D43) -> 1 | H43: =SUM(E43:E$88)/E43 -> 22.97458676 | I43: =H43+0.5*(110-H43-D43) -> 33.98729338 | J43: =(1-(1+B$38)^-I43)/B$38*(1+B$38) -> 27.89658053
A44: 66 | B44: 0.006241 | D44: =D43+1 -> 66 | E44: =E43*(1-LOOKUP(D43,A$43:A$88,B$43:B$88)) -> 0.994336 | F44: 0.9900990099 | G44: 0.9900990099 | H44: =SUM(E44:E$88)/E44 -> 22.0997598 | I44: =H44+0.5*(110-H44-D44) -> 33.0498799 | J44: =(1-(1+B$38)^-I44)/B$38*(1+B$38) -> 27.2745746
A45: 67 | B45: 0.006906 | D45: =D44+1 -> 67 | E45: 0.988130349 | F45: =(1+RiskFree)^(D$43-D45) -> 0.9802960494 | G45: 0.9802960494 | H45: =SUM(E45:E$88)/E45 -> 21.2322704 | I45: 32.1161352 | J45: 26.64776023
A46: 68 | B46: 0.007681 | D46: 68 | E46: 0.9813063208 | F46: 0.9705901479 | G46: 0.9705901479 | H46: =SUM(E46:E$88)/E46 -> 20.37296611 | I46: 31.18648305 | J46: 26.01642824
A47: 69 | B47: 0.008554 | D47: 69 | E47: 0.973768907 | F47: 0.9609803445 | G47: 0.9609803445 | H47: =SUM(E47:E$88)/E47 -> 19.52292167 | I47: 30.26146083 | J47: 25.38096202
A48: 70 | B48: 0.009555 | D48: 70 | E48: =E47*(1-LOOKUP(D47,A$43:A$88,B$43:B$88)) -> 0.9654392878 | F48: 0.9514656876 | G48: 0.9514656876 | H48: =SUM(E48:E$88)/E48 -> 18.68273377 | I48: 29.34136689 | J48: 24.74159581
A49: 71 | B49: 0.010644 | D49: 71 | E49: 0.9562145154 | F49: 0.9420452353 | G49: 0.9420452353 | H49: =SUM(E49:E$88)/E49 -> 17.85332227 | I49: 28.42666113 | J49: 24.0986886
A50: 72 | B50: 0.01193 | D50: 72 | E50: 0.9460365681 | F50: 0.9327180547 | G50: 0.9327180547 | H50: =SUM(E50:E$88)/E50 -> 17.03463896 | I50: 27.51731948 | J50: 23.45226927
A51: 73 | B51: 0.013411 | D51: 73 | E51: 0.9347503518 | F51: 0.9234832225 | G51: 0.9234832225 | H51: =SUM(E51:E$88)/E51 -> 16.22824189 | I51: 26.61412094 | J51: 22.80294774
A52: 74 | B52: 0.014989 | D52: 74 | E52: 0.9222144148 | F52: 0.9143398242 | G52: 0.9143398242 | H52: =SUM(E52:E$88)/E52 -> 15.43524395 | I52: 25.71762197 | J52: 22.15119772
A53: 75 | B53: 0.016761 | D53: 75 | E53: 0.908391343 | F53: 0.9052869547 | G53: 0.9052869547 | H53: =SUM(E53:E$88)/E53 -> 14.65490634 | I53: 24.82745317 | J53: 21.49682805
A54: 76 | B54: 0.018922 | D54: 76 | E54: 0.8931657957 | F54: 0.8963237175 | G54: 0.8963237175 | H54: =SUM(E54:E$88)/E54 -> 13.8876777 | I54: 23.94383885 | J54: 20.84008073
A55: 77 | B55: 0.021373 | D55: 77 | E55: 0.8762653125 | F55: 0.8874492253 | G55: 0.8874492253 | H55: =SUM(E55:E$88)/E55 -> 13.13624167 | I55: 23.06812083 | J55: 20.18205081
A56: 78 | B56: 0.024306 | D56: 78 | E56: 0.857536894 | F56: 0.8786625993 | G56: 0.8786625993 | H56: =SUM(E56:E$88)/E56 -> 12.40129454 | I56: 22.20064727 | J56: 19.52311995
A57: 79 | B57: 0.02762 | D57: 79 | E57: 0.8366936022 | F57: 0.8699629696 | G57: 0.8699629696 | H57: =SUM(E57:E$88)/E57 -> 11.68531787 | I57: 21.34265894 | J57: 18.86437181
A58: 80 | B58: 0.031601 | D58: 80 | E58: 0.8135841249 | F58: 0.8613494748 | G58: 0.8613494748 | H58: =SUM(E58:E$88)/E58 -> 10.98882934 | I58: 20.49441467 | J58: 18.20616634
A59: 81 | B59: 0.036146 | D59: 81 | E59: 0.787874053 | F59: 0.8528212622 | G59: 0.8528212622 | H59: =SUM(E59:E$88)/E59 -> 10.31478692 | I59: 19.65739346 | J59: 17.54983521
A60: 82 | B60: 0.041437 | D60: 82 | E60: 0.7593955575 | F60: 0.8443774873 | G60: 0.8443774873 | H60: =SUM(E60:E$88)/E60 -> 9.664105684 | I60: 18.83205284 | J60: 16.89594634
A61: 83 | B61: 0.04756 | D61: 83 | E61: 0.7279284838 | F61: 0.8360173142 | G61: 0.8360173142 | H61: =SUM(E61:E$88)/E61 -> 9.038639801 | I61: 18.0193199 | J61: 16.24546137
A62: 84 | B62: 0.054686 | D62: 84 | E62: 0.6933082051 | F62: 0.827739915 | G62: 0.827739915 | H62: =SUM(E62:E$88)/E62 -> 8.440048508 | I62: 17.22002425 | J62: 15.59929364
A63: 85 | B63: 0.062792 | D63: 85 | E63: 0.6553939526 | F63: 0.8195444703 | G63: 0.8195444703 | H63: =SUM(E63:E$88)/E63 -> 7.870452049 | I63: 16.43522602 | J63: 14.95857275
A64: 86 | B64: 0.072134 | D64: 86 | E64: 0.6142404555 | F64: 0.8114301687 | G64: 0.8114301687 | H64: =SUM(E64:E$88)/E64 -> 7.330765475 | I64: 15.66538274 | J64: 14.32396291
A65: 87 | B65: 0.08258 | D65: 87 | E65: 0.5699328345 | F65: 0.8033962066 | G65: 0.8033962066 | H65: =SUM(E65:E$88)/E65 -> 6.822930762 | I65: 14.91146538 | J65: 13.69657158
A66: 88 | B66: 0.094456 | D66: 88 | E66: 0.522867781 | F66: 0.7954417887 | G66: 0.7954417887 | H66: =SUM(E66:E$88)/E66 -> 6.347071965 | I66: 14.17353598 | J66: 13.07676839
A67: 89 | B67: 0.107885 | D67: 89 | E67: 0.4734797819 | F67: 0.7875661274 | G67: 0.7875661274 | H67: =SUM(E67:E$88)/E67 -> 5.904817397 | I67: 13.4524087 | J67: 12.4655637
A68: 90 | B68: 0.122077 | D68: 90 | E68: 0.4223984156 | F68: 0.779768443 | G68: 0.779768443 | H68: =SUM(E68:E$88)/E68 -> 5.497965394 | I68: 12.7489827 | J68: 11.8640634
A69: 91 | B69: 0.138665 | D69: 91 | E69: 0.3708332842 | F69: 0.7720479634 | G69: 0.7720479634 | H69: =SUM(E69:E$88)/E69 -> 5.123416739 | I69: 12.06170837 | J69: 11.27127605
A70: 92 | B70: 0.154903 | D70: 92 | E70: 0.3194116869 | F70: 0.7644039241 | G70: 0.7644039241 | H70: =SUM(E70:E$88)/E70 -> 4.787239273 | I70: 11.39361964 | J70: 10.69016518
A71: 93 | B71: 0.17168 | D71: 93 | E71: 0.2699338583 | F71: 0.7568355684 | G71: 0.7568355684 | H71: =SUM(E71:E$88)/E71 -> 4.481425532 | I71: 10.74071277 | J71: 10.11758088
A72: 94 | B72: 0.187272 | D72: 94 | E72: 0.2235916135 | F72: 0.749342147 | G72: 0.749342147 | H72: =SUM(E72:E$88)/E72 -> 4.202995862 | I72: 10.10149793 | J72: 9.552487114
A73: 95 | B73: 0.204221 | D73: 95 | E73: 0.1817191649 | F73: 0.7419229178 | G73: 0.7419229178 | H73: =SUM(E73:E$88)/E73 -> 3.941042836 | I73: 9.470521418 | J73: 8.990258177
A74: 96 | B74: 0.221573 | D74: 96 | E74: 0.1446082953 | F74: 0.7345771463 | G74: 0.7345771463 | H74: =SUM(E74:E$88)/E74 -> 3.695803528 | I74: 8.847901764 | J74: 8.431138994
A75: 97 | B75: 0.242152 | D75: 97 | E75: 0.1125670015 | F75: 0.7273041053 | G75: 0.7273041053 | H75: =SUM(E75:E$88)/E75 -> 3.463142373 | I75: 8.231571186 | J75: 7.873391858
A76: 98 | B76: 0.263514 | D76: 98 | E76: 0.08530867695 | F76: 0.7201030745 | G76: 0.7201030745 | H76: =SUM(E76:E$88)/E76 -> 3.250179947 | I76: 7.625089974 | J76: 7.320373554
A77: 99 | B77: 0.285616 | D77: 99 | E77: 0.06282864625 | F77: 0.7129733411 | G77: 0.7129733411 | H77: =SUM(E77:E$88)/E77 -> 3.055292222 | I77: 7.027646111 | J77: 6.771506914
A78: 100 | B78: 0.308316 | D78: 100 | E78: 0.04488377963 | F78: 0.7059141991 | G78: 0.7059141991 | H78: =SUM(E78:E$88)/E78 -> 2.877013234 | I78: 6.438506617 | J78: 6.22626571
A79: 101 | B79: 0.331444 | D79: 101 | E79: 0.03104539223 | F79: 0.6989249496 | G79: 0.6989249496 | H79: =SUM(E79:E$88)/E79 -> 2.713686067 | I79: 5.856843034 | J79: 5.684014361
A80: 102 | B80: 0.354809 | D80: 102 | E80: 0.02075558325 | F80: 0.6920049006 | G80: 0.6920049006 | H80: =SUM(E80:E$88)/E80 -> 2.563264809 | I80: 5.281632404 | J80: 5.143911677
A81: 103 | B81: 0.378192 | D81: 103 | E81: 0.01339131551 | F81: 0.685153367 | G81: 0.685153367 | H81: =SUM(E81:E$88)/E81 -> 2.422948877 | I81: 4.711474438 | J81: 4.604731071
A82: 104 | B82: 0.401359 | D82: 104 | E82: 0.008326827114 | F82: 0.6783696702 | G82: 0.6783696702 | H82: =SUM(E82:E$88)/E82 -> 2.288405548 | I82: 4.144202774 | J82: 4.064476584
A83: 105 | B83: 0.424064 | D83: 105 | E83: 0.004984780111 | F83: 0.6716531389 | G83: 0.6716531389 | H83: =SUM(E83:E$88)/E83 -> 2.152217352 | I83: 3.576108676 | J83: 3.519609919
A84: 106 | B84: 0.446056 | D84: 106 | E84: 0.002870914318 | F84: 0.6650031078 | G84: 0.6650031078 | H84: =SUM(E84:E$88)/E84 -> 2.000599635 | I84: 3.000299818 | J84: 2.963406026
A85: 107 | B85: 0.467092 | D85: 107 | E85: 0.001590325761 | F85: 0.6584189186 | G85: 0.6584189186 | H85: =SUM(E85:E$88)/E85 -> 1.806319114 | I85: 2.403159557 | J85: 2.382379239
A86: 108 | B86: 0.486945 | D86: 108 | E86: 0.0008474973206 | F86: 0.6518999194 | G86: 0.6518999194 | H86: =SUM(E86:E$88)/E86 -> 1.513055 | I86: 1.7565275 | J86: 1.748316402
A87: 109 | B87: 0.505382 | D87: 109 | E87: 0.0004348127378 | F87: 0.6454454648 | G87: 0.6454454648 | H87: =SUM(E87:E$88)/E87 -> 1 | I87: 1 | J87: 1
A88: 110 | B88: 1 | D88: 110 | H88: 0
B89: (Source: Australian Life Tables 2015-17 Female, Australian Government Actuary
B90: (leave age 110 mortality rate as 1 so the retiree is guaranteed to die in the model)

Sheet Decisions and Outcomes
A1: Product Decisions
A2: User to enter the retiree decisions here (yellow cells). Simple output metrics from Section 4.3 of the Primer are reproduced below (orange cells).
A4: Life Annuity (LA)
A5: Proportion invested | B5: 0.5 | C5: (of Assets, between the minimum life annuity proportion and 100%)
A6: Minimum life annuity proportion | B6: =MAX(0,ROUNDUP((IncFloor-ExtInc)*'Retiree Details and Assumptions'!B30/Assets,2)) -> 0.23 | C6: (this is the minimum proportion that must be invested to ensure the life annuity and guaranteed income meet the income floor)
A7: Life annuity income | B7: =B5*'Retiree Details and Assumptions'!B8/'Retiree Details and Assumptions'!B30 -> 11296.31358 | C7: (annual)
A8: Minimum life annuity income | B8: =IncFloor-ExtInc -> 5000 | C8: (annual, this is the difference between the income floor and guaranteed income)
A10: Investment-Linked Life Annuity (ILA)
A11: Proportion invested | B11: 0 | C11: (of Assets, between 0% and 100% - Life Annuity%)
A12: Growth allocation | B12: 0 | C12: (proportion of Investment-Linked Annuity allocated to the Growth Portfolio, between 0% and 100%)
A13: Assumed Interest Rate (AIR) | B13: 0.01 | C13: (this is the interest rate used to calculate the initial annuity income - see Section 2.1 of the report for more information, between 0% and 10%)
A14: Initial annuity income | B14: =B11*'Retiree Details and Assumptions'!B8/'Retiree Details and Assumptions'!B35 -> 0 | C14: (annual)
A16: Retirement Savings Account (RSA)
A17: Percentage invested | B17: =1-B5-B11 -> 0.5 | C17: (of Assets)
A18: Growth allocation | B18: 0.25 | C18: (proportion of Retirement Savings Account allocated to the Growth Portfolio, between 0% and 100%)
A19: Initial balance | B19: =B17*'Retiree Details and Assumptions'!B8 -> 250000
A22: Outcome Summary | B22: (see above and "Retiree Details and Assumptions" / "Detailed Outcomes" worksheets for explanation of numbers)
A24: Attributes
A25: Assets (savings at retirement) | B25: ='Retiree Details and Assumptions'!B8 -> 500000
A26: Guaranteed income | B26: =ExtInc -> 20000
A27: Income target | B27: =IncTarg -> 50000
A28: Survival probability (age 75) | B28: ='Detailed Outcomes'!C41 -> 0.908391343
A29: Survival probability (age 85) | B29: ='Detailed Outcomes'!C43 -> 0.6553939526
A30: Survival probability (age 95) | B30: ='Detailed Outcomes'!C45 -> 0.1817191649
A32: Allocation decisions
A33: LA proportion invested | B33: =B5 -> 0.5
A34: ILA proportion invested | B34: =B11 -> 0
A35: RSA growth allocation | B35: =B17 -> 0.5
A37: Investment decisions
A38: ILA growth allocation | B38: =ILAGroAll -> 0
A39: ILA AIR | B39: =AIR -> 0.01
A40: RSA growth allocation | B40: =RSAGroAll -> 0.25
A42: Metrics
A43: Expected age of account exhaustion | B43: ='Detailed Outcomes'!B50 -> 80.564
A44: Probability of shortfall vs. income target at age 75 | B44: ='Detailed Outcomes'!D28 -> 0
A45: Probability of shortfall vs. income target at age 85 | B45: ='Detailed Outcomes'!D30 -> 0.992
A46: Probability of shortfall vs. income target at age 95 | B46: ='Detailed Outcomes'!D32 -> 1
A47: Minimum income | B47: ='Detailed Outcomes'!B10 -> 31296.31358
A48: Life annuity component | B48: =AnnInc -> 11296.31358
A49: Constant Risk-Adjusted Difference from Target (CRADT) | B49: ='Detailed Outcomes'!B15 -> -5739.979937 | C49: #
A50: Risk-adjusted income (Income target + CRADT) | B50: =IncTarg+B49 -> 44260.02006 | C50: #
A51: Median account balance at age 75 | B51: ='Detailed Outcomes'!H54 -> 104266.6588
A52: Median account balance at age 85 | B52: ='Detailed Outcomes'!H56 -> 0
A53: Median account balance at age 95 | B53: ='Detailed Outcomes'!H58 -> 0
A55: # Survival probabilities are applied in estimating these metrics

Sheet Detailed Outcomes
A1: Outcomes
A2: This worksheet shows detailed output metrics (orange cells) for a single input and decision sets specified in "Retiree Details and Assumptions" and "Decisions and Outcomes" worksheets. Note that all non-age metrics are survival weighted. See Appendix B and Appendix C for definitions of the utility and metrics, respectively.
A4: Attributes
A5: Assets (savings at retirement) | B5: ='Retiree Details and Assumptions'!B8 -> 500000 | C5: (this was input on the "Retiree Details and Assumptions" worksheet)
A6: Guaranteed income | B6: =ExtInc -> 20000 | C6: (this was input on the "Retiree Details and Assumptions" worksheet)
A8: Income Details
A9: Income floor | B9: =IncFloor -> 25000 | C9: (this was input on the "Retiree Details and Assumptions" worksheet)
A10: Minimum income | B10: =ExtInc+AnnInc -> 31296.31358 | C10: (this is the sum of the "Guaranteed income" which was input on the "Retiree Details and Assumptions" worksheet, and the "Life annuity income" which is calculated on the "Decisions and Outcomes" worksheet)
A11: Income target | B11: =IncTarg -> 50000 | C11: (this was input on the "Retiree Details and Assumptions" worksheet)
A13: Utility
A14: Expected Utility | B14: =AVERAGE(Utility!AW2:AW1001)/SUM('Retiree Details and Assumptions'!E43:E88) -> -9142.261581 | C14: (Loss Aversion Utility; scaled by survival probability)
A15: Constant Risk-Adjusted Difference from Target (CRADT) | B15: =IF(B14<0,-((-B14/Lambda)^(1/Beta)),B14^(1/Alpha)) -> -5739.979937 | C15: (this is the income the retiree would accept as equivalent to the output from this model)
A16: Risk-Adjusted Income (Target + CRADT) | B16: =B15+IncTarg -> 44260.02006
A18: Likelihood/Magnitude of income target shortfall metrics
A20: Probability of shortfall (any time during retirement) | B20: =AVERAGE(IncomeTargShort!AX2:AX1001) -> 0.7955982781
A21: Expected years of shortfall (unconditional) | B21: =AVERAGE(IncomeTargShort!AY2:AY1001) -> 8.514112433 | C21: (this is the number of years the retiree is expected to be in shortfall)
A22: Expected shortfall (any time, unconditional) | B22: =AVERAGE(IncomeTargShort!BA2:BA1001) -> -6593.068833 | C22: (this is the amount by which a retiree is expected to be in shortfall in any given year)
A23: Expected years of shortfall (conditional) | B23: =IFERROR(AVERAGEIF(IncomeTargShort!AZ2:AZ1001,">0"),"N/A") -> 10.63847614 | C23: (for retirees that experience shortfall, this is the number of years the retiree is expected to be in shortfall)
A24: Expected shortfall (any time, conditional) | B24: =IFERROR(AVERAGEIF(IncomeTargShort!BB2:BB1001,"<0"),"N/A") -> -17789.35998 | C24: (for years in which shortfall occurs, this is the amount by which a retiree is expected to be in shortfall)
A25: Probability of shortfall (by age): | B25: Age | C25: Survival Probability | D25: Shortfall probability | E25: Expected shortfall (uncond) | F25: Expected shortfall (cond)
A26: Expected shortfall (by age, unconditional and conditional): | B26: 65 | C26: =LOOKUP(B26,'Retiree Details and Assumptions'!D$43:D$88,'Retiree Details and Assumptions'!E$43:E$88) -> 1 | D26: =COUNTIF(OFFSET(IncomeTargDiff!$B$2:$B$1001,0,B26-65),"<0")/1000 -> 0 | E26: =AVERAGE(OFFSET(IncomeTargShort!$B$2:$B$1001,0,$B26-65)) -> 0 | F26: =IFERROR(AVERAGEIF(OFFSET(IncomeTargShort!$B$2:$B$1001,0,$B26-65),"<0"),"N/A") -> N/A
B27: 70 | C27: =LOOKUP(B27,'Retiree Details and Assumptions'!D$43:D$88,'Retiree Details and Assumptions'!E$43:E$88) -> 0.9654392878 | D27: =COUNTIF(OFFSET(IncomeTargDiff!$B$2:$B$1001,0,B27-65),"<0")/1000 -> 0 | E27: =AVERAGE(OFFSET(IncomeTargShort!$B$2:$B$1001,0,$B27-65)) -> 0 | F27: =IFERROR(AVERAGEIF(OFFSET(IncomeTargShort!$B$2:$B$1001,0,$B27-65),"<0"),"N/A") -> N/A
B28: 75 | C28: =LOOKUP(B28,'Retiree Details and Assumptions'!D$43:D$88,'Retiree Details and Assumptions'!E$43:E$88) -> 0.908391343 | D28: =COUNTIF(OFFSET(IncomeTargDiff!$B$2:$B$1001,0,B28-65),"<0")/1000 -> 0 | E28: =AVERAGE(OFFSET(IncomeTargShort!$B$2:$B$1001,0,$B28-65)) -> 0 | F28: =IFERROR(AVERAGEIF(OFFSET(IncomeTargShort!$B$2:$B$1001,0,$B28-65),"<0"),"N/A") -> N/A
B29: 80 | C29: =LOOKUP(B29,'Retiree Details and Assumptions'!D$43:D$88,'Retiree Details and Assumptions'!E$43:E$88) -> 0.8135841249 | D29: =COUNTIF(OFFSET(IncomeTargDiff!$B$2:$B$1001,0,B29-65),"<0")/1000 -> 0.527 | E29: =AVERAGE(OFFSET(IncomeTargShort!$B$2:$B$1001,0,$B29-65)) -> -7525.852884 | F29: =IFERROR(AVERAGEIF(OFFSET(IncomeTargShort!$B$2:$B$1001,0,$B29-65),"<0"),"N/A") -> -14280.55576
B30: 85 | C30: =LOOKUP(B30,'Retiree Details and Assumptions'!D$43:D$88,'Retiree Details and Assumptions'!E$43:E$88) -> 0.6553939526 | D30: =COUNTIF(OFFSET(IncomeTargDiff!$B$2:$B$1001,0,B30-65),"<0")/1000 -> 0.992 | E30: =AVERAGE(OFFSET(IncomeTargShort!$B$2:$B$1001,0,$B30-65)) -> -18515.03472 | F30: =IFERROR(AVERAGEIF(OFFSET(IncomeTargShort!$B$2:$B$1001,0,$B30-65),"<0"),"N/A") -> -18664.34951
B31: 90 | C31: =LOOKUP(B31,'Retiree Details and Assumptions'!D$43:D$88,'Retiree Details and Assumptions'!E$43:E$88) -> 0.4223984156 | D31: =COUNTIF(OFFSET(IncomeTargDiff!$B$2:$B$1001,0,B31-65),"<0")/1000 -> 1 | E31: =AVERAGE(OFFSET(IncomeTargShort!$B$2:$B$1001,0,$B31-65)) -> -18703.68642 | F31: =IFERROR(AVERAGEIF(OFFSET(IncomeTargShort!$B$2:$B$1001,0,$B31-65),"<0"),"N/A") -> -18703.68642
B32: 95 | C32: =LOOKUP(B32,'Retiree Details and Assumptions'!D$43:D$88,'Retiree Details and Assumptions'!E$43:E$88) -> 0.1817191649 | D32: =COUNTIF(OFFSET(IncomeTargDiff!$B$2:$B$1001,0,B32-65),"<0")/1000 -> 1 | E32: =AVERAGE(OFFSET(IncomeTargShort!$B$2:$B$1001,0,$B32-65)) -> -18703.68642 | F32: =IFERROR(AVERAGEIF(OFFSET(IncomeTargShort!$B$2:$B$1001,0,$B32-65),"<0"),"N/A") -> -18703.68642
B33: 100 | C33: =LOOKUP(B33,'Retiree Details and Assumptions'!D$43:D$88,'Retiree Details and Assumptions'!E$43:E$88) -> 0.04488377963 | D33: =COUNTIF(OFFSET(IncomeTargDiff!$B$2:$B$1001,0,B33-65),"<0")/1000 -> 1 | E33: =AVERAGE(OFFSET(IncomeTargShort!$B$2:$B$1001,0,$B33-65)) -> -18703.68642 | F33: =IFERROR(AVERAGEIF(OFFSET(IncomeTargShort!$B$2:$B$1001,0,$B33-65),"<0"),"N/A") -> -18703.68642
B34: 105 | C34: =LOOKUP(B34,'Retiree Details and Assumptions'!D$43:D$88,'Retiree Details and Assumptions'!E$43:E$88) -> 0.004984780111 | D34: =COUNTIF(OFFSET(IncomeTargDiff!$B$2:$B$1001,0,B34-65),"<0")/1000 -> 1 | E34: =AVERAGE(OFFSET(IncomeTargShort!$B$2:$B$1001,0,$B34-65)) -> -18703.68642 | F34: =IFERROR(AVERAGEIF(OFFSET(IncomeTargShort!$B$2:$B$1001,0,$B34-65),"<0"),"N/A") -> -18703.68642
D35: (this is the probability that income will be below the target at this age) | E35: (this is the expected amount that income will be below the target at this age) | F35: (where income is below the target, this is the expected amount that income will be below the target at this age)
A37: Distribution of income metrics
A38: Income percentiles (by age): | B38: Age | C38: Survival Probability | D38: 1st Percentile | E38: 5th Percentile | F38: 25th Percentile | G38: Median | H38: 75th Percentile | I38: 95th Percentile | J38: 99th Percentile
B39: 65 | C39: =LOOKUP(B39,'Retiree Details and Assumptions'!D$43:D$88,'Retiree Details and Assumptions'!E$43:E$88) -> 1 | D39: =PERCENTILE(OFFSET(IncomeTot!$B$2:$B$1001,0,$B39-65),0.01) -> 50000 | E39: =PERCENTILE(OFFSET(IncomeTot!$B$2:$B$1001,0,$B39-65),0.05) -> 50000 | F39: =PERCENTILE(OFFSET(IncomeTot!$B$2:$B$1001,0,$B39-65),0.25) -> 50000 | G39: =PERCENTILE(OFFSET(IncomeTot!$B$2:$B$1001,0,$B39-65),0.5) -> 50000 | H39: =PERCENTILE(OFFSET(IncomeTot!$B$2:$B$1001,0,$B39-65),0.75) -> 50000 | I39: =PERCENTILE(OFFSET(IncomeTot!$B$2:$B$1001,0,$B39-65),0.95) -> 50000 | J39: =PERCENTILE(OFFSET(IncomeTot!$B$2:$B$1001,0,$B39-65),0.99) -> 50000 | K39: (this is the Initial income)
B40: 70 | C40: =LOOKUP(B40,'Retiree Details and Assumptions'!D$43:D$88,'Retiree Details and Assumptions'!E$43:E$88) -> 0.9654392878 | D40: =PERCENTILE(OFFSET(IncomeTot!$B$2:$B$1001,0,$B40-65),0.01) -> 50000 | E40: =PERCENTILE(OFFSET(IncomeTot!$B$2:$B$1001,0,$B40-65),0.05) -> 50000 | F40: =PERCENTILE(OFFSET(IncomeTot!$B$2:$B$1001,0,$B40-65),0.25) -> 50000 | G40: =PERCENTILE(OFFSET(IncomeTot!$B$2:$B$1001,0,$B40-65),0.5) -> 50000 | H40: =PERCENTILE(OFFSET(IncomeTot!$B$2:$B$1001,0,$B40-65),0.75) -> 50000 | I40: =PERCENTILE(OFFSET(IncomeTot!$B$2:$B$1001,0,$B40-65),0.95) -> 50000 | J40: =PERCENTILE(OFFSET(IncomeTot!$B$2:$B$1001,0,$B40-65),0.99) -> 50000
B41: 75 | C41: =LOOKUP(B41,'Retiree Details and Assumptions'!D$43:D$88,'Retiree Details and Assumptions'!E$43:E$88) -> 0.908391343 | D41: =PERCENTILE(OFFSET(IncomeTot!$B$2:$B$1001,0,$B41-65),0.01) -> 50000 | E41: =PERCENTILE(OFFSET(IncomeTot!$B$2:$B$1001,0,$B41-65),0.05) -> 50000 | F41: =PERCENTILE(OFFSET(IncomeTot!$B$2:$B$1001,0,$B41-65),0.25) -> 50000 | G41: =PERCENTILE(OFFSET(IncomeTot!$B$2:$B$1001,0,$B41-65),0.5) -> 50000 | H41: =PERCENTILE(OFFSET(IncomeTot!$B$2:$B$1001,0,$B41-65),0.75) -> 50000 | I41: =PERCENTILE(OFFSET(IncomeTot!$B$2:$B$1001,0,$B41-65),0.95) -> 50000 | J41: =PERCENTILE(OFFSET(IncomeTot!$B$2:$B$1001,0,$B41-65),0.99) -> 50000
B42: 80 | C42: =LOOKUP(B42,'Retiree Details and Assumptions'!D$43:D$88,'Retiree Details and Assumptions'!E$43:E$88) -> 0.8135841249 | D42: =PERCENTILE(OFFSET(IncomeTot!$B$2:$B$1001,0,$B42-65),0.01) -> 31296.31358 | E42: =PERCENTILE(OFFSET(IncomeTot!$B$2:$B$1001,0,$B42-65),0.05) -> 31296.31358 | F42: =PERCENTILE(OFFSET(IncomeTot!$B$2:$B$1001,0,$B42-65),0.25) -> 31296.31358 | G42: =PERCENTILE(OFFSET(IncomeTot!$B$2:$B$1001,0,$B42-65),0.5) -> 47558.27532 | H42: =PERCENTILE(OFFSET(IncomeTot!$B$2:$B$1001,0,$B42-65),0.75) -> 50000 | I42: =PERCENTILE(OFFSET(IncomeTot!$B$2:$B$1001,0,$B42-65),0.95) -> 50000 | J42: =PERCENTILE(OFFSET(IncomeTot!$B$2:$B$1001,0,$B42-65),0.99) -> 50000
B43: 85 | C43: =LOOKUP(B43,'Retiree Details and Assumptions'!D$43:D$88,'Retiree Details and Assumptions'!E$43:E$88) -> 0.6553939526 | D43: =PERCENTILE(OFFSET(IncomeTot!$B$2:$B$1001,0,$B43-65),0.01) -> 31296.31358 | E43: =PERCENTILE(OFFSET(IncomeTot!$B$2:$B$1001,0,$B43-65),0.05) -> 31296.31358 | F43: =PERCENTILE(OFFSET(IncomeTot!$B$2:$B$1001,0,$B43-65),0.25) -> 31296.31358 | G43: =PERCENTILE(OFFSET(IncomeTot!$B$2:$B$1001,0,$B43-65),0.5) -> 31296.31358 | H43: =PERCENTILE(OFFSET(IncomeTot!$B$2:$B$1001,0,$B43-65),0.75) -> 31296.31358 | I43: =PERCENTILE(OFFSET(IncomeTot!$B$2:$B$1001,0,$B43-65),0.95) -> 31296.31358 | J43: =PERCENTILE(OFFSET(IncomeTot!$B$2:$B$1001,0,$B43-65),0.99) -> 37744.20816
B44: 90 | C44: =LOOKUP(B44,'Retiree Details and Assumptions'!D$43:D$88,'Retiree Details and Assumptions'!E$43:E$88) -> 0.4223984156 | D44: =PERCENTILE(OFFSET(IncomeTot!$B$2:$B$1001,0,$B44-65),0.01) -> 31296.31358 | E44: =PERCENTILE(OFFSET(IncomeTot!$B$2:$B$1001,0,$B44-65),0.05) -> 31296.31358 | F44: =PERCENTILE(OFFSET(IncomeTot!$B$2:$B$1001,0,$B44-65),0.25) -> 31296.31358 | G44: =PERCENTILE(OFFSET(IncomeTot!$B$2:$B$1001,0,$B44-65),0.5) -> 31296.31358 | H44: =PERCENTILE(OFFSET(IncomeTot!$B$2:$B$1001,0,$B44-65),0.75) -> 31296.31358 | I44: =PERCENTILE(OFFSET(IncomeTot!$B$2:$B$1001,0,$B44-65),0.95) -> 31296.31358 | J44: =PERCENTILE(OFFSET(IncomeTot!$B$2:$B$1001,0,$B44-65),0.99) -> 31296.31358
B45: 95 | C45: =LOOKUP(B45,'Retiree Details and Assumptions'!D$43:D$88,'Retiree Details and Assumptions'!E$43:E$88) -> 0.1817191649 | D45: =PERCENTILE(OFFSET(IncomeTot!$B$2:$B$1001,0,$B45-65),0.01) -> 31296.31358 | E45: =PERCENTILE(OFFSET(IncomeTot!$B$2:$B$1001,0,$B45-65),0.05) -> 31296.31358 | F45: =PERCENTILE(OFFSET(IncomeTot!$B$2:$B$1001,0,$B45-65),0.25) -> 31296.31358 | G45: =PERCENTILE(OFFSET(IncomeTot!$B$2:$B$1001,0,$B45-65),0.5) -> 31296.31358 | H45: =PERCENTILE(OFFSET(IncomeTot!$B$2:$B$1001,0,$B45-65),0.75) -> 31296.31358 | I45: =PERCENTILE(OFFSET(IncomeTot!$B$2:$B$1001,0,$B45-65),0.95) -> 31296.31358 | J45: =PERCENTILE(OFFSET(IncomeTot!$B$2:$B$1001,0,$B45-65),0.99) -> 31296.31358
B46: 100 | C46: =LOOKUP(B46,'Retiree Details and Assumptions'!D$43:D$88,'Retiree Details and Assumptions'!E$43:E$88) -> 0.04488377963 | D46: =PERCENTILE(OFFSET(IncomeTot!$B$2:$B$1001,0,$B46-65),0.01) -> 31296.31358 | E46: =PERCENTILE(OFFSET(IncomeTot!$B$2:$B$1001,0,$B46-65),0.05) -> 31296.31358 | F46: =PERCENTILE(OFFSET(IncomeTot!$B$2:$B$1001,0,$B46-65),0.25) -> 31296.31358 | G46: =PERCENTILE(OFFSET(IncomeTot!$B$2:$B$1001,0,$B46-65),0.5) -> 31296.31358 | H46: =PERCENTILE(OFFSET(IncomeTot!$B$2:$B$1001,0,$B46-65),0.75) -> 31296.31358 | I46: =PERCENTILE(OFFSET(IncomeTot!$B$2:$B$1001,0,$B46-65),0.95) -> 31296.31358 | J46: =PERCENTILE(OFFSET(IncomeTot!$B$2:$B$1001,0,$B46-65),0.99) -> 31296.31358
B47: 105 | C47: =LOOKUP(B47,'Retiree Details and Assumptions'!D$43:D$88,'Retiree Details and Assumptions'!E$43:E$88) -> 0.004984780111 | D47: =PERCENTILE(OFFSET(IncomeTot!$B$2:$B$1001,0,$B47-65),0.01) -> 31296.31358 | E47: =PERCENTILE(OFFSET(IncomeTot!$B$2:$B$1001,0,$B47-65),0.05) -> 31296.31358 | F47: =PERCENTILE(OFFSET(IncomeTot!$B$2:$B$1001,0,$B47-65),0.25) -> 31296.31358 | G47: =PERCENTILE(OFFSET(IncomeTot!$B$2:$B$1001,0,$B47-65),0.5) -> 31296.31358 | H47: =PERCENTILE(OFFSET(IncomeTot!$B$2:$B$1001,0,$B47-65),0.75) -> 31296.31358 | I47: =PERCENTILE(OFFSET(IncomeTot!$B$2:$B$1001,0,$B47-65),0.95) -> 31296.31358 | J47: =PERCENTILE(OFFSET(IncomeTot!$B$2:$B$1001,0,$B47-65),0.99) -> 31296.31358
A49: Retirement Savings Account balance metrics
A50: Expected age of account exhaustion | B50: =IFERROR(AVERAGE(RSABal!AW2:AW1001),"N/A") -> 80.564 | C50: (this is the average age when account is exhausted, with age 110 treated as a maximum)
A51: Value of account balance (by age, and percentiles) | B51: Age | C51: Survival Probability | D51: Probability of exhaustion | E51: 1st Percentile | F51: 5th Percentile | G51: 25th Percentile | H51: Median | I51: 75th Percentile | J51: 95th Percentile | K51: 99th Percentile
A52: Probability of exhaustion (by age) | B52: 65 | C52: =LOOKUP(B52,'Retiree Details and Assumptions'!D$43:D$88,'Retiree Details and Assumptions'!E$43:E$88) -> 1 | D52: =COUNTIF(OFFSET(RSABal!$B$2:$B$1001,0,B39-65),"=0")/1000 -> 0 | E52: =PERCENTILE(OFFSET(RSABal!$B$2:$B$1001,0,$B52-65),0.01) -> 250000 | F52: =PERCENTILE(OFFSET(RSABal!$B$2:$B$1001,0,$B52-65),0.05) -> 250000 | G52: =PERCENTILE(OFFSET(RSABal!$B$2:$B$1001,0,$B52-65),0.25) -> 250000 | H52: =PERCENTILE(OFFSET(RSABal!$B$2:$B$1001,0,$B52-65),0.5) -> 250000 | I52: =PERCENTILE(OFFSET(RSABal!$B$2:$B$1001,0,$B52-65),0.75) -> 250000 | J52: =PERCENTILE(OFFSET(RSABal!$B$2:$B$1001,0,$B52-65),0.95) -> 250000 | K52: =PERCENTILE(OFFSET(RSABal!$B$2:$B$1001,0,$B52-65),0.99) -> 250000 | L52: (this is the initial assets allocated to the retirement savings account)
B53: 70 | C53: =LOOKUP(B53,'Retiree Details and Assumptions'!D$43:D$88,'Retiree Details and Assumptions'!E$43:E$88) -> 0.9654392878 | D53: =COUNTIF(OFFSET(RSABal!$B$2:$B$1001,0,B40-65),"=0")/1000 -> 0 | E53: =PERCENTILE(OFFSET(RSABal!$B$2:$B$1001,0,$B53-65),0.01) -> 143041.3356 | F53: =PERCENTILE(OFFSET(RSABal!$B$2:$B$1001,0,$B53-65),0.05) -> 153614.7746 | G53: =PERCENTILE(OFFSET(RSABal!$B$2:$B$1001,0,$B53-65),0.25) -> 169355.2153 | H53: =PERCENTILE(OFFSET(RSABal!$B$2:$B$1001,0,$B53-65),0.5) -> 181152.0671 | I53: =PERCENTILE(OFFSET(RSABal!$B$2:$B$1001,0,$B53-65),0.75) -> 194654.8618 | J53: =PERCENTILE(OFFSET(RSABal!$B$2:$B$1001,0,$B53-65),0.95) -> 216000.354 | K53: =PERCENTILE(OFFSET(RSABal!$B$2:$B$1001,0,$B53-65),0.99) -> 231218.0155
B54: 75 | C54: =LOOKUP(B54,'Retiree Details and Assumptions'!D$43:D$88,'Retiree Details and Assumptions'!E$43:E$88) -> 0.908391343 | D54: =COUNTIF(OFFSET(RSABal!$B$2:$B$1001,0,B41-65),"=0")/1000 -> 0 | E54: =PERCENTILE(OFFSET(RSABal!$B$2:$B$1001,0,$B54-65),0.01) -> 53700.29617 | F54: =PERCENTILE(OFFSET(RSABal!$B$2:$B$1001,0,$B54-65),0.05) -> 67856.57831 | G54: =PERCENTILE(OFFSET(RSABal!$B$2:$B$1001,0,$B54-65),0.25) -> 88410.86162 | H54: =PERCENTILE(OFFSET(RSABal!$B$2:$B$1001,0,$B54-65),0.5) -> 104266.6588 | I54: =PERCENTILE(OFFSET(RSABal!$B$2:$B$1001,0,$B54-65),0.75) -> 122627.9332 | J54: =PERCENTILE(OFFSET(RSABal!$B$2:$B$1001,0,$B54-65),0.95) -> 150781.0658 | K54: =PERCENTILE(OFFSET(RSABal!$B$2:$B$1001,0,$B54-65),0.99) -> 173517.1691
B55: 80 | C55: =LOOKUP(B55,'Retiree Details and Assumptions'!D$43:D$88,'Retiree Details and Assumptions'!E$43:E$88) -> 0.8135841249 | D55: =COUNTIF(OFFSET(RSABal!$B$2:$B$1001,0,B42-65),"=0")/1000 -> 0.284 | E55: =PERCENTILE(OFFSET(RSABal!$B$2:$B$1001,0,$B55-65),0.01) -> 0 | F55: =PERCENTILE(OFFSET(RSABal!$B$2:$B$1001,0,$B55-65),0.05) -> 0 | G55: =PERCENTILE(OFFSET(RSABal!$B$2:$B$1001,0,$B55-65),0.25) -> 0 | H55: =PERCENTILE(OFFSET(RSABal!$B$2:$B$1001,0,$B55-65),0.5) -> 16261.96174 | I55: =PERCENTILE(OFFSET(RSABal!$B$2:$B$1001,0,$B55-65),0.75) -> 39531.37332 | J55: =PERCENTILE(OFFSET(RSABal!$B$2:$B$1001,0,$B55-65),0.95) -> 70416.49578 | K55: =PERCENTILE(OFFSET(RSABal!$B$2:$B$1001,0,$B55-65),0.99) -> 90607.25908
B56: 85 | C56: =LOOKUP(B56,'Retiree Details and Assumptions'!D$43:D$88,'Retiree Details and Assumptions'!E$43:E$88) -> 0.6553939526 | D56: =COUNTIF(OFFSET(RSABal!$B$2:$B$1001,0,B43-65),"=0")/1000 -> 0.985 | E56: =PERCENTILE(OFFSET(RSABal!$B$2:$B$1001,0,$B56-65),0.01) -> 0 | F56: =PERCENTILE(OFFSET(RSABal!$B$2:$B$1001,0,$B56-65),0.05) -> 0 | G56: =PERCENTILE(OFFSET(RSABal!$B$2:$B$1001,0,$B56-65),0.25) -> 0 | H56: =PERCENTILE(OFFSET(RSABal!$B$2:$B$1001,0,$B56-65),0.5) -> 0 | I56: =PERCENTILE(OFFSET(RSABal!$B$2:$B$1001,0,$B56-65),0.75) -> 0 | J56: =PERCENTILE(OFFSET(RSABal!$B$2:$B$1001,0,$B56-65),0.95) -> 0 | K56: =PERCENTILE(OFFSET(RSABal!$B$2:$B$1001,0,$B56-65),0.99) -> 6447.894582
B57: 90 | C57: =LOOKUP(B57,'Retiree Details and Assumptions'!D$43:D$88,'Retiree Details and Assumptions'!E$43:E$88) -> 0.4223984156 | D57: =COUNTIF(OFFSET(RSABal!$B$2:$B$1001,0,B44-65),"=0")/1000 -> 1 | E57: =PERCENTILE(OFFSET(RSABal!$B$2:$B$1001,0,$B57-65),0.01) -> 0 | F57: =PERCENTILE(OFFSET(RSABal!$B$2:$B$1001,0,$B57-65),0.05) -> 0 | G57: =PERCENTILE(OFFSET(RSABal!$B$2:$B$1001,0,$B57-65),0.25) -> 0 | H57: =PERCENTILE(OFFSET(RSABal!$B$2:$B$1001,0,$B57-65),0.5) -> 0 | I57: =PERCENTILE(OFFSET(RSABal!$B$2:$B$1001,0,$B57-65),0.75) -> 0 | J57: =PERCENTILE(OFFSET(RSABal!$B$2:$B$1001,0,$B57-65),0.95) -> 0 | K57: =PERCENTILE(OFFSET(RSABal!$B$2:$B$1001,0,$B57-65),0.99) -> 0
B58: 95 | C58: =LOOKUP(B58,'Retiree Details and Assumptions'!D$43:D$88,'Retiree Details and Assumptions'!E$43:E$88) -> 0.1817191649 | D58: =COUNTIF(OFFSET(RSABal!$B$2:$B$1001,0,B45-65),"=0")/1000 -> 1 | E58: =PERCENTILE(OFFSET(RSABal!$B$2:$B$1001,0,$B58-65),0.01) -> 0 | F58: =PERCENTILE(OFFSET(RSABal!$B$2:$B$1001,0,$B58-65),0.05) -> 0 | G58: =PERCENTILE(OFFSET(RSABal!$B$2:$B$1001,0,$B58-65),0.25) -> 0 | H58: =PERCENTILE(OFFSET(RSABal!$B$2:$B$1001,0,$B58-65),0.5) -> 0 | I58: =PERCENTILE(OFFSET(RSABal!$B$2:$B$1001,0,$B58-65),0.75) -> 0 | J58: =PERCENTILE(OFFSET(RSABal!$B$2:$B$1001,0,$B58-65),0.95) -> 0 | K58: =PERCENTILE(OFFSET(RSABal!$B$2:$B$1001,0,$B58-65),0.99) -> 0
B59: 100 | C59: =LOOKUP(B59,'Retiree Details and Assumptions'!D$43:D$88,'Retiree Details and Assumptions'!E$43:E$88) -> 0.04488377963 | D59: =COUNTIF(OFFSET(RSABal!$B$2:$B$1001,0,B46-65),"=0")/1000 -> 1 | E59: =PERCENTILE(OFFSET(RSABal!$B$2:$B$1001,0,$B59-65),0.01) -> 0 | F59: =PERCENTILE(OFFSET(RSABal!$B$2:$B$1001,0,$B59-65),0.05) -> 0 | G59: =PERCENTILE(OFFSET(RSABal!$B$2:$B$1001,0,$B59-65),0.25) -> 0 | H59: =PERCENTILE(OFFSET(RSABal!$B$2:$B$1001,0,$B59-65),0.5) -> 0 | I59: =PERCENTILE(OFFSET(RSABal!$B$2:$B$1001,0,$B59-65),0.75) -> 0 | J59: =PERCENTILE(OFFSET(RSABal!$B$2:$B$1001,0,$B59-65),0.95) -> 0 | K59: =PERCENTILE(OFFSET(RSABal!$B$2:$B$1001,0,$B59-65),0.99) -> 0
B60: 105 | C60: =LOOKUP(B60,'Retiree Details and Assumptions'!D$43:D$88,'Retiree Details and Assumptions'!E$43:E$88) -> 0.004984780111 | D60: =COUNTIF(OFFSET(RSABal!$B$2:$B$1001,0,B47-65),"=0")/1000 -> 1 | E60: =PERCENTILE(OFFSET(RSABal!$B$2:$B$1001,0,$B60-65),0.01) -> 0 | F60: =PERCENTILE(OFFSET(RSABal!$B$2:$B$1001,0,$B60-65),0.05) -> 0 | G60: =PERCENTILE(OFFSET(RSABal!$B$2:$B$1001,0,$B60-65),0.25) -> 0 | H60: =PERCENTILE(OFFSET(RSABal!$B$2:$B$1001,0,$B60-65),0.5) -> 0 | I60: =PERCENTILE(OFFSET(RSABal!$B$2:$B$1001,0,$B60-65),0.75) -> 0 | J60: =PERCENTILE(OFFSET(RSABal!$B$2:$B$1001,0,$B60-65),0.95) -> 0 | K60: =PERCENTILE(OFFSET(RSABal!$B$2:$B$1001,0,$B60-65),0.99) -> 0
D61: ("Probability of exhaustion" is probability that the retiree will have exhausted their account balance at that age)
A62: Graphs
A63: Income - Median by Age
F64: Income - Percentiles by Age
A88: (This graph is cross-sectional; ie. the median is calculated across all sample paths and does not capture individual sample path volatility) | E88: (This graph is cross-sectional; ie. the percentiles are calculated across all sample paths and do not capture individual sample path volatility)
F90: Account Balance - Percentiles by Age
E114: (This graph is cross-sectional; ie. the percentiles are calculated across all sample paths and do not capture individual sample path volatility)

Sheet Strategy Comparison
A1: Metrics for Income Target Objective
A3: Compact list of all model inputs for each strategy | E3: Full Address of the inputs (see cell reference for more information on allowed values)
A4: Risk appetite | C4: Low | D4: Low | E4: Retiree Details and Assumptions'!B14
A5: Assets | C5: 500000 | D5: 500000 | E5: Retiree Details and Assumptions'!B8
A6: Guaranteed income | C6: 20000 | D6: 20000 | E6: Retiree Details and Assumptions'!B9
A7: Income floor | C7: 25000 | D7: 25000 | E7: Retiree Details and Assumptions'!B10
A8: Income Target (C*) | C8: 50000 | D8: 50000 | E8: Retiree Details and Assumptions'!B13
A9: Proportion invested in LA | C9: 0.25 | D9: 0.75 | E9: Decisions and Outcomes'!B5 - minimum can be found in row 64 below
A10: Proportion invested in ILA | C10: 0 | D10: 0 | E10: Decisions and Outcomes'!B11
A11: Growth allocation of ILA | C11: 0 | D11: 0 | E11: Decisions and Outcomes'!B12
A12: Assumed Interest Rate (AIR) | C12: 0.01 | D12: 0.01 | E12: Decisions and Outcomes'!B13
A13: Growth allocation in RSA | C13: 0.75 | D13: 0.25 | E13: Decisions and Outcomes'!B18
A14: Risky return mean | C14: 0.06 | D14: 0.06 | E14: Retiree Details and Assumptions'!B22
A15: Risky return std. dev. | C15: 0.15 | D15: 0.15 | E15: Retiree Details and Assumptions'!B23
A16: Risk-free return | C16: 0.01 | D16: 0.01 | E16: Retiree Details and Assumptions'!B26
A17: LA prem. loading | C17: 0.08 | D17: 0.08 | E17: Retiree Details and Assumptions'!B29
A18: ILA prem. loading | C18: 0.08 | D18: 0.08 | E18: Retiree Details and Assumptions'!B34
A20: Strategy | B20: Link column (for VBA) | C20: See above | D20: See above
A21: Assumptions About Retiree
A22: Income floor | B22: =IncFloor -> 25000 | C22: 25000 | D22: 25000
A23: Income target | B23: =IncTarg -> 50000 | C23: 50000 | D23: 50000
A24: Risk appetite | B24: =IF(LossAversion="Low","Low",IF(LossAversion="High","High","Custom")) -> Low | C24: Low | D24: Low
A25: Savings at retirement (age 65) | B25: =Assets -> 500000 | C25: 500000 | D25: 500000
A26: Allocation of savings at retirement | F26: This worksheet provides the illustrative metrics for the income target objective (see Section 4.4.1 of the Primer).
A27: Lifetime income stream (life annuity) | B27: =TEXT(B$25*LAProp, "$#,##0")&" ("&TEXT(LAProp,"0%")&")" -> $250,000 (50%) | C27: $125,000 (25%) | D27: $250,000 (50%) | F27: The modelling inputs for each set are given in rows 4 to 18 of columns C and D; and their outputs in rows 20 to 58.
A28: Lifetime income stream (investment-linked) | B28: =TEXT(B$25*ILAProp, "$#,##0")&" ("&TEXT(ILAProp,"0%")&")" -> $0 (0%) | C28: $0 (0%) | D28: $0 (0%) | F28: For each column (C:D), the macro button copies the model inputs (yellow cells) to their respective address in the workbooks for calculation.
A29: Retirement savings account | B29: =TEXT(B$25*RSAProp, "$#,##0")&" ("&TEXT(RSAProp,"0%")&")" -> $250,000 (50%) | C29: $375,000 (75%) | D29: $250,000 (50%) | F29: The calculated outputs are then collated from "Detailed Outcomes" and pasted in each column accordingly.
A30: Total | B30: =TEXT(B$25, "$#,##0")&" ("&TEXT(1,"0%")&")" -> $500,000 (100%) | C30: $500,000 (100%) | D30: $500,000 (100%) | F30: Hence users can compare any two input and decision sets and generate output in the same format as Section 4.4.1 of the Primer.
A31: Growth weighting - investment-linked | B31: =TEXT(B$23*ILAProp*ILAGroAll, "$#,##0")&" ("&TEXT(ILAGroAll,"0%")&")" -> $0 (0%) | C31: $0 (0%) | D31: $0 (0%) | F31: The input and decision sets from Column D will also be shown in the "Decisions and Outcomes" and "Detailed Outcomes" worksheets
A32: Growth weighting - retirement account | B32: =TEXT(B$25*RSAProp*RSAGroAll, "$#,##0")&" ("&TEXT(RSAGroAll,"0%")&")" -> $62,500 (25%) | C32: $281,250 (75%) | D32: $62,500 (25%)
A33: Income streams:
A34: Social security | B34: =ExtInc -> 20000 | C34: 20000 | D34: 20000
A35: Lifetime income stream (life annuity) | B35: =AnnInc -> 11296.31358 | C35: 5648.15679 | D35: 11296.31358
A36: Lifetime income stream (investment-linked, first year) | B36: =ILAInc -> 0 | C36: 0 | D36: 0
A37: Primary Metrics
A38: Expected age of account exhaustion | B38: ='Decisions and Outcomes'!$B$43 -> 80.564 | C38: 93.65 | D38: 80.564
A39: Probability of shortfall vs. income target
A40: ="Age "&70&" (Survival probability "&TEXT(VLOOKUP(70,'Detailed Outcomes'!$B$26:$C$34,2,FALSE), "0%")&")" -> Age 70 (Survival probability 97%) | B40: ='Detailed Outcomes'!$D$27 -> 0 | C40: 0 | D40: 0
A41: ="Age "&75&" (Survival probability "&TEXT(VLOOKUP(75,'Detailed Outcomes'!$B$26:$C$34,2,FALSE), "0%")&")" -> Age 75 (Survival probability 91%) | B41: ='Detailed Outcomes'!$D$28 -> 0 | C41: 0.003 | D41: 0
A42: ="Age "&80&" (Survival probability "&TEXT(VLOOKUP(80,'Detailed Outcomes'!$B$26:$C$34,2,FALSE), "0%")&")" -> Age 80 (Survival probability 81%) | B42: ='Detailed Outcomes'!$D$29 -> 0.527 | C42: 0.101 | D42: 0.527
A43: ="Age "&85&" (Survival probability "&TEXT(VLOOKUP(85,'Detailed Outcomes'!$B$26:$C$34,2,FALSE), "0%")&")" -> Age 85 (Survival probability 66%) | B43: ='Detailed Outcomes'!$D$30 -> 0.992 | C43: 0.325 | D43: 0.992
A44: ="Age "&90&" (Survival probability "&TEXT(VLOOKUP(90,'Detailed Outcomes'!$B$26:$C$34,2,FALSE), "0%")&")" -> Age 90 (Survival probability 42%) | B44: ='Detailed Outcomes'!$D$31 -> 1 | C44: 0.497 | D44: 1
A45: ="Age "&95&" (Survival probability "&TEXT(VLOOKUP(95,'Detailed Outcomes'!$B$26:$C$34,2,FALSE), "0%")&")" -> Age 95 (Survival probability 18%) | B45: ='Detailed Outcomes'!$D$32 -> 1 | C45: 0.612 | D45: 1
A46: ="Age "&100&" (Survival probability "&TEXT(VLOOKUP(100,'Detailed Outcomes'!$B$26:$C$34,2,FALSE), "0%")&")" -> Age 100 (Survival probability 4%) | B46: ='Detailed Outcomes'!$D$33 -> 1 | C46: 0.689 | D46: 1
A47: ="Age "&105&" (Survival probability "&TEXT(VLOOKUP(105,'Detailed Outcomes'!$B$26:$C$34,2,FALSE), "0.0%")&")" -> Age 105 (Survival probability 0.5%) | B47: ='Detailed Outcomes'!$D$34 -> 1 | C47: 0.729 | D47: 1
A48: Minimum income (social security + lifetime income stream) | B48: =ExtInc+AnnInc -> 31296.31358 | C48: 25648.15679 | D48: 31296.31358
A49: Probability of shortfall vs. income floor | B49: 0 | C49: 0 | D49: 0
A50: Utility-based metrics:
A51: Constant risk-adjusted difference from target (CRADT) | B51: ='Detailed Outcomes'!$B$15 -> -5739.979937 | C51: -2475.670564 | D51: -5739.979937
A52: Risk-adjusted income (Target + CRADT) | B52: =B51+IncTarg -> 44260.02006 | C52: 47524.32944 | D52: 44260.02006
A53: Median account balance
A54: ="Age "&70&" (Survival probability "&TEXT(VLOOKUP(70,'Detailed Outcomes'!$B$26:$C$34,2,FALSE), "0%")&")" -> Age 70 (Survival probability 97%) | B54: ='Detailed Outcomes'!$H$53 -> 181152.0671 | C54: 334831.9681 | D54: 181152.0671
A55: ="Age "&75&" (Survival probability "&TEXT(VLOOKUP(75,'Detailed Outcomes'!$B$26:$C$34,2,FALSE), "0%")&")" -> Age 75 (Survival probability 91%) | B55: ='Detailed Outcomes'!$H$54 -> 104266.6588 | C55: 285590.4708 | D55: 104266.6588
A56: ="Age "&80&" (Survival probability "&TEXT(VLOOKUP(80,'Detailed Outcomes'!$B$26:$C$34,2,FALSE), "0%")&")" -> Age 80 (Survival probability 81%) | B56: ='Detailed Outcomes'!$H$55 -> 16261.96174 | C56: 216136.159 | D56: 16261.96174
A57: ="Age "&85&" (Survival probability "&TEXT(VLOOKUP(85,'Detailed Outcomes'!$B$26:$C$34,2,FALSE), "0%")&")" -> Age 85 (Survival probability 66%) | B57: ='Detailed Outcomes'!$H$56 -> 0 | C57: 135609.7241 | D57: 0
A58: ="Age "&90&" (Survival probability "&TEXT(VLOOKUP(90,'Detailed Outcomes'!$B$26:$C$34,2,FALSE), "0%")&")" -> Age 90 (Survival probability 42%) | B58: ='Detailed Outcomes'!$H$57 -> 0 | C58: 26712.19971 | D58: 0
A59: ="Age "&95&" (Survival probability "&TEXT(VLOOKUP(95,'Detailed Outcomes'!$B$26:$C$34,2,FALSE), "0%")&")" -> Age 95 (Survival probability 18%) | B59: ='Detailed Outcomes'!$H$58 -> 0 | C59: 0 | D59: 0
A60: ="Age "&100&" (Survival probability "&TEXT(VLOOKUP(100,'Detailed Outcomes'!$B$26:$C$34,2,FALSE), "0%")&")" -> Age 100 (Survival probability 4%) | B60: ='Detailed Outcomes'!$H$59 -> 0 | C60: 0 | D60: 0
A61: ="Age "&105&" (Survival probability "&TEXT(VLOOKUP(105,'Detailed Outcomes'!$B$26:$C$34,2,FALSE), "0.0%")&")" -> Age 105 (Survival probability 0.5%) | B61: ='Detailed Outcomes'!$H$60 -> 0 | C61: 0 | D61: 0
A63: Interim calculations for model input validation
A64: Minimum life annuity proportion | C64: =ROUNDUP((C7-C6)*C65/C5,2) -> 0.23 | D64: =ROUNDUP((D7-D6)*D65/D5,2) -> 0.23
A65: LA Annuitisation Factor | C65: =SUMPRODUCT('Retiree Details and Assumptions'!$E$43:$E$88,C67:C112)/(1-C17) -> 22.13111368 | D65: =SUMPRODUCT('Retiree Details and Assumptions'!$E$43:$E$88,D67:D112)/(1-D17) -> 22.13111368
A66: Discount Factor (Life Annuity) by age
A67: 65 | C67: =(1+C$16)^($A$67-$A67) -> 1 | D67: 1
A68: 66 | C68: 0.9900990099 | D68: 0.9900990099
A69: 67 | C69: 0.9802960494 | D69: 0.9802960494
A70: 68 | C70: 0.9705901479 | D70: 0.9705901479
A71: 69 | C71: 0.9609803445 | D71: 0.9609803445
A72: 70 | C72: 0.9514656876 | D72: 0.9514656876
A73: 71 | C73: 0.9420452353 | D73: 0.9420452353
A74: 72 | C74: 0.9327180547 | D74: 0.9327180547
A75: 73 | C75: 0.9234832225 | D75: 0.9234832225
A76: 74 | C76: 0.9143398242 | D76: 0.9143398242
A77: 75 | C77: 0.9052869547 | D77: 0.9052869547
A78: 76 | C78: 0.8963237175 | D78: 0.8963237175
A79: 77 | C79: 0.8874492253 | D79: 0.8874492253
A80: 78 | C80: 0.8786625993 | D80: 0.8786625993
A81: 79 | C81: 0.8699629696 | D81: 0.8699629696
A82: 80 | C82: 0.8613494748 | D82: 0.8613494748
A83: 81 | C83: 0.8528212622 | D83: 0.8528212622
A84: 82 | C84: 0.8443774873 | D84: 0.8443774873
A85: 83 | C85: 0.8360173142 | D85: 0.8360173142
A86: 84 | C86: 0.827739915 | D86: 0.827739915
A87: 85 | C87: =(1+C$16)^($A$67-$A87) -> 0.8195444703 | D87: 0.8195444703
A88: 86 | C88: 0.8114301687 | D88: 0.8114301687
A89: 87 | C89: 0.8033962066 | D89: 0.8033962066
A90: 88 | C90: 0.7954417887 | D90: 0.7954417887
A91: 89 | C91: 0.7875661274 | D91: 0.7875661274
A92: 90 | C92: 0.779768443 | D92: 0.779768443
A93: 91 | C93: 0.7720479634 | D93: 0.7720479634
A94: 92 | C94: 0.7644039241 | D94: 0.7644039241
A95: 93 | C95: 0.7568355684 | D95: 0.7568355684
A96: 94 | C96: 0.749342147 | D96: 0.749342147
A97: 95 | C97: 0.7419229178 | D97: 0.7419229178
A98: 96 | C98: 0.7345771463 | D98: 0.7345771463
A99: 97 | C99: 0.7273041053 | D99: 0.7273041053
A100: 98 | C100: 0.7201030745 | D100: 0.7201030745
A101: 99 | C101: 0.7129733411 | D101: 0.7129733411
A102: 100 | C102: 0.7059141991 | D102: 0.7059141991
A103: 101 | C103: 0.6989249496 | D103: 0.6989249496
A104: 102 | C104: 0.6920049006 | D104: 0.6920049006
A105: 103 | C105: 0.685153367 | D105: 0.685153367
A106: 104 | C106: 0.6783696702 | D106: 0.6783696702
A107: 105 | C107: 0.6716531389 | D107: 0.6716531389
A108: 106 | C108: 0.6650031078 | D108: 0.6650031078
A109: 107 | C109: 0.6584189186 | D109: 0.6584189186
A110: 108 | C110: 0.6518999194 | D110: 0.6518999194
A111: 109 | C111: 0.6454454648 | D111: 0.6454454648
B113: Lookup table for macros (VBA)
B114: Name Range
B115: LossAversion
B116: Assets
B117: ExtInc
B118: IncFloor
B119: IncTarg
B120: LAProp
B121: ILAProp
B122: ILAGroAll
B123: AIR
B124: RSAGroAll
B125: RetGroMean
B126: RetGroStDev
B127: RiskFree
B128: LALoad
B129: ILALoad
B130: Input ID
B131: 1
B132: 2
B133: 3
B134: 4
B135: 5
B136: 6
B137: 7
B138: 8
B139: 9
B140: 10
B141: 11
B142: 12
B143: 13
B144: 14
B145: 15

Sheet RSABal
A1: Simulation / Age | B1: 65 | C1: =B1+1 -> 66 | D1: =C1+1 -> 67 | E1: 68 | F1: 69 | G1: 70 | H1: 71 | I1: 72 | J1: 73 | K1: 74 | L1: 75 | M1: 76 | N1: 77 | O1: 78 | P1: 79 | Q1: 80 | R1: 81 | S1: 82 | T1: 83 | U1: 84 | V1: 85 | W1: 86 | X1: 87 | Y1: 88 | Z1: 89 | AA1: 90 | AB1: 91 | AC1: 92 | AD1: 93 | AE1: 94 | AF1: 95 | AG1: 96 | AH1: 97 | AI1: 98 | AJ1: 99 | AK1: 100 | AL1: 101 | AM1: 102 | AN1: 103 | AO1: 104 | AP1: 105 | AQ1: 106 | AR1: 107 | AS1: 108 | AT1: 109 | AU1: 110 | AW1: Exhaustion age | AX1: Prob survival | AY1: Expected years of shortfall
A2: 1 | B2: =RSABal -> 250000 | C2: =(B2-RSAInc!B2)*(1+RSARet!B2) -> 238936.4655 | D2: =(C2-RSAInc!C2)*(1+RSARet!C2) -> 215665.0301 | E2: =(D2-RSAInc!D2)*(1+RSARet!D2) -> 217760.667 | F2: =(E2-RSAInc!E2)*(1+RSARet!E2) -> 204024.2428 | G2: =(F2-RSAInc!F2)*(1+RSARet!F2) -> 185568.4636 | H2: =(G2-RSAInc!G2)*(1+RSARet!G2) -> 177844.4053 | I2: =(H2-RSAInc!H2)*(1+RSARet!H2) -> 159789.8313 | J2: =(I2-RSAInc!I2)*(1+RSARet!I2) -> 140477.7531 | K2: =(J2-RSAInc!J2)*(1+RSARet!J2) -> 122509.5185 | L2: =(K2-RSAInc!K2)*(1+RSARet!K2) -> 108347.8822 | M2: =(L2-RSAInc!L2)*(1+RSARet!L2) -> 90699.79537 | N2: =(M2-RSAInc!M2)*(1+RSARet!M2) -> 76506.4455 | O2: =(N2-RSAInc!N2)*(1+RSARet!N2) -> 61583.96802 | P2: =(O2-RSAInc!O2)*(1+RSARet!O2) -> 43389.47308 | Q2: =(P2-RSAInc!P2)*(1+RSARet!P2) -> 25875.9387 | R2: =(Q2-RSAInc!Q2)*(1+RSARet!Q2) -> 7299.198135 | S2: =(R2-RSAInc!R2)*(1+RSARet!R2) -> 0 | T2: =(S2-RSAInc!S2)*(1+RSARet!S2) -> 0 | U2: =(T2-RSAInc!T2)*(1+RSARet!T2) -> 0 | V2: =(U2-RSAInc!U2)*(1+RSARet!U2) -> 0 | W2: =(V2-RSAInc!V2)*(1+RSARet!V2) -> 0 | X2: =(W2-RSAInc!W2)*(1+RSARet!W2) -> 0 | Y2: =(X2-RSAInc!X2)*(1+RSARet!X2) -> 0 | Z2: =(Y2-RSAInc!Y2)*(1+RSARet!Y2) -> 0 | AA2: =(Z2-RSAInc!Z2)*(1+RSARet!Z2) -> 0 | AB2: =(AA2-RSAInc!AA2)*(1+RSARet!AA2) -> 0 | AC2: =(AB2-RSAInc!AB2)*(1+RSARet!AB2) -> 0 | AD2: =(AC2-RSAInc!AC2)*(1+RSARet!AC2) -> 0 | AE2: =(AD2-RSAInc!AD2)*(1+RSARet!AD2) -> 0 | AF2: =(AE2-RSAInc!AE2)*(1+RSARet!AE2) -> 0 | AG2: =(AF2-RSAInc!AF2)*(1+RSARet!AF2) -> 0 | AH2: =(AG2-RSAInc!AG2)*(1+RSARet!AG2) -> 0 | AI2: =(AH2-RSAInc!AH2)*(1+RSARet!AH2) -> 0 | AJ2: =(AI2-RSAInc!AI2)*(1+RSARet!AI2) -> 0 | AK2: =(AJ2-RSAInc!AJ2)*(1+RSARet!AJ2) -> 0 | AL2: =(AK2-RSAInc!AK2)*(1+RSARet!AK2) -> 0 | AM2: =(AL2-RSAInc!AL2)*(1+RSARet!AL2) -> 0 | AN2: =(AM2-RSAInc!AM2)*(1+RSARet!AM2) -> 0 | AO2: =(AN2-RSAInc!AN2)*(1+RSARet!AN2) -> 0 | AP2: =(AO2-RSAInc!AO2)*(1+RSARet!AO2) -> 0 | AQ2: =(AP2-RSAInc!AP2)*(1+RSARet!AP2) -> 0 | AR2: =(AQ2-RSAInc!AQ2)*(1+RSARet!AQ2) -> 0 | AS2: =(AR2-RSAInc!AR2)*(1+RSARet!AR2) -> 0 | AT2: =(AS2-RSAInc!AS2)*(1+RSARet!AS2) -> 0 | AU2: =(AT2-RSAInc!AT2)*(1+RSARet!AT2) -> 0 | AW2: =IF(65+COUNTIF(C2:AU2,">0")>110,"",65+COUNTIF(C2:AU2,">0")) -> 81 | AX2: =IF(AW2="",0,LOOKUP(AW2,'Retiree Details and Assumptions'!D$43:D$88,'Retiree Details and Assumptions'!E$43:E$88)) -> 0.787874053 | AY2: =IF(AW2="","",LOOKUP(AW2,'Retiree Details and Assumptions'!D$43:D$88,'Retiree Details and Assumptions'!H$43:H$88)) -> 10.31478692
A3: 2 | B3: 250000 | C3: =(B3-RSAInc!B3)*(1+RSARet!B3) -> 222219.7392 | D3: =(C3-RSAInc!C3)*(1+RSARet!C3) -> 193186.6952 | E3: =(D3-RSAInc!D3)*(1+RSARet!D3) -> 177244.6266 | F3: =(E3-RSAInc!E3)*(1+RSARet!E3) -> 170377.1783 | G3: =(F3-RSAInc!F3)*(1+RSARet!F3) -> 158460.2284 | H3: =(G3-RSAInc!G3)*(1+RSARet!G3) -> 135595.976 | I3: =(H3-RSAInc!H3)*(1+RSARet!H3) -> 123195.7543 | J3: =(I3-RSAInc!I3)*(1+RSARet!I3) -> 107966.0549 | K3: =(J3-RSAInc!J3)*(1+RSARet!J3) -> 93179.04225 | L3: =(K3-RSAInc!K3)*(1+RSARet!K3) -> 72892.684 | M3: =(L3-RSAInc!L3)*(1+RSARet!L3) -> 53288.58527 | N3: =(M3-RSAInc!M3)*(1+RSARet!M3) -> 32070.27054 | O3: =(N3-RSAInc!N3)*(1+RSARet!N3) -> 14016.33633 | P3: =(O3-RSAInc!O3)*(1+RSARet!O3) -> 0 | Q3: =(P3-RSAInc!P3)*(1+RSARet!P3) -> 0 | R3: =(Q3-RSAInc!Q3)*(1+RSARet!Q3) -> 0 | S3: =(R3-RSAInc!R3)*(1+RSARet!R3) -> 0 | T3: =(S3-RSAInc!S3)*(1+RSARet!S3) -> 0 | U3: =(T3-RSAInc!T3)*(1+RSARet!T3) -> 0 | V3: =(U3-RSAInc!U3)*(1+RSARet!U3) -> 0 | W3: =(V3-RSAInc!V3)*(1+RSARet!V3) -> 0 | X3: =(W3-RSAInc!W3)*(1+RSARet!W3) -> 0 | Y3: =(X3-RSAInc!X3)*(1+RSARet!X3) -> 0 | Z3: =(Y3-RSAInc!Y3)*(1+RSARet!Y3) -> 0 | AA3: =(Z3-RSAInc!Z3)*(1+RSARet!Z3) -> 0 | AB3: =(AA3-RSAInc!AA3)*(1+RSARet!AA3) -> 0 | AC3: =(AB3-RSAInc!AB3)*(1+RSARet!AB3) -> 0 | AD3: =(AC3-RSAInc!AC3)*(1+RSARet!AC3) -> 0 | AE3: =(AD3-RSAInc!AD3)*(1+RSARet!AD3) -> 0 | AF3: =(AE3-RSAInc!AE3)*(1+RSARet!AE3) -> 0 | AG3: =(AF3-RSAInc!AF3)*(1+RSARet!AF3) -> 0 | AH3: =(AG3-RSAInc!AG3)*(1+RSARet!AG3) -> 0 | AI3: =(AH3-RSAInc!AH3)*(1+RSARet!AH3) -> 0 | AJ3: =(AI3-RSAInc!AI3)*(1+RSARet!AI3) -> 0 | AK3: =(AJ3-RSAInc!AJ3)*(1+RSARet!AJ3) -> 0 | AL3: =(AK3-RSAInc!AK3)*(1+RSARet!AK3) -> 0 | AM3: =(AL3-RSAInc!AL3)*(1+RSARet!AL3) -> 0 | AN3: =(AM3-RSAInc!AM3)*(1+RSARet!AM3) -> 0 | AO3: =(AN3-RSAInc!AN3)*(1+RSARet!AN3) -> 0 | AP3: =(AO3-RSAInc!AO3)*(1+RSARet!AO3) -> 0 | AQ3: =(AP3-RSAInc!AP3)*(1+RSARet!AP3) -> 0 | AR3: =(AQ3-RSAInc!AQ3)*(1+RSARet!AQ3) -> 0 | AS3: =(AR3-RSAInc!AR3)*(1+RSARet!AR3) -> 0 | AT3: =(AS3-RSAInc!AS3)*(1+RSARet!AS3) -> 0 | AU3: =(AT3-RSAInc!AT3)*(1+RSARet!AT3) -> 0 | AW3: =IF(65+COUNTIF(C3:AU3,">0")>110,"",65+COUNTIF(C3:AU3,">0")) -> 78 | AX3: =IF(AW3="",0,LOOKUP(AW3,'Retiree Details and Assumptions'!D$43:D$88,'Retiree Details and Assumptions'!E$43:E$88)) -> 0.857536894 | AY3: =IF(AW3="","",LOOKUP(AW3,'Retiree Details and Assumptions'!D$43:D$88,'Retiree Details and Assumptions'!H$43:H$88)) -> 12.40129454
A4: 3 | B4: 250000 | C4: =(B4-RSAInc!B4)*(1+RSARet!B4) -> 248793.5335 | D4: =(C4-RSAInc!C4)*(1+RSARet!C4) -> 233300.3968 | E4: =(D4-RSAInc!D4)*(1+RSARet!D4) -> 221072.6572 | F4: =(E4-RSAInc!E4)*(1+RSARet!E4) -> 213708.2937 | G4: =(F4-RSAInc!F4)*(1+RSARet!F4) -> 214969.9185 | H4: =(G4-RSAInc!G4)*(1+RSARet!G4) -> 194302.7619 | I4: =(H4-RSAInc!H4)*(1+RSARet!H4) -> 182530.1373 | J4: =(I4-RSAInc!I4)*(1+RSARet!I4) -> 174207.6871 | K4: =(J4-RSAInc!J4)*(1+RSARet!J4) -> 148768.3189 | L4: =(K4-RSAInc!K4)*(1+RSARet!K4) -> 133626.9705 | M4: =(L4-RSAInc!L4)*(1+RSARet!L4) -> 119756.6589 | N4: =(M4-RSAInc!M4)*(1+RSARet!M4) -> 104891.3713 | O4: =(N4-RSAInc!N4)*(1+RSARet!N4) -> 89916.65442 | P4: =(O4-RSAInc!O4)*(1+RSARet!O4) -> 73657.43895 | Q4: =(P4-RSAInc!P4)*(1+RSARet!P4) -> 54908.24429 | R4: =(Q4-RSAInc!Q4)*(1+RSARet!Q4) -> 39172.76494 | S4: =(R4-RSAInc!R4)*(1+RSARet!R4) -> 21235.02207 | T4: =(S4-RSAInc!S4)*(1+RSARet!S4) -> 2641.474087 | U4: =(T4-RSAInc!T4)*(1+RSARet!T4) -> 0 | V4: =(U4-RSAInc!U4)*(1+RSARet!U4) -> 0 | W4: =(V4-RSAInc!V4)*(1+RSARet!V4) -> 0 | X4: =(W4-RSAInc!W4)*(1+RSARet!W4) -> 0 | Y4: =(X4-RSAInc!X4)*(1+RSARet!X4) -> 0 | Z4: =(Y4-RSAInc!Y4)*(1+RSARet!Y4) -> 0 | AA4: =(Z4-RSAInc!Z4)*(1+RSARet!Z4) -> 0 | AB4: =(AA4-RSAInc!AA4)*(1+RSARet!AA4) -> 0 | AC4: =(AB4-RSAInc!AB4)*(1+RSARet!AB4) -> 0 | AD4: =(AC4-RSAInc!AC4)*(1+RSARet!AC4) -> 0 | AE4: =(AD4-RSAInc!AD4)*(1+RSARet!AD4) -> 0 | AF4: =(AE4-RSAInc!AE4)*(1+RSARet!AE4) -> 0 | AG4: =(AF4-RSAInc!AF4)*(1+RSARet!AF4) -> 0 | AH4: =(AG4-RSAInc!AG4)*(1+RSARet!AG4) -> 0 | AI4: =(AH4-RSAInc!AH4)*(1+RSARet!AH4) -> 0 | AJ4: =(AI4-RSAInc!AI4)*(1+RSARet!AI4) -> 0 | AK4: =(AJ4-RSAInc!AJ4)*(1+RSARet!AJ4) -> 0 | AL4: =(AK4-RSAInc!AK4)*(1+RSARet!AK4) -> 0 | AM4: =(AL4-RSAInc!AL4)*(1+RSARet!AL4) -> 0 | AN4: =(AM4-RSAInc!AM4)*(1+RSARet!AM4) -> 0 | AO4: =(AN4-RSAInc!AN4)*(1+RSARet!AN4) -> 0 | AP4: =(AO4-RSAInc!AO4)*(1+RSARet!AO4) -> 0 | AQ4: =(AP4-RSAInc!AP4)*(1+RSARet!AP4) -> 0 | AR4: =(AQ4-RSAInc!AQ4)*(1+RSARet!AQ4) -> 0 | AS4: =(AR4-RSAInc!AR4)*(1+RSARet!AR4) -> 0 | AT4: =(AS4-RSAInc!AS4)*(1+RSARet!AS4) -> 0 | AU4: =(AT4-RSAInc!AT4)*(1+RSARet!AT4) -> 0 | AW4: 83 | AX4: =IF(AW4="",0,LOOKUP(AW4,'Retiree Details and Assumptions'!D$43:D$88,'Retiree Details and Assumptions'!E$43:E$88)) -> 0.7279284838 | AY4: =IF(AW4="","",LOOKUP(AW4,'Retiree Details and Assumptions'!D$43:D$88,'Retiree Details and Assumptions'!H$43:H$88)) -> 9.038639801
A5: 4 | B5: 250000 | C5: =(B5-RSAInc!B5)*(1+RSARet!B5) -> 229502.9583 | D5: =(C5-RSAInc!C5)*(1+RSARet!C5) -> 227296.0357 | E5: =(D5-RSAInc!D5)*(1+RSARet!D5) -> 212490.0355 | F5: =(E5-RSAInc!E5)*(1+RSARet!E5) -> 196566.8637 | G5: =(F5-RSAInc!F5)*(1+RSARet!F5) -> 173704.5467 | H5: =(G5-RSAInc!G5)*(1+RSARet!G5) -> 156252.1672 | I5: =(H5-RSAInc!H5)*(1+RSARet!H5) -> 129832.1463 | J5: =(I5-RSAInc!I5)*(1+RSARet!I5) -> 117389.6242 | K5: =(J5-RSAInc!J5)*(1+RSARet!J5) -> 98428.88612 | L5: =(K5-RSAInc!K5)*(1+RSARet!K5) -> 84553.09896 | M5: =(L5-RSAInc!L5)*(1+RSARet!L5) -> 71767.4426 | N5: =(M5-RSAInc!M5)*(1+RSARet!M5) -> 52990.59347 | O5: =(N5-RSAInc!N5)*(1+RSARet!N5) -> 38689.44448 | P5: =(O5-RSAInc!O5)*(1+RSARet!O5) -> 19297.98732 | Q5: =(P5-RSAInc!P5)*(1+RSARet!P5) -> 677.0166367 | R5: =(Q5-RSAInc!Q5)*(1+RSARet!Q5) -> 0 | S5: =(R5-RSAInc!R5)*(1+RSARet!R5) -> 0 | T5: =(S5-RSAInc!S5)*(1+RSARet!S5) -> 0 | U5: =(T5-RSAInc!T5)*(1+RSARet!T5) -> 0 | V5: =(U5-RSAInc!U5)*(1+RSARet!U5) -> 0 | W5: =(V5-RSAInc!V5)*(1+RSARet!V5) -> 0 | X5: =(W5-RSAInc!W5)*(1+RSARet!W5) -> 0 | Y5: =(X5-RSAInc!X5)*(1+RSARet!X5) -> 0 | Z5: =(Y5-RSAInc!Y5)*(1+RSARet!Y5) -> 0 | AA5: =(Z5-RSAInc!Z5)*(1+RSARet!Z5) -> 0 | AB5: =(AA5-RSAInc!AA5)*(1+RSARet!AA5) -> 0 | AC5: =(AB5-RSAInc!AB5)*(1+RSARet!AB5) -> 0 | AD5: =(AC5-RSAInc!AC5)*(1+RSARet!AC5) -> 0 | AE5: =(AD5-RSAInc!AD5)*(1+RSARet!AD5) -> 0 | AF5: =(AE5-RSAInc!AE5)*(1+RSARet!AE5) -> 0 | AG5: =(AF5-RSAInc!AF5)*(1+RSARet!AF5) -> 0 | AH5: =(AG5-RSAInc!AG5)*(1+RSARet!AG5) -> 0 | AI5: =(AH5-RSAInc!AH5)*(1+RSARet!AH5) -> 0 | AJ5: =(AI5-RSAInc!AI5)*(1+RSARet!AI5) -> 0 | AK5: =(AJ5-RSAInc!AJ5)*(1+RSARet!AJ5) -> 0 | AL5: =(AK5-RSAInc!AK5)*(1+RSARet!AK5) -> 0 | AM5: =(AL5-RSAInc!AL5)*(1+RSARet!AL5) -> 0 | AN5: =(AM5-RSAInc!AM5)*(1+RSARet!AM5) -> 0 | AO5: =(AN5-RSAInc!AN5)*(1+RSARet!AN5) -> 0 | AP5: =(AO5-RSAInc!AO5)*(1+RSARet!AO5) -> 0 | AQ5: =(AP5-RSAInc!AP5)*(1+RSARet!AP5) -> 0 | AR5: =(AQ5-RSAInc!AQ5)*(1+RSARet!AQ5) -> 0 | AS5: =(AR5-RSAInc!AR5)*(1+RSARet!AR5) -> 0 | AT5: =(AS5-RSAInc!AS5)*(1+RSARet!AS5) -> 0 | AU5: =(AT5-RSAInc!AT5)*(1+RSARet!AT5) -> 0 | AW5: 80 | AX5: =IF(AW5="",0,LOOKUP(AW5,'Retiree Details and Assumptions'!D$43:D$88,'Retiree Details and Assumptions'!E$43:E$88)) -> 0.8135841249 | AY5: =IF(AW5="","",LOOKUP(AW5,'Retiree Details and Assumptions'!D$43:D$88,'Retiree Details and Assumptions'!H$43:H$88)) -> 10.98882934
A6: 5 | B6: 250000 | C6: =(B6-RSAInc!B6)*(1+RSARet!B6) -> 230641.7621 | D6: =(C6-RSAInc!C6)*(1+RSARet!C6) -> 218378.0836 | E6: =(D6-RSAInc!D6)*(1+RSARet!D6) -> 218639.2925 | F6: =(E6-RSAInc!E6)*(1+RSARet!E6) -> 207873.5095 | G6: =(F6-RSAInc!F6)*(1+RSARet!F6) -> 201690.4292 | H6: =(G6-RSAInc!G6)*(1+RSARet!G6) -> 184389.9535 | I6: =(H6-RSAInc!H6)*(1+RSARet!H6) -> 161297.6326 | J6: =(I6-RSAInc!I6)*(1+RSARet!I6) -> 144400.3156 | K6: =(J6-RSAInc!J6)*(1+RSARet!J6) -> 130414.2906 | L6: =(K6-RSAInc!K6)*(1+RSARet!K6) -> 113742.8988 | M6: =(L6-RSAInc!L6)*(1+RSARet!L6) -> 93585.83871 | N6: =(M6-RSAInc!M6)*(1+RSARet!M6) -> 79112.75626 | O6: =(N6-RSAInc!N6)*(1+RSARet!N6) -> 64978.92556 | P6: =(O6-RSAInc!O6)*(1+RSARet!O6) -> 46989.41461 | Q6: =(P6-RSAInc!P6)*(1+RSARet!P6) -> 29905.94506 | R6: =(Q6-RSAInc!Q6)*(1+RSARet!Q6) -> 11192.98184 | S6: =(R6-RSAInc!R6)*(1+RSARet!R6) -> 0 | T6: =(S6-RSAInc!S6)*(1+RSARet!S6) -> 0 | U6: =(T6-RSAInc!T6)*(1+RSARet!T6) -> 0 | V6: =(U6-RSAInc!U6)*(1+RSARet!U6) -> 0 | W6: =(V6-RSAInc!V6)*(1+RSARet!V6) -> 0 | X6: =(W6-RSAInc!W6)*(1+RSARet!W6) -> 0 | Y6: =(X6-RSAInc!X6)*(1+RSARet!X6) -> 0 | Z6: =(Y6-RSAInc!Y6)*(1+RSARet!Y6) -> 0 | AA6: =(Z6-RSAInc!Z6)*(1+RSARet!Z6) -> 0 | AB6: =(AA6-RSAInc!AA6)*(1+RSARet!AA6) -> 0 | AC6: =(AB6-RSAInc!AB6)*(1+RSARet!AB6) -> 0 | AD6: =(AC6-RSAInc!AC6)*(1+RSARet!AC6) -> 0 | AE6: =(AD6-RSAInc!AD6)*(1+RSARet!AD6) -> 0 | AF6: =(AE6-RSAInc!AE6)*(1+RSARet!AE6) -> 0 | AG6: =(AF6-RSAInc!AF6)*(1+RSARet!AF6) -> 0 | AH6: =(AG6-RSAInc!AG6)*(1+RSARet!AG6) -> 0 | AI6: =(AH6-RSAInc!AH6)*(1+RSARet!AH6) -> 0 | AJ6: =(AI6-RSAInc!AI6)*(1+RSARet!AI6) -> 0 | AK6: =(AJ6-RSAInc!AJ6)*(1+RSARet!AJ6) -> 0 | AL6: =(AK6-RSAInc!AK6)*(1+RSARet!AK6) -> 0 | AM6: =(AL6-RSAInc!AL6)*(1+RSARet!AL6) -> 0 | AN6: =(AM6-RSAInc!AM6)*(1+RSARet!AM6) -> 0 | AO6: =(AN6-RSAInc!AN6)*(1+RSARet!AN6) -> 0 | AP6: =(AO6-RSAInc!AO6)*(1+RSARet!AO6) -> 0 | AQ6: =(AP6-RSAInc!AP6)*(1+RSARet!AP6) -> 0 | AR6: =(AQ6-RSAInc!AQ6)*(1+RSARet!AQ6) -> 0 | AS6: =(AR6-RSAInc!AR6)*(1+RSARet!AR6) -> 0 | AT6: =(AS6-RSAInc!AS6)*(1+RSARet!AS6) -> 0 | AU6: =(AT6-RSAInc!AT6)*(1+RSARet!AT6) -> 0 | AW6: 81 | AX6: =IF(AW6="",0,LOOKUP(AW6,'Retiree Details and Assumptions'!D$43:D$88,'Retiree Details and Assumptions'!E$43:E$88)) -> 0.787874053 | AY6: =IF(AW6="","",LOOKUP(AW6,'Retiree Details and Assumptions'!D$43:D$88,'Retiree Details and Assumptions'!H$43:H$88)) -> 10.31478692
A7: 6 | B7: 250000 | C7: =(B7-RSAInc!B7)*(1+RSARet!B7) -> 238276.2092 | D7: =(C7-RSAInc!C7)*(1+RSARet!C7) -> 219936.5676 | E7: =(D7-RSAInc!D7)*(1+RSARet!D7) -> 211706.1827 | F7: =(E7-RSAInc!E7)*(1+RSARet!E7) -> 193322.4888 | G7: =(F7-RSAInc!F7)*(1+RSARet!F7) -> 174358.7286 | H7: =(G7-RSAInc!G7)*(1+RSARet!G7) -> 174127.1375 | I7: =(H7-RSAInc!H7)*(1+RSARet!H7) -> 149324.2942 | J7: =(I7-RSAInc!I7)*(1+RSARet!I7) -> 130117.3842 | K7: =(J7-RSAInc!J7)*(1+RSARet!J7) -> 118122.8122 | L7: =(K7-RSAInc!K7)*(1+RSARet!K7) -> 110130.1913 | M7: =(L7-RSAInc!L7)*(1+RSARet!L7) -> 90183.62938 | N7: =(M7-RSAInc!M7)*(1+RSARet!M7) -> 69040.46458 | O7: =(N7-RSAInc!N7)*(1+RSARet!N7) -> 55345.69314 | P7: =(O7-RSAInc!O7)*(1+RSARet!O7) -> 35479.79139 | Q7: =(P7-RSAInc!P7)*(1+RSARet!P7) -> 17021.78032 | R7: =(Q7-RSAInc!Q7)*(1+RSARet!Q7) -> 0 | S7: =(R7-RSAInc!R7)*(1+RSARet!R7) -> 0 | T7: =(S7-RSAInc!S7)*(1+RSARet!S7) -> 0 | U7: =(T7-RSAInc!T7)*(1+RSARet!T7) -> 0 | V7: =(U7-RSAInc!U7)*(1+RSARet!U7) -> 0 | W7: =(V7-RSAInc!V7)*(1+RSARet!V7) -> 0 | X7: =(W7-RSAInc!W7)*(1+RSARet!W7) -> 0 | Y7: =(X7-RSAInc!X7)*(1+RSARet!X7) -> 0 | Z7: =(Y7-RSAInc!Y7)*(1+RSARet!Y7) -> 0 | AA7: =(Z7-RSAInc!Z7)*(1+RSARet!Z7) -> 0 | AB7: =(AA7-RSAInc!AA7)*(1+RSARet!AA7) -> 0 | AC7: =(AB7-RSAInc!AB7)*(1+RSARet!AB7) -> 0 | AD7: =(AC7-RSAInc!AC7)*(1+RSARet!AC7) -> 0 | AE7: =(AD7-RSAInc!AD7)*(1+RSARet!AD7) -> 0 | AF7: =(AE7-RSAInc!AE7)*(1+RSARet!AE7) -> 0 | AG7: =(AF7-RSAInc!AF7)*(1+RSARet!AF7) -> 0 | AH7: =(AG7-RSAInc!AG7)*(1+RSARet!AG7) -> 0 | AI7: =(AH7-RSAInc!AH7)*(1+RSARet!AH7) -> 0 | AJ7: =(AI7-RSAInc!AI7)*(1+RSARet!AI7) -> 0 | AK7: =(AJ7-RSAInc!AJ7)*(1+RSARet!AJ7) -> 0 | AL7: =(AK7-RSAInc!AK7)*(1+RSARet!AK7) -> 0 | AM7: =(AL7-RSAInc!AL7)*(1+RSARet!AL7) -> 0 | AN7: =(AM7-RSAInc!AM7)*(1+RSARet!AM7) -> 0 | AO7: =(AN7-RSAInc!AN7)*(1+RSARet!AN7) -> 0 | AP7: =(AO7-RSAInc!AO7)*(1+RSARet!AO7) -> 0 | AQ7: =(AP7-RSAInc!AP7)*(1+RSARet!AP7) -> 0 | AR7: =(AQ7-RSAInc!AQ7)*(1+RSARet!AQ7) -> 0 | AS7: =(AR7-RSAInc!AR7)*(1+RSARet!AR7) -> 0 | AT7: =(AS7-RSAInc!AS7)*(1+RSARet!AS7) -> 0 | AU7: =(AT7-RSAInc!AT7)*(1+RSARet!AT7) -> 0 | AW7: 80 | AX7: =IF(AW7="",0,LOOKUP(AW7,'Retiree Details and Assumptions'!D$43:D$88,'Retiree Details and Assumptions'!E$43:E$88)) -> 0.8135841249 | AY7: =IF(AW7="","",LOOKUP(AW7,'Retiree Details and Assumptions'!D$43:D$88,'Retiree Details and Assumptions'!H$43:H$88)) -> 10.98882934
A8: 7 | B8: 250000 | C8: =(B8-RSAInc!B8)*(1+RSARet!B8) -> 242819.9534 | D8: =(C8-RSAInc!C8)*(1+RSARet!C8) -> 246296.4355 | E8: =(D8-RSAInc!D8)*(1+RSARet!D8) -> 224990.835 | F8: =(E8-RSAInc!E8)*(1+RSARet!E8) -> 202828.5065 | G8: =(F8-RSAInc!F8)*(1+RSARet!F8) -> 203444.285 | H8: =(G8-RSAInc!G8)*(1+RSARet!G8) -> 195469.8537 | I8: =(H8-RSAInc!H8)*(1+RSARet!H8) -> 180069.1603 | J8: =(I8-RSAInc!I8)*(1+RSARet!I8) -> 169166.5979 | K8: =(J8-RSAInc!J8)*(1+RSARet!J8) -> 156863.3189 | L8: =(K8-RSAInc!K8)*(1+RSARet!K8) -> 146939.5839 | M8: =(L8-RSAInc!L8)*(1+RSARet!L8) -> 126474.8232 | N8: =(M8-RSAInc!M8)*(1+RSARet!M8) -> 109317.4749 | O8: =(N8-RSAInc!N8)*(1+RSARet!N8) -> 98393.03946 | P8: =(O8-RSAInc!O8)*(1+RSARet!O8) -> 84782.76545 | Q8: =(P8-RSAInc!P8)*(1+RSARet!P8) -> 65384.02953 | R8: =(Q8-RSAInc!Q8)*(1+RSARet!Q8) -> 46919.09797 | S8: =(R8-RSAInc!R8)*(1+RSARet!R8) -> 29425.87814 | T8: =(S8-RSAInc!S8)*(1+RSARet!S8) -> 10790.23804 | U8: =(T8-RSAInc!T8)*(1+RSARet!T8) -> 0 | V8: =(U8-RSAInc!U8)*(1+RSARet!U8) -> 0 | W8: =(V8-RSAInc!V8)*(1+RSARet!V8) -> 0 | X8: =(W8-RSAInc!W8)*(1+RSARet!W8) -> 0 | Y8: =(X8-RSAInc!X8)*(1+RSARet!X8) -> 0 | Z8: =(Y8-RSAInc!Y8)*(1+RSARet!Y8) -> 0 | AA8: =(Z8-RSAInc!Z8)*(1+RSARet!Z8) -> 0 | AB8: =(AA8-RSAInc!AA8)*(1+RSARet!AA8) -> 0 | AC8: =(AB8-RSAInc!AB8)*(1+RSARet!AB8) -> 0 | AD8: =(AC8-RSAInc!AC8)*(1+RSARet!AC8) -> 0 | AE8: =(AD8-RSAInc!AD8)*(1+RSARet!AD8) -> 0 | AF8: =(AE8-RSAInc!AE8)*(1+RSARet!AE8) -> 0 | AG8: =(AF8-RSAInc!AF8)*(1+RSARet!AF8) -> 0 | AH8: =(AG8-RSAInc!AG8)*(1+RSARet!AG8) -> 0 | AI8: =(AH8-RSAInc!AH8)*(1+RSARet!AH8) -> 0 | AJ8: =(AI8-RSAInc!AI8)*(1+RSARet!AI8) -> 0 | AK8: =(AJ8-RSAInc!AJ8)*(1+RSARet!AJ8) -> 0 | AL8: =(AK8-RSAInc!AK8)*(1+RSARet!AK8) -> 0 | AM8: =(AL8-RSAInc!AL8)*(1+RSARet!AL8) -> 0 | AN8: =(AM8-RSAInc!AM8)*(1+RSARet!AM8) -> 0 | AO8: =(AN8-RSAInc!AN8)*(1+RSARet!AN8) -> 0 | AP8: =(AO8-RSAInc!AO8)*(1+RSARet!AO8) -> 0 | AQ8: =(AP8-RSAInc!AP8)*(1+RSARet!AP8) -> 0 | AR8: =(AQ8-RSAInc!AQ8)*(1+RSARet!AQ8) -> 0 | AS8: =(AR8-RSAInc!AR8)*(1+RSARet!AR8) -> 0 | AT8: =(AS8-RSAInc!AS8)*(1+RSARet!AS8) -> 0 | AU8: =(AT8-RSAInc!AT8)*(1+RSARet!AT8) -> 0 | AW8: 83 | AX8: =IF(AW8="",0,LOOKUP(AW8,'Retiree Details and Assumptions'!D$43:D$88,'Retiree Details and Assumptions'!E$43:E$88)) -> 0.7279284838 | AY8: =IF(AW8="","",LOOKUP(AW8,'Retiree Details and Assumptions'!D$43:D$88,'Retiree Details and Assumptions'!H$43:H$88)) -> 9.038639801
A9: 8 | B9: 250000 | C9: =(B9-RSAInc!B9)*(1+RSARet!B9) -> 241473.6809 | D9: =(C9-RSAInc!C9)*(1+RSARet!C9) -> 225702.2721 | E9: =(D9-RSAInc!D9)*(1+RSARet!D9) -> 218252.9745 | F9: =(E9-RSAInc!E9)*(1+RSARet!E9) -> 192905.2276 | G9: =(F9-RSAInc!F9)*(1+RSARet!F9) -> 186956.7014 | H9: =(G9-RSAInc!G9)*(1+RSARet!G9) -> 160723.8341 | I9: =(H9-RSAInc!H9)*(1+RSARet!H9) -> 148182.0802 | J9: =(I9-RSAInc!I9)*(1+RSARet!I9) -> 131974.4663 | K9: =(J9-RSAInc!J9)*(1+RSARet!J9) -> 111870.1893 | L9: =(K9-RSAInc!K9)*(1+RSARet!K9) -> 94143.02888 | M9: =(L9-RSAInc!L9)*(1+RSARet!L9) -> 76387.53 | N9: =(M9-RSAInc!M9)*(1+RSARet!M9) -> 57597.93044 | O9: =(N9-RSAInc!N9)*(1+RSARet!N9) -> 39709.45604 | P9: =(O9-RSAInc!O9)*(1+RSARet!O9) -> 22451.05431 | Q9: =(P9-RSAInc!P9)*(1+RSARet!P9) -> 3843.527517 | R9: =(Q9-RSAInc!Q9)*(1+RSARet!Q9) -> 0 | S9: =(R9-RSAInc!R9)*(1+RSARet!R9) -> 0 | T9: =(S9-RSAInc!S9)*(1+RSARet!S9) -> 0 | U9: =(T9-RSAInc!T9)*(1+RSARet!T9) -> 0 | V9: =(U9-RSAInc!U9)*(1+RSARet!U9) -> 0 | W9: =(V9-RSAInc!V9)*(1+RSARet!V9) -> 0 | X9: =(W9-RSAInc!W9)*(1+RSARet!W9) -> 0 | Y9: =(X9-RSAInc!X9)*(1+RSARet!X9) -> 0 | Z9: =(Y9-RSAInc!Y9)*(1+RSARet!Y9) -> 0 | AA9: =(Z9-RSAInc!Z9)*(1+RSARet!Z9) -> 0 | AB9: =(AA9-RSAInc!AA9)*(1+RSARet!AA9) -> 0 | AC9: =(AB9-RSAInc!AB9)*(1+RSARet!AB9) -> 0 | AD9: =(AC9-RSAInc!AC9)*(1+RSARet!AC9) -> 0 | AE9: =(AD9-RSAInc!AD9)*(1+RSARet!AD9) -> 0 | AF9: =(AE9-RSAInc!AE9)*(1+RSARet!AE9) -> 0 | AG9: =(AF9-RSAInc!AF9)*(1+RSARet!AF9) -> 0 | AH9: =(AG9-RSAInc!AG9)*(1+RSARet!AG9) -> 0 | AI9: =(AH9-RSAInc!AH9)*(1+RSARet!AH9) -> 0 | AJ9: =(AI9-RSAInc!AI9)*(1+RSARet!AI9) -> 0 | AK9: =(AJ9-RSAInc!AJ9)*(1+RSARet!AJ9) -> 0 | AL9: =(AK9-RSAInc!AK9)*(1+RSARet!AK9) -> 0 | AM9: =(AL9-RSAInc!AL9)*(1+RSARet!AL9) -> 0 | AN9: =(AM9-RSAInc!AM9)*(1+RSARet!AM9) -> 0 | AO9: =(AN9-RSAInc!AN9)*(1+RSARet!AN9) -> 0 | AP9: =(AO9-RSAInc!AO9)*(1+RSARet!AO9) -> 0 | AQ9: =(AP9-RSAInc!AP9)*(1+RSARet!AP9) -> 0 | AR9: =(AQ9-RSAInc!AQ9)*(1+RSARet!AQ9) -> 0 | AS9: =(AR9-RSAInc!AR9)*(1+RSARet!AR9) -> 0 | AT9: =(AS9-RSAInc!AS9)*(1+RSARet!AS9) -> 0 | AU9: =(AT9-RSAInc!AT9)*(1+RSARet!AT9) -> 0 | AW9: 80 | AX9: =IF(AW9="",0,LOOKUP(AW9,'Retiree Details and Assumptions'!D$43:D$88,'Retiree Details and Assumptions'!E$43:E$88)) -> 0.8135841249 | AY9: =IF(AW9="","",LOOKUP(AW9,'Retiree Details and Assumptions'!D$43:D$88,'Retiree Details and Assumptions'!H$43:H$88)) -> 10.98882934
A10: 9 | B10: 250000 | C10: =(B10-RSAInc!B10)*(1+RSARet!B10) -> 225074.0124 | D10: =(C10-RSAInc!C10)*(1+RSARet!C10) -> 208902.8109 | E10: =(D10-RSAInc!D10)*(1+RSARet!D10) -> 197883.3087 | F10: =(E10-RSAInc!E10)*(1+RSARet!E10) -> 196454.267 | G10: =(F10-RSAInc!F10)*(1+RSARet!F10) -> 174413.255 | H10: =(G10-RSAInc!G10)*(1+RSARet!G10) -> 163053.4006 | I10: =(H10-RSAInc!H10)*(1+RSARet!H10) -> 146292.5822 | J10: =(I10-RSAInc!I10)*(1+RSARet!I10) -> 133140.2898 | K10: =(J10-RSAInc!J10)*(1+RSARet!J10) -> 121922.5559 | L10: =(K10-RSAInc!K10)*(1+RSARet!K10) -> 102844.8094 | M10: =(L10-RSAInc!L10)*(1+RSARet!L10) -> 85456.27672 | N10: =(M10-RSAInc!M10)*(1+RSARet!M10) -> 69560.03083 | O10: =(N10-RSAInc!N10)*(1+RSARet!N10) -> 50392.69018 | P10: =(O10-RSAInc!O10)*(1+RSARet!O10) -> 31741.5432 | Q10: =(P10-RSAInc!P10)*(1+RSARet!P10) -> 13579.9716 | R10: =(Q10-RSAInc!Q10)*(1+RSARet!Q10) -> 0 | S10: =(R10-RSAInc!R10)*(1+RSARet!R10) -> 0 | T10: =(S10-RSAInc!S10)*(1+RSARet!S10) -> 0 | U10: =(T10-RSAInc!T10)*(1+RSARet!T10) -> 0 | V10: =(U10-RSAInc!U10)*(1+RSARet!U10) -> 0 | W10: =(V10-RSAInc!V10)*(1+RSARet!V10) -> 0 | X10: =(W10-RSAInc!W10)*(1+RSARet!W10) -> 0 | Y10: =(X10-RSAInc!X10)*(1+RSARet!X10) -> 0 | Z10: =(Y10-RSAInc!Y10)*(1+RSARet!Y10) -> 0 | AA10: =(Z10-RSAInc!Z10)*(1+RSARet!Z10) -> 0 | AB10: =(AA10-RSAInc!AA10)*(1+RSARet!AA10) -> 0 | AC10: =(AB10-RSAInc!AB10)*(1+RSARet!AB10) -> 0 | AD10: =(AC10-RSAInc!AC10)*(1+RSARet!AC10) -> 0 | AE10: =(AD10-RSAInc!AD10)*(1+RSARet!AD10) -> 0 | AF10: =(AE10-RSAInc!AE10)*(1+RSARet!AE10) -> 0 | AG10: =(AF10-RSAInc!AF10)*(1+RSARet!AF10) -> 0 | AH10: =(AG10-RSAInc!AG10)*(1+RSARet!AG10) -> 0 | AI10: =(AH10-RSAInc!AH10)*(1+RSARet!AH10) -> 0 | AJ10: =(AI10-RSAInc!AI10)*(1+RSARet!AI10) -> 0 | AK10: =(AJ10-RSAInc!AJ10)*(1+RSARet!AJ10) -> 0 | AL10: =(AK10-RSAInc!AK10)*(1+RSARet!AK10) -> 0 | AM10: =(AL10-RSAInc!AL10)*(1+RSARet!AL10) -> 0 | AN10: =(AM10-RSAInc!AM10)*(1+RSARet!AM10) -> 0 | AO10: =(AN10-RSAInc!AN10)*(1+RSARet!AN10) -> 0 | AP10: =(AO10-RSAInc!AO10)*(1+RSARet!AO10) -> 0 | AQ10: =(AP10-RSAInc!AP10)*(1+RSARet!AP10) -> 0 | AR10: =(AQ10-RSAInc!AQ10)*(1+RSARet!AQ10) -> 0 | AS10: =(AR10-RSAInc!AR10)*(1+RSARet!AR10) -> 0 | AT10: =(AS10-RSAInc!AS10)*(1+RSARet!AS10) -> 0 | AU10: =(AT10-RSAInc!AT10)*(1+RSARet!AT10) -> 0 | AW10: 80 | AX10: =IF(AW10="",0,LOOKUP(AW10,'Retiree Details and Assumptions'!D$43:D$88,'Retiree Details and Assumptions'!E$43:E$88)) -> 0.8135841249 | AY10: =IF(AW10="","",LOOKUP(AW10,'Retiree Details and Assumptions'!D$43:D$88,'Retiree Details and Assumptions'!H$43:H$88)) -> 10.98882934
A11: 10 | B11: 250000 | C11: =(B11-RSAInc!B11)*(1+RSARet!B11) -> 233326.7544 | D11: =(C11-RSAInc!C11)*(1+RSARet!C11) -> 217638.996 | E11: =(D11-RSAInc!D11)*(1+RSARet!D11) -> 210488.9567 | F11: =(E11-RSAInc!E11)*(1+RSARet!E11) -> 210090.799 | G11: =(F11-RSAInc!F11)*(1+RSARet!F11) -> 197403.722 | H11: =(G11-RSAInc!G11)*(1+RSARet!G11) -> 193628.3993 | I11: =(H11-RSAInc!H11)*(1+RSARet!H11) -> 175307.6721 | J11: =(I11-RSAInc!I11)*(1+RSARet!I11) -> 163808.747 | K11: =(J11-RSAInc!J11)*(1+RSARet!J11) -> 156702.735 | L11: =(K11-RSAInc!K11)*(1+RSARet!K11) -> 135908.6318 | M11: =(L11-RSAInc!L11)*(1+RSARet!L11) -> 123060.3033 | N11: =(M11-RSAInc!M11)*(1+RSARet!M11) -> 100993.0269 | O11: =(N11-RSAInc!N11)*(1+RSARet!N11) -> 80350.1438 | P11: =(O11-RSAInc!O11)*(1+RSARet!O11) -> 57419.59398 | Q11: =(P11-RSAInc!P11)*(1+RSARet!P11) -> 37563.3312 | R11: =(Q11-RSAInc!Q11)*(1+RSARet!Q11) -> 18603.26191 | S11: =(R11-RSAInc!R11)*(1+RSARet!R11) -> 0 | T11: =(S11-RSAInc!S11)*(1+RSARet!S11) -> 0 | U11: =(T11-RSAInc!T11)*(1+RSARet!T11) -> 0 | V11: =(U11-RSAInc!U11)*(1+RSARet!U11) -> 0 | W11: =(V11-RSAInc!V11)*(1+RSARet!V11) -> 0 | X11: =(W11-RSAInc!W11)*(1+RSARet!W11) -> 0 | Y11: =(X11-RSAInc!X11)*(1+RSARet!X11) -> 0 | Z11: =(Y11-RSAInc!Y11)*(1+RSARet!Y11) -> 0 | AA11: =(Z11-RSAInc!Z11)*(1+RSARet!Z11) -> 0 | AB11: =(AA11-RSAInc!AA11)*(1+RSARet!AA11) -> 0 | AC11: =(AB11-RSAInc!AB11)*(1+RSARet!AB11) -> 0 | AD11: =(AC11-RSAInc!AC11)*(1+RSARet!AC11) -> 0 | AE11: =(AD11-RSAInc!AD11)*(1+RSARet!AD11) -> 0 | AF11: =(AE11-RSAInc!AE11)*(1+RSARet!AE11) -> 0 | AG11: =(AF11-RSAInc!AF11)*(1+RSARet!AF11) -> 0 | AH11: =(AG11-RSAInc!AG11)*(1+RSARet!AG11) -> 0 | AI11: =(AH11-RSAInc!AH11)*(1+RSARet!AH11) -> 0 | AJ11: =(AI11-RSAInc!AI11)*(1+RSARet!AI11) -> 0 | AK11: =(AJ11-RSAInc!AJ11)*(1+RSARet!AJ11) -> 0 | AL11: =(AK11-RSAInc!AK11)*(1+RSARet!AK11) -> 0 | AM11: =(AL11-RSAInc!AL11)*(1+RSARet!AL11) -> 0 | AN11: =(AM11-RSAInc!AM11)*(1+RSARet!AM11) -> 0 | AO11: =(AN11-RSAInc!AN11)*(1+RSARet!AN11) -> 0 | AP11: =(AO11-RSAInc!AO11)*(1+RSARet!AO11) -> 0 | AQ11: =(AP11-RSAInc!AP11)*(1+RSARet!AP11) -> 0 | AR11: =(AQ11-RSAInc!AQ11)*(1+RSARet!AQ11) -> 0 | AS11: =(AR11-RSAInc!AR11)*(1+RSARet!AR11) -> 0 | AT11: =(AS11-RSAInc!AS11)*(1+RSARet!AS11) -> 0 | AU11: =(AT11-RSAInc!AT11)*(1+RSARet!AT11) -> 0 | AW11: 81 | AX11: =IF(AW11="",0,LOOKUP(AW11,'Retiree Details and Assumptions'!D$43:D$88,'Retiree Details and Assumptions'!E$43:E$88)) -> 0.787874053 | AY11: =IF(AW11="","",LOOKUP(AW11,'Retiree Details and Assumptions'!D$43:D$88,'Retiree Details and Assumptions'!H$43:H$88)) -> 10.31478692
A12: 11 | B12: 250000 | C12: =(B12-RSAInc!B12)*(1+RSARet!B12) -> 230405.2309 | D12: =(C12-RSAInc!C12)*(1+RSARet!C12) -> 210240.0118 | E12: =(D12-RSAInc!D12)*(1+RSARet!D12) -> 202417.2483 | F12: =(E12-RSAInc!E12)*(1+RSARet!E12) -> 177886.5142 | G12: =(F12-RSAInc!F12)*(1+RSARet!F12) -> 170069.3193 | H12: =(G12-RSAInc!G12)*(1+RSARet!G12) -> 154119.3513 | I12: =(H12-RSAInc!H12)*(1+RSARet!H12) -> 146316.7749 | J12: =(I12-RSAInc!I12)*(1+RSARet!I12) -> 130656.5071 | K12: =(J12-RSAInc!J12)*(1+RSARet!J12) -> 117089.1059 | L12: =(K12-RSAInc!K12)*(1+RSARet!K12) -> 106058.3064 | M12: =(L12-RSAInc!L12)*(1+RSARet!L12) -> 90268.23384 | N12: =(M12-RSAInc!M12)*(1+RSARet!M12) -> 72887.65853 | O12: =(N12-RSAInc!N12)*(1+RSARet!N12) -> 52077.26191 | P12: =(O12-RSAInc!O12)*(1+RSARet!O12) -> 35733.98116 | Q12: =(P12-RSAInc!P12)*(1+RSARet!P12) -> 17153.98275 | R12: =(Q12-RSAInc!Q12)*(1+RSARet!Q12) -> 0 | S12: =(R12-RSAInc!R12)*(1+RSARet!R12) -> 0 | T12: =(S12-RSAInc!S12)*(1+RSARet!S12) -> 0 | U12: =(T12-RSAInc!T12)*(1+RSARet!T12) -> 0 | V12: =(U12-RSAInc!U12)*(1+RSARet!U12) -> 0 | W12: =(V12-RSAInc!V12)*(1+RSARet!V12) -> 0 | X12: =(W12-RSAInc!W12)*(1+RSARet!W12) -> 0 | Y12: =(X12-RSAInc!X12)*(1+RSARet!X12) -> 0 | Z12: =(Y12-RSAInc!Y12)*(1+RSARet!Y12) -> 0 | AA12: =(Z12-RSAInc!Z12)*(1+RSARet!Z12) -> 0 | AB12: =(AA12-RSAInc!AA12)*(1+RSARet!AA12) -> 0 | AC12: =(AB12-RSAInc!AB12)*(1+RSARet!AB12) -> 0 | AD12: =(AC12-RSAInc!AC12)*(1+RSARet!AC12) -> 0 | AE12: =(AD12-RSAInc!AD12)*(1+RSARet!AD12) -> 0 | AF12: =(AE12-RSAInc!AE12)*(1+RSARet!AE12) -> 0 | AG12: =(AF12-RSAInc!AF12)*(1+RSARet!AF12) -> 0 | AH12: =(AG12-RSAInc!AG12)*(1+RSARet!AG12) -> 0 | AI12: =(AH12-RSAInc!AH12)*(1+RSARet!AH12) -> 0 | AJ12: =(AI12-RSAInc!AI12)*(1+RSARet!AI12) -> 0 | AK12: =(AJ12-RSAInc!AJ12)*(1+RSARet!AJ12) -> 0 | AL12: =(AK12-RSAInc!AK12)*(1+RSARet!AK12) -> 0 | AM12: =(AL12-RSAInc!AL12)*(1+RSARet!AL12) -> 0 | AN12: =(AM12-RSAInc!AM12)*(1+RSARet!AM12) -> 0 | AO12: =(AN12-RSAInc!AN12)*(1+RSARet!AN12) -> 0 | AP12: =(AO12-RSAInc!AO12)*(1+RSARet!AO12) -> 0 | AQ12: =(AP12-RSAInc!AP12)*(1+RSARet!AP12) -> 0 | AR12: =(AQ12-RSAInc!AQ12)*(1+RSARet!AQ12) -> 0 | AS12: =(AR12-RSAInc!AR12)*(1+RSARet!AR12) -> 0 | AT12: =(AS12-RSAInc!AS12)*(1+RSARet!AS12) -> 0 | AU12: =(AT12-RSAInc!AT12)*(1+RSARet!AT12) -> 0 | AW12: 80 | AX12: =IF(AW12="",0,LOOKUP(AW12,'Retiree Details and Assumptions'!D$43:D$88,'Retiree Details and Assumptions'!E$43:E$88)) -> 0.8135841249 | AY12: =IF(AW12="","",LOOKUP(AW12,'Retiree Details and Assumptions'!D$43:D$88,'Retiree Details and Assumptions'!H$43:H$88)) -> 10.98882934
A13: 12 | B13: 250000 | C13: =(B13-RSAInc!B13)*(1+RSARet!B13) -> 232287.8259 | D13: =(C13-RSAInc!C13)*(1+RSARet!C13) -> 210130.5437 | E13: =(D13-RSAInc!D13)*(1+RSARet!D13) -> 193222.6699 | F13: =(E13-RSAInc!E13)*(1+RSARet!E13) -> 179174.2826 | G13: =(F13-RSAInc!F13)*(1+RSARet!F13) -> 155298.3579 | H13: =(G13-RSAInc!G13)*(1+RSARet!G13) -> 136850.2202 | I13: =(H13-RSAInc!H13)*(1+RSARet!H13) -> 117039.643 | J13: =(I13-RSAInc!I13)*(1+RSARet!I13) -> 102172.0782 | K13: =(J13-RSAInc!J13)*(1+RSARet!J13) -> 82851.75283 | L13: =(K13-RSAInc!K13)*(1+RSARet!K13) -> 67082.97213 | M13: =(L13-RSAInc!L13)*(1+RSARet!L13) -> 47687.79472 | N13: =(M13-RSAInc!M13)*(1+RSARet!M13) -> 28869.12361 | O13: =(N13-RSAInc!N13)*(1+RSARet!N13) -> 10390.61678 | P13: =(O13-RSAInc!O13)*(1+RSARet!O13) -> 0 | Q13: =(P13-RSAInc!P13)*(1+RSARet!P13) -> 0 | R13: =(Q13-RSAInc!Q13)*(1+RSARet!Q13) -> 0 | S13: =(R13-RSAInc!R13)*(1+RSARet!R13) -> 0 | T13: =(S13-RSAInc!S13)*(1+RSARet!S13) -> 0 | U13: =(T13-RSAInc!T13)*(1+RSARet!T13) -> 0 | V13: =(U13-RSAInc!U13)*(1+RSARet!U13) -> 0 | W13: =(V13-RSAInc!V13)*(1+RSARet!V13) -> 0 | X13: =(W13-RSAInc!W13)*(1+RSARet!W13) -> 0 | Y13: =(X13-RSAInc!X13)*(1+RSARet!X13) -> 0 | Z13: =(Y13-RSAInc!Y13)*(1+RSARet!Y13) -> 0 | AA13: =(Z13-RSAInc!Z13)*(1+RSARet!Z13) -> 0 | AB13: =(AA13-RSAInc!AA13)*(1+RSARet!AA13) -> 0 | AC13: =(AB13-RSAInc!AB13)*(1+RSARet!AB13) -> 0 | AD13: =(AC13-RSAInc!AC13)*(1+RSARet!AC13) -> 0 | AE13: =(AD13-RSAInc!AD13)*(1+RSARet!AD13) -> 0 | AF13: =(AE13-RSAInc!AE13)*(1+RSARet!AE13) -> 0 | AG13: =(AF13-RSAInc!AF13)*(1+RSARet!AF13) -> 0 | AH13: =(AG13-RSAInc!AG13)*(1+RSARet!AG13) -> 0 | AI13: =(AH13-RSAInc!AH13)*(1+RSARet!AH13) -> 0 | AJ13: =(AI13-RSAInc!AI13)*(1+RSARet!AI13) -> 0 | AK13: =(AJ13-RSAInc!AJ13)*(1+RSARet!AJ13) -> 0 | AL13: =(AK13-RSAInc!AK13)*(1+RSARet!AK13) -> 0 | AM13: =(AL13-RSAInc!AL13)*(1+RSARet!AL13) -> 0 | AN13: =(AM13-RSAInc!AM13)*(1+RSARet!AM13) -> 0 | AO13: =(AN13-RSAInc!AN13)*(1+RSARet!AN13) -> 0 | AP13: =(AO13-RSAInc!AO13)*(1+RSARet!AO13) -> 0 | AQ13: =(AP13-RSAInc!AP13)*(1+RSARet!AP13) -> 0 | AR13: =(AQ13-RSAInc!AQ13)*(1+RSARet!AQ13) -> 0 | AS13: =(AR13-RSAInc!AR13)*(1+RSARet!AR13) -> 0 | AT13: =(AS13-RSAInc!AS13)*(1+RSARet!AS13) -> 0 | AU13: =(AT13-RSAInc!AT13)*(1+RSARet!AT13) -> 0 | AW13: 78 | AX13: =IF(AW13="",0,LOOKUP(AW13,'Retiree Details and Assumptions'!D$43:D$88,'Retiree Details and Assumptions'!E$43:E$88)) -> 0.857536894 | AY13: =IF(AW13="","",LOOKUP(AW13,'Retiree Details and Assumptions'!D$43:D$88,'Retiree Details and Assumptions'!H$43:H$88)) -> 12.40129454
A14: 13 | B14: 250000 | C14: =(B14-RSAInc!B14)*(1+RSARet!B14) -> 241388.3531 | D14: =(C14-RSAInc!C14)*(1+RSARet!C14) -> 227197.6856 | E14: =(D14-RSAInc!D14)*(1+RSARet!D14) -> 221444.5431 | F14: =(E14-RSAInc!E14)*(1+RSARet!E14) -> 212952.7651 | G14: =(F14-RSAInc!F14)*(1+RSARet!F14) -> 205979.211 | H14: =(G14-RSAInc!G14)*(1+RSARet!G14) -> 185010.1462 | I14: =(H14-RSAInc!H14)*(1+RSARet!H14) -> 175299.143 | J14: =(I14-RSAInc!I14)*(1+RSARet!I14) -> 171051.5342 | K14: =(J14-RSAInc!J14)*(1+RSARet!J14) -> 152665.2275 | L14: =(K14-RSAInc!K14)*(1+RSARet!K14) -> 133132.9123 | M14: =(L14-RSAInc!L14)*(1+RSARet!L14) -> 119664.5978 | N14: =(M14-RSAInc!M14)*(1+RSARet!M14) -> 97208.33769 | O14: =(N14-RSAInc!N14)*(1+RSARet!N14) -> 77828.17903 | P14: =(O14-RSAInc!O14)*(1+RSARet!O14) -> 62871.05074 | Q14: =(P14-RSAInc!P14)*(1+RSARet!P14) -> 44278.07668 | R14: =(Q14-RSAInc!Q14)*(1+RSARet!Q14) -> 28329.68475 | S14: =(R14-RSAInc!R14)*(1+RSARet!R14) -> 9778.353155 | T14: =(S14-RSAInc!S14)*(1+RSARet!S14) -> 0 | U14: =(T14-RSAInc!T14)*(1+RSARet!T14) -> 0 | V14: =(U14-RSAInc!U14)*(1+RSARet!U14) -> 0 | W14: =(V14-RSAInc!V14)*(1+RSARet!V14) -> 0 | X14: =(W14-RSAInc!W14)*(1+RSARet!W14) -> 0 | Y14: =(X14-RSAInc!X14)*(1+RSARet!X14) -> 0 | Z14: =(Y14-RSAInc!Y14)*(1+RSARet!Y14) -> 0 | AA14: =(Z14-RSAInc!Z14)*(1+RSARet!Z14) -> 0 | AB14: =(AA14-RSAInc!AA14)*(1+RSARet!AA14) -> 0 | AC14: =(AB14-RSAInc!AB14)*(1+RSARet!AB14) -> 0 | AD14: =(AC14-RSAInc!AC14)*(1+RSARet!AC14) -> 0 | AE14: =(AD14-RSAInc!AD14)*(1+RSARet!AD14) -> 0 | AF14: =(AE14-RSAInc!AE14)*(1+RSARet!AE14) -> 0 | AG14: =(AF14-RSAInc!AF14)*(1+RSARet!AF14) -> 0 | AH14: =(AG14-RSAInc!AG14)*(1+RSARet!AG14) -> 0 | AI14: =(AH14-RSAInc!AH14)*(1+RSARet!AH14) -> 0 | AJ14: =(AI14-RSAInc!AI14)*(1+RSARet!AI14) -> 0 | AK14: =(AJ14-RSAInc!AJ14)*(1+RSARet!AJ14) -> 0 | AL14: =(AK14-RSAInc!AK14)*(1+RSARet!AK14) -> 0 | AM14: =(AL14-RSAInc!AL14)*(1+RSARet!AL14) -> 0 | AN14: =(AM14-RSAInc!AM14)*(1+RSARet!AM14) -> 0 | AO14: =(AN14-RSAInc!AN14)*(1+RSARet!AN14) -> 0 | AP14: =(AO14-RSAInc!AO14)*(1+RSARet!AO14) -> 0 | AQ14: =(AP14-RSAInc!AP14)*(1+RSARet!AP14) -> 0 | AR14: =(AQ14-RSAInc!AQ14)*(1+RSARet!AQ14) -> 0 | AS14: =(AR14-RSAInc!AR14)*(1+RSARet!AR14) -> 0 | AT14: =(AS14-RSAInc!AS14)*(1+RSARet!AS14) -> 0 | AU14: =(AT14-RSAInc!AT14)*(1+RSARet!AT14) -> 0 | AW14: 82 | AX14: =IF(AW14="",0,LOOKUP(AW14,'Retiree Details and Assumptions'!D$43:D$88,'Retiree Details and Assumptions'!E$43:E$88)) -> 0.7593955575 | AY14: =IF(AW14="","",LOOKUP(AW14,'Retiree Details and Assumptions'!D$43:D$88,'Retiree Details and Assumptions'!H$43:H$88)) -> 9.664105684
A15: 14 | B15: 250000 | C15: =(B15-RSAInc!B15)*(1+RSARet!B15) -> 233535.6878 | D15: =(C15-RSAInc!C15)*(1+RSARet!C15) -> 214934.7033 | E15: =(D15-RSAInc!D15)*(1+RSARet!D15) -> 198794.5545 | F15: =(E15-RSAInc!E15)*(1+RSARet!E15) -> 180020.5635 | G15: =(F15-RSAInc!F15)*(1+RSARet!F15) -> 169735.6553 | H15: =(G15-RSAInc!G15)*(1+RSARet!G15) -> 152615.0126 | I15: =(H15-RSAInc!H15)*(1+RSARet!H15) -> 129893.3103 | J15: =(I15-RSAInc!I15)*(1+RSARet!I15) -> 126993.5776 | K15: =(J15-RSAInc!J15)*(1+RSARet!J15) -> 108618.374 | L15: =(K15-RSAInc!K15)*(1+RSARet!K15) -> 91951.21032 | M15: =(L15-RSAInc!L15)*(1+RSARet!L15) -> 78428.08571 | N15: =(M15-RSAInc!M15)*(1+RSARet!M15) -> 58294.70653 | O15: =(N15-RSAInc!N15)*(1+RSARet!N15) -> 41270.37656 | P15: =(O15-RSAInc!O15)*(1+RSARet!O15) -> 22477.1644 | Q15: =(P15-RSAInc!P15)*(1+RSARet!P15) -> 4109.696423 | R15: =(Q15-RSAInc!Q15)*(1+RSARet!Q15) -> 0 | S15: =(R15-RSAInc!R15)*(1+RSARet!R15) -> 0 | T15: =(S15-RSAInc!S15)*(1+RSARet!S15) -> 0 | U15: =(T15-RSAInc!T15)*(1+RSARet!T15) -> 0 | V15: =(U15-RSAInc!U15)*(1+RSARet!U15) -> 0 | W15: =(V15-RSAInc!V15)*(1+RSARet!V15) -> 0 | X15: =(W15-RSAInc!W15)*(1+RSARet!W15) -> 0 | Y15: =(X15-RSAInc!X15)*(1+RSARet!X15) -> 0 | Z15: =(Y15-RSAInc!Y15)*(1+RSARet!Y15) -> 0 | AA15: =(Z15-RSAInc!Z15)*(1+RSARet!Z15) -> 0 | AB15: =(AA15-RSAInc!AA15)*(1+RSARet!AA15) -> 0 | AC15: =(AB15-RSAInc!AB15)*(1+RSARet!AB15) -> 0 | AD15: =(AC15-RSAInc!AC15)*(1+RSARet!AC15) -> 0 | AE15: =(AD15-RSAInc!AD15)*(1+RSARet!AD15) -> 0 | AF15: =(AE15-RSAInc!AE15)*(1+RSARet!AE15) -> 0 | AG15: =(AF15-RSAInc!AF15)*(1+RSARet!AF15) -> 0 | AH15: =(AG15-RSAInc!AG15)*(1+RSARet!AG15) -> 0 | AI15: =(AH15-RSAInc!AH15)*(1+RSARet!AH15) -> 0 | AJ15: =(AI15-RSAInc!AI15)*(1+RSARet!AI15) -> 0 | AK15: =(AJ15-RSAInc!AJ15)*(1+RSARet!AJ15) -> 0 | AL15: =(AK15-RSAInc!AK15)*(1+RSARet!AK15) -> 0 | AM15: =(AL15-RSAInc!AL15)*(1+RSARet!AL15) -> 0 | AN15: =(AM15-RSAInc!AM15)*(1+RSARet!AM15) -> 0 | AO15: =(AN15-RSAInc!AN15)*(1+RSARet!AN15) -> 0 | AP15: =(AO15-RSAInc!AO15)*(1+RSARet!AO15) -> 0 | AQ15: =(AP15-RSAInc!AP15)*(1+RSARet!AP15) -> 0 | AR15: =(AQ15-RSAInc!AQ15)*(1+RSARet!AQ15) -> 0 | AS15: =(AR15-RSAInc!AR15)*(1+RSARet!AR15) -> 0 | AT15: =(AS15-RSAInc!AS15)*(1+RSARet!AS15) -> 0 | AU15: =(AT15-RSAInc!AT15)*(1+RSARet!AT15) -> 0 | AW15: 80 | AX15: =IF(AW15="",0,LOOKUP(AW15,'Retiree Details and Assumptions'!D$43:D$88,'Retiree Details and Assumptions'!E$43:E$88)) -> 0.8135841249 | AY15: =IF(AW15="","",LOOKUP(AW15,'Retiree Details and Assumptions'!D$43:D$88,'Retiree Details and Assumptions'!H$43:H$88)) -> 10.98882934
A16: 15 | B16: 250000 | C16: =(B16-RSAInc!B16)*(1+RSARet!B16) -> 234455.1535 | D16: =(C16-RSAInc!C16)*(1+RSARet!C16) -> 216246.6571 | E16: =(D16-RSAInc!D16)*(1+RSARet!D16) -> 212195.1202 | F16: =(E16-RSAInc!E16)*(1+RSARet!E16) -> 203000.6658 | G16: =(F16-RSAInc!F16)*(1+RSARet!F16) -> 186081.3135 | H16: =(G16-RSAInc!G16)*(1+RSARet!G16) -> 167294.0066 | I16: =(H16-RSAInc!H16)*(1+RSARet!H16) -> 146466.5008 | J16: =(I16-RSAInc!I16)*(1+RSARet!I16) -> 133274.9964 | K16: =(J16-RSAInc!J16)*(1+RSARet!J16) -> 108480.1585 | L16: =(K16-RSAInc!K16)*(1+RSARet!K16) -> 89829.07934 | M16: =(L16-RSAInc!L16)*(1+RSARet!L16) -> 74877.99895 | N16: =(M16-RSAInc!M16)*(1+RSARet!M16) -> 57530.90066 | O16: =(N16-RSAInc!N16)*(1+RSARet!N16) -> 39303.68455 | P16: =(O16-RSAInc!O16)*(1+RSARet!O16) -> 21847.46714 | Q16: =(P16-RSAInc!P16)*(1+RSARet!P16) -> 3245.276206 | R16: =(Q16-RSAInc!Q16)*(1+RSARet!Q16) -> 0 | S16: =(R16-RSAInc!R16)*(1+RSARet!R16) -> 0 | T16: =(S16-RSAInc!S16)*(1+RSARet!S16) -> 0 | U16: =(T16-RSAInc!T16)*(1+RSARet!T16) -> 0 | V16: =(U16-RSAInc!U16)*(1+RSARet!U16) -> 0 | W16: =(V16-RSAInc!V16)*(1+RSARet!V16) -> 0 | X16: =(W16-RSAInc!W16)*(1+RSARet!W16) -> 0 | Y16: =(X16-RSAInc!X16)*(1+RSARet!X16) -> 0 | Z16: =(Y16-RSAInc!Y16)*(1+RSARet!Y16) -> 0 | AA16: =(Z16-RSAInc!Z16)*(1+RSARet!Z16) -> 0 | AB16: =(AA16-RSAInc!AA16)*(1+RSARet!AA16) -> 0 | AC16: =(AB16-RSAInc!AB16)*(1+RSARet!AB16) -> 0 | AD16: =(AC16-RSAInc!AC16)*(1+RSARet!AC16) -> 0 | AE16: =(AD16-RSAInc!AD16)*(1+RSARet!AD16) -> 0 | AF16: =(AE16-RSAInc!AE16)*(1+RSARet!AE16) -> 0 | AG16: =(AF16-RSAInc!AF16)*(1+RSARet!AF16) -> 0 | AH16: =(AG16-RSAInc!AG16)*(1+RSARet!AG16) -> 0 | AI16: =(AH16-RSAInc!AH16)*(1+RSARet!AH16) -> 0 | AJ16: =(AI16-RSAInc!AI16)*(1+RSARet!AI16) -> 0 | AK16: =(AJ16-RSAInc!AJ16)*(1+RSARet!AJ16) -> 0 | AL16: =(AK16-RSAInc!AK16)*(1+RSARet!AK16) -> 0 | AM16: =(AL16-RSAInc!AL16)*(1+RSARet!AL16) -> 0 | AN16: =(AM16-RSAInc!AM16)*(1+RSARet!AM16) -> 0 | AO16: =(AN16-RSAInc!AN16)*(1+RSARet!AN16) -> 0 | AP16: =(AO16-RSAInc!AO16)*(1+RSARet!AO16) -> 0 | AQ16: =(AP16-RSAInc!AP16)*(1+RSARet!AP16) -> 0 | AR16: =(AQ16-RSAInc!AQ16)*(1+RSARet!AQ16) -> 0 | AS16: =(AR16-RSAInc!AR16)*(1+RSARet!AR16) -> 0 | AT16: =(AS16-RSAInc!AS16)*(1+RSARet!AS16) -> 0 | AU16: =(AT16-RSAInc!AT16)*(1+RSARet!AT16) -> 0 | AW16: 80 | AX16: =IF(AW16="",0,LOOKUP(AW16,'Retiree Details and Assumptions'!D$43:D$88,'Retiree Details and Assumptions'!E$43:E$88)) -> 0.8135841249 | AY16: =IF(AW16="","",LOOKUP(AW16,'Retiree Details and Assumptions'!D$43:D$88,'Retiree Details and Assumptions'!H$43:H$88)) -> 10.98882934
A17: 16 | B17: 250000 | C17: =(B17-RSAInc!B17)*(1+RSARet!B17) -> 233858.959 | D17: =(C17-RSAInc!C17)*(1+RSARet!C17) -> 231706.8545 | E17: =(D17-RSAInc!D17)*(1+RSARet!D17) -> 214765.7268 | F17: =(E17-RSAInc!E17)*(1+RSARet!E17) -> 193872.1517 | G17: =(F17-RSAInc!F17)*(1+RSARet!F17) -> 179310.9337 | H17: =(G17-RSAInc!G17)*(1+RSARet!G17) -> 162641.8078 | I17: =(H17-RSAInc!H17)*(1+RSARet!H17) -> 157676.7334 | J17: =(I17-RSAInc!I17)*(1+RSARet!I17) -> 131458.4612 | K17: =(J17-RSAInc!J17)*(1+RSARet!J17) -> 113424.2052 | L17: =(K17-RSAInc!K17)*(1+RSARet!K17) -> 102158.9639 | M17: =(L17-RSAInc!L17)*(1+RSARet!L17) -> 86466.37269 | N17: =(M17-RSAInc!M17)*(1+RSARet!M17) -> 73011.18994 | O17: =(N17-RSAInc!N17)*(1+RSARet!N17) -> 54551.5771 | P17: =(O17-RSAInc!O17)*(1+RSARet!O17) -> 38152.39612 | Q17: =(P17-RSAInc!P17)*(1+RSARet!P17) -> 20751.26422 | R17: =(Q17-RSAInc!Q17)*(1+RSARet!Q17) -> 2033.441848 | S17: =(R17-RSAInc!R17)*(1+RSARet!R17) -> 0 | T17: =(S17-RSAInc!S17)*(1+RSARet!S17) -> 0 | U17: =(T17-RSAInc!T17)*(1+RSARet!T17) -> 0 | V17: =(U17-RSAInc!U17)*(1+RSARet!U17) -> 0 | W17: =(V17-RSAInc!V17)*(1+RSARet!V17) -> 0 | X17: =(W17-RSAInc!W17)*(1+RSARet!W17) -> 0 | Y17: =(X17-RSAInc!X17)*(1+RSARet!X17) -> 0 | Z17: =(Y17-RSAInc!Y17)*(1+RSARet!Y17) -> 0 | AA17: =(Z17-RSAInc!Z17)*(1+RSARet!Z17) -> 0 | AB17: =(AA17-RSAInc!AA17)*(1+RSARet!AA17) -> 0 | AC17: =(AB17-RSAInc!AB17)*(1+RSARet!AB17) -> 0 | AD17: =(AC17-RSAInc!AC17)*(1+RSARet!AC17) -> 0 | AE17: =(AD17-RSAInc!AD17)*(1+RSARet!AD17) -> 0 | AF17: =(AE17-RSAInc!AE17)*(1+RSARet!AE17) -> 0 | AG17: =(AF17-RSAInc!AF17)*(1+RSARet!AF17) -> 0 | AH17: =(AG17-RSAInc!AG17)*(1+RSARet!AG17) -> 0 | AI17: =(AH17-RSAInc!AH17)*(1+RSARet!AH17) -> 0 | AJ17: =(AI17-RSAInc!AI17)*(1+RSARet!AI17) -> 0 | AK17: =(AJ17-RSAInc!AJ17)*(1+RSARet!AJ17) -> 0 | AL17: =(AK17-RSAInc!AK17)*(1+RSARet!AK17) -> 0 | AM17: =(AL17-RSAInc!AL17)*(1+RSARet!AL17) -> 0 | AN17: =(AM17-RSAInc!AM17)*(1+RSARet!AM17) -> 0 | AO17: =(AN17-RSAInc!AN17)*(1+RSARet!AN17) -> 0 | AP17: =(AO17-RSAInc!AO17)*(1+RSARet!AO17) -> 0 | AQ17: =(AP17-RSAInc!AP17)*(1+RSARet!AP17) -> 0 | AR17: =(AQ17-RSAInc!AQ17)*(1+RSARet!AQ17) -> 0 | AS17: =(AR17-RSAInc!AR17)*(1+RSARet!AR17) -> 0 | AT17: =(AS17-RSAInc!AS17)*(1+RSARet!AS17) -> 0 | AU17: =(AT17-RSAInc!AT17)*(1+RSARet!AT17) -> 0 | AW17: 81 | AX17: =IF(AW17="",0,LOOKUP(AW17,'Retiree Details and Assumptions'!D$43:D$88,'Retiree Details and Assumptions'!E$43:E$88)) -> 0.787874053 | AY17: =IF(AW17="","",LOOKUP(AW17,'Retiree Details and Assumptions'!D$43:D$88,'Retiree Details and Assumptions'!H$43:H$88)) -> 10.31478692
A18: 17 | B18: 250000 | C18: =(B18-RSAInc!B18)*(1+RSARet!B18) -> 249460.1176 | D18: =(C18-RSAInc!C18)*(1+RSARet!C18) -> 240656.0901 | E18: =(D18-RSAInc!D18)*(1+RSARet!D18) -> 254257.6149 | F18: =(E18-RSAInc!E18)*(1+RSARet!E18) -> 229266.0681 | G18: =(F18-RSAInc!F18)*(1+RSARet!F18) -> 221139.3354 | H18: =(G18-RSAInc!G18)*(1+RSARet!G18) -> 207222.9449 | I18: =(H18-RSAInc!H18)*(1+RSARet!H18) -> 184513.0458 | J18: =(I18-RSAInc!I18)*(1+RSARet!I18) -> 157513.1842 | K18: =(J18-RSAInc!J18)*(1+RSARet!J18) -> 137509.0199 | L18: =(K18-RSAInc!K18)*(1+RSARet!K18) -> 123591.2714 | M18: =(L18-RSAInc!L18)*(1+RSARet!L18) -> 106992.5261 | N18: =(M18-RSAInc!M18)*(1+RSARet!M18) -> 101497.5784 | O18: =(N18-RSAInc!N18)*(1+RSARet!N18) -> 85600.01224 | P18: =(O18-RSAInc!O18)*(1+RSARet!O18) -> 68258.69482 | Q18: =(P18-RSAInc!P18)*(1+RSARet!P18) -> 52234.59457 | R18: =(Q18-RSAInc!Q18)*(1+RSARet!Q18) -> 35698.97842 | S18: =(R18-RSAInc!R18)*(1+RSARet!R18) -> 17642.7685 | T18: =(S18-RSAInc!S18)*(1+RSARet!S18) -> 0 | U18: =(T18-RSAInc!T18)*(1+RSARet!T18) -> 0 | V18: =(U18-RSAInc!U18)*(1+RSARet!U18) -> 0 | W18: =(V18-RSAInc!V18)*(1+RSARet!V18) -> 0 | X18: =(W18-RSAInc!W18)*(1+RSARet!W18) -> 0 | Y18: =(X18-RSAInc!X18)*(1+RSARet!X18) -> 0 | Z18: =(Y18-RSAInc!Y18)*(1+RSARet!Y18) -> 0 | AA18: =(Z18-RSAInc!Z18)*(1+RSARet!Z18) -> 0 | AB18: =(AA18-RSAInc!AA18)*(1+RSARet!AA18) -> 0 | AC18: =(AB18-RSAInc!AB18)*(1+RSARet!AB18) -> 0 | AD18: =(AC18-RSAInc!AC18)*(1+RSARet!AC18) -> 0 | AE18: =(AD18-RSAInc!AD18)*(1+RSARet!AD18) -> 0 | AF18: =(AE18-RSAInc!AE18)*(1+RSARet!AE18) -> 0 | AG18: =(AF18-RSAInc!AF18)*(1+RSARet!AF18) -> 0 | AH18: =(AG18-RSAInc!AG18)*(1+RSARet!AG18) -> 0 | AI18: =(AH18-RSAInc!AH18)*(1+RSARet!AH18) -> 0 | AJ18: =(AI18-RSAInc!AI18)*(1+RSARet!AI18) -> 0 | AK18: =(AJ18-RSAInc!AJ18)*(1+RSARet!AJ18) -> 0 | AL18: =(AK18-RSAInc!AK18)*(1+RSARet!AK18) -> 0 | AM18: =(AL18-RSAInc!AL18)*(1+RSARet!AL18) -> 0 | AN18: =(AM18-RSAInc!AM18)*(1+RSARet!AM18) -> 0 | AO18: =(AN18-RSAInc!AN18)*(1+RSARet!AN18) -> 0 | AP18: =(AO18-RSAInc!AO18)*(1+RSARet!AO18) -> 0 | AQ18: =(AP18-RSAInc!AP18)*(1+RSARet!AP18) -> 0 | AR18: =(AQ18-RSAInc!AQ18)*(1+RSARet!AQ18) -> 0 | AS18: =(AR18-RSAInc!AR18)*(1+RSARet!AR18) -> 0 | AT18: =(AS18-RSAInc!AS18)*(1+RSARet!AS18) -> 0 | AU18: =(AT18-RSAInc!AT18)*(1+RSARet!AT18) -> 0 | AW18: 82 | AX18: =IF(AW18="",0,LOOKUP(AW18,'Retiree Details and Assumptions'!D$43:D$88,'Retiree Details and Assumptions'!E$43:E$88)) -> 0.7593955575 | AY18: =IF(AW18="","",LOOKUP(AW18,'Retiree Details and Assumptions'!D$43:D$88,'Retiree Details and Assumptions'!H$43:H$88)) -> 9.664105684
A19: 18 | B19: 250000 | C19: =(B19-RSAInc!B19)*(1+RSARet!B19) -> 235390.1612 | D19: =(C19-RSAInc!C19)*(1+RSARet!C19) -> 211208.2515 | E19: =(D19-RSAInc!D19)*(1+RSARet!D19) -> 211063.8629 | F19: =(E19-RSAInc!E19)*(1+RSARet!E19) -> 193104.7194 | G19: =(F19-RSAInc!F19)*(1+RSARet!F19) -> 175596.7602 | H19: =(G19-RSAInc!G19)*(1+RSARet!G19) -> 175169.0856 | I19: =(H19-RSAInc!H19)*(1+RSARet!H19) -> 165378.5081 | J19: =(I19-RSAInc!I19)*(1+RSARet!I19) -> 151950.6701 | K19: =(J19-RSAInc!J19)*(1+RSARet!J19) -> 132532.9368 | L19: =(K19-RSAInc!K19)*(1+RSARet!K19) -> 119753.5708 | M19: =(L19-RSAInc!L19)*(1+RSARet!L19) -> 100254.0168 | N19: =(M19-RSAInc!M19)*(1+RSARet!M19) -> 82945.51839 | O19: =(N19-RSAInc!N19)*(1+RSARet!N19) -> 64503.86529 | P19: =(O19-RSAInc!O19)*(1+RSARet!O19) -> 46583.74237 | Q19: =(P19-RSAInc!P19)*(1+RSARet!P19) -> 28392.76256 | R19: =(Q19-RSAInc!Q19)*(1+RSARet!Q19) -> 9920.148955 | S19: =(R19-RSAInc!R19)*(1+RSARet!R19) -> 0 | T19: =(S19-RSAInc!S19)*(1+RSARet!S19) -> 0 | U19: =(T19-RSAInc!T19)*(1+RSARet!T19) -> 0 | V19: =(U19-RSAInc!U19)*(1+RSARet!U19) -> 0 | W19: =(V19-RSAInc!V19)*(1+RSARet!V19) -> 0 | X19: =(W19-RSAInc!W19)*(1+RSARet!W19) -> 0 | Y19: =(X19-RSAInc!X19)*(1+RSARet!X19) -> 0 | Z19: =(Y19-RSAInc!Y19)*(1+RSARet!Y19) -> 0 | AA19: =(Z19-RSAInc!Z19)*(1+RSARet!Z19) -> 0 | AB19: =(AA19-RSAInc!AA19)*(1+RSARet!AA19) -> 0 | AC19: =(AB19-RSAInc!AB19)*(1+RSARet!AB19) -> 0 | AD19: =(AC19-RSAInc!AC19)*(1+RSARet!AC19) -> 0 | AE19: =(AD19-RSAInc!AD19)*(1+RSARet!AD19) -> 0 | AF19: =(AE19-RSAInc!AE19)*(1+RSARet!AE19) -> 0 | AG19: =(AF19-RSAInc!AF19)*(1+RSARet!AF19) -> 0 | AH19: =(AG19-RSAInc!AG19)*(1+RSARet!AG19) -> 0 | AI19: =(AH19-RSAInc!AH19)*(1+RSARet!AH19) -> 0 | AJ19: =(AI19-RSAInc!AI19)*(1+RSARet!AI19) -> 0 | AK19: =(AJ19-RSAInc!AJ19)*(1+RSARet!AJ19) -> 0 | AL19: =(AK19-RSAInc!AK19)*(1+RSARet!AK19) -> 0 | AM19: =(AL19-RSAInc!AL19)*(1+RSARet!AL19) -> 0 | AN19: =(AM19-RSAInc!AM19)*(1+RSARet!AM19) -> 0 | AO19: =(AN19-RSAInc!AN19)*(1+RSARet!AN19) -> 0 | AP19: =(AO19-RSAInc!AO19)*(1+RSARet!AO19) -> 0 | AQ19: =(AP19-RSAInc!AP19)*(1+RSARet!AP19) -> 0 | AR19: =(AQ19-RSAInc!AQ19)*(1+RSARet!AQ19) -> 0 | AS19: =(AR19-RSAInc!AR19)*(1+RSARet!AR19) -> 0 | AT19: =(AS19-RSAInc!AS19)*(1+RSARet!AS19) -> 0 | AU19: =(AT19-RSAInc!AT19)*(1+RSARet!AT19) -> 0 | AW19: 81 | AX19: =IF(AW19="",0,LOOKUP(AW19,'Retiree Details and Assumptions'!D$43:D$88,'Retiree Details and Assumptions'!E$43:E$88)) -> 0.787874053 | AY19: =IF(AW19="","",LOOKUP(AW19,'Retiree Details and Assumptions'!D$43:D$88,'Retiree Details and Assumptions'!H$43:H$88)) -> 10.31478692
A20: 19 | B20: 250000 | C20: =(B20-RSAInc!B20)*(1+RSARet!B20) -> 231306.7167 | D20: =(C20-RSAInc!C20)*(1+RSARet!C20) -> 200432.1921 | E20: =(D20-RSAInc!D20)*(1+RSARet!D20) -> 192671.8401 | F20: =(E20-RSAInc!E20)*(1+RSARet!E20) -> 178875.6484 | G20: =(F20-RSAInc!F20)*(1+RSARet!F20) -> 181024.6333 | H20: =(G20-RSAInc!G20)*(1+RSARet!G20) -> 166634.3505 | I20: =(H20-RSAInc!H20)*(1+RSARet!H20) -> 154494.713 | J20: =(I20-RSAInc!I20)*(1+RSARet!I20) -> 143922.4548 | K20: =(J20-RSAInc!J20)*(1+RSARet!J20) -> 130321.744 | L20: =(K20-RSAInc!K20)*(1+RSARet!K20) -> 109450.7037 | M20: =(L20-RSAInc!L20)*(1+RSARet!L20) -> 87649.98926 | N20: =(M20-RSAInc!M20)*(1+RSARet!M20) -> 70064.72024 | O20: =(N20-RSAInc!N20)*(1+RSARet!N20) -> 52873.54761 | P20: =(O20-RSAInc!O20)*(1+RSARet!O20) -> 34872.50925 | Q20: =(P20-RSAInc!P20)*(1+RSARet!P20) -> 16296.0838 | R20: =(Q20-RSAInc!Q20)*(1+RSARet!Q20) -> 0 | S20: =(R20-RSAInc!R20)*(1+RSARet!R20) -> 0 | T20: =(S20-RSAInc!S20)*(1+RSARet!S20) -> 0 | U20: =(T20-RSAInc!T20)*(1+RSARet!T20) -> 0 | V20: =(U20-RSAInc!U20)*(1+RSARet!U20) -> 0 | W20: =(V20-RSAInc!V20)*(1+RSARet!V20) -> 0 | X20: =(W20-RSAInc!W20)*(1+RSARet!W20) -> 0 | Y20: =(X20-RSAInc!X20)*(1+RSARet!X20) -> 0 | Z20: =(Y20-RSAInc!Y20)*(1+RSARet!Y20) -> 0 | AA20: =(Z20-RSAInc!Z20)*(1+RSARet!Z20) -> 0 | AB20: =(AA20-RSAInc!AA20)*(1+RSARet!AA20) -> 0 | AC20: =(AB20-RSAInc!AB20)*(1+RSARet!AB20) -> 0 | AD20: =(AC20-RSAInc!AC20)*(1+RSARet!AC20) -> 0 | AE20: =(AD20-RSAInc!AD20)*(1+RSARet!AD20) -> 0 | AF20: =(AE20-RSAInc!AE20)*(1+RSARet!AE20) -> 0 | AG20: =(AF20-RSAInc!AF20)*(1+RSARet!AF20) -> 0 | AH20: =(AG20-RSAInc!AG20)*(1+RSARet!AG20) -> 0 | AI20: =(AH20-RSAInc!AH20)*(1+RSARet!AH20) -> 0 | AJ20: =(AI20-RSAInc!AI20)*(1+RSARet!AI20) -> 0 | AK20: =(AJ20-RSAInc!AJ20)*(1+RSARet!AJ20) -> 0 | AL20: =(AK20-RSAInc!AK20)*(1+RSARet!AK20) -> 0 | AM20: =(AL20-RSAInc!AL20)*(1+RSARet!AL20) -> 0 | AN20: =(AM20-RSAInc!AM20)*(1+RSARet!AM20) -> 0 | AO20: =(AN20-RSAInc!AN20)*(1+RSARet!AN20) -> 0 | AP20: =(AO20-RSAInc!AO20)*(1+RSARet!AO20) -> 0 | AQ20: =(AP20-RSAInc!AP20)*(1+RSARet!AP20) -> 0 | AR20: =(AQ20-RSAInc!AQ20)*(1+RSARet!AQ20) -> 0 | AS20: =(AR20-RSAInc!AR20)*(1+RSARet!AR20) -> 0 | AT20: =(AS20-RSAInc!AS20)*(1+RSARet!AS20) -> 0 | AU20: =(AT20-RSAInc!AT20)*(1+RSARet!AT20) -> 0 | AW20: 80 | AX20: =IF(AW20="",0,LOOKUP(AW20,'Retiree Details and Assumptions'!D$43:D$88,'Retiree Details and Assumptions'!E$43:E$88)) -> 0.8135841249 | AY20: =IF(AW20="","",LOOKUP(AW20,'Retiree Details and Assumptions'!D$43:D$88,'Retiree Details and Assumptions'!H$43:H$88)) -> 10.98882934
A21: 20 | B21: 250000 | C21: =(B21-RSAInc!B21)*(1+RSARet!B21) -> 242851.4803 | D21: =(C21-RSAInc!C21)*(1+RSARet!C21) -> 225501.5295 | E21: =(D21-RSAInc!D21)*(1+RSARet!D21) -> 227375.8947 | F21: =(E21-RSAInc!E21)*(1+RSARet!E21) -> 207699.9797 | G21: =(F21-RSAInc!F21)*(1+RSARet!F21) -> 197667.2571 | H21: =(G21-RSAInc!G21)*(1+RSARet!G21) -> 180534.6072 | I21: =(H21-RSAInc!H21)*(1+RSARet!H21) -> 168387.9524 | J21: =(I21-RSAInc!I21)*(1+RSARet!I21) -> 157223.7528 | K21: =(J21-RSAInc!J21)*(1+RSARet!J21) -> 139228.5517 | L21: =(K21-RSAInc!K21)*(1+RSARet!K21) -> 118886.4192 | M21: =(L21-RSAInc!L21)*(1+RSARet!L21) -> 101182.7625 | N21: =(M21-RSAInc!M21)*(1+RSARet!M21) -> 87336.1572 | O21: =(N21-RSAInc!N21)*(1+RSARet!N21) -> 76556.94162 | P21: =(O21-RSAInc!O21)*(1+RSARet!O21) -> 58905.75023 | Q21: =(P21-RSAInc!P21)*(1+RSARet!P21) -> 43174.27317 | R21: =(Q21-RSAInc!Q21)*(1+RSARet!Q21) -> 24821.69932 | S21: =(R21-RSAInc!R21)*(1+RSARet!R21) -> 6129.458814 | T21: =(S21-RSAInc!S21)*(1+RSARet!S21) -> 0 | U21: =(T21-RSAInc!T21)*(1+RSARet!T21) -> 0 | V21: =(U21-RSAInc!U21)*(1+RSARet!U21) -> 0 | W21: =(V21-RSAInc!V21)*(1+RSARet!V21) -> 0 | X21: =(W21-RSAInc!W21)*(1+RSARet!W21) -> 0 | Y21: =(X21-RSAInc!X21)*(1+RSARet!X21) -> 0 | Z21: =(Y21-RSAInc!Y21)*(1+RSARet!Y21) -> 0 | AA21: =(Z21-RSAInc!Z21)*(1+RSARet!Z21) -> 0 | AB21: =(AA21-RSAInc!AA21)*(1+RSARet!AA21) -> 0 | AC21: =(AB21-RSAInc!AB21)*(1+RSARet!AB21) -> 0 | AD21: =(AC21-RSAInc!AC21)*(1+RSARet!AC21) -> 0 | AE21: =(AD21-RSAInc!AD21)*(1+RSARet!AD21) -> 0 | AF21: =(AE21-RSAInc!AE21)*(1+RSARet!AE21) -> 0 | AG21: =(AF21-RSAInc!AF21)*(1+RSARet!AF21) -> 0 | AH21: =(AG21-RSAInc!AG21)*(1+RSARet!AG21) -> 0 | AI21: =(AH21-RSAInc!AH21)*(1+RSARet!AH21) -> 0 | AJ21: =(AI21-RSAInc!AI21)*(1+RSARet!AI21) -> 0 | AK21: =(AJ21-RSAInc!AJ21)*(1+RSARet!AJ21) -> 0 | AL21: =(AK21-RSAInc!AK21)*(1+RSARet!AK21) -> 0 | AM21: =(AL21-RSAInc!AL21)*(1+RSARet!AL21) -> 0 | AN21: =(AM21-RSAInc!AM21)*(1+RSARet!AM21) -> 0 | AO21: =(AN21-RSAInc!AN21)*(1+RSARet!AN21) -> 0 | AP21: =(AO21-RSAInc!AO21)*(1+RSARet!AO21) -> 0 | AQ21: =(AP21-RSAInc!AP21)*(1+RSARet!AP21) -> 0 | AR21: =(AQ21-RSAInc!AQ21)*(1+RSARet!AQ21) -> 0 | AS21: =(AR21-RSAInc!AR21)*(1+RSARet!AR21) -> 0 | AT21: =(AS21-RSAInc!AS21)*(1+RSARet!AS21) -> 0 | AU21: =(AT21-RSAInc!AT21)*(1+RSARet!AT21) -> 0 | AW21: 82 | AX21: =IF(AW21="",0,LOOKUP(AW21,'Retiree Details and Assumptions'!D$43:D$88,'Retiree Details and Assumptions'!E$43:E$88)) -> 0.7593955575 | AY21: =IF(AW21="","",LOOKUP(AW21,'Retiree Details and Assumptions'!D$43:D$88,'Retiree Details and Assumptions'!H$43:H$88)) -> 9.664105684
A22: 21 | B22: 250000 | C22: =(B22-RSAInc!B22)*(1+RSARet!B22) -> 228621.5162 | D22: =(C22-RSAInc!C22)*(1+RSARet!C22) -> 229120.7029 | E22: =(D22-RSAInc!D22)*(1+RSARet!D22) -> 221428.2195 | F22: =(E22-RSAInc!E22)*(1+RSARet!E22) -> 203082.2351 | G22: =(F22-RSAInc!F22)*(1+RSARet!F22) -> 187478.4539 | H22: =(G22-RSAInc!G22)*(1+RSARet!G22) -> 172850.6135 | I22: =(H22-RSAInc!H22)*(1+RSARet!H22) -> 163859.0404 | J22: =(I22-RSAInc!I22)*(1+RSARet!I22) -> 147352.6383 | K22: =(J22-RSAInc!J22)*(1+RSARet!J22) -> 129491.6643 | L22: =(K22-RSAInc!K22)*(1+RSARet!K22) -> 111285.891 | M22: =(L22-RSAInc!L22)*(1+RSARet!L22) -> 93654.00737 | N22: =(M22-RSAInc!M22)*(1+RSARet!M22) -> 75973.92595 | O22: =(N22-RSAInc!N22)*(1+RSARet!N22) -> 60001.19729 | P22: =(O22-RSAInc!O22)*(1+RSARet!O22) -> 41597.44736 | Q22: =(P22-RSAInc!P22)*(1+RSARet!P22) -> 22862.19571 | R22: =(Q22-RSAInc!Q22)*(1+RSARet!Q22) -> 4274.962818 | S22: =(R22-RSAInc!R22)*(1+RSARet!R22) -> 0 | T22: =(S22-RSAInc!S22)*(1+RSARet!S22) -> 0 | U22: =(T22-RSAInc!T22)*(1+RSARet!T22) -> 0 | V22: =(U22-RSAInc!U22)*(1+RSARet!U22) -> 0 | W22: =(V22-RSAInc!V22)*(1+RSARet!V22) -> 0 | X22: =(W22-RSAInc!W22)*(1+RSARet!W22) -> 0 | Y22: =(X22-RSAInc!X22)*(1+RSARet!X22) -> 0 | Z22: =(Y22-RSAInc!Y22)*(1+RSARet!Y22) -> 0 | AA22: =(Z22-RSAInc!Z22)*(1+RSARet!Z22) -> 0 | AB22: =(AA22-RSAInc!AA22)*(1+RSARet!AA22) -> 0 | AC22: =(AB22-RSAInc!AB22)*(1+RSARet!AB22) -> 0 | AD22: =(AC22-RSAInc!AC22)*(1+RSARet!AC22) -> 0 | AE22: =(AD22-RSAInc!AD22)*(1+RSARet!AD22) -> 0 | AF22: =(AE22-RSAInc!AE22)*(1+RSARet!AE22) -> 0 | AG22: =(AF22-RSAInc!AF22)*(1+RSARet!AF22) -> 0 | AH22: =(AG22-RSAInc!AG22)*(1+RSARet!AG22) -> 0 | AI22: =(AH22-RSAInc!AH22)*(1+RSARet!AH22) -> 0 | AJ22: =(AI22-RSAInc!AI22)*(1+RSARet!AI22) -> 0 | AK22: =(AJ22-RSAInc!AJ22)*(1+RSARet!AJ22) -> 0 | AL22: =(AK22-RSAInc!AK22)*(1+RSARet!AK22) -> 0 | AM22: =(AL22-RSAInc!AL22)*(1+RSARet!AL22) -> 0 | AN22: =(AM22-RSAInc!AM22)*(1+RSARet!AM22) -> 0 | AO22: =(AN22-RSAInc!AN22)*(1+RSARet!AN22) -> 0 | AP22: =(AO22-RSAInc!AO22)*(1+RSARet!AO22) -> 0 | AQ22: =(AP22-RSAInc!AP22)*(1+RSARet!AP22) -> 0 | AR22: =(AQ22-RSAInc!AQ22)*(1+RSARet!AQ22) -> 0 | AS22: =(AR22-RSAInc!AR22)*(1+RSARet!AR22) -> 0 | AT22: =(AS22-RSAInc!AS22)*(1+RSARet!AS22) -> 0 | AU22: =(AT22-RSAInc!AT22)*(1+RSARet!AT22) -> 0 | AW22: 81 | AX22: =IF(AW22="",0,LOOKUP(AW22,'Retiree Details and Assumptions'!D$43:D$88,'Retiree Details and Assumptions'!E$43:E$88)) -> 0.787874053 | AY22: =IF(AW22="","",LOOKUP(AW22,'Retiree Details and Assumptions'!D$43:D$88,'Retiree Details and Assumptions'!H$43:H$88)) -> 10.31478692
A23: 22 | B23: 250000 | C23: =(B23-RSAInc!B23)*(1+RSARet!B23) -> 235709.5471 | D23: =(C23-RSAInc!C23)*(1+RSARet!C23) -> 226289.3173 | E23: =(D23-RSAInc!D23)*(1+RSARet!D23) -> 216440.9889 | F23: =(E23-RSAInc!E23)*(1+RSARet!E23) -> 205542.1811 | G23: =(F23-RSAInc!F23)*(1+RSARet!F23) -> 197193.3327 | H23: =(G23-RSAInc!G23)*(1+RSARet!G23) -> 173725.0559 | I23: =(H23-RSAInc!H23)*(1+RSARet!H23) -> 148880.854 | J23: =(I23-RSAInc!I23)*(1+RSARet!I23) -> 137158.7793 | K23: =(J23-RSAInc!J23)*(1+RSARet!J23) -> 120131.3436 | L23: =(K23-RSAInc!K23)*(1+RSARet!K23) -> 114282.9976 | M23: =(L23-RSAInc!L23)*(1+RSARet!L23) -> 102957.1123 | N23: =(M23-RSAInc!M23)*(1+RSARet!M23) -> 84238.89949 | O23: =(N23-RSAInc!N23)*(1+RSARet!N23) -> 65098.5298 | P23: =(O23-RSAInc!O23)*(1+RSARet!O23) -> 51464.1023 | Q23: =(P23-RSAInc!P23)*(1+RSARet!P23) -> 33728.56776 | R23: =(Q23-RSAInc!Q23)*(1+RSARet!Q23) -> 16107.66376 | S23: =(R23-RSAInc!R23)*(1+RSARet!R23) -> 0 | T23: =(S23-RSAInc!S23)*(1+RSARet!S23) -> 0 | U23: =(T23-RSAInc!T23)*(1+RSARet!T23) -> 0 | V23: =(U23-RSAInc!U23)*(1+RSARet!U23) -> 0 | W23: =(V23-RSAInc!V23)*(1+RSARet!V23) -> 0 | X23: =(W23-RSAInc!W23)*(1+RSARet!W23) -> 0 | Y23: =(X23-RSAInc!X23)*(1+RSARet!X23) -> 0 | Z23: =(Y23-RSAInc!Y23)*(1+RSARet!Y23) -> 0 | AA23: =(Z23-RSAInc!Z23)*(1+RSARet!Z23) -> 0 | AB23: =(AA23-RSAInc!AA23)*(1+RSARet!AA23) -> 0 | AC23: =(AB23-RSAInc!AB23)*(1+RSARet!AB23) -> 0 | AD23: =(AC23-RSAInc!AC23)*(1+RSARet!AC23) -> 0 | AE23: =(AD23-RSAInc!AD23)*(1+RSARet!AD23) -> 0 | AF23: =(AE23-RSAInc!AE23)*(1+RSARet!AE23) -> 0 | AG23: =(AF23-RSAInc!AF23)*(1+RSARet!AF23) -> 0 | AH23: =(AG23-RSAInc!AG23)*(1+RSARet!AG23) -> 0 | AI23: =(AH23-RSAInc!AH23)*(1+RSARet!AH23) -> 0 | AJ23: =(AI23-RSAInc!AI23)*(1+RSARet!AI23) -> 0 | AK23: =(AJ23-RSAInc!AJ23)*(1+RSARet!AJ23) -> 0 | AL23: =(AK23-RSAInc!AK23)*(1+RSARet!AK23) -> 0 | AM23: =(AL23-RSAInc!AL23)*(1+RSARet!AL23) -> 0 | AN23: =(AM23-RSAInc!AM23)*(1+RSARet!AM23) -> 0 | AO23: =(AN23-RSAInc!AN23)*(1+RSARet!AN23) -> 0 | AP23: =(AO23-RSAInc!AO23)*(1+RSARet!AO23) -> 0 | AQ23: =(AP23-RSAInc!AP23)*(1+RSARet!AP23) -> 0 | AR23: =(AQ23-RSAInc!AQ23)*(1+RSARet!AQ23) -> 0 | AS23: =(AR23-RSAInc!AR23)*(1+RSARet!AR23) -> 0 | AT23: =(AS23-RSAInc!AS23)*(1+RSARet!AS23) -> 0 | AU23: =(AT23-RSAInc!AT23)*(1+RSARet!AT23) -> 0 | AW23: 81 | AX23: =IF(AW23="",0,LOOKUP(AW23,'Retiree Details and Assumptions'!D$43:D$88,'Retiree Details and Assumptions'!E$43:E$88)) -> 0.787874053 | AY23: =IF(AW23="","",LOOKUP(AW23,'Retiree Details and Assumptions'!D$43:D$88,'Retiree Details and Assumptions'!H$43:H$88)) -> 10.31478692
A24: 23 | B24: 250000 | C24: =(B24-RSAInc!B24)*(1+RSARet!B24) -> 244435.9483 | D24: =(C24-RSAInc!C24)*(1+RSARet!C24) -> 231799.647 | E24: =(D24-RSAInc!D24)*(1+RSARet!D24) -> 220926.6559 | F24: =(E24-RSAInc!E24)*(1+RSARet!E24) -> 211221.2111 | G24: =(F24-RSAInc!F24)*(1+RSARet!F24) -> 200385.7381 | H24: =(G24-RSAInc!G24)*(1+RSARet!G24) -> 194571.7811 | I24: =(H24-RSAInc!H24)*(1+RSARet!H24) -> 181943.2179 | J24: =(I24-RSAInc!I24)*(1+RSARet!I24) -> 169872.7765 | K24: =(J24-RSAInc!J24)*(1+RSARet!J24) -> 149637.4174 | L24: =(K24-RSAInc!K24)*(1+RSARet!K24) -> 134148.3358 | M24: =(L24-RSAInc!L24)*(1+RSARet!L24) -> 117910.1399 | N24: =(M24-RSAInc!M24)*(1+RSARet!M24) -> 104313.6927 | O24: =(N24-RSAInc!N24)*(1+RSARet!N24) -> 87446.83215 | P24: =(O24-RSAInc!O24)*(1+RSARet!O24) -> 69871.81366 | Q24: =(P24-RSAInc!P24)*(1+RSARet!P24) -> 53502.69119 | R24: =(Q24-RSAInc!Q24)*(1+RSARet!Q24) -> 37982.34977 | S24: =(R24-RSAInc!R24)*(1+RSARet!R24) -> 19179.86602 | T24: =(S24-RSAInc!S24)*(1+RSARet!S24) -> 457.4932699 | U24: =(T24-RSAInc!T24)*(1+RSARet!T24) -> 0 | V24: =(U24-RSAInc!U24)*(1+RSARet!U24) -> 0 | W24: =(V24-RSAInc!V24)*(1+RSARet!V24) -> 0 | X24: =(W24-RSAInc!W24)*(1+RSARet!W24) -> 0 | Y24: =(X24-RSAInc!X24)*(1+RSARet!X24) -> 0 | Z24: =(Y24-RSAInc!Y24)*(1+RSARet!Y24) -> 0 | AA24: =(Z24-RSAInc!Z24)*(1+RSARet!Z24) -> 0 | AB24: =(AA24-RSAInc!AA24)*(1+RSARet!AA24) -> 0 | AC24: =(AB24-RSAInc!AB24)*(1+RSARet!AB24) -> 0 | AD24: =(AC24-RSAInc!AC24)*(1+RSARet!AC24) -> 0 | AE24: =(AD24-RSAInc!AD24)*(1+RSARet!AD24) -> 0 | AF24: =(AE24-RSAInc!AE24)*(1+RSARet!AE24) -> 0 | AG24: =(AF24-RSAInc!AF24)*(1+RSARet!AF24) -> 0 | AH24: =(AG24-RSAInc!AG24)*(1+RSARet!AG24) -> 0 | AI24: =(AH24-RSAInc!AH24)*(1+RSARet!AH24) -> 0 | AJ24: =(AI24-RSAInc!AI24)*(1+RSARet!AI24) -> 0 | AK24: =(AJ24-RSAInc!AJ24)*(1+RSARet!AJ24) -> 0 | AL24: =(AK24-RSAInc!AK24)*(1+RSARet!AK24) -> 0 | AM24: =(AL24-RSAInc!AL24)*(1+RSARet!AL24) -> 0 | AN24: =(AM24-RSAInc!AM24)*(1+RSARet!AM24) -> 0 | AO24: =(AN24-RSAInc!AN24)*(1+RSARet!AN24) -> 0 | AP24: =(AO24-RSAInc!AO24)*(1+RSARet!AO24) -> 0 | AQ24: =(AP24-RSAInc!AP24)*(1+RSARet!AP24) -> 0 | AR24: =(AQ24-RSAInc!AQ24)*(1+RSARet!AQ24) -> 0 | AS24: =(AR24-RSAInc!AR24)*(1+RSARet!AR24) -> 0 | AT24: =(AS24-RSAInc!AS24)*(1+RSARet!AS24) -> 0 | AU24: =(AT24-RSAInc!AT24)*(1+RSARet!AT24) -> 0 | AW24: 83 | AX24: =IF(AW24="",0,LOOKUP(AW24,'Retiree Details and Assumptions'!D$43:D$88,'Retiree Details and Assumptions'!E$43:E$88)) -> 0.7279284838 | AY24: =IF(AW24="","",LOOKUP(AW24,'Retiree Details and Assumptions'!D$43:D$88,'Retiree Details and Assumptions'!H$43:H$88)) -> 9.038639801
A25: 24 | B25: 250000 | C25: =(B25-RSAInc!B25)*(1+RSARet!B25) -> 236442.8923 | D25: =(C25-RSAInc!C25)*(1+RSARet!C25) -> 228440.1066 | E25: =(D25-RSAInc!D25)*(1+RSARet!D25) -> 208288.4542 | F25: =(E25-RSAInc!E25)*(1+RSARet!E25) -> 177564.326 | G25: =(F25-RSAInc!F25)*(1+RSARet!F25) -> 160762.8333 | H25: =(G25-RSAInc!G25)*(1+RSARet!G25) -> 152200.7893 | I25: =(H25-RSAInc!H25)*(1+RSARet!H25) -> 132478.3482 | J25: =(I25-RSAInc!I25)*(1+RSARet!I25) -> 119443.1405 | K25: =(J25-RSAInc!J25)*(1+RSARet!J25) -> 112084.5894 | L25: =(K25-RSAInc!K25)*(1+RSARet!K25) -> 90511.8657 | M25: =(L25-RSAInc!L25)*(1+RSARet!L25) -> 72452.98996 | N25: =(M25-RSAInc!M25)*(1+RSARet!M25) -> 55254.48137 | O25: =(N25-RSAInc!N25)*(1+RSARet!N25) -> 37345.91071 | P25: =(O25-RSAInc!O25)*(1+RSARet!O25) -> 18572.53676 | Q25: =(P25-RSAInc!P25)*(1+RSARet!P25) -> 0 | R25: =(Q25-RSAInc!Q25)*(1+RSARet!Q25) -> 0 | S25: =(R25-RSAInc!R25)*(1+RSARet!R25) -> 0 | T25: =(S25-RSAInc!S25)*(1+RSARet!S25) -> 0 | U25: =(T25-RSAInc!T25)*(1+RSARet!T25) -> 0 | V25: =(U25-RSAInc!U25)*(1+RSARet!U25) -> 0 | W25: =(V25-RSAInc!V25)*(1+RSARet!V25) -> 0 | X25: =(W25-RSAInc!W25)*(1+RSARet!W25) -> 0 | Y25: =(X25-RSAInc!X25)*(1+RSARet!X25) -> 0 | Z25: =(Y25-RSAInc!Y25)*(1+RSARet!Y25) -> 0 | AA25: =(Z25-RSAInc!Z25)*(1+RSARet!Z25) -> 0 | AB25: =(AA25-RSAInc!AA25)*(1+RSARet!AA25) -> 0 | AC25: =(AB25-RSAInc!AB25)*(1+RSARet!AB25) -> 0 | AD25: =(AC25-RSAInc!AC25)*(1+RSARet!AC25) -> 0 | AE25: =(AD25-RSAInc!AD25)*(1+RSARet!AD25) -> 0 | AF25: =(AE25-RSAInc!AE25)*(1+RSARet!AE25) -> 0 | AG25: =(AF25-RSAInc!AF25)*(1+RSARet!AF25) -> 0 | AH25: =(AG25-RSAInc!AG25)*(1+RSARet!AG25) -> 0 | AI25: =(AH25-RSAInc!AH25)*(1+RSARet!AH25) -> 0 | AJ25: =(AI25-RSAInc!AI25)*(1+RSARet!AI25) -> 0 | AK25: =(AJ25-RSAInc!AJ25)*(1+RSARet!AJ25) -> 0 | AL25: =(AK25-RSAInc!AK25)*(1+RSARet!AK25) -> 0 | AM25: =(AL25-RSAInc!AL25)*(1+RSARet!AL25) -> 0 | AN25: =(AM25-RSAInc!AM25)*(1+RSARet!AM25) -> 0 | AO25: =(AN25-RSAInc!AN25)*(1+RSARet!AN25) -> 0 | AP25: =(AO25-RSAInc!AO25)*(1+RSARet!AO25) -> 0 | AQ25: =(AP25-RSAInc!AP25)*(1+RSARet!AP25) -> 0 | AR25: =(AQ25-RSAInc!AQ25)*(1+RSARet!AQ25) -> 0 | AS25: =(AR25-RSAInc!AR25)*(1+RSARet!AR25) -> 0 | AT25: =(AS25-RSAInc!AS25)*(1+RSARet!AS25) -> 0 | AU25: =(AT25-RSAInc!AT25)*(1+RSARet!AT25) -> 0 | AW25: 79 | AX25: =IF(AW25="",0,LOOKUP(AW25,'Retiree Details and Assumptions'!D$43:D$88,'Retiree Details and Assumptions'!E$43:E$88)) -> 0.8366936022 | AY25: =IF(AW25="","",LOOKUP(AW25,'Retiree Details and Assumptions'!D$43:D$88,'Retiree Details and Assumptions'!H$43:H$88)) -> 11.68531787
A26: 25 | B26: 250000 | C26: =(B26-RSAInc!B26)*(1+RSARet!B26) -> 242978.3874 | D26: =(C26-RSAInc!C26)*(1+RSARet!C26) -> 227691.763 | E26: =(D26-RSAInc!D26)*(1+RSARet!D26) -> 204688.7291 | F26: =(E26-RSAInc!E26)*(1+RSARet!E26) -> 198258.7288 | G26: =(F26-RSAInc!F26)*(1+RSARet!F26) -> 176988.6404 | H26: =(G26-RSAInc!G26)*(1+RSARet!G26) -> 162346.6376 | I26: =(H26-RSAInc!H26)*(1+RSARet!H26) -> 139594.3094 | J26: =(I26-RSAInc!I26)*(1+RSARet!I26) -> 124948.812 | K26: =(J26-RSAInc!J26)*(1+RSARet!J26) -> 119246.3879 | L26: =(K26-RSAInc!K26)*(1+RSARet!K26) -> 103896.1887 | M26: =(L26-RSAInc!L26)*(1+RSARet!L26) -> 87665.99817 | N26: =(M26-RSAInc!M26)*(1+RSARet!M26) -> 74836.00967 | O26: =(N26-RSAInc!N26)*(1+RSARet!N26) -> 57791.17321 | P26: =(O26-RSAInc!O26)*(1+RSARet!O26) -> 42125.36901 | Q26: =(P26-RSAInc!P26)*(1+RSARet!P26) -> 26038.76594 | R26: =(Q26-RSAInc!Q26)*(1+RSARet!Q26) -> 7635.729341 | S26: =(R26-RSAInc!R26)*(1+RSARet!R26) -> 0 | T26: =(S26-RSAInc!S26)*(1+RSARet!S26) -> 0 | U26: =(T26-RSAInc!T26)*(1+RSARet!T26) -> 0 | V26: =(U26-RSAInc!U26)*(1+RSARet!U26) -> 0 | W26: =(V26-RSAInc!V26)*(1+RSARet!V26) -> 0 | X26: =(W26-RSAInc!W26)*(1+RSARet!W26) -> 0 | Y26: =(X26-RSAInc!X26)*(1+RSARet!X26) -> 0 | Z26: =(Y26-RSAInc!Y26)*(1+RSARet!Y26) -> 0 | AA26: =(Z26-RSAInc!Z26)*(1+RSARet!Z26) -> 0 | AB26: =(AA26-RSAInc!AA26)*(1+RSARet!AA26) -> 0 | AC26: =(AB26-RSAInc!AB26)*(1+RSARet!AB26) -> 0 | AD26: =(AC26-RSAInc!AC26)*(1+RSARet!AC26) -> 0 | AE26: =(AD26-RSAInc!AD26)*(1+RSARet!AD26) -> 0 | AF26: =(AE26-RSAInc!AE26)*(1+RSARet!AE26) -> 0 | AG26: =(AF26-RSAInc!AF26)*(1+RSARet!AF26) -> 0 | AH26: =(AG26-RSAInc!AG26)*(1+RSARet!AG26) -> 0 | AI26: =(AH26-RSAInc!AH26)*(1+RSARet!AH26) -> 0 | AJ26: =(AI26-RSAInc!AI26)*(1+RSARet!AI26) -> 0 | AK26: =(AJ26-RSAInc!AJ26)*(1+RSARet!AJ26) -> 0 | AL26: =(AK26-RSAInc!AK26)*(1+RSARet!AK26) -> 0 | AM26: =(AL26-RSAInc!AL26)*(1+RSARet!AL26) -> 0 | AN26: =(AM26-RSAInc!AM26)*(1+RSARet!AM26) -> 0 | AO26: =(AN26-RSAInc!AN26)*(1+RSARet!AN26) -> 0 | AP26: =(AO26-RSAInc!AO26)*(1+RSARet!AO26) -> 0 | AQ26: =(AP26-RSAInc!AP26)*(1+RSARet!AP26) -> 0 | AR26: =(AQ26-RSAInc!AQ26)*(1+RSARet!AQ26) -> 0 | AS26: =(AR26-RSAInc!AR26)*(1+RSARet!AR26) -> 0 | AT26: =(AS26-RSAInc!AS26)*(1+RSARet!AS26) -> 0 | AU26: =(AT26-RSAInc!AT26)*(1+RSARet!AT26) -> 0 | AW26: 81 | AX26: =IF(AW26="",0,LOOKUP(AW26,'Retiree Details and Assumptions'!D$43:D$88,'Retiree Details and Assumptions'!E$43:E$88)) -> 0.787874053 | AY26: =IF(AW26="","",LOOKUP(AW26,'Retiree Details and Assumptions'!D$43:D$88,'Retiree Details and Assumptions'!H$43:H$88)) -> 10.31478692
A27: 26 | B27: 250000 | C27: =(B27-RSAInc!B27)*(1+RSARet!B27) -> 240532.9872 | D27: =(C27-RSAInc!C27)*(1+RSARet!C27) -> 241765.583 | E27: =(D27-RSAInc!D27)*(1+RSARet!D27) -> 227692.9949 | F27: =(E27-RSAInc!E27)*(1+RSARet!E27) -> 210697.5624 | G27: =(F27-RSAInc!F27)*(1+RSARet!F27) -> 197252.3929 | H27: =(G27-RSAInc!G27)*(1+RSARet!G27) -> 185350.9486 | I27: =(H27-RSAInc!H27)*(1+RSARet!H27) -> 168642.6927 | J27: =(I27-RSAInc!I27)*(1+RSARet!I27) -> 153350.001 | K27: =(J27-RSAInc!J27)*(1+RSARet!J27) -> 137202.1328 | L27: =(K27-RSAInc!K27)*(1+RSARet!K27) -> 119322.9532 | M27: =(L27-RSAInc!L27)*(1+RSARet!L27) -> 104863.1117 | N27: =(M27-RSAInc!M27)*(1+RSARet!M27) -> 92570.87534 | O27: =(N27-RSAInc!N27)*(1+RSARet!N27) -> 79900.82781 | P27: =(O27-RSAInc!O27)*(1+RSARet!O27) -> 65395.04856 | Q27: =(P27-RSAInc!P27)*(1+RSARet!P27) -> 45233.85539 | R27: =(Q27-RSAInc!Q27)*(1+RSARet!Q27) -> 26027.82659 | S27: =(R27-RSAInc!R27)*(1+RSARet!R27) -> 8210.905072 | T27: =(S27-RSAInc!S27)*(1+RSARet!S27) -> 0 | U27: =(T27-RSAInc!T27)*(1+RSARet!T27) -> 0 | V27: =(U27-RSAInc!U27)*(1+RSARet!U27) -> 0 | W27: =(V27-RSAInc!V27)*(1+RSARet!V27) -> 0 | X27: =(W27-RSAInc!W27)*(1+RSARet!W27) -> 0 | Y27: =(X27-RSAInc!X27)*(1+RSARet!X27) -> 0 | Z27: =(Y27-RSAInc!Y27)*(1+RSARet!Y27) -> 0 | AA27: =(Z27-RSAInc!Z27)*(1+RSARet!Z27) -> 0 | AB27: =(AA27-RSAInc!AA27)*(1+RSARet!AA27) -> 0 | AC27: =(AB27-RSAInc!AB27)*(1+RSARet!AB27) -> 0 | AD27: =(AC27-RSAInc!AC27)*(1+RSARet!AC27) -> 0 | AE27: =(AD27-RSAInc!AD27)*(1+RSARet!AD27) -> 0 | AF27: =(AE27-RSAInc!AE27)*(1+RSARet!AE27) -> 0 | AG27: =(AF27-RSAInc!AF27)*(1+RSARet!AF27) -> 0 | AH27: =(AG27-RSAInc!AG27)*(1+RSARet!AG27) -> 0 | AI27: =(AH27-RSAInc!AH27)*(1+RSARet!AH27) -> 0 | AJ27: =(AI27-RSAInc!AI27)*(1+RSARet!AI27) -> 0 | AK27: =(AJ27-RSAInc!AJ27)*(1+RSARet!AJ27) -> 0 | AL27: =(AK27-RSAInc!AK27)*(1+RSARet!AK27) -> 0 | AM27: =(AL27-RSAInc!AL27)*(1+RSARet!AL27) -> 0 | AN27: =(AM27-RSAInc!AM27)*(1+RSARet!AM27) -> 0 | AO27: =(AN27-RSAInc!AN27)*(1+RSARet!AN27) -> 0 | AP27: =(AO27-RSAInc!AO27)*(1+RSARet!AO27) -> 0 | AQ27: =(AP27-RSAInc!AP27)*(1+RSARet!AP27) -> 0 | AR27: =(AQ27-RSAInc!AQ27)*(1+RSARet!AQ27) -> 0 | AS27: =(AR27-RSAInc!AR27)*(1+RSARet!AR27) -> 0 | AT27: =(AS27-RSAInc!AS27)*(1+RSARet!AS27) -> 0 | AU27: =(AT27-RSAInc!AT27)*(1+RSARet!AT27) -> 0 | AW27: 82 | AX27: =IF(AW27="",0,LOOKUP(AW27,'Retiree Details and Assumptions'!D$43:D$88,'Retiree Details and Assumptions'!E$43:E$88)) -> 0.7593955575 | AY27: =IF(AW27="","",LOOKUP(AW27,'Retiree Details and Assumptions'!D$43:D$88,'Retiree Details and Assumptions'!H$43:H$88)) -> 9.664105684
A28: 27 | B28: 250000 | C28: =(B28-RSAInc!B28)*(1+RSARet!B28) -> 241820.0458 | D28: =(C28-RSAInc!C28)*(1+RSARet!C28) -> 228932.026 | E28: =(D28-RSAInc!D28)*(1+RSARet!D28) -> 227790.5361 | F28: =(E28-RSAInc!E28)*(1+RSARet!E28) -> 225281.5013 | G28: =(F28-RSAInc!F28)*(1+RSARet!F28) -> 216187.3744 | H28: =(G28-RSAInc!G28)*(1+RSARet!G28) -> 196857.8459 | I28: =(H28-RSAInc!H28)*(1+RSARet!H28) -> 180763.1135 | J28: =(I28-RSAInc!I28)*(1+RSARet!I28) -> 173701.6698 | K28: =(J28-RSAInc!J28)*(1+RSARet!J28) -> 152976.2637 | L28: =(K28-RSAInc!K28)*(1+RSARet!K28) -> 144601.9712 | M28: =(L28-RSAInc!L28)*(1+RSARet!L28) -> 131674.3741 | N28: =(M28-RSAInc!M28)*(1+RSARet!M28) -> 117587.8127 | O28: =(N28-RSAInc!N28)*(1+RSARet!N28) -> 99297.74458 | P28: =(O28-RSAInc!O28)*(1+RSARet!O28) -> 88749.93911 | Q28: =(P28-RSAInc!P28)*(1+RSARet!P28) -> 75920.24661 | R28: =(Q28-RSAInc!Q28)*(1+RSARet!Q28) -> 56096.25495 | S28: =(R28-RSAInc!R28)*(1+RSARet!R28) -> 39803.33601 | T28: =(S28-RSAInc!S28)*(1+RSARet!S28) -> 21257.17387 | U28: =(T28-RSAInc!T28)*(1+RSARet!T28) -> 2522.599184 | V28: =(U28-RSAInc!U28)*(1+RSARet!U28) -> 0 | W28: =(V28-RSAInc!V28)*(1+RSARet!V28) -> 0 | X28: =(W28-RSAInc!W28)*(1+RSARet!W28) -> 0 | Y28: =(X28-RSAInc!X28)*(1+RSARet!X28) -> 0 | Z28: =(Y28-RSAInc!Y28)*(1+RSARet!Y28) -> 0 | AA28: =(Z28-RSAInc!Z28)*(1+RSARet!Z28) -> 0 | AB28: =(AA28-RSAInc!AA28)*(1+RSARet!AA28) -> 0 | AC28: =(AB28-RSAInc!AB28)*(1+RSARet!AB28) -> 0 | AD28: =(AC28-RSAInc!AC28)*(1+RSARet!AC28) -> 0 | AE28: =(AD28-RSAInc!AD28)*(1+RSARet!AD28) -> 0 | AF28: =(AE28-RSAInc!AE28)*(1+RSARet!AE28) -> 0 | AG28: =(AF28-RSAInc!AF28)*(1+RSARet!AF28) -> 0 | AH28: =(AG28-RSAInc!AG28)*(1+RSARet!AG28) -> 0 | AI28: =(AH28-RSAInc!AH28)*(1+RSARet!AH28) -> 0 | AJ28: =(AI28-RSAInc!AI28)*(1+RSARet!AI28) -> 0 | AK28: =(AJ28-RSAInc!AJ28)*(1+RSARet!AJ28) -> 0 | AL28: =(AK28-RSAInc!AK28)*(1+RSARet!AK28) -> 0 | AM28: =(AL28-RSAInc!AL28)*(1+RSARet!AL28) -> 0 | AN28: =(AM28-RSAInc!AM28)*(1+RSARet!AM28) -> 0 | AO28: =(AN28-RSAInc!AN28)*(1+RSARet!AN28) -> 0 | AP28: =(AO28-RSAInc!AO28)*(1+RSARet!AO28) -> 0 | AQ28: =(AP28-RSAInc!AP28)*(1+RSARet!AP28) -> 0 | AR28: =(AQ28-RSAInc!AQ28)*(1+RSARet!AQ28) -> 0 | AS28: =(AR28-RSAInc!AR28)*(1+RSARet!AR28) -> 0 | AT28: =(AS28-RSAInc!AS28)*(1+RSARet!AS28) -> 0 | AU28: =(AT28-RSAInc!AT28)*(1+RSARet!AT28) -> 0 | AW28: 84 | AX28: =IF(AW28="",0,LOOKUP(AW28,'Retiree Details and Assumptions'!D$43:D$88,'Retiree Details and Assumptions'!E$43:E$88)) -> 0.6933082051 | AY28: =IF(AW28="","",LOOKUP(AW28,'Retiree Details and Assumptions'!D$43:D$88,'Retiree Details and Assumptions'!H$43:H$88)) -> 8.440048508
A29: 28 | B29: 250000 | C29: =(B29-RSAInc!B29)*(1+RSARet!B29) -> 232455.4552 | D29: =(C29-RSAInc!C29)*(1+RSARet!C29) -> 203850.7471 | E29: =(D29-RSAInc!D29)*(1+RSARet!D29) -> 187216.8231 | F29: =(E29-RSAInc!E29)*(1+RSARet!E29) -> 167390.2767 | G29: =(F29-RSAInc!F29)*(1+RSARet!F29) -> 145291.4333 | H29: =(G29-RSAInc!G29)*(1+RSARet!G29) -> 133507.9999 | I29: =(H29-RSAInc!H29)*(1+RSARet!H29) -> 117646.0159 | J29: =(I29-RSAInc!I29)*(1+RSARet!I29) -> 96196.63369 | K29: =(J29-RSAInc!J29)*(1+RSARet!J29) -> 75257.10073 | L29: =(K29-RSAInc!K29)*(1+RSARet!K29) -> 56367.77712 | M29: =(L29-RSAInc!L29)*(1+RSARet!L29) -> 36882.91675 | N29: =(M29-RSAInc!M29)*(1+RSARet!M29) -> 17852.20361 | O29: =(N29-RSAInc!N29)*(1+RSARet!N29) -> 0 | P29: =(O29-RSAInc!O29)*(1+RSARet!O29) -> 0 | Q29: =(P29-RSAInc!P29)*(1+RSARet!P29) -> 0 | R29: =(Q29-RSAInc!Q29)*(1+RSARet!Q29) -> 0 | S29: =(R29-RSAInc!R29)*(1+RSARet!R29) -> 0 | T29: =(S29-RSAInc!S29)*(1+RSARet!S29) -> 0 | U29: =(T29-RSAInc!T29)*(1+RSARet!T29) -> 0 | V29: =(U29-RSAInc!U29)*(1+RSARet!U29) -> 0 | W29: =(V29-RSAInc!V29)*(1+RSARet!V29) -> 0 | X29: =(W29-RSAInc!W29)*(1+RSARet!W29) -> 0 | Y29: =(X29-RSAInc!X29)*(1+RSARet!X29) -> 0 | Z29: =(Y29-RSAInc!Y29)*(1+RSARet!Y29) -> 0 | AA29: =(Z29-RSAInc!Z29)*(1+RSARet!Z29) -> 0 | AB29: =(AA29-RSAInc!AA29)*(1+RSARet!AA29) -> 0 | AC29: =(AB29-RSAInc!AB29)*(1+RSARet!AB29) -> 0 | AD29: =(AC29-RSAInc!AC29)*(1+RSARet!AC29) -> 0 | AE29: =(AD29-RSAInc!AD29)*(1+RSARet!AD29) -> 0 | AF29: =(AE29-RSAInc!AE29)*(1+RSARet!AE29) -> 0 | AG29: =(AF29-RSAInc!AF29)*(1+RSARet!AF29) -> 0 | AH29: =(AG29-RSAInc!AG29)*(1+RSARet!AG29) -> 0 | AI29: =(AH29-RSAInc!AH29)*(1+RSARet!AH29) -> 0 | AJ29: =(AI29-RSAInc!AI29)*(1+RSARet!AI29) -> 0 | AK29: =(AJ29-RSAInc!AJ29)*(1+RSARet!AJ29) -> 0 | AL29: =(AK29-RSAInc!AK29)*(1+RSARet!AK29) -> 0 | AM29: =(AL29-RSAInc!AL29)*(1+RSARet!AL29) -> 0 | AN29: =(AM29-RSAInc!AM29)*(1+RSARet!AM29) -> 0 | AO29: =(AN29-RSAInc!AN29)*(1+RSARet!AN29) -> 0 | AP29: =(AO29-RSAInc!AO29)*(1+RSARet!AO29) -> 0 | AQ29: =(AP29-RSAInc!AP29)*(1+RSARet!AP29) -> 0 | AR29: =(AQ29-RSAInc!AQ29)*(1+RSARet!AQ29) -> 0 | AS29: =(AR29-RSAInc!AR29)*(1+RSARet!AR29) -> 0 | AT29: =(AS29-RSAInc!AS29)*(1+RSARet!AS29) -> 0 | AU29: =(AT29-RSAInc!AT29)*(1+RSARet!AT29) -> 0 | AW29: 77 | AX29: =IF(AW29="",0,LOOKUP(AW29,'Retiree Details and Assumptions'!D$43:D$88,'Retiree Details and Assumptions'!E$43:E$88)) -> 0.8762653125 | AY29: =IF(AW29="","",LOOKUP(AW29,'Retiree Details and Assumptions'!D$43:D$88,'Retiree Details and Assumptions'!H$43:H$88)) -> 13.13624167
A30: 29 | B30: 250000 | C30: =(B30-RSAInc!B30)*(1+RSARet!B30) -> 230771.6597 | D30: =(C30-RSAInc!C30)*(1+RSARet!C30) -> 207633.6798 | E30: =(D30-RSAInc!D30)*(1+RSARet!D30) -> 186149.267 | F30: =(E30-RSAInc!E30)*(1+RSARet!E30) -> 177224.4292 | G30: =(F30-RSAInc!F30)*(1+RSARet!F30) -> 161389.0003 | H30: =(G30-RSAInc!G30)*(1+RSARet!G30) -> 141954.0947 | I30: =(H30-RSAInc!H30)*(1+RSARet!H30) -> 130693.1391 | J30: =(I30-RSAInc!I30)*(1+RSARet!I30) -> 112677.273 | K30: =(J30-RSAInc!J30)*(1+RSARet!J30) -> 90353.16646 | L30: =(K30-RSAInc!K30)*(1+RSARet!K30) -> 71904.36495 | M30: =(L30-RSAInc!L30)*(1+RSARet!L30) -> 52227.03053 | N30: =(M30-RSAInc!M30)*(1+RSARet!M30) -> 35268.08925 | O30: =(N30-RSAInc!N30)*(1+RSARet!N30) -> 18034.02644 | P30: =(O30-RSAInc!O30)*(1+RSARet!O30) -> 0 | Q30: =(P30-RSAInc!P30)*(1+RSARet!P30) -> 0 | R30: =(Q30-RSAInc!Q30)*(1+RSARet!Q30) -> 0 | S30: =(R30-RSAInc!R30)*(1+RSARet!R30) -> 0 | T30: =(S30-RSAInc!S30)*(1+RSARet!S30) -> 0 | U30: =(T30-RSAInc!T30)*(1+RSARet!T30) -> 0 | V30: =(U30-RSAInc!U30)*(1+RSARet!U30) -> 0 | W30: =(V30-RSAInc!V30)*(1+RSARet!V30) -> 0 | X30: =(W30-RSAInc!W30)*(1+RSARet!W30) -> 0 | Y30: =(X30-RSAInc!X30)*(1+RSARet!X30) -> 0 | Z30: =(Y30-RSAInc!Y30)*(1+RSARet!Y30) -> 0 | AA30: =(Z30-RSAInc!Z30)*(1+RSARet!Z30) -> 0 | AB30: =(AA30-RSAInc!AA30)*(1+RSARet!AA30) -> 0 | AC30: =(AB30-RSAInc!AB30)*(1+RSARet!AB30) -> 0 | AD30: =(AC30-RSAInc!AC30)*(1+RSARet!AC30) -> 0 | AE30: =(AD30-RSAInc!AD30)*(1+RSARet!AD30) -> 0 | AF30: =(AE30-RSAInc!AE30)*(1+RSARet!AE30) -> 0 | AG30: =(AF30-RSAInc!AF30)*(1+RSARet!AF30) -> 0 | AH30: =(AG30-RSAInc!AG30)*(1+RSARet!AG30) -> 0 | AI30: =(AH30-RSAInc!AH30)*(1+RSARet!AH30) -> 0 | AJ30: =(AI30-RSAInc!AI30)*(1+RSARet!AI30) -> 0 | AK30: =(AJ30-RSAInc!AJ30)*(1+RSARet!AJ30) -> 0 | AL30: =(AK30-RSAInc!AK30)*(1+RSARet!AK30) -> 0 | AM30: =(AL30-RSAInc!AL30)*(1+RSARet!AL30) -> 0 | AN30: =(AM30-RSAInc!AM30)*(1+RSARet!AM30) -> 0 | AO30: =(AN30-RSAInc!AN30)*(1+RSARet!AN30) -> 0 | AP30: =(AO30-RSAInc!AO30)*(1+RSARet!AO30) -> 0 | AQ30: =(AP30-RSAInc!AP30)*(1+RSARet!AP30) -> 0 | AR30: =(AQ30-RSAInc!AQ30)*(1+RSARet!AQ30) -> 0 | AS30: =(AR30-RSAInc!AR30)*(1+RSARet!AR30) -> 0 | AT30: =(AS30-RSAInc!AS30)*(1+RSARet!AS30) -> 0 | AU30: =(AT30-RSAInc!AT30)*(1+RSARet!AT30) -> 0 | AW30: 78 | AX30: =IF(AW30="",0,LOOKUP(AW30,'Retiree Details and Assumptions'!D$43:D$88,'Retiree Details and Assumptions'!E$43:E$88)) -> 0.857536894 | AY30: =IF(AW30="","",LOOKUP(AW30,'Retiree Details and Assumptions'!D$43:D$88,'Retiree Details and Assumptions'!H$43:H$88)) -> 12.40129454
A31: 30 | B31: 250000 | C31: =(B31-RSAInc!B31)*(1+RSARet!B31) -> 229417.7669 | D31: =(C31-RSAInc!C31)*(1+RSARet!C31) -> 206857.7134 | E31: =(D31-RSAInc!D31)*(1+RSARet!D31) -> 188060.0269 | F31: =(E31-RSAInc!E31)*(1+RSARet!E31) -> 168915.2105 | G31: =(F31-RSAInc!F31)*(1+RSARet!F31) -> 148650.9247 | H31: =(G31-RSAInc!G31)*(1+RSARet!G31) -> 138781.0477 | I31: =(H31-RSAInc!H31)*(1+RSARet!H31) -> 110383.035 | J31: =(I31-RSAInc!I31)*(1+RSARet!I31) -> 103157.1114 | K31: =(J31-RSAInc!J31)*(1+RSARet!J31) -> 85481.42519 | L31: =(K31-RSAInc!K31)*(1+RSARet!K31) -> 66497.4738 | M31: =(L31-RSAInc!L31)*(1+RSARet!L31) -> 50188.01386 | N31: =(M31-RSAInc!M31)*(1+RSARet!M31) -> 31651.84829 | O31: =(N31-RSAInc!N31)*(1+RSARet!N31) -> 12527.43855 | P31: =(O31-RSAInc!O31)*(1+RSARet!O31) -> 0 | Q31: =(P31-RSAInc!P31)*(1+RSARet!P31) -> 0 | R31: =(Q31-RSAInc!Q31)*(1+RSARet!Q31) -> 0 | S31: =(R31-RSAInc!R31)*(1+RSARet!R31) -> 0 | T31: =(S31-RSAInc!S31)*(1+RSARet!S31) -> 0 | U31: =(T31-RSAInc!T31)*(1+RSARet!T31) -> 0 | V31: =(U31-RSAInc!U31)*(1+RSARet!U31) -> 0 | W31: =(V31-RSAInc!V31)*(1+RSARet!V31) -> 0 | X31: =(W31-RSAInc!W31)*(1+RSARet!W31) -> 0 | Y31: =(X31-RSAInc!X31)*(1+RSARet!X31) -> 0 | Z31: =(Y31-RSAInc!Y31)*(1+RSARet!Y31) -> 0 | AA31: =(Z31-RSAInc!Z31)*(1+RSARet!Z31) -> 0 | AB31: =(AA31-RSAInc!AA31)*(1+RSARet!AA31) -> 0 | AC31: =(AB31-RSAInc!AB31)*(1+RSARet!AB31) -> 0 | AD31: =(AC31-RSAInc!AC31)*(1+RSARet!AC31) -> 0 | AE31: =(AD31-RSAInc!AD31)*(1+RSARet!AD31) -> 0 | AF31: =(AE31-RSAInc!AE31)*(1+RSARet!AE31) -> 0 | AG31: =(AF31-RSAInc!AF31)*(1+RSARet!AF31) -> 0 | AH31: =(AG31-RSAInc!AG31)*(1+RSARet!AG31) -> 0 | AI31: =(AH31-RSAInc!AH31)*(1+RSARet!AH31) -> 0 | AJ31: =(AI31-RSAInc!AI31)*(1+RSARet!AI31) -> 0 | AK31: =(AJ31-RSAInc!AJ31)*(1+RSARet!AJ31) -> 0 | AL31: =(AK31-RSAInc!AK31)*(1+RSARet!AK31) -> 0 | AM31: =(AL31-RSAInc!AL31)*(1+RSARet!AL31) -> 0 | AN31: =(AM31-RSAInc!AM31)*(1+RSARet!AM31) -> 0 | AO31: =(AN31-RSAInc!AN31)*(1+RSARet!AN31) -> 0 | AP31: =(AO31-RSAInc!AO31)*(1+RSARet!AO31) -> 0 | AQ31: =(AP31-RSAInc!AP31)*(1+RSARet!AP31) -> 0 | AR31: =(AQ31-RSAInc!AQ31)*(1+RSARet!AQ31) -> 0 | AS31: =(AR31-RSAInc!AR31)*(1+RSARet!AR31) -> 0 | AT31: =(AS31-RSAInc!AS31)*(1+RSARet!AS31) -> 0 | AU31: =(AT31-RSAInc!AT31)*(1+RSARet!AT31) -> 0 | AW31: 78 | AX31: =IF(AW31="",0,LOOKUP(AW31,'Retiree Details and Assumptions'!D$43:D$88,'Retiree Details and Assumptions'!E$43:E$88)) -> 0.857536894 | AY31: =IF(AW31="","",LOOKUP(AW31,'Retiree Details and Assumptions'!D$43:D$88,'Retiree Details and Assumptions'!H$43:H$88)) -> 12.40129454
A32: 31 | B32: 250000 | C32: =(B32-RSAInc!B32)*(1+RSARet!B32) -> 222774.5766 | D32: =(C32-RSAInc!C32)*(1+RSARet!C32) -> 202637.4285 | E32: =(D32-RSAInc!D32)*(1+RSARet!D32) -> 194675.5019 | F32: =(E32-RSAInc!E32)*(1+RSARet!E32) -> 184157.6492 | G32: =(F32-RSAInc!F32)*(1+RSARet!F32) -> 174207.2358 | H32: =(G32-RSAInc!G32)*(1+RSARet!G32) -> 154541.6709 | I32: =(H32-RSAInc!H32)*(1+RSARet!H32) -> 136700.054 | J32: =(I32-RSAInc!I32)*(1+RSARet!I32) -> 119887.2014 | K32: =(J32-RSAInc!J32)*(1+RSARet!J32) -> 102030.9937 | L32: =(K32-RSAInc!K32)*(1+RSARet!K32) -> 85415.05216 | M32: =(L32-RSAInc!L32)*(1+RSARet!L32) -> 64490.18845 | N32: =(M32-RSAInc!M32)*(1+RSARet!M32) -> 51389.41622 | O32: =(N32-RSAInc!N32)*(1+RSARet!N32) -> 33537.70368 | P32: =(O32-RSAInc!O32)*(1+RSARet!O32) -> 15461.45656 | Q32: =(P32-RSAInc!P32)*(1+RSARet!P32) -> 0 | R32: =(Q32-RSAInc!Q32)*(1+RSARet!Q32) -> 0 | S32: =(R32-RSAInc!R32)*(1+RSARet!R32) -> 0 | T32: =(S32-RSAInc!S32)*(1+RSARet!S32) -> 0 | U32: =(T32-RSAInc!T32)*(1+RSARet!T32) -> 0 | V32: =(U32-RSAInc!U32)*(1+RSARet!U32) -> 0 | W32: =(V32-RSAInc!V32)*(1+RSARet!V32) -> 0 | X32: =(W32-RSAInc!W32)*(1+RSARet!W32) -> 0 | Y32: =(X32-RSAInc!X32)*(1+RSARet!X32) -> 0 | Z32: =(Y32-RSAInc!Y32)*(1+RSARet!Y32) -> 0 | AA32: =(Z32-RSAInc!Z32)*(1+RSARet!Z32) -> 0 | AB32: =(AA32-RSAInc!AA32)*(1+RSARet!AA32) -> 0 | AC32: =(AB32-RSAInc!AB32)*(1+RSARet!AB32) -> 0 | AD32: =(AC32-RSAInc!AC32)*(1+RSARet!AC32) -> 0 | AE32: =(AD32-RSAInc!AD32)*(1+RSARet!AD32) -> 0 | AF32: =(AE32-RSAInc!AE32)*(1+RSARet!AE32) -> 0 | AG32: =(AF32-RSAInc!AF32)*(1+RSARet!AF32) -> 0 | AH32: =(AG32-RSAInc!AG32)*(1+RSARet!AG32) -> 0 | AI32: =(AH32-RSAInc!AH32)*(1+RSARet!AH32) -> 0 | AJ32: =(AI32-RSAInc!AI32)*(1+RSARet!AI32) -> 0 | AK32: =(AJ32-RSAInc!AJ32)*(1+RSARet!AJ32) -> 0 | AL32: =(AK32-RSAInc!AK32)*(1+RSARet!AK32) -> 0 | AM32: =(AL32-RSAInc!AL32)*(1+RSARet!AL32) -> 0 | AN32: =(AM32-RSAInc!AM32)*(1+RSARet!AM32) -> 0 | AO32: =(AN32-RSAInc!AN32)*(1+RSARet!AN32) -> 0 | AP32: =(AO32-RSAInc!AO32)*(1+RSARet!AO32) -> 0 | AQ32: =(AP32-RSAInc!AP32)*(1+RSARet!AP32) -> 0 | AR32: =(AQ32-RSAInc!AQ32)*(1+RSARet!AQ32) -> 0 | AS32: =(AR32-RSAInc!AR32)*(1+RSARet!AR32) -> 0 | AT32: =(AS32-RSAInc!AS32)*(1+RSARet!AS32) -> 0 | AU32: =(AT32-RSAInc!AT32)*(1+RSARet!AT32) -> 0 | AW32: 79 | AX32: =IF(AW32="",0,LOOKUP(AW32,'Retiree Details and Assumptions'!D$43:D$88,'Retiree Details and Assumptions'!E$43:E$88)) -> 0.8366936022 | AY32: =IF(AW32="","",LOOKUP(AW32,'Retiree Details and Assumptions'!D$43:D$88,'Retiree Details and Assumptions'!H$43:H$88)) -> 11.68531787
A33: 32 | B33: 250000 | C33: =(B33-RSAInc!B33)*(1+RSARet!B33) -> 243466.3567 | D33: =(C33-RSAInc!C33)*(1+RSARet!C33) -> 235305.0485 | E33: =(D33-RSAInc!D33)*(1+RSARet!D33) -> 222533.8531 | F33: =(E33-RSAInc!E33)*(1+RSARet!E33) -> 201030.95 | G33: =(F33-RSAInc!F33)*(1+RSARet!F33) -> 192487.6586 | H33: =(G33-RSAInc!G33)*(1+RSARet!G33) -> 181239.4613 | I33: =(H33-RSAInc!H33)*(1+RSARet!H33) -> 170926.1209 | J33: =(I33-RSAInc!I33)*(1+RSARet!I33) -> 156752.6356 | K33: =(J33-RSAInc!J33)*(1+RSARet!J33) -> 137501.2865 | L33: =(K33-RSAInc!K33)*(1+RSARet!K33) -> 123377.5499 | M33: =(L33-RSAInc!L33)*(1+RSARet!L33) -> 108278.293 | N33: =(M33-RSAInc!M33)*(1+RSARet!M33) -> 92727.54392 | O33: =(N33-RSAInc!N33)*(1+RSARet!N33) -> 78996.26116 | P33: =(O33-RSAInc!O33)*(1+RSARet!O33) -> 65910.39999 | Q33: =(P33-RSAInc!P33)*(1+RSARet!P33) -> 47568.71231 | R33: =(Q33-RSAInc!Q33)*(1+RSARet!Q33) -> 29781.60469 | S33: =(R33-RSAInc!R33)*(1+RSARet!R33) -> 11427.34302 | T33: =(S33-RSAInc!S33)*(1+RSARet!S33) -> 0 | U33: =(T33-RSAInc!T33)*(1+RSARet!T33) -> 0 | V33: =(U33-RSAInc!U33)*(1+RSARet!U33) -> 0 | W33: =(V33-RSAInc!V33)*(1+RSARet!V33) -> 0 | X33: =(W33-RSAInc!W33)*(1+RSARet!W33) -> 0 | Y33: =(X33-RSAInc!X33)*(1+RSARet!X33) -> 0 | Z33: =(Y33-RSAInc!Y33)*(1+RSARet!Y33) -> 0 | AA33: =(Z33-RSAInc!Z33)*(1+RSARet!Z33) -> 0 | AB33: =(AA33-RSAInc!AA33)*(1+RSARet!AA33) -> 0 | AC33: =(AB33-RSAInc!AB33)*(1+RSARet!AB33) -> 0 | AD33: =(AC33-RSAInc!AC33)*(1+RSARet!AC33) -> 0 | AE33: =(AD33-RSAInc!AD33)*(1+RSARet!AD33) -> 0 | AF33: =(AE33-RSAInc!AE33)*(1+RSARet!AE33) -> 0 | AG33: =(AF33-RSAInc!AF33)*(1+RSARet!AF33) -> 0 | AH33: =(AG33-RSAInc!AG33)*(1+RSARet!AG33) -> 0 | AI33: =(AH33-RSAInc!AH33)*(1+RSARet!AH33) -> 0 | AJ33: =(AI33-RSAInc!AI33)*(1+RSARet!AI33) -> 0 | AK33: =(AJ33-RSAInc!AJ33)*(1+RSARet!AJ33) -> 0 | AL33: =(AK33-RSAInc!AK33)*(1+RSARet!AK33) -> 0 | AM33: =(AL33-RSAInc!AL33)*(1+RSARet!AL33) -> 0 | AN33: =(AM33-RSAInc!AM33)*(1+RSARet!AM33) -> 0 | AO33: =(AN33-RSAInc!AN33)*(1+RSARet!AN33) -> 0 | AP33: =(AO33-RSAInc!AO33)*(1+RSARet!AO33) -> 0 | AQ33: =(AP33-RSAInc!AP33)*(1+RSARet!AP33) -> 0 | AR33: =(AQ33-RSAInc!AQ33)*(1+RSARet!AQ33) -> 0 | AS33: =(AR33-RSAInc!AR33)*(1+RSARet!AR33) -> 0 | AT33: =(AS33-RSAInc!AS33)*(1+RSARet!AS33) -> 0 | AU33: =(AT33-RSAInc!AT33)*(1+RSARet!AT33) -> 0 | AW33: 82 | AX33: =IF(AW33="",0,LOOKUP(AW33,'Retiree Details and Assumptions'!D$43:D$88,'Retiree Details and Assumptions'!E$43:E$88)) -> 0.7593955575 | AY33: =IF(AW33="","",LOOKUP(AW33,'Retiree Details and Assumptions'!D$43:D$88,'Retiree Details and Assumptions'!H$43:H$88)) -> 9.664105684
A34: 33 | B34: 250000 | C34: =(B34-RSAInc!B34)*(1+RSARet!B34) -> 225715.9955 | D34: =(C34-RSAInc!C34)*(1+RSARet!C34) -> 205608.0596 | E34: =(D34-RSAInc!D34)*(1+RSARet!D34) -> 186626.0016 | F34: =(E34-RSAInc!E34)*(1+RSARet!E34) -> 174036.8967 | G34: =(F34-RSAInc!F34)*(1+RSARet!F34) -> 173593.5473 | H34: =(G34-RSAInc!G34)*(1+RSARet!G34) -> 162885.5131 | I34: =(H34-RSAInc!H34)*(1+RSARet!H34) -> 151503.8722 | J34: =(I34-RSAInc!I34)*(1+RSARet!I34) -> 143302.2537 | K34: =(J34-RSAInc!J34)*(1+RSARet!J34) -> 125879.6725 | L34: =(K34-RSAInc!K34)*(1+RSARet!K34) -> 110522.6594 | M34: =(L34-RSAInc!L34)*(1+RSARet!L34) -> 89367.96364 | N34: =(M34-RSAInc!M34)*(1+RSARet!M34) -> 69101.14861 | O34: =(N34-RSAInc!N34)*(1+RSARet!N34) -> 56958.67115 | P34: =(O34-RSAInc!O34)*(1+RSARet!O34) -> 38256.70533 | Q34: =(P34-RSAInc!P34)*(1+RSARet!P34) -> 19796.84105 | R34: =(Q34-RSAInc!Q34)*(1+RSARet!Q34) -> 1048.1568 | S34: =(R34-RSAInc!R34)*(1+RSARet!R34) -> 0 | T34: =(S34-RSAInc!S34)*(1+RSARet!S34) -> 0 | U34: =(T34-RSAInc!T34)*(1+RSARet!T34) -> 0 | V34: =(U34-RSAInc!U34)*(1+RSARet!U34) -> 0 | W34: =(V34-RSAInc!V34)*(1+RSARet!V34) -> 0 | X34: =(W34-RSAInc!W34)*(1+RSARet!W34) -> 0 | Y34: =(X34-RSAInc!X34)*(1+RSARet!X34) -> 0 | Z34: =(Y34-RSAInc!Y34)*(1+RSARet!Y34) -> 0 | AA34: =(Z34-RSAInc!Z34)*(1+RSARet!Z34) -> 0 | AB34: =(AA34-RSAInc!AA34)*(1+RSARet!AA34) -> 0 | AC34: =(AB34-RSAInc!AB34)*(1+RSARet!AB34) -> 0 | AD34: =(AC34-RSAInc!AC34)*(1+RSARet!AC34) -> 0 | AE34: =(AD34-RSAInc!AD34)*(1+RSARet!AD34) -> 0 | AF34: =(AE34-RSAInc!AE34)*(1+RSARet!AE34) -> 0 | AG34: =(AF34-RSAInc!AF34)*(1+RSARet!AF34) -> 0 | AH34: =(AG34-RSAInc!AG34)*(1+RSARet!AG34) -> 0 | AI34: =(AH34-RSAInc!AH34)*(1+RSARet!AH34) -> 0 | AJ34: =(AI34-RSAInc!AI34)*(1+RSARet!AI34) -> 0 | AK34: =(AJ34-RSAInc!AJ34)*(1+RSARet!AJ34) -> 0 | AL34: =(AK34-RSAInc!AK34)*(1+RSARet!AK34) -> 0 | AM34: =(AL34-RSAInc!AL34)*(1+RSARet!AL34) -> 0 | AN34: =(AM34-RSAInc!AM34)*(1+RSARet!AM34) -> 0 | AO34: =(AN34-RSAInc!AN34)*(1+RSARet!AN34) -> 0 | AP34: =(AO34-RSAInc!AO34)*(1+RSARet!AO34) -> 0 | AQ34: =(AP34-RSAInc!AP34)*(1+RSARet!AP34) -> 0 | AR34: =(AQ34-RSAInc!AQ34)*(1+RSARet!AQ34) -> 0 | AS34: =(AR34-RSAInc!AR34)*(1+RSARet!AR34) -> 0 | AT34: =(AS34-RSAInc!AS34)*(1+RSARet!AS34) -> 0 | AU34: =(AT34-RSAInc!AT34)*(1+RSARet!AT34) -> 0 | AW34: 81 | AX34: =IF(AW34="",0,LOOKUP(AW34,'Retiree Details and Assumptions'!D$43:D$88,'Retiree Details and Assumptions'!E$43:E$88)) -> 0.787874053 | AY34: =IF(AW34="","",LOOKUP(AW34,'Retiree Details and Assumptions'!D$43:D$88,'Retiree Details and Assumptions'!H$43:H$88)) -> 10.31478692
A35: 34 | B35: 250000 | C35: =(B35-RSAInc!B35)*(1+RSARet!B35) -> 230719.825 | D35: =(C35-RSAInc!C35)*(1+RSARet!C35) -> 206223.2832 | E35: =(D35-RSAInc!D35)*(1+RSARet!D35) -> 194834.8048 | F35: =(E35-RSAInc!E35)*(1+RSARet!E35) -> 173613.655 | G35: =(F35-RSAInc!F35)*(1+RSARet!F35) -> 146805.9971 | H35: =(G35-RSAInc!G35)*(1+RSARet!G35) -> 125380.0153 | I35: =(H35-RSAInc!H35)*(1+RSARet!H35) -> 116222.1347 | J35: =(I35-RSAInc!I35)*(1+RSARet!I35) -> 94297.93819 | K35: =(J35-RSAInc!J35)*(1+RSARet!J35) -> 74416.29773 | L35: =(K35-RSAInc!K35)*(1+RSARet!K35) -> 55440.09479 | M35: =(L35-RSAInc!L35)*(1+RSARet!L35) -> 37069.97852 | N35: =(M35-RSAInc!M35)*(1+RSARet!M35) -> 18452.6402 | O35: =(N35-RSAInc!N35)*(1+RSARet!N35) -> 0 | P35: =(O35-RSAInc!O35)*(1+RSARet!O35) -> 0 | Q35: =(P35-RSAInc!P35)*(1+RSARet!P35) -> 0 | R35: =(Q35-RSAInc!Q35)*(1+RSARet!Q35) -> 0 | S35: =(R35-RSAInc!R35)*(1+RSARet!R35) -> 0 | T35: =(S35-RSAInc!S35)*(1+RSARet!S35) -> 0 | U35: =(T35-RSAInc!T35)*(1+RSARet!T35) -> 0 | V35: =(U35-RSAInc!U35)*(1+RSARet!U35) -> 0 | W35: =(V35-RSAInc!V35)*(1+RSARet!V35) -> 0 | X35: =(W35-RSAInc!W35)*(1+RSARet!W35) -> 0 | Y35: =(X35-RSAInc!X35)*(1+RSARet!X35) -> 0 | Z35: =(Y35-RSAInc!Y35)*(1+RSARet!Y35) -> 0 | AA35: =(Z35-RSAInc!Z35)*(1+RSARet!Z35) -> 0 | AB35: =(AA35-RSAInc!AA35)*(1+RSARet!AA35) -> 0 | AC35: =(AB35-RSAInc!AB35)*(1+RSARet!AB35) -> 0 | AD35: =(AC35-RSAInc!AC35)*(1+RSARet!AC35) -> 0 | AE35: =(AD35-RSAInc!AD35)*(1+RSARet!AD35) -> 0 | AF35: =(AE35-RSAInc!AE35)*(1+RSARet!AE35) -> 0 | AG35: =(AF35-RSAInc!AF35)*(1+RSARet!AF35) -> 0 | AH35: =(AG35-RSAInc!AG35)*(1+RSARet!AG35) -> 0 | AI35: =(AH35-RSAInc!AH35)*(1+RSARet!AH35) -> 0 | AJ35: =(AI35-RSAInc!AI35)*(1+RSARet!AI35) -> 0 | AK35: =(AJ35-RSAInc!AJ35)*(1+RSARet!AJ35) -> 0 | AL35: =(AK35-RSAInc!AK35)*(1+RSARet!AK35) -> 0 | AM35: =(AL35-RSAInc!AL35)*(1+RSARet!AL35) -> 0 | AN35: =(AM35-RSAInc!AM35)*(1+RSARet!AM35) -> 0 | AO35: =(AN35-RSAInc!AN35)*(1+RSARet!AN35) -> 0 | AP35: =(AO35-RSAInc!AO35)*(1+RSARet!AO35) -> 0 | AQ35: =(AP35-RSAInc!AP35)*(1+RSARet!AP35) -> 0 | AR35: =(AQ35-RSAInc!AQ35)*(1+RSARet!AQ35) -> 0 | AS35: =(AR35-RSAInc!AR35)*(1+RSARet!AR35) -> 0 | AT35: =(AS35-RSAInc!AS35)*(1+RSARet!AS35) -> 0 | AU35: =(AT35-RSAInc!AT35)*(1+RSARet!AT35) -> 0 | AW35: 77 | AX35: =IF(AW35="",0,LOOKUP(AW35,'Retiree Details and Assumptions'!D$43:D$88,'Retiree Details and Assumptions'!E$43:E$88)) -> 0.8762653125 | AY35: =IF(AW35="","",LOOKUP(AW35,'Retiree Details and Assumptions'!D$43:D$88,'Retiree Details and Assumptions'!H$43:H$88)) -> 13.13624167
A36: 35 | B36: 250000 | C36: =(B36-RSAInc!B36)*(1+RSARet!B36) -> 226097.8591 | D36: =(C36-RSAInc!C36)*(1+RSARet!C36) -> 220536.1768 | E36: =(D36-RSAInc!D36)*(1+RSARet!D36) -> 200341.4137 | F36: =(E36-RSAInc!E36)*(1+RSARet!E36) -> 180405.604 | G36: =(F36-RSAInc!F36)*(1+RSARet!F36) -> 173174.1238 | H36: =(G36-RSAInc!G36)*(1+RSARet!G36) -> 158185.3427 | I36: =(H36-RSAInc!H36)*(1+RSARet!H36) -> 147764.4274 | J36: =(I36-RSAInc!I36)*(1+RSARet!I36) -> 124656.1363 | K36: =(J36-RSAInc!J36)*(1+RSARet!J36) -> 112724.4904 | L36: =(K36-RSAInc!K36)*(1+RSARet!K36) -> 89381.04032 | M36: =(L36-RSAInc!L36)*(1+RSARet!L36) -> 68471.10598 | N36: =(M36-RSAInc!M36)*(1+RSARet!M36) -> 51807.28374 | O36: =(N36-RSAInc!N36)*(1+RSARet!N36) -> 33496.69337 | P36: =(O36-RSAInc!O36)*(1+RSARet!O36) -> 15512.09785 | Q36: =(P36-RSAInc!P36)*(1+RSARet!P36) -> 0 | R36: =(Q36-RSAInc!Q36)*(1+RSARet!Q36) -> 0 | S36: =(R36-RSAInc!R36)*(1+RSARet!R36) -> 0 | T36: =(S36-RSAInc!S36)*(1+RSARet!S36) -> 0 | U36: =(T36-RSAInc!T36)*(1+RSARet!T36) -> 0 | V36: =(U36-RSAInc!U36)*(1+RSARet!U36) -> 0 | W36: =(V36-RSAInc!V36)*(1+RSARet!V36) -> 0 | X36: =(W36-RSAInc!W36)*(1+RSARet!W36) -> 0 | Y36: =(X36-RSAInc!X36)*(1+RSARet!X36) -> 0 | Z36: =(Y36-RSAInc!Y36)*(1+RSARet!Y36) -> 0 | AA36: =(Z36-RSAInc!Z36)*(1+RSARet!Z36) -> 0 | AB36: =(AA36-RSAInc!AA36)*(1+RSARet!AA36) -> 0 | AC36: =(AB36-RSAInc!AB36)*(1+RSARet!AB36) -> 0 | AD36: =(AC36-RSAInc!AC36)*(1+RSARet!AC36) -> 0 | AE36: =(AD36-RSAInc!AD36)*(1+RSARet!AD36) -> 0 | AF36: =(AE36-RSAInc!AE36)*(1+RSARet!AE36) -> 0 | AG36: =(AF36-RSAInc!AF36)*(1+RSARet!AF36) -> 0 | AH36: =(AG36-RSAInc!AG36)*(1+RSARet!AG36) -> 0 | AI36: =(AH36-RSAInc!AH36)*(1+RSARet!AH36) -> 0 | AJ36: =(AI36-RSAInc!AI36)*(1+RSARet!AI36) -> 0 | AK36: =(AJ36-RSAInc!AJ36)*(1+RSARet!AJ36) -> 0 | AL36: =(AK36-RSAInc!AK36)*(1+RSARet!AK36) -> 0 | AM36: =(AL36-RSAInc!AL36)*(1+RSARet!AL36) -> 0 | AN36: =(AM36-RSAInc!AM36)*(1+RSARet!AM36) -> 0 | AO36: =(AN36-RSAInc!AN36)*(1+RSARet!AN36) -> 0 | AP36: =(AO36-RSAInc!AO36)*(1+RSARet!AO36) -> 0 | AQ36: =(AP36-RSAInc!AP36)*(1+RSARet!AP36) -> 0 | AR36: =(AQ36-RSAInc!AQ36)*(1+RSARet!AQ36) -> 0 | AS36: =(AR36-RSAInc!AR36)*(1+RSARet!AR36) -> 0 | AT36: =(AS36-RSAInc!AS36)*(1+RSARet!AS36) -> 0 | AU36: =(AT36-RSAInc!AT36)*(1+RSARet!AT36) -> 0 | AW36: 79 | AX36: =IF(AW36="",0,LOOKUP(AW36,'Retiree Details and Assumptions'!D$43:D$88,'Retiree Details and Assumptions'!E$43:E$88)) -> 0.8366936022 | AY36: =IF(AW36="","",LOOKUP(AW36,'Retiree Details and Assumptions'!D$43:D$88,'Retiree Details and Assumptions'!H$43:H$88)) -> 11.68531787
A37: 36 | B37: 250000 | C37: =(B37-RSAInc!B37)*(1+RSARet!B37) -> 248507.9506 | D37: =(C37-RSAInc!C37)*(1+RSARet!C37) -> 222962.9688 | E37: =(D37-RSAInc!D37)*(1+RSARet!D37) -> 205409.1143 | F37: =(E37-RSAInc!E37)*(1+RSARet!E37) -> 186177.0653 | G37: =(F37-RSAInc!F37)*(1+RSARet!F37) -> 183302.5768 | H37: =(G37-RSAInc!G37)*(1+RSARet!G37) -> 163221.3944 | I37: =(H37-RSAInc!H37)*(1+RSARet!H37) -> 145152.2234 | J37: =(I37-RSAInc!I37)*(1+RSARet!I37) -> 128786.3631 | K37: =(J37-RSAInc!J37)*(1+RSARet!J37) -> 107909.2727 | L37: =(K37-RSAInc!K37)*(1+RSARet!K37) -> 89419.767 | M37: =(L37-RSAInc!L37)*(1+RSARet!L37) -> 71128.67616 | N37: =(M37-RSAInc!M37)*(1+RSARet!M37) -> 51003.67274 | O37: =(N37-RSAInc!N37)*(1+RSARet!N37) -> 32233.9356 | P37: =(O37-RSAInc!O37)*(1+RSARet!O37) -> 14673.6751 | Q37: =(P37-RSAInc!P37)*(1+RSARet!P37) -> 0 | R37: =(Q37-RSAInc!Q37)*(1+RSARet!Q37) -> 0 | S37: =(R37-RSAInc!R37)*(1+RSARet!R37) -> 0 | T37: =(S37-RSAInc!S37)*(1+RSARet!S37) -> 0 | U37: =(T37-RSAInc!T37)*(1+RSARet!T37) -> 0 | V37: =(U37-RSAInc!U37)*(1+RSARet!U37) -> 0 | W37: =(V37-RSAInc!V37)*(1+RSARet!V37) -> 0 | X37: =(W37-RSAInc!W37)*(1+RSARet!W37) -> 0 | Y37: =(X37-RSAInc!X37)*(1+RSARet!X37) -> 0 | Z37: =(Y37-RSAInc!Y37)*(1+RSARet!Y37) -> 0 | AA37: =(Z37-RSAInc!Z37)*(1+RSARet!Z37) -> 0 | AB37: =(AA37-RSAInc!AA37)*(1+RSARet!AA37) -> 0 | AC37: =(AB37-RSAInc!AB37)*(1+RSARet!AB37) -> 0 | AD37: =(AC37-RSAInc!AC37)*(1+RSARet!AC37) -> 0 | AE37: =(AD37-RSAInc!AD37)*(1+RSARet!AD37) -> 0 | AF37: =(AE37-RSAInc!AE37)*(1+RSARet!AE37) -> 0 | AG37: =(AF37-RSAInc!AF37)*(1+RSARet!AF37) -> 0 | AH37: =(AG37-RSAInc!AG37)*(1+RSARet!AG37) -> 0 | AI37: =(AH37-RSAInc!AH37)*(1+RSARet!AH37) -> 0 | AJ37: =(AI37-RSAInc!AI37)*(1+RSARet!AI37) -> 0 | AK37: =(AJ37-RSAInc!AJ37)*(1+RSARet!AJ37) -> 0 | AL37: =(AK37-RSAInc!AK37)*(1+RSARet!AK37) -> 0 | AM37: =(AL37-RSAInc!AL37)*(1+RSARet!AL37) -> 0 | AN37: =(AM37-RSAInc!AM37)*(1+RSARet!AM37) -> 0 | AO37: =(AN37-RSAInc!AN37)*(1+RSARet!AN37) -> 0 | AP37: =(AO37-RSAInc!AO37)*(1+RSARet!AO37) -> 0 | AQ37: =(AP37-RSAInc!AP37)*(1+RSARet!AP37) -> 0 | AR37: =(AQ37-RSAInc!AQ37)*(1+RSARet!AQ37) -> 0 | AS37: =(AR37-RSAInc!AR37)*(1+RSARet!AR37) -> 0 | AT37: =(AS37-RSAInc!AS37)*(1+RSARet!AS37) -> 0 | AU37: =(AT37-RSAInc!AT37)*(1+RSARet!AT37) -> 0 | AW37: 79 | AX37: =IF(AW37="",0,LOOKUP(AW37,'Retiree Details and Assumptions'!D$43:D$88,'Retiree Details and Assumptions'!E$43:E$88)) -> 0.8366936022 | AY37: =IF(AW37="","",LOOKUP(AW37,'Retiree Details and Assumptions'!D$43:D$88,'Retiree Details and Assumptions'!H$43:H$88)) -> 11.68531787
A38: 37 | B38: 250000 | C38: =(B38-RSAInc!B38)*(1+RSARet!B38) -> 230002.4745 | D38: =(C38-RSAInc!C38)*(1+RSARet!C38) -> 208742.8123 | E38: =(D38-RSAInc!D38)*(1+RSARet!D38) -> 198709.7284 | F38: =(E38-RSAInc!E38)*(1+RSARet!E38) -> 184679.7677 | G38: =(F38-RSAInc!F38)*(1+RSARet!F38) -> 172242.966 | H38: =(G38-RSAInc!G38)*(1+RSARet!G38) -> 154005.0203 | I38: =(H38-RSAInc!H38)*(1+RSARet!H38) -> 144695.876 | J38: =(I38-RSAInc!I38)*(1+RSARet!I38) -> 134875.6759 | K38: =(J38-RSAInc!J38)*(1+RSARet!J38) -> 117493.7902 | L38: =(K38-RSAInc!K38)*(1+RSARet!K38) -> 100909.7184 | M38: =(L38-RSAInc!L38)*(1+RSARet!L38) -> 84747.04997 | N38: =(M38-RSAInc!M38)*(1+RSARet!M38) -> 64474.74904 | O38: =(N38-RSAInc!N38)*(1+RSARet!N38) -> 45370.95475 | P38: =(O38-RSAInc!O38)*(1+RSARet!O38) -> 27907.7728 | Q38: =(P38-RSAInc!P38)*(1+RSARet!P38) -> 9175.960129 | R38: =(Q38-RSAInc!Q38)*(1+RSARet!Q38) -> 0 | S38: =(R38-RSAInc!R38)*(1+RSARet!R38) -> 0 | T38: =(S38-RSAInc!S38)*(1+RSARet!S38) -> 0 | U38: =(T38-RSAInc!T38)*(1+RSARet!T38) -> 0 | V38: =(U38-RSAInc!U38)*(1+RSARet!U38) -> 0 | W38: =(V38-RSAInc!V38)*(1+RSARet!V38) -> 0 | X38: =(W38-RSAInc!W38)*(1+RSARet!W38) -> 0 | Y38: =(X38-RSAInc!X38)*(1+RSARet!X38) -> 0 | Z38: =(Y38-RSAInc!Y38)*(1+RSARet!Y38) -> 0 | AA38: =(Z38-RSAInc!Z38)*(1+RSARet!Z38) -> 0 | AB38: =(AA38-RSAInc!AA38)*(1+RSARet!AA38) -> 0 | AC38: =(AB38-RSAInc!AB38)*(1+RSARet!AB38) -> 0 | AD38: =(AC38-RSAInc!AC38)*(1+RSARet!AC38) -> 0 | AE38: =(AD38-RSAInc!AD38)*(1+RSARet!AD38) -> 0 | AF38: =(AE38-RSAInc!AE38)*(1+RSARet!AE38) -> 0 | AG38: =(AF38-RSAInc!AF38)*(1+RSARet!AF38) -> 0 | AH38: =(AG38-RSAInc!AG38)*(1+RSARet!AG38) -> 0 | AI38: =(AH38-RSAInc!AH38)*(1+RSARet!AH38) -> 0 | AJ38: =(AI38-RSAInc!AI38)*(1+RSARet!AI38) -> 0 | AK38: =(AJ38-RSAInc!AJ38)*(1+RSARet!AJ38) -> 0 | AL38: =(AK38-RSAInc!AK38)*(1+RSARet!AK38) -> 0 | AM38: =(AL38-RSAInc!AL38)*(1+RSARet!AL38) -> 0 | AN38: =(AM38-RSAInc!AM38)*(1+RSARet!AM38) -> 0 | AO38: =(AN38-RSAInc!AN38)*(1+RSARet!AN38) -> 0 | AP38: =(AO38-RSAInc!AO38)*(1+RSARet!AO38) -> 0 | AQ38: =(AP38-RSAInc!AP38)*(1+RSARet!AP38) -> 0 | AR38: =(AQ38-RSAInc!AQ38)*(1+RSARet!AQ38) -> 0 | AS38: =(AR38-RSAInc!AR38)*(1+RSARet!AR38) -> 0 | AT38: =(AS38-RSAInc!AS38)*(1+RSARet!AS38) -> 0 | AU38: =(AT38-RSAInc!AT38)*(1+RSARet!AT38) -> 0 | AW38: 80 | AX38: =IF(AW38="",0,LOOKUP(AW38,'Retiree Details and Assumptions'!D$43:D$88,'Retiree Details and Assumptions'!E$43:E$88)) -> 0.8135841249 | AY38: =IF(AW38="","",LOOKUP(AW38,'Retiree Details and Assumptions'!D$43:D$88,'Retiree Details and Assumptions'!H$43:H$88)) -> 10.98882934
A39: 38 | B39: 250000 | C39: =(B39-RSAInc!B39)*(1+RSARet!B39) -> 241219.1339 | D39: =(C39-RSAInc!C39)*(1+RSARet!C39) -> 238966.4063 | E39: =(D39-RSAInc!D39)*(1+RSARet!D39) -> 212619.2103 | F39: =(E39-RSAInc!E39)*(1+RSARet!E39) -> 203898.4729 | G39: =(F39-RSAInc!F39)*(1+RSARet!F39) -> 193320.804 | H39: =(G39-RSAInc!G39)*(1+RSARet!G39) -> 174832.0223 | I39: =(H39-RSAInc!H39)*(1+RSARet!H39) -> 161036.5201 | J39: =(I39-RSAInc!I39)*(1+RSARet!I39) -> 141315.8391 | K39: =(J39-RSAInc!J39)*(1+RSARet!J39) -> 130016.3411 | L39: =(K39-RSAInc!K39)*(1+RSARet!K39) -> 117217.6967 | M39: =(L39-RSAInc!L39)*(1+RSARet!L39) -> 108060.3065 | N39: =(M39-RSAInc!M39)*(1+RSARet!M39) -> 92977.1531 | O39: =(N39-RSAInc!N39)*(1+RSARet!N39) -> 75022.29447 | P39: =(O39-RSAInc!O39)*(1+RSARet!O39) -> 58824.59657 | Q39: =(P39-RSAInc!P39)*(1+RSARet!P39) -> 39373.99378 | R39: =(Q39-RSAInc!Q39)*(1+RSARet!Q39) -> 21618.6407 | S39: =(R39-RSAInc!R39)*(1+RSARet!R39) -> 3117.35185 | T39: =(S39-RSAInc!S39)*(1+RSARet!S39) -> 0 | U39: =(T39-RSAInc!T39)*(1+RSARet!T39) -> 0 | V39: =(U39-RSAInc!U39)*(1+RSARet!U39) -> 0 | W39: =(V39-RSAInc!V39)*(1+RSARet!V39) -> 0 | X39: =(W39-RSAInc!W39)*(1+RSARet!W39) -> 0 | Y39: =(X39-RSAInc!X39)*(1+RSARet!X39) -> 0 | Z39: =(Y39-RSAInc!Y39)*(1+RSARet!Y39) -> 0 | AA39: =(Z39-RSAInc!Z39)*(1+RSARet!Z39) -> 0 | AB39: =(AA39-RSAInc!AA39)*(1+RSARet!AA39) -> 0 | AC39: =(AB39-RSAInc!AB39)*(1+RSARet!AB39) -> 0 | AD39: =(AC39-RSAInc!AC39)*(1+RSARet!AC39) -> 0 | AE39: =(AD39-RSAInc!AD39)*(1+RSARet!AD39) -> 0 | AF39: =(AE39-RSAInc!AE39)*(1+RSARet!AE39) -> 0 | AG39: =(AF39-RSAInc!AF39)*(1+RSARet!AF39) -> 0 | AH39: =(AG39-RSAInc!AG39)*(1+RSARet!AG39) -> 0 | AI39: =(AH39-RSAInc!AH39)*(1+RSARet!AH39) -> 0 | AJ39: =(AI39-RSAInc!AI39)*(1+RSARet!AI39) -> 0 | AK39: =(AJ39-RSAInc!AJ39)*(1+RSARet!AJ39) -> 0 | AL39: =(AK39-RSAInc!AK39)*(1+RSARet!AK39) -> 0 | AM39: =(AL39-RSAInc!AL39)*(1+RSARet!AL39) -> 0 | AN39: =(AM39-RSAInc!AM39)*(1+RSARet!AM39) -> 0 | AO39: =(AN39-RSAInc!AN39)*(1+RSARet!AN39) -> 0 | AP39: =(AO39-RSAInc!AO39)*(1+RSARet!AO39) -> 0 | AQ39: =(AP39-RSAInc!AP39)*(1+RSARet!AP39) -> 0 | AR39: =(AQ39-RSAInc!AQ39)*(1+RSARet!AQ39) -> 0 | AS39: =(AR39-RSAInc!AR39)*(1+RSARet!AR39) -> 0 | AT39: =(AS39-RSAInc!AS39)*(1+RSARet!AS39) -> 0 | AU39: =(AT39-RSAInc!AT39)*(1+RSARet!AT39) -> 0 | AW39: 82 | AX39: =IF(AW39="",0,LOOKUP(AW39,'Retiree Details and Assumptions'!D$43:D$88,'Retiree Details and Assumptions'!E$43:E$88)) -> 0.7593955575 | AY39: =IF(AW39="","",LOOKUP(AW39,'Retiree Details and Assumptions'!D$43:D$88,'Retiree Details and Assumptions'!H$43:H$88)) -> 9.664105684
A40: 39 | B40: 250000 | C40: =(B40-RSAInc!B40)*(1+RSARet!B40) -> 218999.5101 | D40: =(C40-RSAInc!C40)*(1+RSARet!C40) -> 198368.5899 | E40: =(D40-RSAInc!D40)*(1+RSARet!D40) -> 180896.7208 | F40: =(E40-RSAInc!E40)*(1+RSARet!E40) -> 170611.4871 | G40: =(F40-RSAInc!F40)*(1+RSARet!F40) -> 154956.3692 | H40: =(G40-RSAInc!G40)*(1+RSARet!G40) -> 128452.6559 | I40: =(H40-RSAInc!H40)*(1+RSARet!H40) -> 110997.6893 | J40: =(I40-RSAInc!I40)*(1+RSARet!I40) -> 93809.34348 | K40: =(J40-RSAInc!J40)*(1+RSARet!J40) -> 73363.37905 | L40: =(K40-RSAInc!K40)*(1+RSARet!K40) -> 54209.01441 | M40: =(L40-RSAInc!L40)*(1+RSARet!L40) -> 38105.05325 | N40: =(M40-RSAInc!M40)*(1+RSARet!M40) -> 19344.27264 | O40: =(N40-RSAInc!N40)*(1+RSARet!N40) -> 639.9149477 | P40: =(O40-RSAInc!O40)*(1+RSARet!O40) -> 0 | Q40: =(P40-RSAInc!P40)*(1+RSARet!P40) -> 0 | R40: =(Q40-RSAInc!Q40)*(1+RSARet!Q40) -> 0 | S40: =(R40-RSAInc!R40)*(1+RSARet!R40) -> 0 | T40: =(S40-RSAInc!S40)*(1+RSARet!S40) -> 0 | U40: =(T40-RSAInc!T40)*(1+RSARet!T40) -> 0 | V40: =(U40-RSAInc!U40)*(1+RSARet!U40) -> 0 | W40: =(V40-RSAInc!V40)*(1+RSARet!V40) -> 0 | X40: =(W40-RSAInc!W40)*(1+RSARet!W40) -> 0 | Y40: =(X40-RSAInc!X40)*(1+RSARet!X40) -> 0 | Z40: =(Y40-RSAInc!Y40)*(1+RSARet!Y40) -> 0 | AA40: =(Z40-RSAInc!Z40)*(1+RSARet!Z40) -> 0 | AB40: =(AA40-RSAInc!AA40)*(1+RSARet!AA40) -> 0 | AC40: =(AB40-RSAInc!AB40)*(1+RSARet!AB40) -> 0 | AD40: =(AC40-RSAInc!AC40)*(1+RSARet!AC40) -> 0 | AE40: =(AD40-RSAInc!AD40)*(1+RSARet!AD40) -> 0 | AF40: =(AE40-RSAInc!AE40)*(1+RSARet!AE40) -> 0 | AG40: =(AF40-RSAInc!AF40)*(1+RSARet!AF40) -> 0 | AH40: =(AG40-RSAInc!AG40)*(1+RSARet!AG40) -> 0 | AI40: =(AH40-RSAInc!AH40)*(1+RSARet!AH40) -> 0 | AJ40: =(AI40-RSAInc!AI40)*(1+RSARet!AI40) -> 0 | AK40: =(AJ40-RSAInc!AJ40)*(1+RSARet!AJ40) -> 0 | AL40: =(AK40-RSAInc!AK40)*(1+RSARet!AK40) -> 0 | AM40: =(AL40-RSAInc!AL40)*(1+RSARet!AL40) -> 0 | AN40: =(AM40-RSAInc!AM40)*(1+RSARet!AM40) -> 0 | AO40: =(AN40-RSAInc!AN40)*(1+RSARet!AN40) -> 0 | AP40: =(AO40-RSAInc!AO40)*(1+RSARet!AO40) -> 0 | AQ40: =(AP40-RSAInc!AP40)*(1+RSARet!AP40) -> 0 | AR40: =(AQ40-RSAInc!AQ40)*(1+RSARet!AQ40) -> 0 | AS40: =(AR40-RSAInc!AR40)*(1+RSARet!AR40) -> 0 | AT40: =(AS40-RSAInc!AS40)*(1+RSARet!AS40) -> 0 | AU40: =(AT40-RSAInc!AT40)*(1+RSARet!AT40) -> 0 | AW40: 78 | AX40: =IF(AW40="",0,LOOKUP(AW40,'Retiree Details and Assumptions'!D$43:D$88,'Retiree Details and Assumptions'!E$43:E$88)) -> 0.857536894 | AY40: =IF(AW40="","",LOOKUP(AW40,'Retiree Details and Assumptions'!D$43:D$88,'Retiree Details and Assumptions'!H$43:H$88)) -> 12.40129454
A41: 40 | B41: 250000 | C41: =(B41-RSAInc!B41)*(1+RSARet!B41) -> 246471.0116 | D41: =(C41-RSAInc!C41)*(1+RSARet!C41) -> 231551.8326 | E41: =(D41-RSAInc!D41)*(1+RSARet!D41) -> 209437.8752 | F41: =(E41-RSAInc!E41)*(1+RSARet!E41) -> 194656.3296 | G41: =(F41-RSAInc!F41)*(1+RSARet!F41) -> 174101.8941 | H41: =(G41-RSAInc!G41)*(1+RSARet!G41) -> 156684.0968 | I41: =(H41-RSAInc!H41)*(1+RSARet!H41) -> 139191.6751 | J41: =(I41-RSAInc!I41)*(1+RSARet!I41) -> 122525.5909 | K41: =(J41-RSAInc!J41)*(1+RSARet!J41) -> 113731.5021 | L41: =(K41-RSAInc!K41)*(1+RSARet!K41) -> 97816.39938 | M41: =(L41-RSAInc!L41)*(1+RSARet!L41) -> 83582.33019 | N41: =(M41-RSAInc!M41)*(1+RSARet!M41) -> 71040.75922 | O41: =(N41-RSAInc!N41)*(1+RSARet!N41) -> 54054.66017 | P41: =(O41-RSAInc!O41)*(1+RSARet!O41) -> 35812.79447 | Q41: =(P41-RSAInc!P41)*(1+RSARet!P41) -> 16822.25411 | R41: =(Q41-RSAInc!Q41)*(1+RSARet!Q41) -> 0 | S41: =(R41-RSAInc!R41)*(1+RSARet!R41) -> 0 | T41: =(S41-RSAInc!S41)*(1+RSARet!S41) -> 0 | U41: =(T41-RSAInc!T41)*(1+RSARet!T41) -> 0 | V41: =(U41-RSAInc!U41)*(1+RSARet!U41) -> 0 | W41: =(V41-RSAInc!V41)*(1+RSARet!V41) -> 0 | X41: =(W41-RSAInc!W41)*(1+RSARet!W41) -> 0 | Y41: =(X41-RSAInc!X41)*(1+RSARet!X41) -> 0 | Z41: =(Y41-RSAInc!Y41)*(1+RSARet!Y41) -> 0 | AA41: =(Z41-RSAInc!Z41)*(1+RSARet!Z41) -> 0 | AB41: =(AA41-RSAInc!AA41)*(1+RSARet!AA41) -> 0 | AC41: =(AB41-RSAInc!AB41)*(1+RSARet!AB41) -> 0 | AD41: =(AC41-RSAInc!AC41)*(1+RSARet!AC41) -> 0 | AE41: =(AD41-RSAInc!AD41)*(1+RSARet!AD41) -> 0 | AF41: =(AE41-RSAInc!AE41)*(1+RSARet!AE41) -> 0 | AG41: =(AF41-RSAInc!AF41)*(1+RSARet!AF41) -> 0 | AH41: =(AG41-RSAInc!AG41)*(1+RSARet!AG41) -> 0 | AI41: =(AH41-RSAInc!AH41)*(1+RSARet!AH41) -> 0 | AJ41: =(AI41-RSAInc!AI41)*(1+RSARet!AI41) -> 0 | AK41: =(AJ41-RSAInc!AJ41)*(1+RSARet!AJ41) -> 0 | AL41: =(AK41-RSAInc!AK41)*(1+RSARet!AK41) -> 0 | AM41: =(AL41-RSAInc!AL41)*(1+RSARet!AL41) -> 0 | AN41: =(AM41-RSAInc!AM41)*(1+RSARet!AM41) -> 0 | AO41: =(AN41-RSAInc!AN41)*(1+RSARet!AN41) -> 0 | AP41: =(AO41-RSAInc!AO41)*(1+RSARet!AO41) -> 0 | AQ41: =(AP41-RSAInc!AP41)*(1+RSARet!AP41) -> 0 | AR41: =(AQ41-RSAInc!AQ41)*(1+RSARet!AQ41) -> 0 | AS41: =(AR41-RSAInc!AR41)*(1+RSARet!AR41) -> 0 | AT41: =(AS41-RSAInc!AS41)*(1+RSARet!AS41) -> 0 | AU41: =(AT41-RSAInc!AT41)*(1+RSARet!AT41) -> 0 | AW41: 80 | AX41: =IF(AW41="",0,LOOKUP(AW41,'Retiree Details and Assumptions'!D$43:D$88,'Retiree Details and Assumptions'!E$43:E$88)) -> 0.8135841249 | AY41: =IF(AW41="","",LOOKUP(AW41,'Retiree Details and Assumptions'!D$43:D$88,'Retiree Details and Assumptions'!H$43:H$88)) -> 10.98882934
A42: 41 | B42: 250000 | C42: =(B42-RSAInc!B42)*(1+RSARet!B42) -> 236696.7 | D42: =(C42-RSAInc!C42)*(1+RSARet!C42) -> 208745.2362 | E42: =(D42-RSAInc!D42)*(1+RSARet!D42) -> 193855.407 | F42: =(E42-RSAInc!E42)*(1+RSARet!E42) -> 173263.9833 | G42: =(F42-RSAInc!F42)*(1+RSARet!F42) -> 153622.6183 | H42: =(G42-RSAInc!G42)*(1+RSARet!G42) -> 138123.0699 | I42: =(H42-RSAInc!H42)*(1+RSARet!H42) -> 124913.4209 | J42: =(I42-RSAInc!I42)*(1+RSARet!I42) -> 103879.0022 | K42: =(J42-RSAInc!J42)*(1+RSARet!J42) -> 80191.57576 | L42: =(K42-RSAInc!K42)*(1+RSARet!K42) -> 63879.50105 | M42: =(L42-RSAInc!L42)*(1+RSARet!L42) -> 44847.55335 | N42: =(M42-RSAInc!M42)*(1+RSARet!M42) -> 27844.14678 | O42: =(N42-RSAInc!N42)*(1+RSARet!N42) -> 9277.92253 | P42: =(O42-RSAInc!O42)*(1+RSARet!O42) -> 0 | Q42: =(P42-RSAInc!P42)*(1+RSARet!P42) -> 0 | R42: =(Q42-RSAInc!Q42)*(1+RSARet!Q42) -> 0 | S42: =(R42-RSAInc!R42)*(1+RSARet!R42) -> 0 | T42: =(S42-RSAInc!S42)*(1+RSARet!S42) -> 0 | U42: =(T42-RSAInc!T42)*(1+RSARet!T42) -> 0 | V42: =(U42-RSAInc!U42)*(1+RSARet!U42) -> 0 | W42: =(V42-RSAInc!V42)*(1+RSARet!V42) -> 0 | X42: =(W42-RSAInc!W42)*(1+RSARet!W42) -> 0 | Y42: =(X42-RSAInc!X42)*(1+RSARet!X42) -> 0 | Z42: =(Y42-RSAInc!Y42)*(1+RSARet!Y42) -> 0 | AA42: =(Z42-RSAInc!Z42)*(1+RSARet!Z42) -> 0 | AB42: =(AA42-RSAInc!AA42)*(1+RSARet!AA42) -> 0 | AC42: =(AB42-RSAInc!AB42)*(1+RSARet!AB42) -> 0 | AD42: =(AC42-RSAInc!AC42)*(1+RSARet!AC42) -> 0 | AE42: =(AD42-RSAInc!AD42)*(1+RSARet!AD42) -> 0 | AF42: =(AE42-RSAInc!AE42)*(1+RSARet!AE42) -> 0 | AG42: =(AF42-RSAInc!AF42)*(1+RSARet!AF42) -> 0 | AH42: =(AG42-RSAInc!AG42)*(1+RSARet!AG42) -> 0 | AI42: =(AH42-RSAInc!AH42)*(1+RSARet!AH42) -> 0 | AJ42: =(AI42-RSAInc!AI42)*(1+RSARet!AI42) -> 0 | AK42: =(AJ42-RSAInc!AJ42)*(1+RSARet!AJ42) -> 0 | AL42: =(AK42-RSAInc!AK42)*(1+RSARet!AK42) -> 0 | AM42: =(AL42-RSAInc!AL42)*(1+RSARet!AL42) -> 0 | AN42: =(AM42-RSAInc!AM42)*(1+RSARet!AM42) -> 0 | AO42: =(AN42-RSAInc!AN42)*(1+RSARet!AN42) -> 0 | AP42: =(AO42-RSAInc!AO42)*(1+RSARet!AO42) -> 0 | AQ42: =(AP42-RSAInc!AP42)*(1+RSARet!AP42) -> 0 | AR42: =(AQ42-RSAInc!AQ42)*(1+RSARet!AQ42) -> 0 | AS42: =(AR42-RSAInc!AR42)*(1+RSARet!AR42) -> 0 | AT42: =(AS42-RSAInc!AS42)*(1+RSARet!AS42) -> 0 | AU42: =(AT42-RSAInc!AT42)*(1+RSARet!AT42) -> 0 | AW42: 78 | AX42: =IF(AW42="",0,LOOKUP(AW42,'Retiree Details and Assumptions'!D$43:D$88,'Retiree Details and Assumptions'!E$43:E$88)) -> 0.857536894 | AY42: =IF(AW42="","",LOOKUP(AW42,'Retiree Details and Assumptions'!D$43:D$88,'Retiree Details and Assumptions'!H$43:H$88)) -> 12.40129454
A43: 42 | B43: 250000 | C43: =(B43-RSAInc!B43)*(1+RSARet!B43) -> 238640.8868 | D43: =(C43-RSAInc!C43)*(1+RSARet!C43) -> 232059.7963 | E43: =(D43-RSAInc!D43)*(1+RSARet!D43) -> 203913.5297 | F43: =(E43-RSAInc!E43)*(1+RSARet!E43) -> 176419.6274 | G43: =(F43-RSAInc!F43)*(1+RSARet!F43) -> 167003.6192 | H43: =(G43-RSAInc!G43)*(1+RSARet!G43) -> 146604.5199 | I43: =(H43-RSAInc!H43)*(1+RSARet!H43) -> 134033.4409 | J43: =(I43-RSAInc!I43)*(1+RSARet!I43) -> 115409.7667 | K43: =(J43-RSAInc!J43)*(1+RSARet!J43) -> 97506.30377 | L43: =(K43-RSAInc!K43)*(1+RSARet!K43) -> 78305.79523 | M43: =(L43-RSAInc!L43)*(1+RSARet!L43) -> 62475.64785 | N43: =(M43-RSAInc!M43)*(1+RSARet!M43) -> 45171.17032 | O43: =(N43-RSAInc!N43)*(1+RSARet!N43) -> 27875.39886 | P43: =(O43-RSAInc!O43)*(1+RSARet!O43) -> 9213.883166 | Q43: =(P43-RSAInc!P43)*(1+RSARet!P43) -> 0 | R43: =(Q43-RSAInc!Q43)*(1+RSARet!Q43) -> 0 | S43: =(R43-RSAInc!R43)*(1+RSARet!R43) -> 0 | T43: =(S43-RSAInc!S43)*(1+RSARet!S43) -> 0 | U43: =(T43-RSAInc!T43)*(1+RSARet!T43) -> 0 | V43: =(U43-RSAInc!U43)*(1+RSARet!U43) -> 0 | W43: =(V43-RSAInc!V43)*(1+RSARet!V43) -> 0 | X43: =(W43-RSAInc!W43)*(1+RSARet!W43) -> 0 | Y43: =(X43-RSAInc!X43)*(1+RSARet!X43) -> 0 | Z43: =(Y43-RSAInc!Y43)*(1+RSARet!Y43) -> 0 | AA43: =(Z43-RSAInc!Z43)*(1+RSARet!Z43) -> 0 | AB43: =(AA43-RSAInc!AA43)*(1+RSARet!AA43) -> 0 | AC43: =(AB43-RSAInc!AB43)*(1+RSARet!AB43) -> 0 | AD43: =(AC43-RSAInc!AC43)*(1+RSARet!AC43) -> 0 | AE43: =(AD43-RSAInc!AD43)*(1+RSARet!AD43) -> 0 | AF43: =(AE43-RSAInc!AE43)*(1+RSARet!AE43) -> 0 | AG43: =(AF43-RSAInc!AF43)*(1+RSARet!AF43) -> 0 | AH43: =(AG43-RSAInc!AG43)*(1+RSARet!AG43) -> 0 | AI43: =(AH43-RSAInc!AH43)*(1+RSARet!AH43) -> 0 | AJ43: =(AI43-RSAInc!AI43)*(1+RSARet!AI43) -> 0 | AK43: =(AJ43-RSAInc!AJ43)*(1+RSARet!AJ43) -> 0 | AL43: =(AK43-RSAInc!AK43)*(1+RSARet!AK43) -> 0 | AM43: =(AL43-RSAInc!AL43)*(1+RSARet!AL43) -> 0 | AN43: =(AM43-RSAInc!AM43)*(1+RSARet!AM43) -> 0 | AO43: =(AN43-RSAInc!AN43)*(1+RSARet!AN43) -> 0 | AP43: =(AO43-RSAInc!AO43)*(1+RSARet!AO43) -> 0 | AQ43: =(AP43-RSAInc!AP43)*(1+RSARet!AP43) -> 0 | AR43: =(AQ43-RSAInc!AQ43)*(1+RSARet!AQ43) -> 0 | AS43: =(AR43-RSAInc!AR43)*(1+RSARet!AR43) -> 0 | AT43: =(AS43-RSAInc!AS43)*(1+RSARet!AS43) -> 0 | AU43: =(AT43-RSAInc!AT43)*(1+RSARet!AT43) -> 0 | AW43: 79 | AX43: =IF(AW43="",0,LOOKUP(AW43,'Retiree Details and Assumptions'!D$43:D$88,'Retiree Details and Assumptions'!E$43:E$88)) -> 0.8366936022 | AY43: =IF(AW43="","",LOOKUP(AW43,'Retiree Details and Assumptions'!D$43:D$88,'Retiree Details and Assumptions'!H$43:H$88)) -> 11.68531787
A44: 43 | B44: 250000 | C44: =(B44-RSAInc!B44)*(1+RSARet!B44) -> 243499.6056 | D44: =(C44-RSAInc!C44)*(1+RSARet!C44) -> 228575.3505 | E44: =(D44-RSAInc!D44)*(1+RSARet!D44) -> 222026.7775 | F44: =(E44-RSAInc!E44)*(1+RSARet!E44) -> 206019.5025 | G44: =(F44-RSAInc!F44)*(1+RSARet!F44) -> 198134.6022 | H44: =(G44-RSAInc!G44)*(1+RSARet!G44) -> 189429.9085 | I44: =(H44-RSAInc!H44)*(1+RSARet!H44) -> 175985.5034 | J44: =(I44-RSAInc!I44)*(1+RSARet!I44) -> 155748.477 | K44: =(J44-RSAInc!J44)*(1+RSARet!J44) -> 140967.1556 | L44: =(K44-RSAInc!K44)*(1+RSARet!K44) -> 132000.804 | M44: =(L44-RSAInc!L44)*(1+RSARet!L44) -> 115829.3743 | N44: =(M44-RSAInc!M44)*(1+RSARet!M44) -> 98940.5457 | O44: =(N44-RSAInc!N44)*(1+RSARet!N44) -> 80257.86503 | P44: =(O44-RSAInc!O44)*(1+RSARet!O44) -> 62217.77457 | Q44: =(P44-RSAInc!P44)*(1+RSARet!P44) -> 44905.0539 | R44: =(Q44-RSAInc!Q44)*(1+RSARet!Q44) -> 26070.15174 | S44: =(R44-RSAInc!R44)*(1+RSARet!R44) -> 7579.582967 | T44: =(S44-RSAInc!S44)*(1+RSARet!S44) -> 0 | U44: =(T44-RSAInc!T44)*(1+RSARet!T44) -> 0 | V44: =(U44-RSAInc!U44)*(1+RSARet!U44) -> 0 | W44: =(V44-RSAInc!V44)*(1+RSARet!V44) -> 0 | X44: =(W44-RSAInc!W44)*(1+RSARet!W44) -> 0 | Y44: =(X44-RSAInc!X44)*(1+RSARet!X44) -> 0 | Z44: =(Y44-RSAInc!Y44)*(1+RSARet!Y44) -> 0 | AA44: =(Z44-RSAInc!Z44)*(1+RSARet!Z44) -> 0 | AB44: =(AA44-RSAInc!AA44)*(1+RSARet!AA44) -> 0 | AC44: =(AB44-RSAInc!AB44)*(1+RSARet!AB44) -> 0 | AD44: =(AC44-RSAInc!AC44)*(1+RSARet!AC44) -> 0 | AE44: =(AD44-RSAInc!AD44)*(1+RSARet!AD44) -> 0 | AF44: =(AE44-RSAInc!AE44)*(1+RSARet!AE44) -> 0 | AG44: =(AF44-RSAInc!AF44)*(1+RSARet!AF44) -> 0 | AH44: =(AG44-RSAInc!AG44)*(1+RSARet!AG44) -> 0 | AI44: =(AH44-RSAInc!AH44)*(1+RSARet!AH44) -> 0 | AJ44: =(AI44-RSAInc!AI44)*(1+RSARet!AI44) -> 0 | AK44: =(AJ44-RSAInc!AJ44)*(1+RSARet!AJ44) -> 0 | AL44: =(AK44-RSAInc!AK44)*(1+RSARet!AK44) -> 0 | AM44: =(AL44-RSAInc!AL44)*(1+RSARet!AL44) -> 0 | AN44: =(AM44-RSAInc!AM44)*(1+RSARet!AM44) -> 0 | AO44: =(AN44-RSAInc!AN44)*(1+RSARet!AN44) -> 0 | AP44: =(AO44-RSAInc!AO44)*(1+RSARet!AO44) -> 0 | AQ44: =(AP44-RSAInc!AP44)*(1+RSARet!AP44) -> 0 | AR44: =(AQ44-RSAInc!AQ44)*(1+RSARet!AQ44) -> 0 | AS44: =(AR44-RSAInc!AR44)*(1+RSARet!AR44) -> 0 | AT44: =(AS44-RSAInc!AS44)*(1+RSARet!AS44) -> 0 | AU44: =(AT44-RSAInc!AT44)*(1+RSARet!AT44) -> 0 | AW44: 82 | AX44: =IF(AW44="",0,LOOKUP(AW44,'Retiree Details and Assumptions'!D$43:D$88,'Retiree Details and Assumptions'!E$43:E$88)) -> 0.7593955575 | AY44: =IF(AW44="","",LOOKUP(AW44,'Retiree Details and Assumptions'!D$43:D$88,'Retiree Details and Assumptions'!H$43:H$88)) -> 9.664105684
A45: 44 | B45: 250000 | C45: =(B45-RSAInc!B45)*(1+RSARet!B45) -> 221382.2647 | D45: =(C45-RSAInc!C45)*(1+RSARet!C45) -> 197054.1532 | E45: =(D45-RSAInc!D45)*(1+RSARet!D45) -> 173439.4611 | F45: =(E45-RSAInc!E45)*(1+RSARet!E45) -> 160665.9682 | G45: =(F45-RSAInc!F45)*(1+RSARet!F45) -> 142197.6511 | H45: =(G45-RSAInc!G45)*(1+RSARet!G45) -> 124100.1023 | I45: =(H45-RSAInc!H45)*(1+RSARet!H45) -> 103549.2841 | J45: =(I45-RSAInc!I45)*(1+RSARet!I45) -> 89855.95615 | K45: =(J45-RSAInc!J45)*(1+RSARet!J45) -> 74563.88892 | L45: =(K45-RSAInc!K45)*(1+RSARet!K45) -> 58628.09699 | M45: =(L45-RSAInc!L45)*(1+RSARet!L45) -> 42275.50507 | N45: =(M45-RSAInc!M45)*(1+RSARet!M45) -> 22886.38473 | O45: =(N45-RSAInc!N45)*(1+RSARet!N45) -> 4098.048221 | P45: =(O45-RSAInc!O45)*(1+RSARet!O45) -> 0 | Q45: =(P45-RSAInc!P45)*(1+RSARet!P45) -> 0 | R45: =(Q45-RSAInc!Q45)*(1+RSARet!Q45) -> 0 | S45: =(R45-RSAInc!R45)*(1+RSARet!R45) -> 0 | T45: =(S45-RSAInc!S45)*(1+RSARet!S45) -> 0 | U45: =(T45-RSAInc!T45)*(1+RSARet!T45) -> 0 | V45: =(U45-RSAInc!U45)*(1+RSARet!U45) -> 0 | W45: =(V45-RSAInc!V45)*(1+RSARet!V45) -> 0 | X45: =(W45-RSAInc!W45)*(1+RSARet!W45) -> 0 | Y45: =(X45-RSAInc!X45)*(1+RSARet!X45) -> 0 | Z45: =(Y45-RSAInc!Y45)*(1+RSARet!Y45) -> 0 | AA45: =(Z45-RSAInc!Z45)*(1+RSARet!Z45) -> 0 | AB45: =(AA45-RSAInc!AA45)*(1+RSARet!AA45) -> 0 | AC45: =(AB45-RSAInc!AB45)*(1+RSARet!AB45) -> 0 | AD45: =(AC45-RSAInc!AC45)*(1+RSARet!AC45) -> 0 | AE45: =(AD45-RSAInc!AD45)*(1+RSARet!AD45) -> 0 | AF45: =(AE45-RSAInc!AE45)*(1+RSARet!AE45) -> 0 | AG45: =(AF45-RSAInc!AF45)*(1+RSARet!AF45) -> 0 | AH45: =(AG45-RSAInc!AG45)*(1+RSARet!AG45) -> 0 | AI45: =(AH45-RSAInc!AH45)*(1+RSARet!AH45) -> 0 | AJ45: =(AI45-RSAInc!AI45)*(1+RSARet!AI45) -> 0 | AK45: =(AJ45-RSAInc!AJ45)*(1+RSARet!AJ45) -> 0 | AL45: =(AK45-RSAInc!AK45)*(1+RSARet!AK45) -> 0 | AM45: =(AL45-RSAInc!AL45)*(1+RSARet!AL45) -> 0 | AN45: =(AM45-RSAInc!AM45)*(1+RSARet!AM45) -> 0 | AO45: =(AN45-RSAInc!AN45)*(1+RSARet!AN45) -> 0 | AP45: =(AO45-RSAInc!AO45)*(1+RSARet!AO45) -> 0 | AQ45: =(AP45-RSAInc!AP45)*(1+RSARet!AP45) -> 0 | AR45: =(AQ45-RSAInc!AQ45)*(1+RSARet!AQ45) -> 0 | AS45: =(AR45-RSAInc!AR45)*(1+RSARet!AR45) -> 0 | AT45: =(AS45-RSAInc!AS45)*(1+RSARet!AS45) -> 0 | AU45: =(AT45-RSAInc!AT45)*(1+RSARet!AT45) -> 0 | AW45: 78 | AX45: =IF(AW45="",0,LOOKUP(AW45,'Retiree Details and Assumptions'!D$43:D$88,'Retiree Details and Assumptions'!E$43:E$88)) -> 0.857536894 | AY45: =IF(AW45="","",LOOKUP(AW45,'Retiree Details and Assumptions'!D$43:D$88,'Retiree Details and Assumptions'!H$43:H$88)) -> 12.40129454
A46: 45 | B46: 250000 | C46: =(B46-RSAInc!B46)*(1+RSARet!B46) -> 227957.703 | D46: =(C46-RSAInc!C46)*(1+RSARet!C46) -> 204807.1706 | E46: =(D46-RSAInc!D46)*(1+RSARet!D46) -> 185908.4652 | F46: =(E46-RSAInc!E46)*(1+RSARet!E46) -> 172781.7037 | G46: =(F46-RSAInc!F46)*(1+RSARet!F46) -> 170793.7473 | H46: =(G46-RSAInc!G46)*(1+RSARet!G46) -> 153055.271 | I46: =(H46-RSAInc!H46)*(1+RSARet!H46) -> 132335.7362 | J46: =(I46-RSAInc!I46)*(1+RSARet!I46) -> 117061.157 | K46: =(J46-RSAInc!J46)*(1+RSARet!J46) -> 99031.82838 | L46: =(K46-RSAInc!K46)*(1+RSARet!K46) -> 86466.08189 | M46: =(L46-RSAInc!L46)*(1+RSARet!L46) -> 66996.63598 | N46: =(M46-RSAInc!M46)*(1+RSARet!M46) -> 48161.72583 | O46: =(N46-RSAInc!N46)*(1+RSARet!N46) -> 29801.995 | P46: =(O46-RSAInc!O46)*(1+RSARet!O46) -> 10778.09732 | Q46: =(P46-RSAInc!P46)*(1+RSARet!P46) -> 0 | R46: =(Q46-RSAInc!Q46)*(1+RSARet!Q46) -> 0 | S46: =(R46-RSAInc!R46)*(1+RSARet!R46) -> 0 | T46: =(S46-RSAInc!S46)*(1+RSARet!S46) -> 0 | U46: =(T46-RSAInc!T46)*(1+RSARet!T46) -> 0 | V46: =(U46-RSAInc!U46)*(1+RSARet!U46) -> 0 | W46: =(V46-RSAInc!V46)*(1+RSARet!V46) -> 0 | X46: =(W46-RSAInc!W46)*(1+RSARet!W46) -> 0 | Y46: =(X46-RSAInc!X46)*(1+RSARet!X46) -> 0 | Z46: =(Y46-RSAInc!Y46)*(1+RSARet!Y46) -> 0 | AA46: =(Z46-RSAInc!Z46)*(1+RSARet!Z46) -> 0 | AB46: =(AA46-RSAInc!AA46)*(1+RSARet!AA46) -> 0 | AC46: =(AB46-RSAInc!AB46)*(1+RSARet!AB46) -> 0 | AD46: =(AC46-RSAInc!AC46)*(1+RSARet!AC46) -> 0 | AE46: =(AD46-RSAInc!AD46)*(1+RSARet!AD46) -> 0 | AF46: =(AE46-RSAInc!AE46)*(1+RSARet!AE46) -> 0 | AG46: =(AF46-RSAInc!AF46)*(1+RSARet!AF46) -> 0 | AH46: =(AG46-RSAInc!AG46)*(1+RSARet!AG46) -> 0 | AI46: =(AH46-RSAInc!AH46)*(1+RSARet!AH46) -> 0 | AJ46: =(AI46-RSAInc!AI46)*(1+RSARet!AI46) -> 0 | AK46: =(AJ46-RSAInc!AJ46)*(1+RSARet!AJ46) -> 0 | AL46: =(AK46-RSAInc!AK46)*(1+RSARet!AK46) -> 0 | AM46: =(AL46-RSAInc!AL46)*(1+RSARet!AL46) -> 0 | AN46: =(AM46-RSAInc!AM46)*(1+RSARet!AM46) -> 0 | AO46: =(AN46-RSAInc!AN46)*(1+RSARet!AN46) -> 0 | AP46: =(AO46-RSAInc!AO46)*(1+RSARet!AO46) -> 0 | AQ46: =(AP46-RSAInc!AP46)*(1+RSARet!AP46) -> 0 | AR46: =(AQ46-RSAInc!AQ46)*(1+RSARet!AQ46) -> 0 | AS46: =(AR46-RSAInc!AR46)*(1+RSARet!AR46) -> 0 | AT46: =(AS46-RSAInc!AS46)*(1+RSARet!AS46) -> 0 | AU46: =(AT46-RSAInc!AT46)*(1+RSARet!AT46) -> 0 | AW46: 79 | AX46: =IF(AW46="",0,LOOKUP(AW46,'Retiree Details and Assumptions'!D$43:D$88,'Retiree Details and Assumptions'!E$43:E$88)) -> 0.8366936022 | AY46: =IF(AW46="","",LOOKUP(AW46,'Retiree Details and Assumptions'!D$43:D$88,'Retiree Details and Assumptions'!H$43:H$88)) -> 11.68531787
A47: 46 | B47: 250000 | C47: =(B47-RSAInc!B47)*(1+RSARet!B47) -> 233835.93 | D47: =(C47-RSAInc!C47)*(1+RSARet!C47) -> 223061.79 | E47: =(D47-RSAInc!D47)*(1+RSARet!D47) -> 202313.6814 | F47: =(E47-RSAInc!E47)*(1+RSARet!E47) -> 186696.9788 | G47: =(F47-RSAInc!F47)*(1+RSARet!F47) -> 175872.9319 | H47: =(G47-RSAInc!G47)*(1+RSARet!G47) -> 151327.4878 | I47: =(H47-RSAInc!H47)*(1+RSARet!H47) -> 132557.5437 | J47: =(I47-RSAInc!I47)*(1+RSARet!I47) -> 126478.6688 | K47: =(J47-RSAInc!J47)*(1+RSARet!J47) -> 110453.5406 | L47: =(K47-RSAInc!K47)*(1+RSARet!K47) -> 95982.61832 | M47: =(L47-RSAInc!L47)*(1+RSARet!L47) -> 75443.45825 | N47: =(M47-RSAInc!M47)*(1+RSARet!M47) -> 61017.84062 | O47: =(N47-RSAInc!N47)*(1+RSARet!N47) -> 42203.93666 | P47: =(O47-RSAInc!O47)*(1+RSARet!O47) -> 22578.0489 | Q47: =(P47-RSAInc!P47)*(1+RSARet!P47) -> 4194.373603 | R47: =(Q47-RSAInc!Q47)*(1+RSARet!Q47) -> 0 | S47: =(R47-RSAInc!R47)*(1+RSARet!R47) -> 0 | T47: =(S47-RSAInc!S47)*(1+RSARet!S47) -> 0 | U47: =(T47-RSAInc!T47)*(1+RSARet!T47) -> 0 | V47: =(U47-RSAInc!U47)*(1+RSARet!U47) -> 0 | W47: =(V47-RSAInc!V47)*(1+RSARet!V47) -> 0 | X47: =(W47-RSAInc!W47)*(1+RSARet!W47) -> 0 | Y47: =(X47-RSAInc!X47)*(1+RSARet!X47) -> 0 | Z47: =(Y47-RSAInc!Y47)*(1+RSARet!Y47) -> 0 | AA47: =(Z47-RSAInc!Z47)*(1+RSARet!Z47) -> 0 | AB47: =(AA47-RSAInc!AA47)*(1+RSARet!AA47) -> 0 | AC47: =(AB47-RSAInc!AB47)*(1+RSARet!AB47) -> 0 | AD47: =(AC47-RSAInc!AC47)*(1+RSARet!AC47) -> 0 | AE47: =(AD47-RSAInc!AD47)*(1+RSARet!AD47) -> 0 | AF47: =(AE47-RSAInc!AE47)*(1+RSARet!AE47) -> 0 | AG47: =(AF47-RSAInc!AF47)*(1+RSARet!AF47) -> 0 | AH47: =(AG47-RSAInc!AG47)*(1+RSARet!AG47) -> 0 | AI47: =(AH47-RSAInc!AH47)*(1+RSARet!AH47) -> 0 | AJ47: =(AI47-RSAInc!AI47)*(1+RSARet!AI47) -> 0 | AK47: =(AJ47-RSAInc!AJ47)*(1+RSARet!AJ47) -> 0 | AL47: =(AK47-RSAInc!AK47)*(1+RSARet!AK47) -> 0 | AM47: =(AL47-RSAInc!AL47)*(1+RSARet!AL47) -> 0 | AN47: =(AM47-RSAInc!AM47)*(1+RSARet!AM47) -> 0 | AO47: =(AN47-RSAInc!AN47)*(1+RSARet!AN47) -> 0 | AP47: =(AO47-RSAInc!AO47)*(1+RSARet!AO47) -> 0 | AQ47: =(AP47-RSAInc!AP47)*(1+RSARet!AP47) -> 0 | AR47: =(AQ47-RSAInc!AQ47)*(1+RSARet!AQ47) -> 0 | AS47: =(AR47-RSAInc!AR47)*(1+RSARet!AR47) -> 0 | AT47: =(AS47-RSAInc!AS47)*(1+RSARet!AS47) -> 0 | AU47: =(AT47-RSAInc!AT47)*(1+RSARet!AT47) -> 0 | AW47: 80 | AX47: =IF(AW47="",0,LOOKUP(AW47,'Retiree Details and Assumptions'!D$43:D$88,'Retiree Details and Assumptions'!E$43:E$88)) -> 0.8135841249 | AY47: =IF(AW47="","",LOOKUP(AW47,'Retiree Details and Assumptions'!D$43:D$88,'Retiree Details and Assumptions'!H$43:H$88)) -> 10.98882934
A48: 47 | B48: 250000 | C48: =(B48-RSAInc!B48)*(1+RSARet!B48) -> 245421.5388 | D48: =(C48-RSAInc!C48)*(1+RSARet!C48) -> 239010.7117 | E48: =(D48-RSAInc!D48)*(1+RSARet!D48) -> 235745.0245 | F48: =(E48-RSAInc!E48)*(1+RSARet!E48) -> 221397.0418 | G48: =(F48-RSAInc!F48)*(1+RSARet!F48) -> 202702.472 | H48: =(G48-RSAInc!G48)*(1+RSARet!G48) -> 191583.9864 | I48: =(H48-RSAInc!H48)*(1+RSARet!H48) -> 188554.3717 | J48: =(I48-RSAInc!I48)*(1+RSARet!I48) -> 167727.5795 | K48: =(J48-RSAInc!J48)*(1+RSARet!J48) -> 148483.8378 | L48: =(K48-RSAInc!K48)*(1+RSARet!K48) -> 133575.0869 | M48: =(L48-RSAInc!L48)*(1+RSARet!L48) -> 118266.1365 | N48: =(M48-RSAInc!M48)*(1+RSARet!M48) -> 96945.6616 | O48: =(N48-RSAInc!N48)*(1+RSARet!N48) -> 78253.98201 | P48: =(O48-RSAInc!O48)*(1+RSARet!O48) -> 59922.134 | Q48: =(P48-RSAInc!P48)*(1+RSARet!P48) -> 43057.65774 | R48: =(Q48-RSAInc!Q48)*(1+RSARet!Q48) -> 23299.07498 | S48: =(R48-RSAInc!R48)*(1+RSARet!R48) -> 4503.905968 | T48: =(S48-RSAInc!S48)*(1+RSARet!S48) -> 0 | U48: =(T48-RSAInc!T48)*(1+RSARet!T48) -> 0 | V48: =(U48-RSAInc!U48)*(1+RSARet!U48) -> 0 | W48: =(V48-RSAInc!V48)*(1+RSARet!V48) -> 0 | X48: =(W48-RSAInc!W48)*(1+RSARet!W48) -> 0 | Y48: =(X48-RSAInc!X48)*(1+RSARet!X48) -> 0 | Z48: =(Y48-RSAInc!Y48)*(1+RSARet!Y48) -> 0 | AA48: =(Z48-RSAInc!Z48)*(1+RSARet!Z48) -> 0 | AB48: =(AA48-RSAInc!AA48)*(1+RSARet!AA48) -> 0 | AC48: =(AB48-RSAInc!AB48)*(1+RSARet!AB48) -> 0 | AD48: =(AC48-RSAInc!AC48)*(1+RSARet!AC48) -> 0 | AE48: =(AD48-RSAInc!AD48)*(1+RSARet!AD48) -> 0 | AF48: =(AE48-RSAInc!AE48)*(1+RSARet!AE48) -> 0 | AG48: =(AF48-RSAInc!AF48)*(1+RSARet!AF48) -> 0 | AH48: =(AG48-RSAInc!AG48)*(1+RSARet!AG48) -> 0 | AI48: =(AH48-RSAInc!AH48)*(1+RSARet!AH48) -> 0 | AJ48: =(AI48-RSAInc!AI48)*(1+RSARet!AI48) -> 0 | AK48: =(AJ48-RSAInc!AJ48)*(1+RSARet!AJ48) -> 0 | AL48: =(AK48-RSAInc!AK48)*(1+RSARet!AK48) -> 0 | AM48: =(AL48-RSAInc!AL48)*(1+RSARet!AL48) -> 0 | AN48: =(AM48-RSAInc!AM48)*(1+RSARet!AM48) -> 0 | AO48: =(AN48-RSAInc!AN48)*(1+RSARet!AN48) -> 0 | AP48: =(AO48-RSAInc!AO48)*(1+RSARet!AO48) -> 0 | AQ48: =(AP48-RSAInc!AP48)*(1+RSARet!AP48) -> 0 | AR48: =(AQ48-RSAInc!AQ48)*(1+RSARet!AQ48) -> 0 | AS48: =(AR48-RSAInc!AR48)*(1+RSARet!AR48) -> 0 | AT48: =(AS48-RSAInc!AS48)*(1+RSARet!AS48) -> 0 | AU48: =(AT48-RSAInc!AT48)*(1+RSARet!AT48) -> 0 | AW48: 82 | AX48: =IF(AW48="",0,LOOKUP(AW48,'Retiree Details and Assumptions'!D$43:D$88,'Retiree Details and Assumptions'!E$43:E$88)) -> 0.7593955575 | AY48: =IF(AW48="","",LOOKUP(AW48,'Retiree Details and Assumptions'!D$43:D$88,'Retiree Details and Assumptions'!H$43:H$88)) -> 9.664105684
A49: 48 | B49: 250000 | C49: =(B49-RSAInc!B49)*(1+RSARet!B49) -> 246079.8131 | D49: =(C49-RSAInc!C49)*(1+RSARet!C49) -> 243020.5539 | E49: =(D49-RSAInc!D49)*(1+RSARet!D49) -> 245217.832 | F49: =(E49-RSAInc!E49)*(1+RSARet!E49) -> 216702.6475 | G49: =(F49-RSAInc!F49)*(1+RSARet!F49) -> 201483.9449 | H49: =(G49-RSAInc!G49)*(1+RSARet!G49) -> 179171.5586 | I49: =(H49-RSAInc!H49)*(1+RSARet!H49) -> 159282.3847 | J49: =(I49-RSAInc!I49)*(1+RSARet!I49) -> 150839.0861 | K49: =(J49-RSAInc!J49)*(1+RSARet!J49) -> 136429.4709 | L49: =(K49-RSAInc!K49)*(1+RSARet!K49) -> 113837.9348 | M49: =(L49-RSAInc!L49)*(1+RSARet!L49) -> 104126.1183 | N49: =(M49-RSAInc!M49)*(1+RSARet!M49) -> 90835.41885 | O49: =(N49-RSAInc!N49)*(1+RSARet!N49) -> 77297.38338 | P49: =(O49-RSAInc!O49)*(1+RSARet!O49) -> 56336.32012 | Q49: =(P49-RSAInc!P49)*(1+RSARet!P49) -> 41206.94753 | R49: =(Q49-RSAInc!Q49)*(1+RSARet!Q49) -> 22298.10023 | S49: =(R49-RSAInc!R49)*(1+RSARet!R49) -> 3656.616505 | T49: =(S49-RSAInc!S49)*(1+RSARet!S49) -> 0 | U49: =(T49-RSAInc!T49)*(1+RSARet!T49) -> 0 | V49: =(U49-RSAInc!U49)*(1+RSARet!U49) -> 0 | W49: =(V49-RSAInc!V49)*(1+RSARet!V49) -> 0 | X49: =(W49-RSAInc!W49)*(1+RSARet!W49) -> 0 | Y49: =(X49-RSAInc!X49)*(1+RSARet!X49) -> 0 | Z49: =(Y49-RSAInc!Y49)*(1+RSARet!Y49) -> 0 | AA49: =(Z49-RSAInc!Z49)*(1+RSARet!Z49) -> 0 | AB49: =(AA49-RSAInc!AA49)*(1+RSARet!AA49) -> 0 | AC49: =(AB49-RSAInc!AB49)*(1+RSARet!AB49) -> 0 | AD49: =(AC49-RSAInc!AC49)*(1+RSARet!AC49) -> 0 | AE49: =(AD49-RSAInc!AD49)*(1+RSARet!AD49) -> 0 | AF49: =(AE49-RSAInc!AE49)*(1+RSARet!AE49) -> 0 | AG49: =(AF49-RSAInc!AF49)*(1+RSARet!AF49) -> 0 | AH49: =(AG49-RSAInc!AG49)*(1+RSARet!AG49) -> 0 | AI49: =(AH49-RSAInc!AH49)*(1+RSARet!AH49) -> 0 | AJ49: =(AI49-RSAInc!AI49)*(1+RSARet!AI49) -> 0 | AK49: =(AJ49-RSAInc!AJ49)*(1+RSARet!AJ49) -> 0 | AL49: =(AK49-RSAInc!AK49)*(1+RSARet!AK49) -> 0 | AM49: =(AL49-RSAInc!AL49)*(1+RSARet!AL49) -> 0 | AN49: =(AM49-RSAInc!AM49)*(1+RSARet!AM49) -> 0 | AO49: =(AN49-RSAInc!AN49)*(1+RSARet!AN49) -> 0 | AP49: =(AO49-RSAInc!AO49)*(1+RSARet!AO49) -> 0 | AQ49: =(AP49-RSAInc!AP49)*(1+RSARet!AP49) -> 0 | AR49: =(AQ49-RSAInc!AQ49)*(1+RSARet!AQ49) -> 0 | AS49: =(AR49-RSAInc!AR49)*(1+RSARet!AR49) -> 0 | AT49: =(AS49-RSAInc!AS49)*(1+RSARet!AS49) -> 0 | AU49: =(AT49-RSAInc!AT49)*(1+RSARet!AT49) -> 0 | AW49: 82 | AX49: =IF(AW49="",0,LOOKUP(AW49,'Retiree Details and Assumptions'!D$43:D$88,'Retiree Details and Assumptions'!E$43:E$88)) -> 0.7593955575 | AY49: =IF(AW49="","",LOOKUP(AW49,'Retiree Details and Assumptions'!D$43:D$88,'Retiree Details and Assumptions'!H$43:H$88)) -> 9.664105684
A50: 49 | B50: 250000 | C50: =(B50-RSAInc!B50)*(1+RSARet!B50) -> 223531.8308 | D50: =(C50-RSAInc!C50)*(1+RSARet!C50) -> 209795.2239 | E50: =(D50-RSAInc!D50)*(1+RSARet!D50) -> 204994.2833 | F50: =(E50-RSAInc!E50)*(1+RSARet!E50) -> 190509.9858 | G50: =(F50-RSAInc!F50)*(1+RSARet!F50) -> 174067.7519 | H50: =(G50-RSAInc!G50)*(1+RSARet!G50) -> 158343.818 | I50: =(H50-RSAInc!H50)*(1+RSARet!H50) -> 143810.4132 | J50: =(I50-RSAInc!I50)*(1+RSARet!I50) -> 127049.8563 | K50: =(J50-RSAInc!J50)*(1+RSARet!J50) -> 105292.3839 | L50: =(K50-RSAInc!K50)*(1+RSARet!K50) -> 90740.46472 | M50: =(L50-RSAInc!L50)*(1+RSARet!L50) -> 72970.72971 | N50: =(M50-RSAInc!M50)*(1+RSARet!M50) -> 53772.29392 | O50: =(N50-RSAInc!N50)*(1+RSARet!N50) -> 35464.12911 | P50: =(O50-RSAInc!O50)*(1+RSARet!O50) -> 16741.03352 | Q50: =(P50-RSAInc!P50)*(1+RSARet!P50) -> 0 | R50: =(Q50-RSAInc!Q50)*(1+RSARet!Q50) -> 0 | S50: =(R50-RSAInc!R50)*(1+RSARet!R50) -> 0 | T50: =(S50-RSAInc!S50)*(1+RSARet!S50) -> 0 | U50: =(T50-RSAInc!T50)*(1+RSARet!T50) -> 0 | V50: =(U50-RSAInc!U50)*(1+RSARet!U50) -> 0 | W50: =(V50-RSAInc!V50)*(1+RSARet!V50) -> 0 | X50: =(W50-RSAInc!W50)*(1+RSARet!W50) -> 0 | Y50: =(X50-RSAInc!X50)*(1+RSARet!X50) -> 0 | Z50: =(Y50-RSAInc!Y50)*(1+RSARet!Y50) -> 0 | AA50: =(Z50-RSAInc!Z50)*(1+RSARet!Z50) -> 0 | AB50: =(AA50-RSAInc!AA50)*(1+RSARet!AA50) -> 0 | AC50: =(AB50-RSAInc!AB50)*(1+RSARet!AB50) -> 0 | AD50: =(AC50-RSAInc!AC50)*(1+RSARet!AC50) -> 0 | AE50: =(AD50-RSAInc!AD50)*(1+RSARet!AD50) -> 0 | AF50: =(AE50-RSAInc!AE50)*(1+RSARet!AE50) -> 0 | AG50: =(AF50-RSAInc!AF50)*(1+RSARet!AF50) -> 0 | AH50: =(AG50-RSAInc!AG50)*(1+RSARet!AG50) -> 0 | AI50: =(AH50-RSAInc!AH50)*(1+RSARet!AH50) -> 0 | AJ50: =(AI50-RSAInc!AI50)*(1+RSARet!AI50) -> 0 | AK50: =(AJ50-RSAInc!AJ50)*(1+RSARet!AJ50) -> 0 | AL50: =(AK50-RSAInc!AK50)*(1+RSARet!AK50) -> 0 | AM50: =(AL50-RSAInc!AL50)*(1+RSARet!AL50) -> 0 | AN50: =(AM50-RSAInc!AM50)*(1+RSARet!AM50) -> 0 | AO50: =(AN50-RSAInc!AN50)*(1+RSARet!AN50) -> 0 | AP50: =(AO50-RSAInc!AO50)*(1+RSARet!AO50) -> 0 | AQ50: =(AP50-RSAInc!AP50)*(1+RSARet!AP50) -> 0 | AR50: =(AQ50-RSAInc!AQ50)*(1+RSARet!AQ50) -> 0 | AS50: =(AR50-RSAInc!AR50)*(1+RSARet!AR50) -> 0 | AT50: =(AS50-RSAInc!AS50)*(1+RSARet!AS50) -> 0 | AU50: =(AT50-RSAInc!AT50)*(1+RSARet!AT50) -> 0 | AW50: 79 | AX50: =IF(AW50="",0,LOOKUP(AW50,'Retiree Details and Assumptions'!D$43:D$88,'Retiree Details and Assumptions'!E$43:E$88)) -> 0.8366936022 | AY50: =IF(AW50="","",LOOKUP(AW50,'Retiree Details and Assumptions'!D$43:D$88,'Retiree Details and Assumptions'!H$43:H$88)) -> 11.68531787
A51: 50 | B51: 250000 | C51: =(B51-RSAInc!B51)*(1+RSARet!B51) -> 240913.6272 | D51: =(C51-RSAInc!C51)*(1+RSARet!C51) -> 218649.6743 | E51: =(D51-RSAInc!D51)*(1+RSARet!D51) -> 199060.7014 | F51: =(E51-RSAInc!E51)*(1+RSARet!E51) -> 185687.0139 | G51: =(F51-RSAInc!F51)*(1+RSARet!F51) -> 187417.1501 | H51: =(G51-RSAInc!G51)*(1+RSARet!G51) -> 183556.611 | I51: =(H51-RSAInc!H51)*(1+RSARet!H51) -> 186315.007 | J51: =(I51-RSAInc!I51)*(1+RSARet!I51) -> 163661.4613 | K51: =(J51-RSAInc!J51)*(1+RSARet!J51) -> 153057.911 | L51: =(K51-RSAInc!K51)*(1+RSARet!K51) -> 131452.7305 | M51: =(L51-RSAInc!L51)*(1+RSARet!L51) -> 123907.5059 | N51: =(M51-RSAInc!M51)*(1+RSARet!M51) -> 109034.6225 | O51: =(N51-RSAInc!N51)*(1+RSARet!N51) -> 94532.9387 | P51: =(O51-RSAInc!O51)*(1+RSARet!O51) -> 73059.71262 | Q51: =(P51-RSAInc!P51)*(1+RSARet!P51) -> 54822.24906 | R51: =(Q51-RSAInc!Q51)*(1+RSARet!Q51) -> 37676.85716 | S51: =(R51-RSAInc!R51)*(1+RSARet!R51) -> 18649.33631 | T51: =(S51-RSAInc!S51)*(1+RSARet!S51) -> 0 | U51: =(T51-RSAInc!T51)*(1+RSARet!T51) -> 0 | V51: =(U51-RSAInc!U51)*(1+RSARet!U51) -> 0 | W51: =(V51-RSAInc!V51)*(1+RSARet!V51) -> 0 | X51: =(W51-RSAInc!W51)*(1+RSARet!W51) -> 0 | Y51: =(X51-RSAInc!X51)*(1+RSARet!X51) -> 0 | Z51: =(Y51-RSAInc!Y51)*(1+RSARet!Y51) -> 0 | AA51: =(Z51-RSAInc!Z51)*(1+RSARet!Z51) -> 0 | AB51: =(AA51-RSAInc!AA51)*(1+RSARet!AA51) -> 0 | AC51: =(AB51-RSAInc!AB51)*(1+RSARet!AB51) -> 0 | AD51: =(AC51-RSAInc!AC51)*(1+RSARet!AC51) -> 0 | AE51: =(AD51-RSAInc!AD51)*(1+RSARet!AD51) -> 0 | AF51: =(AE51-RSAInc!AE51)*(1+RSARet!AE51) -> 0 | AG51: =(AF51-RSAInc!AF51)*(1+RSARet!AF51) -> 0 | AH51: =(AG51-RSAInc!AG51)*(1+RSARet!AG51) -> 0 | AI51: =(AH51-RSAInc!AH51)*(1+RSARet!AH51) -> 0 | AJ51: =(AI51-RSAInc!AI51)*(1+RSARet!AI51) -> 0 | AK51: =(AJ51-RSAInc!AJ51)*(1+RSARet!AJ51) -> 0 | AL51: =(AK51-RSAInc!AK51)*(1+RSARet!AK51) -> 0 | AM51: =(AL51-RSAInc!AL51)*(1+RSARet!AL51) -> 0 | AN51: =(AM51-RSAInc!AM51)*(1+RSARet!AM51) -> 0 | AO51: =(AN51-RSAInc!AN51)*(1+RSARet!AN51) -> 0 | AP51: =(AO51-RSAInc!AO51)*(1+RSARet!AO51) -> 0 | AQ51: =(AP51-RSAInc!AP51)*(1+RSARet!AP51) -> 0 | AR51: =(AQ51-RSAInc!AQ51)*(1+RSARet!AQ51) -> 0 | AS51: =(AR51-RSAInc!AR51)*(1+RSARet!AR51) -> 0 | AT51: =(AS51-RSAInc!AS51)*(1+RSARet!AS51) -> 0 | AU51: =(AT51-RSAInc!AT51)*(1+RSARet!AT51) -> 0 | AW51: 82 | AX51: =IF(AW51="",0,LOOKUP(AW51,'Retiree Details and Assumptions'!D$43:D$88,'Retiree Details and Assumptions'!E$43:E$88)) -> 0.7593955575 | AY51: =IF(AW51="","",LOOKUP(AW51,'Retiree Details and Assumptions'!D$43:D$88,'Retiree Details and Assumptions'!H$43:H$88)) -> 9.664105684
A52: 51 | B52: 250000 | C52: =(B52-RSAInc!B52)*(1+RSARet!B52) -> 240803.9724 | D52: =(C52-RSAInc!C52)*(1+RSARet!C52) -> 228779.4931 | E52: =(D52-RSAInc!D52)*(1+RSARet!D52) -> 213255.8221 | F52: =(E52-RSAInc!E52)*(1+RSARet!E52) -> 198091.5244 | G52: =(F52-RSAInc!F52)*(1+RSARet!F52) -> 184392.9454 | H52: =(G52-RSAInc!G52)*(1+RSARet!G52) -> 164384.2925 | I52: =(H52-RSAInc!H52)*(1+RSARet!H52) -> 147410.523 | J52: =(I52-RSAInc!I52)*(1+RSARet!I52) -> 132377.2924 | K52: =(J52-RSAInc!J52)*(1+RSARet!J52) -> 110444.62 | L52: =(K52-RSAInc!K52)*(1+RSARet!K52) -> 91912.56755 | M52: =(L52-RSAInc!L52)*(1+RSARet!L52) -> 76421.15649 | N52: =(M52-RSAInc!M52)*(1+RSARet!M52) -> 63429.60882 | O52: =(N52-RSAInc!N52)*(1+RSARet!N52) -> 47465.03677 | P52: =(O52-RSAInc!O52)*(1+RSARet!O52) -> 28759.51981 | Q52: =(P52-RSAInc!P52)*(1+RSARet!P52) -> 10030.76999 | R52: =(Q52-RSAInc!Q52)*(1+RSARet!Q52) -> 0 | S52: =(R52-RSAInc!R52)*(1+RSARet!R52) -> 0 | T52: =(S52-RSAInc!S52)*(1+RSARet!S52) -> 0 | U52: =(T52-RSAInc!T52)*(1+RSARet!T52) -> 0 | V52: =(U52-RSAInc!U52)*(1+RSARet!U52) -> 0 | W52: =(V52-RSAInc!V52)*(1+RSARet!V52) -> 0 | X52: =(W52-RSAInc!W52)*(1+RSARet!W52) -> 0 | Y52: =(X52-RSAInc!X52)*(1+RSARet!X52) -> 0 | Z52: =(Y52-RSAInc!Y52)*(1+RSARet!Y52) -> 0 | AA52: =(Z52-RSAInc!Z52)*(1+RSARet!Z52) -> 0 | AB52: =(AA52-RSAInc!AA52)*(1+RSARet!AA52) -> 0 | AC52: =(AB52-RSAInc!AB52)*(1+RSARet!AB52) -> 0 | AD52: =(AC52-RSAInc!AC52)*(1+RSARet!AC52) -> 0 | AE52: =(AD52-RSAInc!AD52)*(1+RSARet!AD52) -> 0 | AF52: =(AE52-RSAInc!AE52)*(1+RSARet!AE52) -> 0 | AG52: =(AF52-RSAInc!AF52)*(1+RSARet!AF52) -> 0 | AH52: =(AG52-RSAInc!AG52)*(1+RSARet!AG52) -> 0 | AI52: =(AH52-RSAInc!AH52)*(1+RSARet!AH52) -> 0 | AJ52: =(AI52-RSAInc!AI52)*(1+RSARet!AI52) -> 0 | AK52: =(AJ52-RSAInc!AJ52)*(1+RSARet!AJ52) -> 0 | AL52: =(AK52-RSAInc!AK52)*(1+RSARet!AK52) -> 0 | AM52: =(AL52-RSAInc!AL52)*(1+RSARet!AL52) -> 0 | AN52: =(AM52-RSAInc!AM52)*(1+RSARet!AM52) -> 0 | AO52: =(AN52-RSAInc!AN52)*(1+RSARet!AN52) -> 0 | AP52: =(AO52-RSAInc!AO52)*(1+RSARet!AO52) -> 0 | AQ52: =(AP52-RSAInc!AP52)*(1+RSARet!AP52) -> 0 | AR52: =(AQ52-RSAInc!AQ52)*(1+RSARet!AQ52) -> 0 | AS52: =(AR52-RSAInc!AR52)*(1+RSARet!AR52) -> 0 | AT52: =(AS52-RSAInc!AS52)*(1+RSARet!AS52) -> 0 | AU52: =(AT52-RSAInc!AT52)*(1+RSARet!AT52) -> 0 | AW52: 80 | AX52: =IF(AW52="",0,LOOKUP(AW52,'Retiree Details and Assumptions'!D$43:D$88,'Retiree Details and Assumptions'!E$43:E$88)) -> 0.8135841249 | AY52: =IF(AW52="","",LOOKUP(AW52,'Retiree Details and Assumptions'!D$43:D$88,'Retiree Details and Assumptions'!H$43:H$88)) -> 10.98882934
A53: 52 | B53: 250000 | C53: =(B53-RSAInc!B53)*(1+RSARet!B53) -> 240695.0488 | D53: =(C53-RSAInc!C53)*(1+RSARet!C53) -> 232961.0855 | E53: =(D53-RSAInc!D53)*(1+RSARet!D53) -> 225167.8533 | F53: =(E53-RSAInc!E53)*(1+RSARet!E53) -> 206315.8312 | G53: =(F53-RSAInc!F53)*(1+RSARet!F53) -> 189821.3599 | H53: =(G53-RSAInc!G53)*(1+RSARet!G53) -> 165420.2531 | I53: =(H53-RSAInc!H53)*(1+RSARet!H53) -> 154825.5398 | J53: =(I53-RSAInc!I53)*(1+RSARet!I53) -> 130347.2436 | K53: =(J53-RSAInc!J53)*(1+RSARet!J53) -> 118677.7219 | L53: =(K53-RSAInc!K53)*(1+RSARet!K53) -> 109245.8541 | M53: =(L53-RSAInc!L53)*(1+RSARet!L53) -> 94604.84944 | N53: =(M53-RSAInc!M53)*(1+RSARet!M53) -> 79297.41366 | O53: =(N53-RSAInc!N53)*(1+RSARet!N53) -> 63373.70779 | P53: =(O53-RSAInc!O53)*(1+RSARet!O53) -> 47869.02589 | Q53: =(P53-RSAInc!P53)*(1+RSARet!P53) -> 28608.42908 | R53: =(Q53-RSAInc!Q53)*(1+RSARet!Q53) -> 10566.13851 | S53: =(R53-RSAInc!R53)*(1+RSARet!R53) -> 0 | T53: =(S53-RSAInc!S53)*(1+RSARet!S53) -> 0 | U53: =(T53-RSAInc!T53)*(1+RSARet!T53) -> 0 | V53: =(U53-RSAInc!U53)*(1+RSARet!U53) -> 0 | W53: =(V53-RSAInc!V53)*(1+RSARet!V53) -> 0 | X53: =(W53-RSAInc!W53)*(1+RSARet!W53) -> 0 | Y53: =(X53-RSAInc!X53)*(1+RSARet!X53) -> 0 | Z53: =(Y53-RSAInc!Y53)*(1+RSARet!Y53) -> 0 | AA53: =(Z53-RSAInc!Z53)*(1+RSARet!Z53) -> 0 | AB53: =(AA53-RSAInc!AA53)*(1+RSARet!AA53) -> 0 | AC53: =(AB53-RSAInc!AB53)*(1+RSARet!AB53) -> 0 | AD53: =(AC53-RSAInc!AC53)*(1+RSARet!AC53) -> 0 | AE53: =(AD53-RSAInc!AD53)*(1+RSARet!AD53) -> 0 | AF53: =(AE53-RSAInc!AE53)*(1+RSARet!AE53) -> 0 | AG53: =(AF53-RSAInc!AF53)*(1+RSARet!AF53) -> 0 | AH53: =(AG53-RSAInc!AG53)*(1+RSARet!AG53) -> 0 | AI53: =(AH53-RSAInc!AH53)*(1+RSARet!AH53) -> 0 | AJ53: =(AI53-RSAInc!AI53)*(1+RSARet!AI53) -> 0 | AK53: =(AJ53-RSAInc!AJ53)*(1+RSARet!AJ53) -> 0 | AL53: =(AK53-RSAInc!AK53)*(1+RSARet!AK53) -> 0 | AM53: =(AL53-RSAInc!AL53)*(1+RSARet!AL53) -> 0 | AN53: =(AM53-RSAInc!AM53)*(1+RSARet!AM53) -> 0 | AO53: =(AN53-RSAInc!AN53)*(1+RSARet!AN53) -> 0 | AP53: =(AO53-RSAInc!AO53)*(1+RSARet!AO53) -> 0 | AQ53: =(AP53-RSAInc!AP53)*(1+RSARet!AP53) -> 0 | AR53: =(AQ53-RSAInc!AQ53)*(1+RSARet!AQ53) -> 0 | AS53: =(AR53-RSAInc!AR53)*(1+RSARet!AR53) -> 0 | AT53: =(AS53-RSAInc!AS53)*(1+RSARet!AS53) -> 0 | AU53: =(AT53-RSAInc!AT53)*(1+RSARet!AT53) -> 0 | AW53: 81 | AX53: =IF(AW53="",0,LOOKUP(AW53,'Retiree Details and Assumptions'!D$43:D$88,'Retiree Details and Assumptions'!E$43:E$88)) -> 0.787874053 | AY53: =IF(AW53="","",LOOKUP(AW53,'Retiree Details and Assumptions'!D$43:D$88,'Retiree Details and Assumptions'!H$43:H$88)) -> 10.31478692
A54: 53 | B54: 250000 | C54: =(B54-RSAInc!B54)*(1+RSARet!B54) -> 233396.5066 | D54: =(C54-RSAInc!C54)*(1+RSARet!C54) -> 211714.5205 | E54: =(D54-RSAInc!D54)*(1+RSARet!D54) -> 194176.5188 | F54: =(E54-RSAInc!E54)*(1+RSARet!E54) -> 166143.8686 | G54: =(F54-RSAInc!F54)*(1+RSARet!F54) -> 163789.2506 | H54: =(G54-RSAInc!G54)*(1+RSARet!G54) -> 139644.9719 | I54: =(H54-RSAInc!H54)*(1+RSARet!H54) -> 121396.7835 | J54: =(I54-RSAInc!I54)*(1+RSARet!I54) -> 107767.6857 | K54: =(J54-RSAInc!J54)*(1+RSARet!J54) -> 85724.17079 | L54: =(K54-RSAInc!K54)*(1+RSARet!K54) -> 70350.46499 | M54: =(L54-RSAInc!L54)*(1+RSARet!L54) -> 51103.53451 | N54: =(M54-RSAInc!M54)*(1+RSARet!M54) -> 35286.68788 | O54: =(N54-RSAInc!N54)*(1+RSARet!N54) -> 17607.22674 | P54: =(O54-RSAInc!O54)*(1+RSARet!O54) -> 0 | Q54: =(P54-RSAInc!P54)*(1+RSARet!P54) -> 0 | R54: =(Q54-RSAInc!Q54)*(1+RSARet!Q54) -> 0 | S54: =(R54-RSAInc!R54)*(1+RSARet!R54) -> 0 | T54: =(S54-RSAInc!S54)*(1+RSARet!S54) -> 0 | U54: =(T54-RSAInc!T54)*(1+RSARet!T54) -> 0 | V54: =(U54-RSAInc!U54)*(1+RSARet!U54) -> 0 | W54: =(V54-RSAInc!V54)*(1+RSARet!V54) -> 0 | X54: =(W54-RSAInc!W54)*(1+RSARet!W54) -> 0 | Y54: =(X54-RSAInc!X54)*(1+RSARet!X54) -> 0 | Z54: =(Y54-RSAInc!Y54)*(1+RSARet!Y54) -> 0 | AA54: =(Z54-RSAInc!Z54)*(1+RSARet!Z54) -> 0 | AB54: =(AA54-RSAInc!AA54)*(1+RSARet!AA54) -> 0 | AC54: =(AB54-RSAInc!AB54)*(1+RSARet!AB54) -> 0 | AD54: =(AC54-RSAInc!AC54)*(1+RSARet!AC54) -> 0 | AE54: =(AD54-RSAInc!AD54)*(1+RSARet!AD54) -> 0 | AF54: =(AE54-RSAInc!AE54)*(1+RSARet!AE54) -> 0 | AG54: =(AF54-RSAInc!AF54)*(1+RSARet!AF54) -> 0 | AH54: =(AG54-RSAInc!AG54)*(1+RSARet!AG54) -> 0 | AI54: =(AH54-RSAInc!AH54)*(1+RSARet!AH54) -> 0 | AJ54: =(AI54-RSAInc!AI54)*(1+RSARet!AI54) -> 0 | AK54: =(AJ54-RSAInc!AJ54)*(1+RSARet!AJ54) -> 0 | AL54: =(AK54-RSAInc!AK54)*(1+RSARet!AK54) -> 0 | AM54: =(AL54-RSAInc!AL54)*(1+RSARet!AL54) -> 0 | AN54: =(AM54-RSAInc!AM54)*(1+RSARet!AM54) -> 0 | AO54: =(AN54-RSAInc!AN54)*(1+RSARet!AN54) -> 0 | AP54: =(AO54-RSAInc!AO54)*(1+RSARet!AO54) -> 0 | AQ54: =(AP54-RSAInc!AP54)*(1+RSARet!AP54) -> 0 | AR54: =(AQ54-RSAInc!AQ54)*(1+RSARet!AQ54) -> 0 | AS54: =(AR54-RSAInc!AR54)*(1+RSARet!AR54) -> 0 | AT54: =(AS54-RSAInc!AS54)*(1+RSARet!AS54) -> 0 | AU54: =(AT54-RSAInc!AT54)*(1+RSARet!AT54) -> 0 | AW54: 78 | AX54: =IF(AW54="",0,LOOKUP(AW54,'Retiree Details and Assumptions'!D$43:D$88,'Retiree Details and Assumptions'!E$43:E$88)) -> 0.857536894 | AY54: =IF(AW54="","",LOOKUP(AW54,'Retiree Details and Assumptions'!D$43:D$88,'Retiree Details and Assumptions'!H$43:H$88)) -> 12.40129454
A55: 54 | B55: 250000 | C55: =(B55-RSAInc!B55)*(1+RSARet!B55) -> 239336.5373 | D55: =(C55-RSAInc!C55)*(1+RSARet!C55) -> 247345.8115 | E55: =(D55-RSAInc!D55)*(1+RSARet!D55) -> 249190.6906 | F55: =(E55-RSAInc!E55)*(1+RSARet!E55) -> 228385.668 | G55: =(F55-RSAInc!F55)*(1+RSARet!F55) -> 214431.1737 | H55: =(G55-RSAInc!G55)*(1+RSARet!G55) -> 196382.8009 | I55: =(H55-RSAInc!H55)*(1+RSARet!H55) -> 188810.1688 | J55: =(I55-RSAInc!I55)*(1+RSARet!I55) -> 176001.104 | K55: =(J55-RSAInc!J55)*(1+RSARet!J55) -> 169522.584 | L55: =(K55-RSAInc!K55)*(1+RSARet!K55) -> 153191.1106 | M55: =(L55-RSAInc!L55)*(1+RSARet!L55) -> 127850.703 | N55: =(M55-RSAInc!M55)*(1+RSARet!M55) -> 121749.3947 | O55: =(N55-RSAInc!N55)*(1+RSARet!N55) -> 115946.4784 | P55: =(O55-RSAInc!O55)*(1+RSARet!O55) -> 100783.709 | Q55: =(P55-RSAInc!P55)*(1+RSARet!P55) -> 86458.13315 | R55: =(Q55-RSAInc!Q55)*(1+RSARet!Q55) -> 70468.0588 | S55: =(R55-RSAInc!R55)*(1+RSARet!R55) -> 48000.64426 | T55: =(S55-RSAInc!S55)*(1+RSARet!S55) -> 30701.69256 | U55: =(T55-RSAInc!T55)*(1+RSARet!T55) -> 12040.68769 | V55: =(U55-RSAInc!U55)*(1+RSARet!U55) -> 0 | W55: =(V55-RSAInc!V55)*(1+RSARet!V55) -> 0 | X55: =(W55-RSAInc!W55)*(1+RSARet!W55) -> 0 | Y55: =(X55-RSAInc!X55)*(1+RSARet!X55) -> 0 | Z55: =(Y55-RSAInc!Y55)*(1+RSARet!Y55) -> 0 | AA55: =(Z55-RSAInc!Z55)*(1+RSARet!Z55) -> 0 | AB55: =(AA55-RSAInc!AA55)*(1+RSARet!AA55) -> 0 | AC55: =(AB55-RSAInc!AB55)*(1+RSARet!AB55) -> 0 | AD55: =(AC55-RSAInc!AC55)*(1+RSARet!AC55) -> 0 | AE55: =(AD55-RSAInc!AD55)*(1+RSARet!AD55) -> 0 | AF55: =(AE55-RSAInc!AE55)*(1+RSARet!AE55) -> 0 | AG55: =(AF55-RSAInc!AF55)*(1+RSARet!AF55) -> 0 | AH55: =(AG55-RSAInc!AG55)*(1+RSARet!AG55) -> 0 | AI55: =(AH55-RSAInc!AH55)*(1+RSARet!AH55) -> 0 | AJ55: =(AI55-RSAInc!AI55)*(1+RSARet!AI55) -> 0 | AK55: =(AJ55-RSAInc!AJ55)*(1+RSARet!AJ55) -> 0 | AL55: =(AK55-RSAInc!AK55)*(1+RSARet!AK55) -> 0 | AM55: =(AL55-RSAInc!AL55)*(1+RSARet!AL55) -> 0 | AN55: =(AM55-RSAInc!AM55)*(1+RSARet!AM55) -> 0 | AO55: =(AN55-RSAInc!AN55)*(1+RSARet!AN55) -> 0 | AP55: =(AO55-RSAInc!AO55)*(1+RSARet!AO55) -> 0 | AQ55: =(AP55-RSAInc!AP55)*(1+RSARet!AP55) -> 0 | AR55: =(AQ55-RSAInc!AQ55)*(1+RSARet!AQ55) -> 0 | AS55: =(AR55-RSAInc!AR55)*(1+RSARet!AR55) -> 0 | AT55: =(AS55-RSAInc!AS55)*(1+RSARet!AS55) -> 0 | AU55: =(AT55-RSAInc!AT55)*(1+RSARet!AT55) -> 0 | AW55: 84 | AX55: =IF(AW55="",0,LOOKUP(AW55,'Retiree Details and Assumptions'!D$43:D$88,'Retiree Details and Assumptions'!E$43:E$88)) -> 0.6933082051 | AY55: =IF(AW55="","",LOOKUP(AW55,'Retiree Details and Assumptions'!D$43:D$88,'Retiree Details and Assumptions'!H$43:H$88)) -> 8.440048508
A56: 55 | B56: 250000 | C56: =(B56-RSAInc!B56)*(1+RSARet!B56) -> 236396.8591 | D56: =(C56-RSAInc!C56)*(1+RSARet!C56) -> 232854.7573 | E56: =(D56-RSAInc!D56)*(1+RSARet!D56) -> 234902.9371 | F56: =(E56-RSAInc!E56)*(1+RSARet!E56) -> 223975.8715 | G56: =(F56-RSAInc!F56)*(1+RSARet!F56) -> 216402.2397 | H56: =(G56-RSAInc!G56)*(1+RSARet!G56) -> 205410.8461 | I56: =(H56-RSAInc!H56)*(1+RSARet!H56) -> 191385.0609 | J56: =(I56-RSAInc!I56)*(1+RSARet!I56) -> 185165.1989 | K56: =(J56-RSAInc!J56)*(1+RSARet!J56) -> 172765.5452 | L56: =(K56-RSAInc!K56)*(1+RSARet!K56) -> 151547.887 | M56: =(L56-RSAInc!L56)*(1+RSARet!L56) -> 138118.4209 | N56: =(M56-RSAInc!M56)*(1+RSARet!M56) -> 131430.5388 | O56: =(N56-RSAInc!N56)*(1+RSARet!N56) -> 112596.3108 | P56: =(O56-RSAInc!O56)*(1+RSARet!O56) -> 104008.2841 | Q56: =(P56-RSAInc!P56)*(1+RSARet!P56) -> 85400.44512 | R56: =(Q56-RSAInc!Q56)*(1+RSARet!Q56) -> 62699.99665 | S56: =(R56-RSAInc!R56)*(1+RSARet!R56) -> 43911.24464 | T56: =(S56-RSAInc!S56)*(1+RSARet!S56) -> 26214.20629 | U56: =(T56-RSAInc!T56)*(1+RSARet!T56) -> 8088.293232 | V56: =(U56-RSAInc!U56)*(1+RSARet!U56) -> 0 | W56: =(V56-RSAInc!V56)*(1+RSARet!V56) -> 0 | X56: =(W56-RSAInc!W56)*(1+RSARet!W56) -> 0 | Y56: =(X56-RSAInc!X56)*(1+RSARet!X56) -> 0 | Z56: =(Y56-RSAInc!Y56)*(1+RSARet!Y56) -> 0 | AA56: =(Z56-RSAInc!Z56)*(1+RSARet!Z56) -> 0 | AB56: =(AA56-RSAInc!AA56)*(1+RSARet!AA56) -> 0 | AC56: =(AB56-RSAInc!AB56)*(1+RSARet!AB56) -> 0 | AD56: =(AC56-RSAInc!AC56)*(1+RSARet!AC56) -> 0 | AE56: =(AD56-RSAInc!AD56)*(1+RSARet!AD56) -> 0 | AF56: =(AE56-RSAInc!AE56)*(1+RSARet!AE56) -> 0 | AG56: =(AF56-RSAInc!AF56)*(1+RSARet!AF56) -> 0 | AH56: =(AG56-RSAInc!AG56)*(1+RSARet!AG56) -> 0 | AI56: =(AH56-RSAInc!AH56)*(1+RSARet!AH56) -> 0 | AJ56: =(AI56-RSAInc!AI56)*(1+RSARet!AI56) -> 0 | AK56: =(AJ56-RSAInc!AJ56)*(1+RSARet!AJ56) -> 0 | AL56: =(AK56-RSAInc!AK56)*(1+RSARet!AK56) -> 0 | AM56: =(AL56-RSAInc!AL56)*(1+RSARet!AL56) -> 0 | AN56: =(AM56-RSAInc!AM56)*(1+RSARet!AM56) -> 0 | AO56: =(AN56-RSAInc!AN56)*(1+RSARet!AN56) -> 0 | AP56: =(AO56-RSAInc!AO56)*(1+RSARet!AO56) -> 0 | AQ56: =(AP56-RSAInc!AP56)*(1+RSARet!AP56) -> 0 | AR56: =(AQ56-RSAInc!AQ56)*(1+RSARet!AQ56) -> 0 | AS56: =(AR56-RSAInc!AR56)*(1+RSARet!AR56) -> 0 | AT56: =(AS56-RSAInc!AS56)*(1+RSARet!AS56) -> 0 | AU56: =(AT56-RSAInc!AT56)*(1+RSARet!AT56) -> 0 | AW56: 84 | AX56: =IF(AW56="",0,LOOKUP(AW56,'Retiree Details and Assumptions'!D$43:D$88,'Retiree Details and Assumptions'!E$43:E$88)) -> 0.6933082051 | AY56: =IF(AW56="","",LOOKUP(AW56,'Retiree Details and Assumptions'!D$43:D$88,'Retiree Details and Assumptions'!H$43:H$88)) -> 8.440048508
A57: 56 | B57: 250000 | C57: =(B57-RSAInc!B57)*(1+RSARet!B57) -> 250767.3365 | D57: =(C57-RSAInc!C57)*(1+RSARet!C57) -> 234934.4374 | E57: =(D57-RSAInc!D57)*(1+RSARet!D57) -> 221888.8682 | F57: =(E57-RSAInc!E57)*(1+RSARet!E57) -> 205799.3521 | G57: =(F57-RSAInc!F57)*(1+RSARet!F57) -> 203287.6266 | H57: =(G57-RSAInc!G57)*(1+RSARet!G57) -> 190464.7592 | I57: =(H57-RSAInc!H57)*(1+RSARet!H57) -> 177016.2099 | J57: =(I57-RSAInc!I57)*(1+RSARet!I57) -> 158490.4019 | K57: =(J57-RSAInc!J57)*(1+RSARet!J57) -> 139808.1668 | L57: =(K57-RSAInc!K57)*(1+RSARet!K57) -> 128626.8499 | M57: =(L57-RSAInc!L57)*(1+RSARet!L57) -> 113367.2057 | N57: =(M57-RSAInc!M57)*(1+RSARet!M57) -> 95399.01693 | O57: =(N57-RSAInc!N57)*(1+RSARet!N57) -> 79245.17554 | P57: =(O57-RSAInc!O57)*(1+RSARet!O57) -> 64018.91191 | Q57: =(P57-RSAInc!P57)*(1+RSARet!P57) -> 48359.18456 | R57: =(Q57-RSAInc!Q57)*(1+RSARet!Q57) -> 29930.72727 | S57: =(R57-RSAInc!R57)*(1+RSARet!R57) -> 11168.19267 | T57: =(S57-RSAInc!S57)*(1+RSARet!S57) -> 0 | U57: =(T57-RSAInc!T57)*(1+RSARet!T57) -> 0 | V57: =(U57-RSAInc!U57)*(1+RSARet!U57) -> 0 | W57: =(V57-RSAInc!V57)*(1+RSARet!V57) -> 0 | X57: =(W57-RSAInc!W57)*(1+RSARet!W57) -> 0 | Y57: =(X57-RSAInc!X57)*(1+RSARet!X57) -> 0 | Z57: =(Y57-RSAInc!Y57)*(1+RSARet!Y57) -> 0 | AA57: =(Z57-RSAInc!Z57)*(1+RSARet!Z57) -> 0 | AB57: =(AA57-RSAInc!AA57)*(1+RSARet!AA57) -> 0 | AC57: =(AB57-RSAInc!AB57)*(1+RSARet!AB57) -> 0 | AD57: =(AC57-RSAInc!AC57)*(1+RSARet!AC57) -> 0 | AE57: =(AD57-RSAInc!AD57)*(1+RSARet!AD57) -> 0 | AF57: =(AE57-RSAInc!AE57)*(1+RSARet!AE57) -> 0 | AG57: =(AF57-RSAInc!AF57)*(1+RSARet!AF57) -> 0 | AH57: =(AG57-RSAInc!AG57)*(1+RSARet!AG57) -> 0 | AI57: =(AH57-RSAInc!AH57)*(1+RSARet!AH57) -> 0 | AJ57: =(AI57-RSAInc!AI57)*(1+RSARet!AI57) -> 0 | AK57: =(AJ57-RSAInc!AJ57)*(1+RSARet!AJ57) -> 0 | AL57: =(AK57-RSAInc!AK57)*(1+RSARet!AK57) -> 0 | AM57: =(AL57-RSAInc!AL57)*(1+RSARet!AL57) -> 0 | AN57: =(AM57-RSAInc!AM57)*(1+RSARet!AM57) -> 0 | AO57: =(AN57-RSAInc!AN57)*(1+RSARet!AN57) -> 0 | AP57: =(AO57-RSAInc!AO57)*(1+RSARet!AO57) -> 0 | AQ57: =(AP57-RSAInc!AP57)*(1+RSARet!AP57) -> 0 | AR57: =(AQ57-RSAInc!AQ57)*(1+RSARet!AQ57) -> 0 | AS57: =(AR57-RSAInc!AR57)*(1+RSARet!AR57) -> 0 | AT57: =(AS57-RSAInc!AS57)*(1+RSARet!AS57) -> 0 | AU57: =(AT57-RSAInc!AT57)*(1+RSARet!AT57) -> 0 | AW57: 82 | AX57: =IF(AW57="",0,LOOKUP(AW57,'Retiree Details and Assumptions'!D$43:D$88,'Retiree Details and Assumptions'!E$43:E$88)) -> 0.7593955575 | AY57: =IF(AW57="","",LOOKUP(AW57,'Retiree Details and Assumptions'!D$43:D$88,'Retiree Details and Assumptions'!H$43:H$88)) -> 9.664105684
A58: 57 | B58: 250000 | C58: =(B58-RSAInc!B58)*(1+RSARet!B58) -> 237419.1064 | D58: =(C58-RSAInc!C58)*(1+RSARet!C58) -> 246436.2731 | E58: =(D58-RSAInc!D58)*(1+RSARet!D58) -> 248659.7208 | F58: =(E58-RSAInc!E58)*(1+RSARet!E58) -> 252965.3512 | G58: =(F58-RSAInc!F58)*(1+RSARet!F58) -> 247173.8029 | H58: =(G58-RSAInc!G58)*(1+RSARet!G58) -> 235532.2099 | I58: =(H58-RSAInc!H58)*(1+RSARet!H58) -> 219725.4806 | J58: =(I58-RSAInc!I58)*(1+RSARet!I58) -> 215417.7942 | K58: =(J58-RSAInc!J58)*(1+RSARet!J58) -> 206980.1908 | L58: =(K58-RSAInc!K58)*(1+RSARet!K58) -> 190717.4951 | M58: =(L58-RSAInc!L58)*(1+RSARet!L58) -> 177240.667 | N58: =(M58-RSAInc!M58)*(1+RSARet!M58) -> 164082.6087 | O58: =(N58-RSAInc!N58)*(1+RSARet!N58) -> 141703.482 | P58: =(O58-RSAInc!O58)*(1+RSARet!O58) -> 123058.5965 | Q58: =(P58-RSAInc!P58)*(1+RSARet!P58) -> 98806.91057 | R58: =(Q58-RSAInc!Q58)*(1+RSARet!Q58) -> 77500.43818 | S58: =(R58-RSAInc!R58)*(1+RSARet!R58) -> 63564.36615 | T58: =(S58-RSAInc!S58)*(1+RSARet!S58) -> 47163.85737 | U58: =(T58-RSAInc!T58)*(1+RSARet!T58) -> 28632.05553 | V58: =(U58-RSAInc!U58)*(1+RSARet!U58) -> 9571.959188 | W58: =(V58-RSAInc!V58)*(1+RSARet!V58) -> 0 | X58: =(W58-RSAInc!W58)*(1+RSARet!W58) -> 0 | Y58: =(X58-RSAInc!X58)*(1+RSARet!X58) -> 0 | Z58: =(Y58-RSAInc!Y58)*(1+RSARet!Y58) -> 0 | AA58: =(Z58-RSAInc!Z58)*(1+RSARet!Z58) -> 0 | AB58: =(AA58-RSAInc!AA58)*(1+RSARet!AA58) -> 0 | AC58: =(AB58-RSAInc!AB58)*(1+RSARet!AB58) -> 0 | AD58: =(AC58-RSAInc!AC58)*(1+RSARet!AC58) -> 0 | AE58: =(AD58-RSAInc!AD58)*(1+RSARet!AD58) -> 0 | AF58: =(AE58-RSAInc!AE58)*(1+RSARet!AE58) -> 0 | AG58: =(AF58-RSAInc!AF58)*(1+RSARet!AF58) -> 0 | AH58: =(AG58-RSAInc!AG58)*(1+RSARet!AG58) -> 0 | AI58: =(AH58-RSAInc!AH58)*(1+RSARet!AH58) -> 0 | AJ58: =(AI58-RSAInc!AI58)*(1+RSARet!AI58) -> 0 | AK58: =(AJ58-RSAInc!AJ58)*(1+RSARet!AJ58) -> 0 | AL58: =(AK58-RSAInc!AK58)*(1+RSARet!AK58) -> 0 | AM58: =(AL58-RSAInc!AL58)*(1+RSARet!AL58) -> 0 | AN58: =(AM58-RSAInc!AM58)*(1+RSARet!AM58) -> 0 | AO58: =(AN58-RSAInc!AN58)*(1+RSARet!AN58) -> 0 | AP58: =(AO58-RSAInc!AO58)*(1+RSARet!AO58) -> 0 | AQ58: =(AP58-RSAInc!AP58)*(1+RSARet!AP58) -> 0 | AR58: =(AQ58-RSAInc!AQ58)*(1+RSARet!AQ58) -> 0 | AS58: =(AR58-RSAInc!AR58)*(1+RSARet!AR58) -> 0 | AT58: =(AS58-RSAInc!AS58)*(1+RSARet!AS58) -> 0 | AU58: =(AT58-RSAInc!AT58)*(1+RSARet!AT58) -> 0 | AW58: 85 | AX58: =IF(AW58="",0,LOOKUP(AW58,'Retiree Details and Assumptions'!D$43:D$88,'Retiree Details and Assumptions'!E$43:E$88)) -> 0.6553939526 | AY58: =IF(AW58="","",LOOKUP(AW58,'Retiree Details and Assumptions'!D$43:D$88,'Retiree Details and Assumptions'!H$43:H$88)) -> 7.870452049
A59: 58 | B59: 250000 | C59: =(B59-RSAInc!B59)*(1+RSARet!B59) -> 230352.1689 | D59: =(C59-RSAInc!C59)*(1+RSARet!C59) -> 213930.1972 | E59: =(D59-RSAInc!D59)*(1+RSARet!D59) -> 208072.3284 | F59: =(E59-RSAInc!E59)*(1+RSARet!E59) -> 204397.0889 | G59: =(F59-RSAInc!F59)*(1+RSARet!F59) -> 179850.4522 | H59: =(G59-RSAInc!G59)*(1+RSARet!G59) -> 159346.8586 | I59: =(H59-RSAInc!H59)*(1+RSARet!H59) -> 143800.6375 | J59: =(I59-RSAInc!I59)*(1+RSARet!I59) -> 139299.3674 | K59: =(J59-RSAInc!J59)*(1+RSARet!J59) -> 117906.7132 | L59: =(K59-RSAInc!K59)*(1+RSARet!K59) -> 104807.683 | M59: =(L59-RSAInc!L59)*(1+RSARet!L59) -> 85488.76747 | N59: =(M59-RSAInc!M59)*(1+RSARet!M59) -> 64467.51952 | O59: =(N59-RSAInc!N59)*(1+RSARet!N59) -> 48740.10755 | P59: =(O59-RSAInc!O59)*(1+RSARet!O59) -> 30942.83888 | Q59: =(P59-RSAInc!P59)*(1+RSARet!P59) -> 12079.51079 | R59: =(Q59-RSAInc!Q59)*(1+RSARet!Q59) -> 0 | S59: =(R59-RSAInc!R59)*(1+RSARet!R59) -> 0 | T59: =(S59-RSAInc!S59)*(1+RSARet!S59) -> 0 | U59: =(T59-RSAInc!T59)*(1+RSARet!T59) -> 0 | V59: =(U59-RSAInc!U59)*(1+RSARet!U59) -> 0 | W59: =(V59-RSAInc!V59)*(1+RSARet!V59) -> 0 | X59: =(W59-RSAInc!W59)*(1+RSARet!W59) -> 0 | Y59: =(X59-RSAInc!X59)*(1+RSARet!X59) -> 0 | Z59: =(Y59-RSAInc!Y59)*(1+RSARet!Y59) -> 0 | AA59: =(Z59-RSAInc!Z59)*(1+RSARet!Z59) -> 0 | AB59: =(AA59-RSAInc!AA59)*(1+RSARet!AA59) -> 0 | AC59: =(AB59-RSAInc!AB59)*(1+RSARet!AB59) -> 0 | AD59: =(AC59-RSAInc!AC59)*(1+RSARet!AC59) -> 0 | AE59: =(AD59-RSAInc!AD59)*(1+RSARet!AD59) -> 0 | AF59: =(AE59-RSAInc!AE59)*(1+RSARet!AE59) -> 0 | AG59: =(AF59-RSAInc!AF59)*(1+RSARet!AF59) -> 0 | AH59: =(AG59-RSAInc!AG59)*(1+RSARet!AG59) -> 0 | AI59: =(AH59-RSAInc!AH59)*(1+RSARet!AH59) -> 0 | AJ59: =(AI59-RSAInc!AI59)*(1+RSARet!AI59) -> 0 | AK59: =(AJ59-RSAInc!AJ59)*(1+RSARet!AJ59) -> 0 | AL59: =(AK59-RSAInc!AK59)*(1+RSARet!AK59) -> 0 | AM59: =(AL59-RSAInc!AL59)*(1+RSARet!AL59) -> 0 | AN59: =(AM59-RSAInc!AM59)*(1+RSARet!AM59) -> 0 | AO59: =(AN59-RSAInc!AN59)*(1+RSARet!AN59) -> 0 | AP59: =(AO59-RSAInc!AO59)*(1+RSARet!AO59) -> 0 | AQ59: =(AP59-RSAInc!AP59)*(1+RSARet!AP59) -> 0 | AR59: =(AQ59-RSAInc!AQ59)*(1+RSARet!AQ59) -> 0 | AS59: =(AR59-RSAInc!AR59)*(1+RSARet!AR59) -> 0 | AT59: =(AS59-RSAInc!AS59)*(1+RSARet!AS59) -> 0 | AU59: =(AT59-RSAInc!AT59)*(1+RSARet!AT59) -> 0 | AW59: 80 | AX59: =IF(AW59="",0,LOOKUP(AW59,'Retiree Details and Assumptions'!D$43:D$88,'Retiree Details and Assumptions'!E$43:E$88)) -> 0.8135841249 | AY59: =IF(AW59="","",LOOKUP(AW59,'Retiree Details and Assumptions'!D$43:D$88,'Retiree Details and Assumptions'!H$43:H$88)) -> 10.98882934
A60: 59 | B60: 250000 | C60: =(B60-RSAInc!B60)*(1+RSARet!B60) -> 236029.647 | D60: =(C60-RSAInc!C60)*(1+RSARet!C60) -> 215426.2051 | E60: =(D60-RSAInc!D60)*(1+RSARet!D60) -> 201850.2134 | F60: =(E60-RSAInc!E60)*(1+RSARet!E60) -> 205809.2041 | G60: =(F60-RSAInc!F60)*(1+RSARet!F60) -> 194106.9205 | H60: =(G60-RSAInc!G60)*(1+RSARet!G60) -> 170535.7126 | I60: =(H60-RSAInc!H60)*(1+RSARet!H60) -> 160699.0407 | J60: =(I60-RSAInc!I60)*(1+RSARet!I60) -> 147118.5957 | K60: =(J60-RSAInc!J60)*(1+RSARet!J60) -> 128668.8003 | L60: =(K60-RSAInc!K60)*(1+RSARet!K60) -> 113078.4475 | M60: =(L60-RSAInc!L60)*(1+RSARet!L60) -> 95644.99366 | N60: =(M60-RSAInc!M60)*(1+RSARet!M60) -> 76031.11889 | O60: =(N60-RSAInc!N60)*(1+RSARet!N60) -> 66191.80903 | P60: =(O60-RSAInc!O60)*(1+RSARet!O60) -> 46558.30103 | Q60: =(P60-RSAInc!P60)*(1+RSARet!P60) -> 28950.84797 | R60: =(Q60-RSAInc!Q60)*(1+RSARet!Q60) -> 10935.494 | S60: =(R60-RSAInc!R60)*(1+RSARet!R60) -> 0 | T60: =(S60-RSAInc!S60)*(1+RSARet!S60) -> 0 | U60: =(T60-RSAInc!T60)*(1+RSARet!T60) -> 0 | V60: =(U60-RSAInc!U60)*(1+RSARet!U60) -> 0 | W60: =(V60-RSAInc!V60)*(1+RSARet!V60) -> 0 | X60: =(W60-RSAInc!W60)*(1+RSARet!W60) -> 0 | Y60: =(X60-RSAInc!X60)*(1+RSARet!X60) -> 0 | Z60: =(Y60-RSAInc!Y60)*(1+RSARet!Y60) -> 0 | AA60: =(Z60-RSAInc!Z60)*(1+RSARet!Z60) -> 0 | AB60: =(AA60-RSAInc!AA60)*(1+RSARet!AA60) -> 0 | AC60: =(AB60-RSAInc!AB60)*(1+RSARet!AB60) -> 0 | AD60: =(AC60-RSAInc!AC60)*(1+RSARet!AC60) -> 0 | AE60: =(AD60-RSAInc!AD60)*(1+RSARet!AD60) -> 0 | AF60: =(AE60-RSAInc!AE60)*(1+RSARet!AE60) -> 0 | AG60: =(AF60-RSAInc!AF60)*(1+RSARet!AF60) -> 0 | AH60: =(AG60-RSAInc!AG60)*(1+RSARet!AG60) -> 0 | AI60: =(AH60-RSAInc!AH60)*(1+RSARet!AH60) -> 0 | AJ60: =(AI60-RSAInc!AI60)*(1+RSARet!AI60) -> 0 | AK60: =(AJ60-RSAInc!AJ60)*(1+RSARet!AJ60) -> 0 | AL60: =(AK60-RSAInc!AK60)*(1+RSARet!AK60) -> 0 | AM60: =(AL60-RSAInc!AL60)*(1+RSARet!AL60) -> 0 | AN60: =(AM60-RSAInc!AM60)*(1+RSARet!AM60) -> 0 | AO60: =(AN60-RSAInc!AN60)*(1+RSARet!AN60) -> 0 | AP60: =(AO60-RSAInc!AO60)*(1+RSARet!AO60) -> 0 | AQ60: =(AP60-RSAInc!AP60)*(1+RSARet!AP60) -> 0 | AR60: =(AQ60-RSAInc!AQ60)*(1+RSARet!AQ60) -> 0 | AS60: =(AR60-RSAInc!AR60)*(1+RSARet!AR60) -> 0 | AT60: =(AS60-RSAInc!AS60)*(1+RSARet!AS60) -> 0 | AU60: =(AT60-RSAInc!AT60)*(1+RSARet!AT60) -> 0 | AW60: 81 | AX60: =IF(AW60="",0,LOOKUP(AW60,'Retiree Details and Assumptions'!D$43:D$88,'Retiree Details and Assumptions'!E$43:E$88)) -> 0.787874053 | AY60: =IF(AW60="","",LOOKUP(AW60,'Retiree Details and Assumptions'!D$43:D$88,'Retiree Details and Assumptions'!H$43:H$88)) -> 10.31478692
A61: 60 | B61: 250000 | C61: =(B61-RSAInc!B61)*(1+RSARet!B61) -> 239951.3158 | D61: =(C61-RSAInc!C61)*(1+RSARet!C61) -> 218116.4468 | E61: =(D61-RSAInc!D61)*(1+RSARet!D61) -> 204976.5839 | F61: =(E61-RSAInc!E61)*(1+RSARet!E61) -> 185469.6514 | G61: =(F61-RSAInc!F61)*(1+RSARet!F61) -> 168580.4325 | H61: =(G61-RSAInc!G61)*(1+RSARet!G61) -> 161252.5046 | I61: =(H61-RSAInc!H61)*(1+RSARet!H61) -> 145282.785 | J61: =(I61-RSAInc!I61)*(1+RSARet!I61) -> 123779.1066 | K61: =(J61-RSAInc!J61)*(1+RSARet!J61) -> 105227.2117 | L61: =(K61-RSAInc!K61)*(1+RSARet!K61) -> 87369.89491 | M61: =(L61-RSAInc!L61)*(1+RSARet!L61) -> 70071.41921 | N61: =(M61-RSAInc!M61)*(1+RSARet!M61) -> 51787.60655 | O61: =(N61-RSAInc!N61)*(1+RSARet!N61) -> 36577.61659 | P61: =(O61-RSAInc!O61)*(1+RSARet!O61) -> 18000.11379 | Q61: =(P61-RSAInc!P61)*(1+RSARet!P61) -> 0 | R61: =(Q61-RSAInc!Q61)*(1+RSARet!Q61) -> 0 | S61: =(R61-RSAInc!R61)*(1+RSARet!R61) -> 0 | T61: =(S61-RSAInc!S61)*(1+RSARet!S61) -> 0 | U61: =(T61-RSAInc!T61)*(1+RSARet!T61) -> 0 | V61: =(U61-RSAInc!U61)*(1+RSARet!U61) -> 0 | W61: =(V61-RSAInc!V61)*(1+RSARet!V61) -> 0 | X61: =(W61-RSAInc!W61)*(1+RSARet!W61) -> 0 | Y61: =(X61-RSAInc!X61)*(1+RSARet!X61) -> 0 | Z61: =(Y61-RSAInc!Y61)*(1+RSARet!Y61) -> 0 | AA61: =(Z61-RSAInc!Z61)*(1+RSARet!Z61) -> 0 | AB61: =(AA61-RSAInc!AA61)*(1+RSARet!AA61) -> 0 | AC61: =(AB61-RSAInc!AB61)*(1+RSARet!AB61) -> 0 | AD61: =(AC61-RSAInc!AC61)*(1+RSARet!AC61) -> 0 | AE61: =(AD61-RSAInc!AD61)*(1+RSARet!AD61) -> 0 | AF61: =(AE61-RSAInc!AE61)*(1+RSARet!AE61) -> 0 | AG61: =(AF61-RSAInc!AF61)*(1+RSARet!AF61) -> 0 | AH61: =(AG61-RSAInc!AG61)*(1+RSARet!AG61) -> 0 | AI61: =(AH61-RSAInc!AH61)*(1+RSARet!AH61) -> 0 | AJ61: =(AI61-RSAInc!AI61)*(1+RSARet!AI61) -> 0 | AK61: =(AJ61-RSAInc!AJ61)*(1+RSARet!AJ61) -> 0 | AL61: =(AK61-RSAInc!AK61)*(1+RSARet!AK61) -> 0 | AM61: =(AL61-RSAInc!AL61)*(1+RSARet!AL61) -> 0 | AN61: =(AM61-RSAInc!AM61)*(1+RSARet!AM61) -> 0 | AO61: =(AN61-RSAInc!AN61)*(1+RSARet!AN61) -> 0 | AP61: =(AO61-RSAInc!AO61)*(1+RSARet!AO61) -> 0 | AQ61: =(AP61-RSAInc!AP61)*(1+RSARet!AP61) -> 0 | AR61: =(AQ61-RSAInc!AQ61)*(1+RSARet!AQ61) -> 0 | AS61: =(AR61-RSAInc!AR61)*(1+RSARet!AR61) -> 0 | AT61: =(AS61-RSAInc!AS61)*(1+RSARet!AS61) -> 0 | AU61: =(AT61-RSAInc!AT61)*(1+RSARet!AT61) -> 0 | AW61: 79 | AX61: =IF(AW61="",0,LOOKUP(AW61,'Retiree Details and Assumptions'!D$43:D$88,'Retiree Details and Assumptions'!E$43:E$88)) -> 0.8366936022 | AY61: =IF(AW61="","",LOOKUP(AW61,'Retiree Details and Assumptions'!D$43:D$88,'Retiree Details and Assumptions'!H$43:H$88)) -> 11.68531787
A62: 61 | B62: 250000 | C62: =(B62-RSAInc!B62)*(1+RSARet!B62) -> 240134.3636 | D62: =(C62-RSAInc!C62)*(1+RSARet!C62) -> 225896.3729 | E62: =(D62-RSAInc!D62)*(1+RSARet!D62) -> 226061.3906 | F62: =(E62-RSAInc!E62)*(1+RSARet!E62) -> 203464.4951 | G62: =(F62-RSAInc!F62)*(1+RSARet!F62) -> 177707.0811 | H62: =(G62-RSAInc!G62)*(1+RSARet!G62) -> 164102.9493 | I62: =(H62-RSAInc!H62)*(1+RSARet!H62) -> 147428.0858 | J62: =(I62-RSAInc!I62)*(1+RSARet!I62) -> 130711.03 | K62: =(J62-RSAInc!J62)*(1+RSARet!J62) -> 110770.9561 | L62: =(K62-RSAInc!K62)*(1+RSARet!K62) -> 89948.29991 | M62: =(L62-RSAInc!L62)*(1+RSARet!L62) -> 71769.28086 | N62: =(M62-RSAInc!M62)*(1+RSARet!M62) -> 53983.91461 | O62: =(N62-RSAInc!N62)*(1+RSARet!N62) -> 36149.95482 | P62: =(O62-RSAInc!O62)*(1+RSARet!O62) -> 18332.24949 | Q62: =(P62-RSAInc!P62)*(1+RSARet!P62) -> 0 | R62: =(Q62-RSAInc!Q62)*(1+RSARet!Q62) -> 0 | S62: =(R62-RSAInc!R62)*(1+RSARet!R62) -> 0 | T62: =(S62-RSAInc!S62)*(1+RSARet!S62) -> 0 | U62: =(T62-RSAInc!T62)*(1+RSARet!T62) -> 0 | V62: =(U62-RSAInc!U62)*(1+RSARet!U62) -> 0 | W62: =(V62-RSAInc!V62)*(1+RSARet!V62) -> 0 | X62: =(W62-RSAInc!W62)*(1+RSARet!W62) -> 0 | Y62: =(X62-RSAInc!X62)*(1+RSARet!X62) -> 0 | Z62: =(Y62-RSAInc!Y62)*(1+RSARet!Y62) -> 0 | AA62: =(Z62-RSAInc!Z62)*(1+RSARet!Z62) -> 0 | AB62: =(AA62-RSAInc!AA62)*(1+RSARet!AA62) -> 0 | AC62: =(AB62-RSAInc!AB62)*(1+RSARet!AB62) -> 0 | AD62: =(AC62-RSAInc!AC62)*(1+RSARet!AC62) -> 0 | AE62: =(AD62-RSAInc!AD62)*(1+RSARet!AD62) -> 0 | AF62: =(AE62-RSAInc!AE62)*(1+RSARet!AE62) -> 0 | AG62: =(AF62-RSAInc!AF62)*(1+RSARet!AF62) -> 0 | AH62: =(AG62-RSAInc!AG62)*(1+RSARet!AG62) -> 0 | AI62: =(AH62-RSAInc!AH62)*(1+RSARet!AH62) -> 0 | AJ62: =(AI62-RSAInc!AI62)*(1+RSARet!AI62) -> 0 | AK62: =(AJ62-RSAInc!AJ62)*(1+RSARet!AJ62) -> 0 | AL62: =(AK62-RSAInc!AK62)*(1+RSARet!AK62) -> 0 | AM62: =(AL62-RSAInc!AL62)*(1+RSARet!AL62) -> 0 | AN62: =(AM62-RSAInc!AM62)*(1+RSARet!AM62) -> 0 | AO62: =(AN62-RSAInc!AN62)*(1+RSARet!AN62) -> 0 | AP62: =(AO62-RSAInc!AO62)*(1+RSARet!AO62) -> 0 | AQ62: =(AP62-RSAInc!AP62)*(1+RSARet!AP62) -> 0 | AR62: =(AQ62-RSAInc!AQ62)*(1+RSARet!AQ62) -> 0 | AS62: =(AR62-RSAInc!AR62)*(1+RSARet!AR62) -> 0 | AT62: =(AS62-RSAInc!AS62)*(1+RSARet!AS62) -> 0 | AU62: =(AT62-RSAInc!AT62)*(1+RSARet!AT62) -> 0 | AW62: 79 | AX62: =IF(AW62="",0,LOOKUP(AW62,'Retiree Details and Assumptions'!D$43:D$88,'Retiree Details and Assumptions'!E$43:E$88)) -> 0.8366936022 | AY62: =IF(AW62="","",LOOKUP(AW62,'Retiree Details and Assumptions'!D$43:D$88,'Retiree Details and Assumptions'!H$43:H$88)) -> 11.68531787
A63: 62 | B63: 250000 | C63: =(B63-RSAInc!B63)*(1+RSARet!B63) -> 228923.0768 | D63: =(C63-RSAInc!C63)*(1+RSARet!C63) -> 216629.1691 | E63: =(D63-RSAInc!D63)*(1+RSARet!D63) -> 224495.3109 | F63: =(E63-RSAInc!E63)*(1+RSARet!E63) -> 216328.3222 | G63: =(F63-RSAInc!F63)*(1+RSARet!F63) -> 208728.5801 | H63: =(G63-RSAInc!G63)*(1+RSARet!G63) -> 190461.0364 | I63: =(H63-RSAInc!H63)*(1+RSARet!H63) -> 178837.9076 | J63: =(I63-RSAInc!I63)*(1+RSARet!I63) -> 184895.3168 | K63: =(J63-RSAInc!J63)*(1+RSARet!J63) -> 175376.9833 | L63: =(K63-RSAInc!K63)*(1+RSARet!K63) -> 159786.5153 | M63: =(L63-RSAInc!L63)*(1+RSARet!L63) -> 150819.3826 | N63: =(M63-RSAInc!M63)*(1+RSARet!M63) -> 129656.1464 | O63: =(N63-RSAInc!N63)*(1+RSARet!N63) -> 111160.0359 | P63: =(O63-RSAInc!O63)*(1+RSARet!O63) -> 99691.81352 | Q63: =(P63-RSAInc!P63)*(1+RSARet!P63) -> 83347.93392 | R63: =(Q63-RSAInc!Q63)*(1+RSARet!Q63) -> 69617.23537 | S63: =(R63-RSAInc!R63)*(1+RSARet!R63) -> 52595.31915 | T63: =(S63-RSAInc!S63)*(1+RSARet!S63) -> 36722.89475 | U63: =(T63-RSAInc!T63)*(1+RSARet!T63) -> 16709.05236 | V63: =(U63-RSAInc!U63)*(1+RSARet!U63) -> 0 | W63: =(V63-RSAInc!V63)*(1+RSARet!V63) -> 0 | X63: =(W63-RSAInc!W63)*(1+RSARet!W63) -> 0 | Y63: =(X63-RSAInc!X63)*(1+RSARet!X63) -> 0 | Z63: =(Y63-RSAInc!Y63)*(1+RSARet!Y63) -> 0 | AA63: =(Z63-RSAInc!Z63)*(1+RSARet!Z63) -> 0 | AB63: =(AA63-RSAInc!AA63)*(1+RSARet!AA63) -> 0 | AC63: =(AB63-RSAInc!AB63)*(1+RSARet!AB63) -> 0 | AD63: =(AC63-RSAInc!AC63)*(1+RSARet!AC63) -> 0 | AE63: =(AD63-RSAInc!AD63)*(1+RSARet!AD63) -> 0 | AF63: =(AE63-RSAInc!AE63)*(1+RSARet!AE63) -> 0 | AG63: =(AF63-RSAInc!AF63)*(1+RSARet!AF63) -> 0 | AH63: =(AG63-RSAInc!AG63)*(1+RSARet!AG63) -> 0 | AI63: =(AH63-RSAInc!AH63)*(1+RSARet!AH63) -> 0 | AJ63: =(AI63-RSAInc!AI63)*(1+RSARet!AI63) -> 0 | AK63: =(AJ63-RSAInc!AJ63)*(1+RSARet!AJ63) -> 0 | AL63: =(AK63-RSAInc!AK63)*(1+RSARet!AK63) -> 0 | AM63: =(AL63-RSAInc!AL63)*(1+RSARet!AL63) -> 0 | AN63: =(AM63-RSAInc!AM63)*(1+RSARet!AM63) -> 0 | AO63: =(AN63-RSAInc!AN63)*(1+RSARet!AN63) -> 0 | AP63: =(AO63-RSAInc!AO63)*(1+RSARet!AO63) -> 0 | AQ63: =(AP63-RSAInc!AP63)*(1+RSARet!AP63) -> 0 | AR63: =(AQ63-RSAInc!AQ63)*(1+RSARet!AQ63) -> 0 | AS63: =(AR63-RSAInc!AR63)*(1+RSARet!AR63) -> 0 | AT63: =(AS63-RSAInc!AS63)*(1+RSARet!AS63) -> 0 | AU63: =(AT63-RSAInc!AT63)*(1+RSARet!AT63) -> 0 | AW63: 84 | AX63: =IF(AW63="",0,LOOKUP(AW63,'Retiree Details and Assumptions'!D$43:D$88,'Retiree Details and Assumptions'!E$43:E$88)) -> 0.6933082051 | AY63: =IF(AW63="","",LOOKUP(AW63,'Retiree Details and Assumptions'!D$43:D$88,'Retiree Details and Assumptions'!H$43:H$88)) -> 8.440048508
A64: 63 | B64: 250000 | C64: =(B64-RSAInc!B64)*(1+RSARet!B64) -> 253825.7228 | D64: =(C64-RSAInc!C64)*(1+RSARet!C64) -> 234562.3792 | E64: =(D64-RSAInc!D64)*(1+RSARet!D64) -> 215199.0624 | F64: =(E64-RSAInc!E64)*(1+RSARet!E64) -> 214804.0432 | G64: =(F64-RSAInc!F64)*(1+RSARet!F64) -> 191966.5806 | H64: =(G64-RSAInc!G64)*(1+RSARet!G64) -> 166587.7796 | I64: =(H64-RSAInc!H64)*(1+RSARet!H64) -> 151964.7462 | J64: =(I64-RSAInc!I64)*(1+RSARet!I64) -> 127488.8348 | K64: =(J64-RSAInc!J64)*(1+RSARet!J64) -> 110785.6775 | L64: =(K64-RSAInc!K64)*(1+RSARet!K64) -> 88050.67069 | M64: =(L64-RSAInc!L64)*(1+RSARet!L64) -> 69990.58533 | N64: =(M64-RSAInc!M64)*(1+RSARet!M64) -> 54298.73375 | O64: =(N64-RSAInc!N64)*(1+RSARet!N64) -> 34868.73918 | P64: =(O64-RSAInc!O64)*(1+RSARet!O64) -> 16452.76074 | Q64: =(P64-RSAInc!P64)*(1+RSARet!P64) -> 0 | R64: =(Q64-RSAInc!Q64)*(1+RSARet!Q64) -> 0 | S64: =(R64-RSAInc!R64)*(1+RSARet!R64) -> 0 | T64: =(S64-RSAInc!S64)*(1+RSARet!S64) -> 0 | U64: =(T64-RSAInc!T64)*(1+RSARet!T64) -> 0 | V64: =(U64-RSAInc!U64)*(1+RSARet!U64) -> 0 | W64: =(V64-RSAInc!V64)*(1+RSARet!V64) -> 0 | X64: =(W64-RSAInc!W64)*(1+RSARet!W64) -> 0 | Y64: =(X64-RSAInc!X64)*(1+RSARet!X64) -> 0 | Z64: =(Y64-RSAInc!Y64)*(1+RSARet!Y64) -> 0 | AA64: =(Z64-RSAInc!Z64)*(1+RSARet!Z64) -> 0 | AB64: =(AA64-RSAInc!AA64)*(1+RSARet!AA64) -> 0 | AC64: =(AB64-RSAInc!AB64)*(1+RSARet!AB64) -> 0 | AD64: =(AC64-RSAInc!AC64)*(1+RSARet!AC64) -> 0 | AE64: =(AD64-RSAInc!AD64)*(1+RSARet!AD64) -> 0 | AF64: =(AE64-RSAInc!AE64)*(1+RSARet!AE64) -> 0 | AG64: =(AF64-RSAInc!AF64)*(1+RSARet!AF64) -> 0 | AH64: =(AG64-RSAInc!AG64)*(1+RSARet!AG64) -> 0 | AI64: =(AH64-RSAInc!AH64)*(1+RSARet!AH64) -> 0 | AJ64: =(AI64-RSAInc!AI64)*(1+RSARet!AI64) -> 0 | AK64: =(AJ64-RSAInc!AJ64)*(1+RSARet!AJ64) -> 0 | AL64: =(AK64-RSAInc!AK64)*(1+RSARet!AK64) -> 0 | AM64: =(AL64-RSAInc!AL64)*(1+RSARet!AL64) -> 0 | AN64: =(AM64-RSAInc!AM64)*(1+RSARet!AM64) -> 0 | AO64: =(AN64-RSAInc!AN64)*(1+RSARet!AN64) -> 0 | AP64: =(AO64-RSAInc!AO64)*(1+RSARet!AO64) -> 0 | AQ64: =(AP64-RSAInc!AP64)*(1+RSARet!AP64) -> 0 | AR64: =(AQ64-RSAInc!AQ64)*(1+RSARet!AQ64) -> 0 | AS64: =(AR64-RSAInc!AR64)*(1+RSARet!AR64) -> 0 | AT64: =(AS64-RSAInc!AS64)*(1+RSARet!AS64) -> 0 | AU64: =(AT64-RSAInc!AT64)*(1+RSARet!AT64) -> 0 | AW64: 79 | AX64: =IF(AW64="",0,LOOKUP(AW64,'Retiree Details and Assumptions'!D$43:D$88,'Retiree Details and Assumptions'!E$43:E$88)) -> 0.8366936022 | AY64: =IF(AW64="","",LOOKUP(AW64,'Retiree Details and Assumptions'!D$43:D$88,'Retiree Details and Assumptions'!H$43:H$88)) -> 11.68531787
A65: 64 | B65: 250000 | C65: =(B65-RSAInc!B65)*(1+RSARet!B65) -> 227026.8912 | D65: =(C65-RSAInc!C65)*(1+RSARet!C65) -> 204799.0479 | E65: =(D65-RSAInc!D65)*(1+RSARet!D65) -> 186835.0462 | F65: =(E65-RSAInc!E65)*(1+RSARet!E65) -> 164138.0245 | G65: =(F65-RSAInc!F65)*(1+RSARet!F65) -> 161441.13 | H65: =(G65-RSAInc!G65)*(1+RSARet!G65) -> 152618.1632 | I65: =(H65-RSAInc!H65)*(1+RSARet!H65) -> 133444.4446 | J65: =(I65-RSAInc!I65)*(1+RSARet!I65) -> 115028.3737 | K65: =(J65-RSAInc!J65)*(1+RSARet!J65) -> 99631.14831 | L65: =(K65-RSAInc!K65)*(1+RSARet!K65) -> 81548.04395 | M65: =(L65-RSAInc!L65)*(1+RSARet!L65) -> 63900.94224 | N65: =(M65-RSAInc!M65)*(1+RSARet!M65) -> 44727.68593 | O65: =(N65-RSAInc!N65)*(1+RSARet!N65) -> 26080.97334 | P65: =(O65-RSAInc!O65)*(1+RSARet!O65) -> 7859.877436 | Q65: =(P65-RSAInc!P65)*(1+RSARet!P65) -> 0 | R65: =(Q65-RSAInc!Q65)*(1+RSARet!Q65) -> 0 | S65: =(R65-RSAInc!R65)*(1+RSARet!R65) -> 0 | T65: =(S65-RSAInc!S65)*(1+RSARet!S65) -> 0 | U65: =(T65-RSAInc!T65)*(1+RSARet!T65) -> 0 | V65: =(U65-RSAInc!U65)*(1+RSARet!U65) -> 0 | W65: =(V65-RSAInc!V65)*(1+RSARet!V65) -> 0 | X65: =(W65-RSAInc!W65)*(1+RSARet!W65) -> 0 | Y65: =(X65-RSAInc!X65)*(1+RSARet!X65) -> 0 | Z65: =(Y65-RSAInc!Y65)*(1+RSARet!Y65) -> 0 | AA65: =(Z65-RSAInc!Z65)*(1+RSARet!Z65) -> 0 | AB65: =(AA65-RSAInc!AA65)*(1+RSARet!AA65) -> 0 | AC65: =(AB65-RSAInc!AB65)*(1+RSARet!AB65) -> 0 | AD65: =(AC65-RSAInc!AC65)*(1+RSARet!AC65) -> 0 | AE65: =(AD65-RSAInc!AD65)*(1+RSARet!AD65) -> 0 | AF65: =(AE65-RSAInc!AE65)*(1+RSARet!AE65) -> 0 | AG65: =(AF65-RSAInc!AF65)*(1+RSARet!AF65) -> 0 | AH65: =(AG65-RSAInc!AG65)*(1+RSARet!AG65) -> 0 | AI65: =(AH65-RSAInc!AH65)*(1+RSARet!AH65) -> 0 | AJ65: =(AI65-RSAInc!AI65)*(1+RSARet!AI65) -> 0 | AK65: =(AJ65-RSAInc!AJ65)*(1+RSARet!AJ65) -> 0 | AL65: =(AK65-RSAInc!AK65)*(1+RSARet!AK65) -> 0 | AM65: =(AL65-RSAInc!AL65)*(1+RSARet!AL65) -> 0 | AN65: =(AM65-RSAInc!AM65)*(1+RSARet!AM65) -> 0 | AO65: =(AN65-RSAInc!AN65)*(1+RSARet!AN65) -> 0 | AP65: =(AO65-RSAInc!AO65)*(1+RSARet!AO65) -> 0 | AQ65: =(AP65-RSAInc!AP65)*(1+RSARet!AP65) -> 0 | AR65: =(AQ65-RSAInc!AQ65)*(1+RSARet!AQ65) -> 0 | AS65: =(AR65-RSAInc!AR65)*(1+RSARet!AR65) -> 0 | AT65: =(AS65-RSAInc!AS65)*(1+RSARet!AS65) -> 0 | AU65: =(AT65-RSAInc!AT65)*(1+RSARet!AT65) -> 0 | AW65: 79 | AX65: =IF(AW65="",0,LOOKUP(AW65,'Retiree Details and Assumptions'!D$43:D$88,'Retiree Details and Assumptions'!E$43:E$88)) -> 0.8366936022 | AY65: =IF(AW65="","",LOOKUP(AW65,'Retiree Details and Assumptions'!D$43:D$88,'Retiree Details and Assumptions'!H$43:H$88)) -> 11.68531787
A66: 65 | B66: =RSABal -> 250000 | C66: =(B66-RSAInc!B66)*(1+RSARet!B66) -> 224877.7331 | D66: =(C66-RSAInc!C66)*(1+RSARet!C66) -> 217022.2396 | E66: =(D66-RSAInc!D66)*(1+RSARet!D66) -> 200575.0145 | F66: =(E66-RSAInc!E66)*(1+RSARet!E66) -> 195538.8492 | G66: =(F66-RSAInc!F66)*(1+RSARet!F66) -> 171812.0244 | H66: =(G66-RSAInc!G66)*(1+RSARet!G66) -> 160074.6019 | I66: =(H66-RSAInc!H66)*(1+RSARet!H66) -> 142210.2412 | J66: =(I66-RSAInc!I66)*(1+RSARet!I66) -> 123790.0255 | K66: =(J66-RSAInc!J66)*(1+RSARet!J66) -> 116568.4311 | L66: =(K66-RSAInc!K66)*(1+RSARet!K66) -> 109593.2612 | M66: =(L66-RSAInc!L66)*(1+RSARet!L66) -> 98180.03902 | N66: =(M66-RSAInc!M66)*(1+RSARet!M66) -> 80005.06564 | O66: =(N66-RSAInc!N66)*(1+RSARet!N66) -> 66442.03864 | P66: =(O66-RSAInc!O66)*(1+RSARet!O66) -> 44877.66096 | Q66: =(P66-RSAInc!P66)*(1+RSARet!P66) -> 26963.83412 | R66: =(Q66-RSAInc!Q66)*(1+RSARet!Q66) -> 9029.795817 | S66: =(R66-RSAInc!R66)*(1+RSARet!R66) -> 0 | T66: =(S66-RSAInc!S66)*(1+RSARet!S66) -> 0 | U66: =(T66-RSAInc!T66)*(1+RSARet!T66) -> 0 | V66: =(U66-RSAInc!U66)*(1+RSARet!U66) -> 0 | W66: =(V66-RSAInc!V66)*(1+RSARet!V66) -> 0 | X66: =(W66-RSAInc!W66)*(1+RSARet!W66) -> 0 | Y66: =(X66-RSAInc!X66)*(1+RSARet!X66) -> 0 | Z66: =(Y66-RSAInc!Y66)*(1+RSARet!Y66) -> 0 | AA66: =(Z66-RSAInc!Z66)*(1+RSARet!Z66) -> 0 | AB66: =(AA66-RSAInc!AA66)*(1+RSARet!AA66) -> 0 | AC66: =(AB66-RSAInc!AB66)*(1+RSARet!AB66) -> 0 | AD66: =(AC66-RSAInc!AC66)*(1+RSARet!AC66) -> 0 | AE66: =(AD66-RSAInc!AD66)*(1+RSARet!AD66) -> 0 | AF66: =(AE66-RSAInc!AE66)*(1+RSARet!AE66) -> 0 | AG66: =(AF66-RSAInc!AF66)*(1+RSARet!AF66) -> 0 | AH66: =(AG66-RSAInc!AG66)*(1+RSARet!AG66) -> 0 | AI66: =(AH66-RSAInc!AH66)*(1+RSARet!AH66) -> 0 | AJ66: =(AI66-RSAInc!AI66)*(1+RSARet!AI66) -> 0 | AK66: =(AJ66-RSAInc!AJ66)*(1+RSARet!AJ66) -> 0 | AL66: =(AK66-RSAInc!AK66)*(1+RSARet!AK66) -> 0 | AM66: =(AL66-RSAInc!AL66)*(1+RSARet!AL66) -> 0 | AN66: =(AM66-RSAInc!AM66)*(1+RSARet!AM66) -> 0 | AO66: =(AN66-RSAInc!AN66)*(1+RSARet!AN66) -> 0 | AP66: =(AO66-RSAInc!AO66)*(1+RSARet!AO66) -> 0 | AQ66: =(AP66-RSAInc!AP66)*(1+RSARet!AP66) -> 0 | AR66: =(AQ66-RSAInc!AQ66)*(1+RSARet!AQ66) -> 0 | AS66: =(AR66-RSAInc!AR66)*(1+RSARet!AR66) -> 0 | AT66: =(AS66-RSAInc!AS66)*(1+RSARet!AS66) -> 0 | AU66: =(AT66-RSAInc!AT66)*(1+RSARet!AT66) -> 0 | AW66: 81 | AX66: =IF(AW66="",0,LOOKUP(AW66,'Retiree Details and Assumptions'!D$43:D$88,'Retiree Details and Assumptions'!E$43:E$88)) -> 0.787874053 | AY66: =IF(AW66="","",LOOKUP(AW66,'Retiree Details and Assumptions'!D$43:D$88,'Retiree Details and Assumptions'!H$43:H$88)) -> 10.31478692
A67: 66 | B67: 250000 | C67: =(B67-RSAInc!B67)*(1+RSARet!B67) -> 231924.9008 | D67: =(C67-RSAInc!C67)*(1+RSARet!C67) -> 211952.9386 | E67: =(D67-RSAInc!D67)*(1+RSARet!D67) -> 211171.6259 | F67: =(E67-RSAInc!E67)*(1+RSARet!E67) -> 196387.6219 | G67: =(F67-RSAInc!F67)*(1+RSARet!F67) -> 198770.272 | H67: =(G67-RSAInc!G67)*(1+RSARet!G67) -> 194256.7253 | I67: =(H67-RSAInc!H67)*(1+RSARet!H67) -> 189291.4972 | J67: =(I67-RSAInc!I67)*(1+RSARet!I67) -> 173640.7732 | K67: =(J67-RSAInc!J67)*(1+RSARet!J67) -> 156187.8788 | L67: =(K67-RSAInc!K67)*(1+RSARet!K67) -> 144797.5453 | M67: =(L67-RSAInc!L67)*(1+RSARet!L67) -> 128300.8125 | N67: =(M67-RSAInc!M67)*(1+RSARet!M67) -> 112576.4863 | O67: =(N67-RSAInc!N67)*(1+RSARet!N67) -> 96357.7669 | P67: =(O67-RSAInc!O67)*(1+RSARet!O67) -> 78898.44898 | Q67: =(P67-RSAInc!P67)*(1+RSARet!P67) -> 59623.20099 | R67: =(Q67-RSAInc!Q67)*(1+RSARet!Q67) -> 43439.70955 | S67: =(R67-RSAInc!R67)*(1+RSARet!R67) -> 26095.70562 | T67: =(S67-RSAInc!S67)*(1+RSARet!S67) -> 7399.531948 | U67: =(T67-RSAInc!T67)*(1+RSARet!T67) -> 0 | V67: =(U67-RSAInc!U67)*(1+RSARet!U67) -> 0 | W67: =(V67-RSAInc!V67)*(1+RSARet!V67) -> 0 | X67: =(W67-RSAInc!W67)*(1+RSARet!W67) -> 0 | Y67: =(X67-RSAInc!X67)*(1+RSARet!X67) -> 0 | Z67: =(Y67-RSAInc!Y67)*(1+RSARet!Y67) -> 0 | AA67: =(Z67-RSAInc!Z67)*(1+RSARet!Z67) -> 0 | AB67: =(AA67-RSAInc!AA67)*(1+RSARet!AA67) -> 0 | AC67: =(AB67-RSAInc!AB67)*(1+RSARet!AB67) -> 0 | AD67: =(AC67-RSAInc!AC67)*(1+RSARet!AC67) -> 0 | AE67: =(AD67-RSAInc!AD67)*(1+RSARet!AD67) -> 0 | AF67: =(AE67-RSAInc!AE67)*(1+RSARet!AE67) -> 0 | AG67: =(AF67-RSAInc!AF67)*(1+RSARet!AF67) -> 0 | AH67: =(AG67-RSAInc!AG67)*(1+RSARet!AG67) -> 0 | AI67: =(AH67-RSAInc!AH67)*(1+RSARet!AH67) -> 0 | AJ67: =(AI67-RSAInc!AI67)*(1+RSARet!AI67) -> 0 | AK67: =(AJ67-RSAInc!AJ67)*(1+RSARet!AJ67) -> 0 | AL67: =(AK67-RSAInc!AK67)*(1+RSARet!AK67) -> 0 | AM67: =(AL67-RSAInc!AL67)*(1+RSARet!AL67) -> 0 | AN67: =(AM67-RSAInc!AM67)*(1+RSARet!AM67) -> 0 | AO67: =(AN67-RSAInc!AN67)*(1+RSARet!AN67) -> 0 | AP67: =(AO67-RSAInc!AO67)*(1+RSARet!AO67) -> 0 | AQ67: =(AP67-RSAInc!AP67)*(1+RSARet!AP67) -> 0 | AR67: =(AQ67-RSAInc!AQ67)*(1+RSARet!AQ67) -> 0 | AS67: =(AR67-RSAInc!AR67)*(1+RSARet!AR67) -> 0 | AT67: =(AS67-RSAInc!AS67)*(1+RSARet!AS67) -> 0 | AU67: =(AT67-RSAInc!AT67)*(1+RSARet!AT67) -> 0 | AW67: =IF(65+COUNTIF(C67:AU67,">0")>110,"",65+COUNTIF(C67:AU67,">0")) -> 83 | AX67: =IF(AW67="",0,LOOKUP(AW67,'Retiree Details and Assumptions'!D$43:D$88,'Retiree Details and Assumptions'!E$43:E$88)) -> 0.7279284838 | AY67: =IF(AW67="","",LOOKUP(AW67,'Retiree Details and Assumptions'!D$43:D$88,'Retiree Details and Assumptions'!H$43:H$88)) -> 9.038639801
A68: 67 | B68: 250000 | C68: =(B68-RSAInc!B68)*(1+RSARet!B68) -> 236190.0887 | D68: =(C68-RSAInc!C68)*(1+RSARet!C68) -> 220971.515 | E68: =(D68-RSAInc!D68)*(1+RSARet!D68) -> 200625.046 | F68: =(E68-RSAInc!E68)*(1+RSARet!E68) -> 176950.7752 | G68: =(F68-RSAInc!F68)*(1+RSARet!F68) -> 155917.9623 | H68: =(G68-RSAInc!G68)*(1+RSARet!G68) -> 135946.0442 | I68: =(H68-RSAInc!H68)*(1+RSARet!H68) -> 130779.4435 | J68: =(I68-RSAInc!I68)*(1+RSARet!I68) -> 121584.149 | K68: =(J68-RSAInc!J68)*(1+RSARet!J68) -> 107170.4836 | L68: =(K68-RSAInc!K68)*(1+RSARet!K68) -> 105418.3379 | M68: =(L68-RSAInc!L68)*(1+RSARet!L68) -> 91481.15711 | N68: =(M68-RSAInc!M68)*(1+RSARet!M68) -> 72370.36374 | O68: =(N68-RSAInc!N68)*(1+RSARet!N68) -> 59227.87739 | P68: =(O68-RSAInc!O68)*(1+RSARet!O68) -> 43922.50055 | Q68: =(P68-RSAInc!P68)*(1+RSARet!P68) -> 26708.05224 | R68: =(Q68-RSAInc!Q68)*(1+RSARet!Q68) -> 7842.372252 | S68: =(R68-RSAInc!R68)*(1+RSARet!R68) -> 0 | T68: =(S68-RSAInc!S68)*(1+RSARet!S68) -> 0 | U68: =(T68-RSAInc!T68)*(1+RSARet!T68) -> 0 | V68: =(U68-RSAInc!U68)*(1+RSARet!U68) -> 0 | W68: =(V68-RSAInc!V68)*(1+RSARet!V68) -> 0 | X68: =(W68-RSAInc!W68)*(1+RSARet!W68) -> 0 | Y68: =(X68-RSAInc!X68)*(1+RSARet!X68) -> 0 | Z68: =(Y68-RSAInc!Y68)*(1+RSARet!Y68) -> 0 | AA68: =(Z68-RSAInc!Z68)*(1+RSARet!Z68) -> 0 | AB68: =(AA68-RSAInc!AA68)*(1+RSARet!AA68) -> 0 | AC68: =(AB68-RSAInc!AB68)*(1+RSARet!AB68) -> 0 | AD68: =(AC68-RSAInc!AC68)*(1+RSARet!AC68) -> 0 | AE68: =(AD68-RSAInc!AD68)*(1+RSARet!AD68) -> 0 | AF68: =(AE68-RSAInc!AE68)*(1+RSARet!AE68) -> 0 | AG68: =(AF68-RSAInc!AF68)*(1+RSARet!AF68) -> 0 | AH68: =(AG68-RSAInc!AG68)*(1+RSARet!AG68) -> 0 | AI68: =(AH68-RSAInc!AH68)*(1+RSARet!AH68) -> 0 | AJ68: =(AI68-RSAInc!AI68)*(1+RSARet!AI68) -> 0 | AK68: =(AJ68-RSAInc!AJ68)*(1+RSARet!AJ68) -> 0 | AL68: =(AK68-RSAInc!AK68)*(1+RSARet!AK68) -> 0 | AM68: =(AL68-RSAInc!AL68)*(1+RSARet!AL68) -> 0 | AN68: =(AM68-RSAInc!AM68)*(1+RSARet!AM68) -> 0 | AO68: =(AN68-RSAInc!AN68)*(1+RSARet!AN68) -> 0 | AP68: =(AO68-RSAInc!AO68)*(1+RSARet!AO68) -> 0 | AQ68: =(AP68-RSAInc!AP68)*(1+RSARet!AP68) -> 0 | AR68: =(AQ68-RSAInc!AQ68)*(1+RSARet!AQ68) -> 0 | AS68: =(AR68-RSAInc!AR68)*(1+RSARet!AR68) -> 0 | AT68: =(AS68-RSAInc!AS68)*(1+RSARet!AS68) -> 0 | AU68: =(AT68-RSAInc!AT68)*(1+RSARet!AT68) -> 0 | AW68: 81 | AX68: =IF(AW68="",0,LOOKUP(AW68,'Retiree Details and Assumptions'!D$43:D$88,'Retiree Details and Assumptions'!E$43:E$88)) -> 0.787874053 | AY68: =IF(AW68="","",LOOKUP(AW68,'Retiree Details and Assumptions'!D$43:D$88,'Retiree Details and Assumptions'!H$43:H$88)) -> 10.31478692
A69: 68 | B69: 250000 | C69: =(B69-RSAInc!B69)*(1+RSARet!B69) -> 223063.8915 | D69: =(C69-RSAInc!C69)*(1+RSARet!C69) -> 202775.6989 | E69: =(D69-RSAInc!D69)*(1+RSARet!D69) -> 183171.6299 | F69: =(E69-RSAInc!E69)*(1+RSARet!E69) -> 165121.6643 | G69: =(F69-RSAInc!F69)*(1+RSARet!F69) -> 160463.0921 | H69: =(G69-RSAInc!G69)*(1+RSARet!G69) -> 150465.6008 | I69: =(H69-RSAInc!H69)*(1+RSARet!H69) -> 130610.1172 | J69: =(I69-RSAInc!I69)*(1+RSARet!I69) -> 119291.457 | K69: =(J69-RSAInc!J69)*(1+RSARet!J69) -> 98552.05994 | L69: =(K69-RSAInc!K69)*(1+RSARet!K69) -> 78521.60127 | M69: =(L69-RSAInc!L69)*(1+RSARet!L69) -> 61125.12245 | N69: =(M69-RSAInc!M69)*(1+RSARet!M69) -> 42133.674 | O69: =(N69-RSAInc!N69)*(1+RSARet!N69) -> 23979.38208 | P69: =(O69-RSAInc!O69)*(1+RSARet!O69) -> 5062.71279 | Q69: =(P69-RSAInc!P69)*(1+RSARet!P69) -> 0 | R69: =(Q69-RSAInc!Q69)*(1+RSARet!Q69) -> 0 | S69: =(R69-RSAInc!R69)*(1+RSARet!R69) -> 0 | T69: =(S69-RSAInc!S69)*(1+RSARet!S69) -> 0 | U69: =(T69-RSAInc!T69)*(1+RSARet!T69) -> 0 | V69: =(U69-RSAInc!U69)*(1+RSARet!U69) -> 0 | W69: =(V69-RSAInc!V69)*(1+RSARet!V69) -> 0 | X69: =(W69-RSAInc!W69)*(1+RSARet!W69) -> 0 | Y69: =(X69-RSAInc!X69)*(1+RSARet!X69) -> 0 | Z69: =(Y69-RSAInc!Y69)*(1+RSARet!Y69) -> 0 | AA69: =(Z69-RSAInc!Z69)*(1+RSARet!Z69) -> 0 | AB69: =(AA69-RSAInc!AA69)*(1+RSARet!AA69) -> 0 | AC69: =(AB69-RSAInc!AB69)*(1+RSARet!AB69) -> 0 | AD69: =(AC69-RSAInc!AC69)*(1+RSARet!AC69) -> 0 | AE69: =(AD69-RSAInc!AD69)*(1+RSARet!AD69) -> 0 | AF69: =(AE69-RSAInc!AE69)*(1+RSARet!AE69) -> 0 | AG69: =(AF69-RSAInc!AF69)*(1+RSARet!AF69) -> 0 | AH69: =(AG69-RSAInc!AG69)*(1+RSARet!AG69) -> 0 | AI69: =(AH69-RSAInc!AH69)*(1+RSARet!AH69) -> 0 | AJ69: =(AI69-RSAInc!AI69)*(1+RSARet!AI69) -> 0 | AK69: =(AJ69-RSAInc!AJ69)*(1+RSARet!AJ69) -> 0 | AL69: =(AK69-RSAInc!AK69)*(1+RSARet!AK69) -> 0 | AM69: =(AL69-RSAInc!AL69)*(1+RSARet!AL69) -> 0 | AN69: =(AM69-RSAInc!AM69)*(1+RSARet!AM69) -> 0 | AO69: =(AN69-RSAInc!AN69)*(1+RSARet!AN69) -> 0 | AP69: =(AO69-RSAInc!AO69)*(1+RSARet!AO69) -> 0 | AQ69: =(AP69-RSAInc!AP69)*(1+RSARet!AP69) -> 0 | AR69: =(AQ69-RSAInc!AQ69)*(1+RSARet!AQ69) -> 0 | AS69: =(AR69-RSAInc!AR69)*(1+RSARet!AR69) -> 0 | AT69: =(AS69-RSAInc!AS69)*(1+RSARet!AS69) -> 0 | AU69: =(AT69-RSAInc!AT69)*(1+RSARet!AT69) -> 0 | AW69: 79 | AX69: =IF(AW69="",0,LOOKUP(AW69,'Retiree Details and Assumptions'!D$43:D$88,'Retiree Details and Assumptions'!E$43:E$88)) -> 0.8366936022 | AY69: =IF(AW69="","",LOOKUP(AW69,'Retiree Details and Assumptions'!D$43:D$88,'Retiree Details and Assumptions'!H$43:H$88)) -> 11.68531787
A70: 69 | B70: 250000 | C70: =(B70-RSAInc!B70)*(1+RSARet!B70) -> 242478.2052 | D70: =(C70-RSAInc!C70)*(1+RSARet!C70) -> 239552.4642 | E70: =(D70-RSAInc!D70)*(1+RSARet!D70) -> 221680.5547 | F70: =(E70-RSAInc!E70)*(1+RSARet!E70) -> 218972.452 | G70: =(F70-RSAInc!F70)*(1+RSARet!F70) -> 199836.8799 | H70: =(G70-RSAInc!G70)*(1+RSARet!G70) -> 181625.4539 | I70: =(H70-RSAInc!H70)*(1+RSARet!H70) -> 164969.5105 | J70: =(I70-RSAInc!I70)*(1+RSARet!I70) -> 147696.5905 | K70: =(J70-RSAInc!J70)*(1+RSARet!J70) -> 123834.8946 | L70: =(K70-RSAInc!K70)*(1+RSARet!K70) -> 109552.7537 | M70: =(L70-RSAInc!L70)*(1+RSARet!L70) -> 88640.01615 | N70: =(M70-RSAInc!M70)*(1+RSARet!M70) -> 71319.1044 | O70: =(N70-RSAInc!N70)*(1+RSARet!N70) -> 53119.5618 | P70: =(O70-RSAInc!O70)*(1+RSARet!O70) -> 33943.2393 | Q70: =(P70-RSAInc!P70)*(1+RSARet!P70) -> 16054.64591 | R70: =(Q70-RSAInc!Q70)*(1+RSARet!Q70) -> 0 | S70: =(R70-RSAInc!R70)*(1+RSARet!R70) -> 0 | T70: =(S70-RSAInc!S70)*(1+RSARet!S70) -> 0 | U70: =(T70-RSAInc!T70)*(1+RSARet!T70) -> 0 | V70: =(U70-RSAInc!U70)*(1+RSARet!U70) -> 0 | W70: =(V70-RSAInc!V70)*(1+RSARet!V70) -> 0 | X70: =(W70-RSAInc!W70)*(1+RSARet!W70) -> 0 | Y70: =(X70-RSAInc!X70)*(1+RSARet!X70) -> 0 | Z70: =(Y70-RSAInc!Y70)*(1+RSARet!Y70) -> 0 | AA70: =(Z70-RSAInc!Z70)*(1+RSARet!Z70) -> 0 | AB70: =(AA70-RSAInc!AA70)*(1+RSARet!AA70) -> 0 | AC70: =(AB70-RSAInc!AB70)*(1+RSARet!AB70) -> 0 | AD70: =(AC70-RSAInc!AC70)*(1+RSARet!AC70) -> 0 | AE70: =(AD70-RSAInc!AD70)*(1+RSARet!AD70) -> 0 | AF70: =(AE70-RSAInc!AE70)*(1+RSARet!AE70) -> 0 | AG70: =(AF70-RSAInc!AF70)*(1+RSARet!AF70) -> 0 | AH70: =(AG70-RSAInc!AG70)*(1+RSARet!AG70) -> 0 | AI70: =(AH70-RSAInc!AH70)*(1+RSARet!AH70) -> 0 | AJ70: =(AI70-RSAInc!AI70)*(1+RSARet!AI70) -> 0 | AK70: =(AJ70-RSAInc!AJ70)*(1+RSARet!AJ70) -> 0 | AL70: =(AK70-RSAInc!AK70)*(1+RSARet!AK70) -> 0 | AM70: =(AL70-RSAInc!AL70)*(1+RSARet!AL70) -> 0 | AN70: =(AM70-RSAInc!AM70)*(1+RSARet!AM70) -> 0 | AO70: =(AN70-RSAInc!AN70)*(1+RSARet!AN70) -> 0 | AP70: =(AO70-RSAInc!AO70)*(1+RSARet!AO70) -> 0 | AQ70: =(AP70-RSAInc!AP70)*(1+RSARet!AP70) -> 0 | AR70: =(AQ70-RSAInc!AQ70)*(1+RSARet!AQ70) -> 0 | AS70: =(AR70-RSAInc!AR70)*(1+RSARet!AR70) -> 0 | AT70: =(AS70-RSAInc!AS70)*(1+RSARet!AS70) -> 0 | AU70: =(AT70-RSAInc!AT70)*(1+RSARet!AT70) -> 0 | AW70: 80 | AX70: =IF(AW70="",0,LOOKUP(AW70,'Retiree Details and Assumptions'!D$43:D$88,'Retiree Details and Assumptions'!E$43:E$88)) -> 0.8135841249 | AY70: =IF(AW70="","",LOOKUP(AW70,'Retiree Details and Assumptions'!D$43:D$88,'Retiree Details and Assumptions'!H$43:H$88)) -> 10.98882934
A71: 70 | B71: 250000 | C71: =(B71-RSAInc!B71)*(1+RSARet!B71) -> 228803.4652 | D71: =(C71-RSAInc!C71)*(1+RSARet!C71) -> 212239.0087 | E71: =(D71-RSAInc!D71)*(1+RSARet!D71) -> 208323.5168 | F71: =(E71-RSAInc!E71)*(1+RSARet!E71) -> 196995.2178 | G71: =(F71-RSAInc!F71)*(1+RSARet!F71) -> 186631.1774 | H71: =(G71-RSAInc!G71)*(1+RSARet!G71) -> 175030.3752 | I71: =(H71-RSAInc!H71)*(1+RSARet!H71) -> 152088.447 | J71: =(I71-RSAInc!I71)*(1+RSARet!I71) -> 131267.2746 | K71: =(J71-RSAInc!J71)*(1+RSARet!J71) -> 109415.5184 | L71: =(K71-RSAInc!K71)*(1+RSARet!K71) -> 94703.28176 | M71: =(L71-RSAInc!L71)*(1+RSARet!L71) -> 81276.56768 | N71: =(M71-RSAInc!M71)*(1+RSARet!M71) -> 65656.48082 | O71: =(N71-RSAInc!N71)*(1+RSARet!N71) -> 45160.24855 | P71: =(O71-RSAInc!O71)*(1+RSARet!O71) -> 27042.61441 | Q71: =(P71-RSAInc!P71)*(1+RSARet!P71) -> 8718.340197 | R71: =(Q71-RSAInc!Q71)*(1+RSARet!Q71) -> 0 | S71: =(R71-RSAInc!R71)*(1+RSARet!R71) -> 0 | T71: =(S71-RSAInc!S71)*(1+RSARet!S71) -> 0 | U71: =(T71-RSAInc!T71)*(1+RSARet!T71) -> 0 | V71: =(U71-RSAInc!U71)*(1+RSARet!U71) -> 0 | W71: =(V71-RSAInc!V71)*(1+RSARet!V71) -> 0 | X71: =(W71-RSAInc!W71)*(1+RSARet!W71) -> 0 | Y71: =(X71-RSAInc!X71)*(1+RSARet!X71) -> 0 | Z71: =(Y71-RSAInc!Y71)*(1+RSARet!Y71) -> 0 | AA71: =(Z71-RSAInc!Z71)*(1+RSARet!Z71) -> 0 | AB71: =(AA71-RSAInc!AA71)*(1+RSARet!AA71) -> 0 | AC71: =(AB71-RSAInc!AB71)*(1+RSARet!AB71) -> 0 | AD71: =(AC71-RSAInc!AC71)*(1+RSARet!AC71) -> 0 | AE71: =(AD71-RSAInc!AD71)*(1+RSARet!AD71) -> 0 | AF71: =(AE71-RSAInc!AE71)*(1+RSARet!AE71) -> 0 | AG71: =(AF71-RSAInc!AF71)*(1+RSARet!AF71) -> 0 | AH71: =(AG71-RSAInc!AG71)*(1+RSARet!AG71) -> 0 | AI71: =(AH71-RSAInc!AH71)*(1+RSARet!AH71) -> 0 | AJ71: =(AI71-RSAInc!AI71)*(1+RSARet!AI71) -> 0 | AK71: =(AJ71-RSAInc!AJ71)*(1+RSARet!AJ71) -> 0 | AL71: =(AK71-RSAInc!AK71)*(1+RSARet!AK71) -> 0 | AM71: =(AL71-RSAInc!AL71)*(1+RSARet!AL71) -> 0 | AN71: =(AM71-RSAInc!AM71)*(1+RSARet!AM71) -> 0 | AO71: =(AN71-RSAInc!AN71)*(1+RSARet!AN71) -> 0 | AP71: =(AO71-RSAInc!AO71)*(1+RSARet!AO71) -> 0 | AQ71: =(AP71-RSAInc!AP71)*(1+RSARet!AP71) -> 0 | AR71: =(AQ71-RSAInc!AQ71)*(1+RSARet!AQ71) -> 0 | AS71: =(AR71-RSAInc!AR71)*(1+RSARet!AR71) -> 0 | AT71: =(AS71-RSAInc!AS71)*(1+RSARet!AS71) -> 0 | AU71: =(AT71-RSAInc!AT71)*(1+RSARet!AT71) -> 0 | AW71: 80 | AX71: =IF(AW71="",0,LOOKUP(AW71,'Retiree Details and Assumptions'!D$43:D$88,'Retiree Details and Assumptions'!E$43:E$88)) -> 0.8135841249 | AY71: =IF(AW71="","",LOOKUP(AW71,'Retiree Details and Assumptions'!D$43:D$88,'Retiree Details and Assumptions'!H$43:H$88)) -> 10.98882934
A72: 71 | B72: 250000 | C72: =(B72-RSAInc!B72)*(1+RSARet!B72) -> 232622.0918 | D72: =(C72-RSAInc!C72)*(1+RSARet!C72) -> 213764.7141 | E72: =(D72-RSAInc!D72)*(1+RSARet!D72) -> 200007.2704 | F72: =(E72-RSAInc!E72)*(1+RSARet!E72) -> 186623.9233 | G72: =(F72-RSAInc!F72)*(1+RSARet!F72) -> 173502.9833 | H72: =(G72-RSAInc!G72)*(1+RSARet!G72) -> 154430.8307 | I72: =(H72-RSAInc!H72)*(1+RSARet!H72) -> 143719.9321 | J72: =(I72-RSAInc!I72)*(1+RSARet!I72) -> 130349.2911 | K72: =(J72-RSAInc!J72)*(1+RSARet!J72) -> 114163.1934 | L72: =(K72-RSAInc!K72)*(1+RSARet!K72) -> 103964.9884 | M72: =(L72-RSAInc!L72)*(1+RSARet!L72) -> 84030.61097 | N72: =(M72-RSAInc!M72)*(1+RSARet!M72) -> 70643.42231 | O72: =(N72-RSAInc!N72)*(1+RSARet!N72) -> 52520.37115 | P72: =(O72-RSAInc!O72)*(1+RSARet!O72) -> 35501.49885 | Q72: =(P72-RSAInc!P72)*(1+RSARet!P72) -> 16977.22985 | R72: =(Q72-RSAInc!Q72)*(1+RSARet!Q72) -> 0 | S72: =(R72-RSAInc!R72)*(1+RSARet!R72) -> 0 | T72: =(S72-RSAInc!S72)*(1+RSARet!S72) -> 0 | U72: =(T72-RSAInc!T72)*(1+RSARet!T72) -> 0 | V72: =(U72-RSAInc!U72)*(1+RSARet!U72) -> 0 | W72: =(V72-RSAInc!V72)*(1+RSARet!V72) -> 0 | X72: =(W72-RSAInc!W72)*(1+RSARet!W72) -> 0 | Y72: =(X72-RSAInc!X72)*(1+RSARet!X72) -> 0 | Z72: =(Y72-RSAInc!Y72)*(1+RSARet!Y72) -> 0 | AA72: =(Z72-RSAInc!Z72)*(1+RSARet!Z72) -> 0 | AB72: =(AA72-RSAInc!AA72)*(1+RSARet!AA72) -> 0 | AC72: =(AB72-RSAInc!AB72)*(1+RSARet!AB72) -> 0 | AD72: =(AC72-RSAInc!AC72)*(1+RSARet!AC72) -> 0 | AE72: =(AD72-RSAInc!AD72)*(1+RSARet!AD72) -> 0 | AF72: =(AE72-RSAInc!AE72)*(1+RSARet!AE72) -> 0 | AG72: =(AF72-RSAInc!AF72)*(1+RSARet!AF72) -> 0 | AH72: =(AG72-RSAInc!AG72)*(1+RSARet!AG72) -> 0 | AI72: =(AH72-RSAInc!AH72)*(1+RSARet!AH72) -> 0 | AJ72: =(AI72-RSAInc!AI72)*(1+RSARet!AI72) -> 0 | AK72: =(AJ72-RSAInc!AJ72)*(1+RSARet!AJ72) -> 0 | AL72: =(AK72-RSAInc!AK72)*(1+RSARet!AK72) -> 0 | AM72: =(AL72-RSAInc!AL72)*(1+RSARet!AL72) -> 0 | AN72: =(AM72-RSAInc!AM72)*(1+RSARet!AM72) -> 0 | AO72: =(AN72-RSAInc!AN72)*(1+RSARet!AN72) -> 0 | AP72: =(AO72-RSAInc!AO72)*(1+RSARet!AO72) -> 0 | AQ72: =(AP72-RSAInc!AP72)*(1+RSARet!AP72) -> 0 | AR72: =(AQ72-RSAInc!AQ72)*(1+RSARet!AQ72) -> 0 | AS72: =(AR72-RSAInc!AR72)*(1+RSARet!AR72) -> 0 | AT72: =(AS72-RSAInc!AS72)*(1+RSARet!AS72) -> 0 | AU72: =(AT72-RSAInc!AT72)*(1+RSARet!AT72) -> 0 | AW72: 80 | AX72: =IF(AW72="",0,LOOKUP(AW72,'Retiree Details and Assumptions'!D$43:D$88,'Retiree Details and Assumptions'!E$43:E$88)) -> 0.8135841249 | AY72: =IF(AW72="","",LOOKUP(AW72,'Retiree Details and Assumptions'!D$43:D$88,'Retiree Details and Assumptions'!H$43:H$88)) -> 10.98882934
A73: 72 | B73: 250000 | C73: =(B73-RSAInc!B73)*(1+RSARet!B73) -> 232882.1258 | D73: =(C73-RSAInc!C73)*(1+RSARet!C73) -> 209515.8292 | E73: =(D73-RSAInc!D73)*(1+RSARet!D73) -> 189789.6145 | F73: =(E73-RSAInc!E73)*(1+RSARet!E73) -> 162272.8272 | G73: =(F73-RSAInc!F73)*(1+RSARet!F73) -> 147108.4008 | H73: =(G73-RSAInc!G73)*(1+RSARet!G73) -> 137107.5553 | I73: =(H73-RSAInc!H73)*(1+RSARet!H73) -> 126883.2584 | J73: =(I73-RSAInc!I73)*(1+RSARet!I73) -> 115074.0918 | K73: =(J73-RSAInc!J73)*(1+RSARet!J73) -> 98678.38244 | L73: =(K73-RSAInc!K73)*(1+RSARet!K73) -> 82650.7629 | M73: =(L73-RSAInc!L73)*(1+RSARet!L73) -> 63372.09733 | N73: =(M73-RSAInc!M73)*(1+RSARet!M73) -> 45331.36328 | O73: =(N73-RSAInc!N73)*(1+RSARet!N73) -> 26716.82876 | P73: =(O73-RSAInc!O73)*(1+RSARet!O73) -> 8218.764219 | Q73: =(P73-RSAInc!P73)*(1+RSARet!P73) -> 0 | R73: =(Q73-RSAInc!Q73)*(1+RSARet!Q73) -> 0 | S73: =(R73-RSAInc!R73)*(1+RSARet!R73) -> 0 | T73: =(S73-RSAInc!S73)*(1+RSARet!S73) -> 0 | U73: =(T73-RSAInc!T73)*(1+RSARet!T73) -> 0 | V73: =(U73-RSAInc!U73)*(1+RSARet!U73) -> 0 | W73: =(V73-RSAInc!V73)*(1+RSARet!V73) -> 0 | X73: =(W73-RSAInc!W73)*(1+RSARet!W73) -> 0 | Y73: =(X73-RSAInc!X73)*(1+RSARet!X73) -> 0 | Z73: =(Y73-RSAInc!Y73)*(1+RSARet!Y73) -> 0 | AA73: =(Z73-RSAInc!Z73)*(1+RSARet!Z73) -> 0 | AB73: =(AA73-RSAInc!AA73)*(1+RSARet!AA73) -> 0 | AC73: =(AB73-RSAInc!AB73)*(1+RSARet!AB73) -> 0 | AD73: =(AC73-RSAInc!AC73)*(1+RSARet!AC73) -> 0 | AE73: =(AD73-RSAInc!AD73)*(1+RSARet!AD73) -> 0 | AF73: =(AE73-RSAInc!AE73)*(1+RSARet!AE73) -> 0 | AG73: =(AF73-RSAInc!AF73)*(1+RSARet!AF73) -> 0 | AH73: =(AG73-RSAInc!AG73)*(1+RSARet!AG73) -> 0 | AI73: =(AH73-RSAInc!AH73)*(1+RSARet!AH73) -> 0 | AJ73: =(AI73-RSAInc!AI73)*(1+RSARet!AI73) -> 0 | AK73: =(AJ73-RSAInc!AJ73)*(1+RSARet!AJ73) -> 0 | AL73: =(AK73-RSAInc!AK73)*(1+RSARet!AK73) -> 0 | AM73: =(AL73-RSAInc!AL73)*(1+RSARet!AL73) -> 0 | AN73: =(AM73-RSAInc!AM73)*(1+RSARet!AM73) -> 0 | AO73: =(AN73-RSAInc!AN73)*(1+RSARet!AN73) -> 0 | AP73: =(AO73-RSAInc!AO73)*(1+RSARet!AO73) -> 0 | AQ73: =(AP73-RSAInc!AP73)*(1+RSARet!AP73) -> 0 | AR73: =(AQ73-RSAInc!AQ73)*(1+RSARet!AQ73) -> 0 | AS73: =(AR73-RSAInc!AR73)*(1+RSARet!AR73) -> 0 | AT73: =(AS73-RSAInc!AS73)*(1+RSARet!AS73) -> 0 | AU73: =(AT73-RSAInc!AT73)*(1+RSARet!AT73) -> 0 | AW73: 79 | AX73: =IF(AW73="",0,LOOKUP(AW73,'Retiree Details and Assumptions'!D$43:D$88,'Retiree Details and Assumptions'!E$43:E$88)) -> 0.8366936022 | AY73: =IF(AW73="","",LOOKUP(AW73,'Retiree Details and Assumptions'!D$43:D$88,'Retiree Details and Assumptions'!H$43:H$88)) -> 11.68531787
A74: 73 | B74: 250000 | C74: =(B74-RSAInc!B74)*(1+RSARet!B74) -> 238961.2632 | D74: =(C74-RSAInc!C74)*(1+RSARet!C74) -> 215799.9705 | E74: =(D74-RSAInc!D74)*(1+RSARet!D74) -> 209803.443 | F74: =(E74-RSAInc!E74)*(1+RSARet!E74) -> 195523.4237 | G74: =(F74-RSAInc!F74)*(1+RSARet!F74) -> 187060.586 | H74: =(G74-RSAInc!G74)*(1+RSARet!G74) -> 183688.8912 | I74: =(H74-RSAInc!H74)*(1+RSARet!H74) -> 165328.9113 | J74: =(I74-RSAInc!I74)*(1+RSARet!I74) -> 147299.3947 | K74: =(J74-RSAInc!J74)*(1+RSARet!J74) -> 126647.7338 | L74: =(K74-RSAInc!K74)*(1+RSARet!K74) -> 104780.5424 | M74: =(L74-RSAInc!L74)*(1+RSARet!L74) -> 88364.20231 | N74: =(M74-RSAInc!M74)*(1+RSARet!M74) -> 67570.3487 | O74: =(N74-RSAInc!N74)*(1+RSARet!N74) -> 46575.78671 | P74: =(O74-RSAInc!O74)*(1+RSARet!O74) -> 28798.74779 | Q74: =(P74-RSAInc!P74)*(1+RSARet!P74) -> 9889.074133 | R74: =(Q74-RSAInc!Q74)*(1+RSARet!Q74) -> 0 | S74: =(R74-RSAInc!R74)*(1+RSARet!R74) -> 0 | T74: =(S74-RSAInc!S74)*(1+RSARet!S74) -> 0 | U74: =(T74-RSAInc!T74)*(1+RSARet!T74) -> 0 | V74: =(U74-RSAInc!U74)*(1+RSARet!U74) -> 0 | W74: =(V74-RSAInc!V74)*(1+RSARet!V74) -> 0 | X74: =(W74-RSAInc!W74)*(1+RSARet!W74) -> 0 | Y74: =(X74-RSAInc!X74)*(1+RSARet!X74) -> 0 | Z74: =(Y74-RSAInc!Y74)*(1+RSARet!Y74) -> 0 | AA74: =(Z74-RSAInc!Z74)*(1+RSARet!Z74) -> 0 | AB74: =(AA74-RSAInc!AA74)*(1+RSARet!AA74) -> 0 | AC74: =(AB74-RSAInc!AB74)*(1+RSARet!AB74) -> 0 | AD74: =(AC74-RSAInc!AC74)*(1+RSARet!AC74) -> 0 | AE74: =(AD74-RSAInc!AD74)*(1+RSARet!AD74) -> 0 | AF74: =(AE74-RSAInc!AE74)*(1+RSARet!AE74) -> 0 | AG74: =(AF74-RSAInc!AF74)*(1+RSARet!AF74) -> 0 | AH74: =(AG74-RSAInc!AG74)*(1+RSARet!AG74) -> 0 | AI74: =(AH74-RSAInc!AH74)*(1+RSARet!AH74) -> 0 | AJ74: =(AI74-RSAInc!AI74)*(1+RSARet!AI74) -> 0 | AK74: =(AJ74-RSAInc!AJ74)*(1+RSARet!AJ74) -> 0 | AL74: =(AK74-RSAInc!AK74)*(1+RSARet!AK74) -> 0 | AM74: =(AL74-RSAInc!AL74)*(1+RSARet!AL74) -> 0 | AN74: =(AM74-RSAInc!AM74)*(1+RSARet!AM74) -> 0 | AO74: =(AN74-RSAInc!AN74)*(1+RSARet!AN74) -> 0 | AP74: =(AO74-RSAInc!AO74)*(1+RSARet!AO74) -> 0 | AQ74: =(AP74-RSAInc!AP74)*(1+RSARet!AP74) -> 0 | AR74: =(AQ74-RSAInc!AQ74)*(1+RSARet!AQ74) -> 0 | AS74: =(AR74-RSAInc!AR74)*(1+RSARet!AR74) -> 0 | AT74: =(AS74-RSAInc!AS74)*(1+RSARet!AS74) -> 0 | AU74: =(AT74-RSAInc!AT74)*(1+RSARet!AT74) -> 0 | AW74: 80 | AX74: =IF(AW74="",0,LOOKUP(AW74,'Retiree Details and Assumptions'!D$43:D$88,'Retiree Details and Assumptions'!E$43:E$88)) -> 0.8135841249 | AY74: =IF(AW74="","",LOOKUP(AW74,'Retiree Details and Assumptions'!D$43:D$88,'Retiree Details and Assumptions'!H$43:H$88)) -> 10.98882934
A75: 74 | B75: 250000 | C75: =(B75-RSAInc!B75)*(1+RSARet!B75) -> 233303.4786 | D75: =(C75-RSAInc!C75)*(1+RSARet!C75) -> 225262.4001 | E75: =(D75-RSAInc!D75)*(1+RSARet!D75) -> 200007.0609 | F75: =(E75-RSAInc!E75)*(1+RSARet!E75) -> 183330.1682 | G75: =(F75-RSAInc!F75)*(1+RSARet!F75) -> 173431.5891 | H75: =(G75-RSAInc!G75)*(1+RSARet!G75) -> 153375.3483 | I75: =(H75-RSAInc!H75)*(1+RSARet!H75) -> 133981.5103 | J75: =(I75-RSAInc!I75)*(1+RSARet!I75) -> 118119.6477 | K75: =(J75-RSAInc!J75)*(1+RSARet!J75) -> 103317.074 | L75: =(K75-RSAInc!K75)*(1+RSARet!K75) -> 87184.47294 | M75: =(L75-RSAInc!L75)*(1+RSARet!L75) -> 69706.36801 | N75: =(M75-RSAInc!M75)*(1+RSARet!M75) -> 52998.1742 | O75: =(N75-RSAInc!N75)*(1+RSARet!N75) -> 35975.30129 | P75: =(O75-RSAInc!O75)*(1+RSARet!O75) -> 17247.80128 | Q75: =(P75-RSAInc!P75)*(1+RSARet!P75) -> 0 | R75: =(Q75-RSAInc!Q75)*(1+RSARet!Q75) -> 0 | S75: =(R75-RSAInc!R75)*(1+RSARet!R75) -> 0 | T75: =(S75-RSAInc!S75)*(1+RSARet!S75) -> 0 | U75: =(T75-RSAInc!T75)*(1+RSARet!T75) -> 0 | V75: =(U75-RSAInc!U75)*(1+RSARet!U75) -> 0 | W75: =(V75-RSAInc!V75)*(1+RSARet!V75) -> 0 | X75: =(W75-RSAInc!W75)*(1+RSARet!W75) -> 0 | Y75: =(X75-RSAInc!X75)*(1+RSARet!X75) -> 0 | Z75: =(Y75-RSAInc!Y75)*(1+RSARet!Y75) -> 0 | AA75: =(Z75-RSAInc!Z75)*(1+RSARet!Z75) -> 0 | AB75: =(AA75-RSAInc!AA75)*(1+RSARet!AA75) -> 0 | AC75: =(AB75-RSAInc!AB75)*(1+RSARet!AB75) -> 0 | AD75: =(AC75-RSAInc!AC75)*(1+RSARet!AC75) -> 0 | AE75: =(AD75-RSAInc!AD75)*(1+RSARet!AD75) -> 0 | AF75: =(AE75-RSAInc!AE75)*(1+RSARet!AE75) -> 0 | AG75: =(AF75-RSAInc!AF75)*(1+RSARet!AF75) -> 0 | AH75: =(AG75-RSAInc!AG75)*(1+RSARet!AG75) -> 0 | AI75: =(AH75-RSAInc!AH75)*(1+RSARet!AH75) -> 0 | AJ75: =(AI75-RSAInc!AI75)*(1+RSARet!AI75) -> 0 | AK75: =(AJ75-RSAInc!AJ75)*(1+RSARet!AJ75) -> 0 | AL75: =(AK75-RSAInc!AK75)*(1+RSARet!AK75) -> 0 | AM75: =(AL75-RSAInc!AL75)*(1+RSARet!AL75) -> 0 | AN75: =(AM75-RSAInc!AM75)*(1+RSARet!AM75) -> 0 | AO75: =(AN75-RSAInc!AN75)*(1+RSARet!AN75) -> 0 | AP75: =(AO75-RSAInc!AO75)*(1+RSARet!AO75) -> 0 | AQ75: =(AP75-RSAInc!AP75)*(1+RSARet!AP75) -> 0 | AR75: =(AQ75-RSAInc!AQ75)*(1+RSARet!AQ75) -> 0 | AS75: =(AR75-RSAInc!AR75)*(1+RSARet!AR75) -> 0 | AT75: =(AS75-RSAInc!AS75)*(1+RSARet!AS75) -> 0 | AU75: =(AT75-RSAInc!AT75)*(1+RSARet!AT75) -> 0 | AW75: 79 | AX75: =IF(AW75="",0,LOOKUP(AW75,'Retiree Details and Assumptions'!D$43:D$88,'Retiree Details and Assumptions'!E$43:E$88)) -> 0.8366936022 | AY75: =IF(AW75="","",LOOKUP(AW75,'Retiree Details and Assumptions'!D$43:D$88,'Retiree Details and Assumptions'!H$43:H$88)) -> 11.68531787
A76: 75 | B76: 250000 | C76: =(B76-RSAInc!B76)*(1+RSARet!B76) -> 219723.5367 | D76: =(C76-RSAInc!C76)*(1+RSARet!C76) -> 195817.8527 | E76: =(D76-RSAInc!D76)*(1+RSARet!D76) -> 174037.2673 | F76: =(E76-RSAInc!E76)*(1+RSARet!E76) -> 151870.049 | G76: =(F76-RSAInc!F76)*(1+RSARet!F76) -> 147415.8606 | H76: =(G76-RSAInc!G76)*(1+RSARet!G76) -> 135160.0017 | I76: =(H76-RSAInc!H76)*(1+RSARet!H76) -> 119657.8451 | J76: =(I76-RSAInc!I76)*(1+RSARet!I76) -> 107425.3544 | K76: =(J76-RSAInc!J76)*(1+RSARet!J76) -> 93289.14076 | L76: =(K76-RSAInc!K76)*(1+RSARet!K76) -> 74556.33737 | M76: =(L76-RSAInc!L76)*(1+RSARet!L76) -> 55969.00636 | N76: =(M76-RSAInc!M76)*(1+RSARet!M76) -> 38382.11195 | O76: =(N76-RSAInc!N76)*(1+RSARet!N76) -> 21547.46475 | P76: =(O76-RSAInc!O76)*(1+RSARet!O76) -> 2867.59685 | Q76: =(P76-RSAInc!P76)*(1+RSARet!P76) -> 0 | R76: =(Q76-RSAInc!Q76)*(1+RSARet!Q76) -> 0 | S76: =(R76-RSAInc!R76)*(1+RSARet!R76) -> 0 | T76: =(S76-RSAInc!S76)*(1+RSARet!S76) -> 0 | U76: =(T76-RSAInc!T76)*(1+RSARet!T76) -> 0 | V76: =(U76-RSAInc!U76)*(1+RSARet!U76) -> 0 | W76: =(V76-RSAInc!V76)*(1+RSARet!V76) -> 0 | X76: =(W76-RSAInc!W76)*(1+RSARet!W76) -> 0 | Y76: =(X76-RSAInc!X76)*(1+RSARet!X76) -> 0 | Z76: =(Y76-RSAInc!Y76)*(1+RSARet!Y76) -> 0 | AA76: =(Z76-RSAInc!Z76)*(1+RSARet!Z76) -> 0 | AB76: =(AA76-RSAInc!AA76)*(1+RSARet!AA76) -> 0 | AC76: =(AB76-RSAInc!AB76)*(1+RSARet!AB76) -> 0 | AD76: =(AC76-RSAInc!AC76)*(1+RSARet!AC76) -> 0 | AE76: =(AD76-RSAInc!AD76)*(1+RSARet!AD76) -> 0 | AF76: =(AE76-RSAInc!AE76)*(1+RSARet!AE76) -> 0 | AG76: =(AF76-RSAInc!AF76)*(1+RSARet!AF76) -> 0 | AH76: =(AG76-RSAInc!AG76)*(1+RSARet!AG76) -> 0 | AI76: =(AH76-RSAInc!AH76)*(1+RSARet!AH76) -> 0 | AJ76: =(AI76-RSAInc!AI76)*(1+RSARet!AI76) -> 0 | AK76: =(AJ76-RSAInc!AJ76)*(1+RSARet!AJ76) -> 0 | AL76: =(AK76-RSAInc!AK76)*(1+RSARet!AK76) -> 0 | AM76: =(AL76-RSAInc!AL76)*(1+RSARet!AL76) -> 0 | AN76: =(AM76-RSAInc!AM76)*(1+RSARet!AM76) -> 0 | AO76: =(AN76-RSAInc!AN76)*(1+RSARet!AN76) -> 0 | AP76: =(AO76-RSAInc!AO76)*(1+RSARet!AO76) -> 0 | AQ76: =(AP76-RSAInc!AP76)*(1+RSARet!AP76) -> 0 | AR76: =(AQ76-RSAInc!AQ76)*(1+RSARet!AQ76) -> 0 | AS76: =(AR76-RSAInc!AR76)*(1+RSARet!AR76) -> 0 | AT76: =(AS76-RSAInc!AS76)*(1+RSARet!AS76) -> 0 | AU76: =(AT76-RSAInc!AT76)*(1+RSARet!AT76) -> 0 | AW76: 79 | AX76: =IF(AW76="",0,LOOKUP(AW76,'Retiree Details and Assumptions'!D$43:D$88,'Retiree Details and Assumptions'!E$43:E$88)) -> 0.8366936022 | AY76: =IF(AW76="","",LOOKUP(AW76,'Retiree Details and Assumptions'!D$43:D$88,'Retiree Details and Assumptions'!H$43:H$88)) -> 11.68531787
A77: 76 | B77: 250000 | C77: =(B77-RSAInc!B77)*(1+RSARet!B77) -> 247114.6364 | D77: =(C77-RSAInc!C77)*(1+RSARet!C77) -> 226583.9457 | E77: =(D77-RSAInc!D77)*(1+RSARet!D77) -> 217957.7041 | F77: =(E77-RSAInc!E77)*(1+RSARet!E77) -> 197054.5621 | G77: =(F77-RSAInc!F77)*(1+RSARet!F77) -> 171416.4706 | H77: =(G77-RSAInc!G77)*(1+RSARet!G77) -> 157036.3904 | I77: =(H77-RSAInc!H77)*(1+RSARet!H77) -> 144591.8197 | J77: =(I77-RSAInc!I77)*(1+RSARet!I77) -> 126137.0287 | K77: =(J77-RSAInc!J77)*(1+RSARet!J77) -> 113306.4692 | L77: =(K77-RSAInc!K77)*(1+RSARet!K77) -> 97174.52686 | M77: =(L77-RSAInc!L77)*(1+RSARet!L77) -> 79929.37833 | N77: =(M77-RSAInc!M77)*(1+RSARet!M77) -> 66101.84227 | O77: =(N77-RSAInc!N77)*(1+RSARet!N77) -> 50090.78179 | P77: =(O77-RSAInc!O77)*(1+RSARet!O77) -> 30069.0693 | Q77: =(P77-RSAInc!P77)*(1+RSARet!P77) -> 11608.10738 | R77: =(Q77-RSAInc!Q77)*(1+RSARet!Q77) -> 0 | S77: =(R77-RSAInc!R77)*(1+RSARet!R77) -> 0 | T77: =(S77-RSAInc!S77)*(1+RSARet!S77) -> 0 | U77: =(T77-RSAInc!T77)*(1+RSARet!T77) -> 0 | V77: =(U77-RSAInc!U77)*(1+RSARet!U77) -> 0 | W77: =(V77-RSAInc!V77)*(1+RSARet!V77) -> 0 | X77: =(W77-RSAInc!W77)*(1+RSARet!W77) -> 0 | Y77: =(X77-RSAInc!X77)*(1+RSARet!X77) -> 0 | Z77: =(Y77-RSAInc!Y77)*(1+RSARet!Y77) -> 0 | AA77: =(Z77-RSAInc!Z77)*(1+RSARet!Z77) -> 0 | AB77: =(AA77-RSAInc!AA77)*(1+RSARet!AA77) -> 0 | AC77: =(AB77-RSAInc!AB77)*(1+RSARet!AB77) -> 0 | AD77: =(AC77-RSAInc!AC77)*(1+RSARet!AC77) -> 0 | AE77: =(AD77-RSAInc!AD77)*(1+RSARet!AD77) -> 0 | AF77: =(AE77-RSAInc!AE77)*(1+RSARet!AE77) -> 0 | AG77: =(AF77-RSAInc!AF77)*(1+RSARet!AF77) -> 0 | AH77: =(AG77-RSAInc!AG77)*(1+RSARet!AG77) -> 0 | AI77: =(AH77-RSAInc!AH77)*(1+RSARet!AH77) -> 0 | AJ77: =(AI77-RSAInc!AI77)*(1+RSARet!AI77) -> 0 | AK77: =(AJ77-RSAInc!AJ77)*(1+RSARet!AJ77) -> 0 | AL77: =(AK77-RSAInc!AK77)*(1+RSARet!AK77) -> 0 | AM77: =(AL77-RSAInc!AL77)*(1+RSARet!AL77) -> 0 | AN77: =(AM77-RSAInc!AM77)*(1+RSARet!AM77) -> 0 | AO77: =(AN77-RSAInc!AN77)*(1+RSARet!AN77) -> 0 | AP77: =(AO77-RSAInc!AO77)*(1+RSARet!AO77) -> 0 | AQ77: =(AP77-RSAInc!AP77)*(1+RSARet!AP77) -> 0 | AR77: =(AQ77-RSAInc!AQ77)*(1+RSARet!AQ77) -> 0 | AS77: =(AR77-RSAInc!AR77)*(1+RSARet!AR77) -> 0 | AT77: =(AS77-RSAInc!AS77)*(1+RSARet!AS77) -> 0 | AU77: =(AT77-RSAInc!AT77)*(1+RSARet!AT77) -> 0 | AW77: 80 | AX77: =IF(AW77="",0,LOOKUP(AW77,'Retiree Details and Assumptions'!D$43:D$88,'Retiree Details and Assumptions'!E$43:E$88)) -> 0.8135841249 | AY77: =IF(AW77="","",LOOKUP(AW77,'Retiree Details and Assumptions'!D$43:D$88,'Retiree Details and Assumptions'!H$43:H$88)) -> 10.98882934
A78: 77 | B78: 250000 | C78: =(B78-RSAInc!B78)*(1+RSARet!B78) -> 240081.8791 | D78: =(C78-RSAInc!C78)*(1+RSARet!C78) -> 229170.4856 | E78: =(D78-RSAInc!D78)*(1+RSARet!D78) -> 216534.0223 | F78: =(E78-RSAInc!E78)*(1+RSARet!E78) -> 197491.83 | G78: =(F78-RSAInc!F78)*(1+RSARet!F78) -> 186855.273 | H78: =(G78-RSAInc!G78)*(1+RSARet!G78) -> 170031.3562 | I78: =(H78-RSAInc!H78)*(1+RSARet!H78) -> 151513.9117 | J78: =(I78-RSAInc!I78)*(1+RSARet!I78) -> 128494.8361 | K78: =(J78-RSAInc!J78)*(1+RSARet!J78) -> 110788.0639 | L78: =(K78-RSAInc!K78)*(1+RSARet!K78) -> 95018.17312 | M78: =(L78-RSAInc!L78)*(1+RSARet!L78) -> 80179.43459 | N78: =(M78-RSAInc!M78)*(1+RSARet!M78) -> 65520.82506 | O78: =(N78-RSAInc!N78)*(1+RSARet!N78) -> 47553.52002 | P78: =(O78-RSAInc!O78)*(1+RSARet!O78) -> 30502.36263 | Q78: =(P78-RSAInc!P78)*(1+RSARet!P78) -> 11873.55423 | R78: =(Q78-RSAInc!Q78)*(1+RSARet!Q78) -> 0 | S78: =(R78-RSAInc!R78)*(1+RSARet!R78) -> 0 | T78: =(S78-RSAInc!S78)*(1+RSARet!S78) -> 0 | U78: =(T78-RSAInc!T78)*(1+RSARet!T78) -> 0 | V78: =(U78-RSAInc!U78)*(1+RSARet!U78) -> 0 | W78: =(V78-RSAInc!V78)*(1+RSARet!V78) -> 0 | X78: =(W78-RSAInc!W78)*(1+RSARet!W78) -> 0 | Y78: =(X78-RSAInc!X78)*(1+RSARet!X78) -> 0 | Z78: =(Y78-RSAInc!Y78)*(1+RSARet!Y78) -> 0 | AA78: =(Z78-RSAInc!Z78)*(1+RSARet!Z78) -> 0 | AB78: =(AA78-RSAInc!AA78)*(1+RSARet!AA78) -> 0 | AC78: =(AB78-RSAInc!AB78)*(1+RSARet!AB78) -> 0 | AD78: =(AC78-RSAInc!AC78)*(1+RSARet!AC78) -> 0 | AE78: =(AD78-RSAInc!AD78)*(1+RSARet!AD78) -> 0 | AF78: =(AE78-RSAInc!AE78)*(1+RSARet!AE78) -> 0 | AG78: =(AF78-RSAInc!AF78)*(1+RSARet!AF78) -> 0 | AH78: =(AG78-RSAInc!AG78)*(1+RSARet!AG78) -> 0 | AI78: =(AH78-RSAInc!AH78)*(1+RSARet!AH78) -> 0 | AJ78: =(AI78-RSAInc!AI78)*(1+RSARet!AI78) -> 0 | AK78: =(AJ78-RSAInc!AJ78)*(1+RSARet!AJ78) -> 0 | AL78: =(AK78-RSAInc!AK78)*(1+RSARet!AK78) -> 0 | AM78: =(AL78-RSAInc!AL78)*(1+RSARet!AL78) -> 0 | AN78: =(AM78-RSAInc!AM78)*(1+RSARet!AM78) -> 0 | AO78: =(AN78-RSAInc!AN78)*(1+RSARet!AN78) -> 0 | AP78: =(AO78-RSAInc!AO78)*(1+RSARet!AO78) -> 0 | AQ78: =(AP78-RSAInc!AP78)*(1+RSARet!AP78) -> 0 | AR78: =(AQ78-RSAInc!AQ78)*(1+RSARet!AQ78) -> 0 | AS78: =(AR78-RSAInc!AR78)*(1+RSARet!AR78) -> 0 | AT78: =(AS78-RSAInc!AS78)*(1+RSARet!AS78) -> 0 | AU78: =(AT78-RSAInc!AT78)*(1+RSARet!AT78) -> 0 | AW78: 80 | AX78: =IF(AW78="",0,LOOKUP(AW78,'Retiree Details and Assumptions'!D$43:D$88,'Retiree Details and Assumptions'!E$43:E$88)) -> 0.8135841249 | AY78: =IF(AW78="","",LOOKUP(AW78,'Retiree Details and Assumptions'!D$43:D$88,'Retiree Details and Assumptions'!H$43:H$88)) -> 10.98882934
A79: 78 | B79: 250000 | C79: =(B79-RSAInc!B79)*(1+RSARet!B79) -> 253373.094 | D79: =(C79-RSAInc!C79)*(1+RSARet!C79) -> 239820.9965 | E79: =(D79-RSAInc!D79)*(1+RSARet!D79) -> 213179.6113 | F79: =(E79-RSAInc!E79)*(1+RSARet!E79) -> 190762.4189 | G79: =(F79-RSAInc!F79)*(1+RSARet!F79) -> 173499.8379 | H79: =(G79-RSAInc!G79)*(1+RSARet!G79) -> 166952.3632 | I79: =(H79-RSAInc!H79)*(1+RSARet!H79) -> 154590.7182 | J79: =(I79-RSAInc!I79)*(1+RSARet!I79) -> 140971.8624 | K79: =(J79-RSAInc!J79)*(1+RSARet!J79) -> 126385.7881 | L79: =(K79-RSAInc!K79)*(1+RSARet!K79) -> 110315.0228 | M79: =(L79-RSAInc!L79)*(1+RSARet!L79) -> 89949.05988 | N79: =(M79-RSAInc!M79)*(1+RSARet!M79) -> 72618.83522 | O79: =(N79-RSAInc!N79)*(1+RSARet!N79) -> 57494.16215 | P79: =(O79-RSAInc!O79)*(1+RSARet!O79) -> 41715.20239 | Q79: =(P79-RSAInc!P79)*(1+RSARet!P79) -> 23875.18704 | R79: =(Q79-RSAInc!Q79)*(1+RSARet!Q79) -> 5410.742053 | S79: =(R79-RSAInc!R79)*(1+RSARet!R79) -> 0 | T79: =(S79-RSAInc!S79)*(1+RSARet!S79) -> 0 | U79: =(T79-RSAInc!T79)*(1+RSARet!T79) -> 0 | V79: =(U79-RSAInc!U79)*(1+RSARet!U79) -> 0 | W79: =(V79-RSAInc!V79)*(1+RSARet!V79) -> 0 | X79: =(W79-RSAInc!W79)*(1+RSARet!W79) -> 0 | Y79: =(X79-RSAInc!X79)*(1+RSARet!X79) -> 0 | Z79: =(Y79-RSAInc!Y79)*(1+RSARet!Y79) -> 0 | AA79: =(Z79-RSAInc!Z79)*(1+RSARet!Z79) -> 0 | AB79: =(AA79-RSAInc!AA79)*(1+RSARet!AA79) -> 0 | AC79: =(AB79-RSAInc!AB79)*(1+RSARet!AB79) -> 0 | AD79: =(AC79-RSAInc!AC79)*(1+RSARet!AC79) -> 0 | AE79: =(AD79-RSAInc!AD79)*(1+RSARet!AD79) -> 0 | AF79: =(AE79-RSAInc!AE79)*(1+RSARet!AE79) -> 0 | AG79: =(AF79-RSAInc!AF79)*(1+RSARet!AF79) -> 0 | AH79: =(AG79-RSAInc!AG79)*(1+RSARet!AG79) -> 0 | AI79: =(AH79-RSAInc!AH79)*(1+RSARet!AH79) -> 0 | AJ79: =(AI79-RSAInc!AI79)*(1+RSARet!AI79) -> 0 | AK79: =(AJ79-RSAInc!AJ79)*(1+RSARet!AJ79) -> 0 | AL79: =(AK79-RSAInc!AK79)*(1+RSARet!AK79) -> 0 | AM79: =(AL79-RSAInc!AL79)*(1+RSARet!AL79) -> 0 | AN79: =(AM79-RSAInc!AM79)*(1+RSARet!AM79) -> 0 | AO79: =(AN79-RSAInc!AN79)*(1+RSARet!AN79) -> 0 | AP79: =(AO79-RSAInc!AO79)*(1+RSARet!AO79) -> 0 | AQ79: =(AP79-RSAInc!AP79)*(1+RSARet!AP79) -> 0 | AR79: =(AQ79-RSAInc!AQ79)*(1+RSARet!AQ79) -> 0 | AS79: =(AR79-RSAInc!AR79)*(1+RSARet!AR79) -> 0 | AT79: =(AS79-RSAInc!AS79)*(1+RSARet!AS79) -> 0 | AU79: =(AT79-RSAInc!AT79)*(1+RSARet!AT79) -> 0 | AW79: 81 | AX79: =IF(AW79="",0,LOOKUP(AW79,'Retiree Details and Assumptions'!D$43:D$88,'Retiree Details and Assumptions'!E$43:E$88)) -> 0.787874053 | AY79: =IF(AW79="","",LOOKUP(AW79,'Retiree Details and Assumptions'!D$43:D$88,'Retiree Details and Assumptions'!H$43:H$88)) -> 10.31478692
A80: 79 | B80: 250000 | C80: =(B80-RSAInc!B80)*(1+RSARet!B80) -> 227418.3639 | D80: =(C80-RSAInc!C80)*(1+RSARet!C80) -> 211047.9027 | E80: =(D80-RSAInc!D80)*(1+RSARet!D80) -> 189702.7372 | F80: =(E80-RSAInc!E80)*(1+RSARet!E80) -> 181238.8033 | G80: =(F80-RSAInc!F80)*(1+RSARet!F80) -> 161314.5833 | H80: =(G80-RSAInc!G80)*(1+RSARet!G80) -> 136740.5643 | I80: =(H80-RSAInc!H80)*(1+RSARet!H80) -> 118567.3696 | J80: =(I80-RSAInc!I80)*(1+RSARet!I80) -> 105945.1942 | K80: =(J80-RSAInc!J80)*(1+RSARet!J80) -> 85699.1317 | L80: =(K80-RSAInc!K80)*(1+RSARet!K80) -> 67529.52383 | M80: =(L80-RSAInc!L80)*(1+RSARet!L80) -> 46994.90767 | N80: =(M80-RSAInc!M80)*(1+RSARet!M80) -> 28403.67211 | O80: =(N80-RSAInc!N80)*(1+RSARet!N80) -> 9800.688119 | P80: =(O80-RSAInc!O80)*(1+RSARet!O80) -> 0 | Q80: =(P80-RSAInc!P80)*(1+RSARet!P80) -> 0 | R80: =(Q80-RSAInc!Q80)*(1+RSARet!Q80) -> 0 | S80: =(R80-RSAInc!R80)*(1+RSARet!R80) -> 0 | T80: =(S80-RSAInc!S80)*(1+RSARet!S80) -> 0 | U80: =(T80-RSAInc!T80)*(1+RSARet!T80) -> 0 | V80: =(U80-RSAInc!U80)*(1+RSARet!U80) -> 0 | W80: =(V80-RSAInc!V80)*(1+RSARet!V80) -> 0 | X80: =(W80-RSAInc!W80)*(1+RSARet!W80) -> 0 | Y80: =(X80-RSAInc!X80)*(1+RSARet!X80) -> 0 | Z80: =(Y80-RSAInc!Y80)*(1+RSARet!Y80) -> 0 | AA80: =(Z80-RSAInc!Z80)*(1+RSARet!Z80) -> 0 | AB80: =(AA80-RSAInc!AA80)*(1+RSARet!AA80) -> 0 | AC80: =(AB80-RSAInc!AB80)*(1+RSARet!AB80) -> 0 | AD80: =(AC80-RSAInc!AC80)*(1+RSARet!AC80) -> 0 | AE80: =(AD80-RSAInc!AD80)*(1+RSARet!AD80) -> 0 | AF80: =(AE80-RSAInc!AE80)*(1+RSARet!AE80) -> 0 | AG80: =(AF80-RSAInc!AF80)*(1+RSARet!AF80) -> 0 | AH80: =(AG80-RSAInc!AG80)*(1+RSARet!AG80) -> 0 | AI80: =(AH80-RSAInc!AH80)*(1+RSARet!AH80) -> 0 | AJ80: =(AI80-RSAInc!AI80)*(1+RSARet!AI80) -> 0 | AK80: =(AJ80-RSAInc!AJ80)*(1+RSARet!AJ80) -> 0 | AL80: =(AK80-RSAInc!AK80)*(1+RSARet!AK80) -> 0 | AM80: =(AL80-RSAInc!AL80)*(1+RSARet!AL80) -> 0 | AN80: =(AM80-RSAInc!AM80)*(1+RSARet!AM80) -> 0 | AO80: =(AN80-RSAInc!AN80)*(1+RSARet!AN80) -> 0 | AP80: =(AO80-RSAInc!AO80)*(1+RSARet!AO80) -> 0 | AQ80: =(AP80-RSAInc!AP80)*(1+RSARet!AP80) -> 0 | AR80: =(AQ80-RSAInc!AQ80)*(1+RSARet!AQ80) -> 0 | AS80: =(AR80-RSAInc!AR80)*(1+RSARet!AR80) -> 0 | AT80: =(AS80-RSAInc!AS80)*(1+RSARet!AS80) -> 0 | AU80: =(AT80-RSAInc!AT80)*(1+RSARet!AT80) -> 0 | AW80: 78 | AX80: =IF(AW80="",0,LOOKUP(AW80,'Retiree Details and Assumptions'!D$43:D$88,'Retiree Details and Assumptions'!E$43:E$88)) -> 0.857536894 | AY80: =IF(AW80="","",LOOKUP(AW80,'Retiree Details and Assumptions'!D$43:D$88,'Retiree Details and Assumptions'!H$43:H$88)) -> 12.40129454
A81: 80 | B81: 250000 | C81: =(B81-RSAInc!B81)*(1+RSARet!B81) -> 227487.6165 | D81: =(C81-RSAInc!C81)*(1+RSARet!C81) -> 225591.2661 | E81: =(D81-RSAInc!D81)*(1+RSARet!D81) -> 219003.4131 | F81: =(E81-RSAInc!E81)*(1+RSARet!E81) -> 211678.4867 | G81: =(F81-RSAInc!F81)*(1+RSARet!F81) -> 190844.6575 | H81: =(G81-RSAInc!G81)*(1+RSARet!G81) -> 185850.6611 | I81: =(H81-RSAInc!H81)*(1+RSARet!H81) -> 169164.9736 | J81: =(I81-RSAInc!I81)*(1+RSARet!I81) -> 152412.0064 | K81: =(J81-RSAInc!J81)*(1+RSARet!J81) -> 137288.6038 | L81: =(K81-RSAInc!K81)*(1+RSARet!K81) -> 122200.6784 | M81: =(L81-RSAInc!L81)*(1+RSARet!L81) -> 105789.6046 | N81: =(M81-RSAInc!M81)*(1+RSARet!M81) -> 90028.09908 | O81: =(N81-RSAInc!N81)*(1+RSARet!N81) -> 73285.21 | P81: =(O81-RSAInc!O81)*(1+RSARet!O81) -> 54198.12484 | Q81: =(P81-RSAInc!P81)*(1+RSARet!P81) -> 38849.29096 | R81: =(Q81-RSAInc!Q81)*(1+RSARet!Q81) -> 19767.36419 | S81: =(R81-RSAInc!R81)*(1+RSARet!R81) -> 1069.227788 | T81: =(S81-RSAInc!S81)*(1+RSARet!S81) -> 0 | U81: =(T81-RSAInc!T81)*(1+RSARet!T81) -> 0 | V81: =(U81-RSAInc!U81)*(1+RSARet!U81) -> 0 | W81: =(V81-RSAInc!V81)*(1+RSARet!V81) -> 0 | X81: =(W81-RSAInc!W81)*(1+RSARet!W81) -> 0 | Y81: =(X81-RSAInc!X81)*(1+RSARet!X81) -> 0 | Z81: =(Y81-RSAInc!Y81)*(1+RSARet!Y81) -> 0 | AA81: =(Z81-RSAInc!Z81)*(1+RSARet!Z81) -> 0 | AB81: =(AA81-RSAInc!AA81)*(1+RSARet!AA81) -> 0 | AC81: =(AB81-RSAInc!AB81)*(1+RSARet!AB81) -> 0 | AD81: =(AC81-RSAInc!AC81)*(1+RSARet!AC81) -> 0 | AE81: =(AD81-RSAInc!AD81)*(1+RSARet!AD81) -> 0 | AF81: =(AE81-RSAInc!AE81)*(1+RSARet!AE81) -> 0 | AG81: =(AF81-RSAInc!AF81)*(1+RSARet!AF81) -> 0 | AH81: =(AG81-RSAInc!AG81)*(1+RSARet!AG81) -> 0 | AI81: =(AH81-RSAInc!AH81)*(1+RSARet!AH81) -> 0 | AJ81: =(AI81-RSAInc!AI81)*(1+RSARet!AI81) -> 0 | AK81: =(AJ81-RSAInc!AJ81)*(1+RSARet!AJ81) -> 0 | AL81: =(AK81-RSAInc!AK81)*(1+RSARet!AK81) -> 0 | AM81: =(AL81-RSAInc!AL81)*(1+RSARet!AL81) -> 0 | AN81: =(AM81-RSAInc!AM81)*(1+RSARet!AM81) -> 0 | AO81: =(AN81-RSAInc!AN81)*(1+RSARet!AN81) -> 0 | AP81: =(AO81-RSAInc!AO81)*(1+RSARet!AO81) -> 0 | AQ81: =(AP81-RSAInc!AP81)*(1+RSARet!AP81) -> 0 | AR81: =(AQ81-RSAInc!AQ81)*(1+RSARet!AQ81) -> 0 | AS81: =(AR81-RSAInc!AR81)*(1+RSARet!AR81) -> 0 | AT81: =(AS81-RSAInc!AS81)*(1+RSARet!AS81) -> 0 | AU81: =(AT81-RSAInc!AT81)*(1+RSARet!AT81) -> 0 | AW81: 82 | AX81: =IF(AW81="",0,LOOKUP(AW81,'Retiree Details and Assumptions'!D$43:D$88,'Retiree Details and Assumptions'!E$43:E$88)) -> 0.7593955575 | AY81: =IF(AW81="","",LOOKUP(AW81,'Retiree Details and Assumptions'!D$43:D$88,'Retiree Details and Assumptions'!H$43:H$88)) -> 9.664105684
A82: 81 | B82: 250000 | C82: =(B82-RSAInc!B82)*(1+RSARet!B82) -> 234295.0529 | D82: =(C82-RSAInc!C82)*(1+RSARet!C82) -> 214486.5259 | E82: =(D82-RSAInc!D82)*(1+RSARet!D82) -> 194288.7645 | F82: =(E82-RSAInc!E82)*(1+RSARet!E82) -> 169642.0525 | G82: =(F82-RSAInc!F82)*(1+RSARet!F82) -> 160448.3221 | H82: =(G82-RSAInc!G82)*(1+RSARet!G82) -> 145933.5427 | I82: =(H82-RSAInc!H82)*(1+RSARet!H82) -> 129281.1886 | J82: =(I82-RSAInc!I82)*(1+RSARet!I82) -> 113504.6701 | K82: =(J82-RSAInc!J82)*(1+RSARet!J82) -> 97912.143 | L82: =(K82-RSAInc!K82)*(1+RSARet!K82) -> 83342.1743 | M82: =(L82-RSAInc!L82)*(1+RSARet!L82) -> 73825.88899 | N82: =(M82-RSAInc!M82)*(1+RSARet!M82) -> 57433.90397 | O82: =(N82-RSAInc!N82)*(1+RSARet!N82) -> 39488.33259 | P82: =(O82-RSAInc!O82)*(1+RSARet!O82) -> 20979.63099 | Q82: =(P82-RSAInc!P82)*(1+RSARet!P82) -> 2225.999832 | R82: =(Q82-RSAInc!Q82)*(1+RSARet!Q82) -> 0 | S82: =(R82-RSAInc!R82)*(1+RSARet!R82) -> 0 | T82: =(S82-RSAInc!S82)*(1+RSARet!S82) -> 0 | U82: =(T82-RSAInc!T82)*(1+RSARet!T82) -> 0 | V82: =(U82-RSAInc!U82)*(1+RSARet!U82) -> 0 | W82: =(V82-RSAInc!V82)*(1+RSARet!V82) -> 0 | X82: =(W82-RSAInc!W82)*(1+RSARet!W82) -> 0 | Y82: =(X82-RSAInc!X82)*(1+RSARet!X82) -> 0 | Z82: =(Y82-RSAInc!Y82)*(1+RSARet!Y82) -> 0 | AA82: =(Z82-RSAInc!Z82)*(1+RSARet!Z82) -> 0 | AB82: =(AA82-RSAInc!AA82)*(1+RSARet!AA82) -> 0 | AC82: =(AB82-RSAInc!AB82)*(1+RSARet!AB82) -> 0 | AD82: =(AC82-RSAInc!AC82)*(1+RSARet!AC82) -> 0 | AE82: =(AD82-RSAInc!AD82)*(1+RSARet!AD82) -> 0 | AF82: =(AE82-RSAInc!AE82)*(1+RSARet!AE82) -> 0 | AG82: =(AF82-RSAInc!AF82)*(1+RSARet!AF82) -> 0 | AH82: =(AG82-RSAInc!AG82)*(1+RSARet!AG82) -> 0 | AI82: =(AH82-RSAInc!AH82)*(1+RSARet!AH82) -> 0 | AJ82: =(AI82-RSAInc!AI82)*(1+RSARet!AI82) -> 0 | AK82: =(AJ82-RSAInc!AJ82)*(1+RSARet!AJ82) -> 0 | AL82: =(AK82-RSAInc!AK82)*(1+RSARet!AK82) -> 0 | AM82: =(AL82-RSAInc!AL82)*(1+RSARet!AL82) -> 0 | AN82: =(AM82-RSAInc!AM82)*(1+RSARet!AM82) -> 0 | AO82: =(AN82-RSAInc!AN82)*(1+RSARet!AN82) -> 0 | AP82: =(AO82-RSAInc!AO82)*(1+RSARet!AO82) -> 0 | AQ82: =(AP82-RSAInc!AP82)*(1+RSARet!AP82) -> 0 | AR82: =(AQ82-RSAInc!AQ82)*(1+RSARet!AQ82) -> 0 | AS82: =(AR82-RSAInc!AR82)*(1+RSARet!AR82) -> 0 | AT82: =(AS82-RSAInc!AS82)*(1+RSARet!AS82) -> 0 | AU82: =(AT82-RSAInc!AT82)*(1+RSARet!AT82) -> 0 | AW82: 80 | AX82: =IF(AW82="",0,LOOKUP(AW82,'Retiree Details and Assumptions'!D$43:D$88,'Retiree Details and Assumptions'!E$43:E$88)) -> 0.8135841249 | AY82: =IF(AW82="","",LOOKUP(AW82,'Retiree Details and Assumptions'!D$43:D$88,'Retiree Details and Assumptions'!H$43:H$88)) -> 10.98882934
A83: 82 | B83: 250000 | C83: =(B83-RSAInc!B83)*(1+RSARet!B83) -> 233233.5729 | D83: =(C83-RSAInc!C83)*(1+RSARet!C83) -> 229845.2355 | E83: =(D83-RSAInc!D83)*(1+RSARet!D83) -> 214191.9185 | F83: =(E83-RSAInc!E83)*(1+RSARet!E83) -> 193482.4074 | G83: =(F83-RSAInc!F83)*(1+RSARet!F83) -> 181983.8321 | H83: =(G83-RSAInc!G83)*(1+RSARet!G83) -> 172304.582 | I83: =(H83-RSAInc!H83)*(1+RSARet!H83) -> 158625.3226 | J83: =(I83-RSAInc!I83)*(1+RSARet!I83) -> 132219.4749 | K83: =(J83-RSAInc!J83)*(1+RSARet!J83) -> 115200.5487 | L83: =(K83-RSAInc!K83)*(1+RSARet!K83) -> 95568.3756 | M83: =(L83-RSAInc!L83)*(1+RSARet!L83) -> 76775.67722 | N83: =(M83-RSAInc!M83)*(1+RSARet!M83) -> 58260.33502 | O83: =(N83-RSAInc!N83)*(1+RSARet!N83) -> 41713.20947 | P83: =(O83-RSAInc!O83)*(1+RSARet!O83) -> 23466.7399 | Q83: =(P83-RSAInc!P83)*(1+RSARet!P83) -> 4962.236349 | R83: =(Q83-RSAInc!Q83)*(1+RSARet!Q83) -> 0 | S83: =(R83-RSAInc!R83)*(1+RSARet!R83) -> 0 | T83: =(S83-RSAInc!S83)*(1+RSARet!S83) -> 0 | U83: =(T83-RSAInc!T83)*(1+RSARet!T83) -> 0 | V83: =(U83-RSAInc!U83)*(1+RSARet!U83) -> 0 | W83: =(V83-RSAInc!V83)*(1+RSARet!V83) -> 0 | X83: =(W83-RSAInc!W83)*(1+RSARet!W83) -> 0 | Y83: =(X83-RSAInc!X83)*(1+RSARet!X83) -> 0 | Z83: =(Y83-RSAInc!Y83)*(1+RSARet!Y83) -> 0 | AA83: =(Z83-RSAInc!Z83)*(1+RSARet!Z83) -> 0 | AB83: =(AA83-RSAInc!AA83)*(1+RSARet!AA83) -> 0 | AC83: =(AB83-RSAInc!AB83)*(1+RSARet!AB83) -> 0 | AD83: =(AC83-RSAInc!AC83)*(1+RSARet!AC83) -> 0 | AE83: =(AD83-RSAInc!AD83)*(1+RSARet!AD83) -> 0 | AF83: =(AE83-RSAInc!AE83)*(1+RSARet!AE83) -> 0 | AG83: =(AF83-RSAInc!AF83)*(1+RSARet!AF83) -> 0 | AH83: =(AG83-RSAInc!AG83)*(1+RSARet!AG83) -> 0 | AI83: =(AH83-RSAInc!AH83)*(1+RSARet!AH83) -> 0 | AJ83: =(AI83-RSAInc!AI83)*(1+RSARet!AI83) -> 0 | AK83: =(AJ83-RSAInc!AJ83)*(1+RSARet!AJ83) -> 0 | AL83: =(AK83-RSAInc!AK83)*(1+RSARet!AK83) -> 0 | AM83: =(AL83-RSAInc!AL83)*(1+RSARet!AL83) -> 0 | AN83: =(AM83-RSAInc!AM83)*(1+RSARet!AM83) -> 0 | AO83: =(AN83-RSAInc!AN83)*(1+RSARet!AN83) -> 0 | AP83: =(AO83-RSAInc!AO83)*(1+RSARet!AO83) -> 0 | AQ83: =(AP83-RSAInc!AP83)*(1+RSARet!AP83) -> 0 | AR83: =(AQ83-RSAInc!AQ83)*(1+RSARet!AQ83) -> 0 | AS83: =(AR83-RSAInc!AR83)*(1+RSARet!AR83) -> 0 | AT83: =(AS83-RSAInc!AS83)*(1+RSARet!AS83) -> 0 | AU83: =(AT83-RSAInc!AT83)*(1+RSARet!AT83) -> 0 | AW83: 80 | AX83: =IF(AW83="",0,LOOKUP(AW83,'Retiree Details and Assumptions'!D$43:D$88,'Retiree Details and Assumptions'!E$43:E$88)) -> 0.8135841249 | AY83: =IF(AW83="","",LOOKUP(AW83,'Retiree Details and Assumptions'!D$43:D$88,'Retiree Details and Assumptions'!H$43:H$88)) -> 10.98882934
A84: 83 | B84: 250000 | C84: =(B84-RSAInc!B84)*(1+RSARet!B84) -> 229615.6439 | D84: =(C84-RSAInc!C84)*(1+RSARet!C84) -> 213164.7079 | E84: =(D84-RSAInc!D84)*(1+RSARet!D84) -> 203457.0821 | F84: =(E84-RSAInc!E84)*(1+RSARet!E84) -> 178448.1036 | G84: =(F84-RSAInc!F84)*(1+RSARet!F84) -> 166872.3799 | H84: =(G84-RSAInc!G84)*(1+RSARet!G84) -> 150280.0458 | I84: =(H84-RSAInc!H84)*(1+RSARet!H84) -> 138131.7539 | J84: =(I84-RSAInc!I84)*(1+RSARet!I84) -> 118857.7763 | K84: =(J84-RSAInc!J84)*(1+RSARet!J84) -> 95721.53333 | L84: =(K84-RSAInc!K84)*(1+RSARet!K84) -> 77577.21386 | M84: =(L84-RSAInc!L84)*(1+RSARet!L84) -> 60926.49065 | N84: =(M84-RSAInc!M84)*(1+RSARet!M84) -> 45017.41011 | O84: =(N84-RSAInc!N84)*(1+RSARet!N84) -> 26542.0714 | P84: =(O84-RSAInc!O84)*(1+RSARet!O84) -> 7904.826753 | Q84: =(P84-RSAInc!P84)*(1+RSARet!P84) -> 0 | R84: =(Q84-RSAInc!Q84)*(1+RSARet!Q84) -> 0 | S84: =(R84-RSAInc!R84)*(1+RSARet!R84) -> 0 | T84: =(S84-RSAInc!S84)*(1+RSARet!S84) -> 0 | U84: =(T84-RSAInc!T84)*(1+RSARet!T84) -> 0 | V84: =(U84-RSAInc!U84)*(1+RSARet!U84) -> 0 | W84: =(V84-RSAInc!V84)*(1+RSARet!V84) -> 0 | X84: =(W84-RSAInc!W84)*(1+RSARet!W84) -> 0 | Y84: =(X84-RSAInc!X84)*(1+RSARet!X84) -> 0 | Z84: =(Y84-RSAInc!Y84)*(1+RSARet!Y84) -> 0 | AA84: =(Z84-RSAInc!Z84)*(1+RSARet!Z84) -> 0 | AB84: =(AA84-RSAInc!AA84)*(1+RSARet!AA84) -> 0 | AC84: =(AB84-RSAInc!AB84)*(1+RSARet!AB84) -> 0 | AD84: =(AC84-RSAInc!AC84)*(1+RSARet!AC84) -> 0 | AE84: =(AD84-RSAInc!AD84)*(1+RSARet!AD84) -> 0 | AF84: =(AE84-RSAInc!AE84)*(1+RSARet!AE84) -> 0 | AG84: =(AF84-RSAInc!AF84)*(1+RSARet!AF84) -> 0 | AH84: =(AG84-RSAInc!AG84)*(1+RSARet!AG84) -> 0 | AI84: =(AH84-RSAInc!AH84)*(1+RSARet!AH84) -> 0 | AJ84: =(AI84-RSAInc!AI84)*(1+RSARet!AI84) -> 0 | AK84: =(AJ84-RSAInc!AJ84)*(1+RSARet!AJ84) -> 0 | AL84: =(AK84-RSAInc!AK84)*(1+RSARet!AK84) -> 0 | AM84: =(AL84-RSAInc!AL84)*(1+RSARet!AL84) -> 0 | AN84: =(AM84-RSAInc!AM84)*(1+RSARet!AM84) -> 0 | AO84: =(AN84-RSAInc!AN84)*(1+RSARet!AN84) -> 0 | AP84: =(AO84-RSAInc!AO84)*(1+RSARet!AO84) -> 0 | AQ84: =(AP84-RSAInc!AP84)*(1+RSARet!AP84) -> 0 | AR84: =(AQ84-RSAInc!AQ84)*(1+RSARet!AQ84) -> 0 | AS84: =(AR84-RSAInc!AR84)*(1+RSARet!AR84) -> 0 | AT84: =(AS84-RSAInc!AS84)*(1+RSARet!AS84) -> 0 | AU84: =(AT84-RSAInc!AT84)*(1+RSARet!AT84) -> 0 | AW84: 79 | AX84: =IF(AW84="",0,LOOKUP(AW84,'Retiree Details and Assumptions'!D$43:D$88,'Retiree Details and Assumptions'!E$43:E$88)) -> 0.8366936022 | AY84: =IF(AW84="","",LOOKUP(AW84,'Retiree Details and Assumptions'!D$43:D$88,'Retiree Details and Assumptions'!H$43:H$88)) -> 11.68531787
A85: 84 | B85: 250000 | C85: =(B85-RSAInc!B85)*(1+RSARet!B85) -> 238616.4152 | D85: =(C85-RSAInc!C85)*(1+RSARet!C85) -> 218552.4427 | E85: =(D85-RSAInc!D85)*(1+RSARet!D85) -> 202558.3642 | F85: =(E85-RSAInc!E85)*(1+RSARet!E85) -> 193014.6815 | G85: =(F85-RSAInc!F85)*(1+RSARet!F85) -> 167595.5014 | H85: =(G85-RSAInc!G85)*(1+RSARet!G85) -> 150659.864 | I85: =(H85-RSAInc!H85)*(1+RSARet!H85) -> 143330.1747 | J85: =(I85-RSAInc!I85)*(1+RSARet!I85) -> 124259.7384 | K85: =(J85-RSAInc!J85)*(1+RSARet!J85) -> 101123.4778 | L85: =(K85-RSAInc!K85)*(1+RSARet!K85) -> 93891.10769 | M85: =(L85-RSAInc!L85)*(1+RSARet!L85) -> 79639.81601 | N85: =(M85-RSAInc!M85)*(1+RSARet!M85) -> 60984.96517 | O85: =(N85-RSAInc!N85)*(1+RSARet!N85) -> 43691.52262 | P85: =(O85-RSAInc!O85)*(1+RSARet!O85) -> 27384.78921 | Q85: =(P85-RSAInc!P85)*(1+RSARet!P85) -> 8799.66159 | R85: =(Q85-RSAInc!Q85)*(1+RSARet!Q85) -> 0 | S85: =(R85-RSAInc!R85)*(1+RSARet!R85) -> 0 | T85: =(S85-RSAInc!S85)*(1+RSARet!S85) -> 0 | U85: =(T85-RSAInc!T85)*(1+RSARet!T85) -> 0 | V85: =(U85-RSAInc!U85)*(1+RSARet!U85) -> 0 | W85: =(V85-RSAInc!V85)*(1+RSARet!V85) -> 0 | X85: =(W85-RSAInc!W85)*(1+RSARet!W85) -> 0 | Y85: =(X85-RSAInc!X85)*(1+RSARet!X85) -> 0 | Z85: =(Y85-RSAInc!Y85)*(1+RSARet!Y85) -> 0 | AA85: =(Z85-RSAInc!Z85)*(1+RSARet!Z85) -> 0 | AB85: =(AA85-RSAInc!AA85)*(1+RSARet!AA85) -> 0 | AC85: =(AB85-RSAInc!AB85)*(1+RSARet!AB85) -> 0 | AD85: =(AC85-RSAInc!AC85)*(1+RSARet!AC85) -> 0 | AE85: =(AD85-RSAInc!AD85)*(1+RSARet!AD85) -> 0 | AF85: =(AE85-RSAInc!AE85)*(1+RSARet!AE85) -> 0 | AG85: =(AF85-RSAInc!AF85)*(1+RSARet!AF85) -> 0 | AH85: =(AG85-RSAInc!AG85)*(1+RSARet!AG85) -> 0 | AI85: =(AH85-RSAInc!AH85)*(1+RSARet!AH85) -> 0 | AJ85: =(AI85-RSAInc!AI85)*(1+RSARet!AI85) -> 0 | AK85: =(AJ85-RSAInc!AJ85)*(1+RSARet!AJ85) -> 0 | AL85: =(AK85-RSAInc!AK85)*(1+RSARet!AK85) -> 0 | AM85: =(AL85-RSAInc!AL85)*(1+RSARet!AL85) -> 0 | AN85: =(AM85-RSAInc!AM85)*(1+RSARet!AM85) -> 0 | AO85: =(AN85-RSAInc!AN85)*(1+RSARet!AN85) -> 0 | AP85: =(AO85-RSAInc!AO85)*(1+RSARet!AO85) -> 0 | AQ85: =(AP85-RSAInc!AP85)*(1+RSARet!AP85) -> 0 | AR85: =(AQ85-RSAInc!AQ85)*(1+RSARet!AQ85) -> 0 | AS85: =(AR85-RSAInc!AR85)*(1+RSARet!AR85) -> 0 | AT85: =(AS85-RSAInc!AS85)*(1+RSARet!AS85) -> 0 | AU85: =(AT85-RSAInc!AT85)*(1+RSARet!AT85) -> 0 | AW85: 80 | AX85: =IF(AW85="",0,LOOKUP(AW85,'Retiree Details and Assumptions'!D$43:D$88,'Retiree Details and Assumptions'!E$43:E$88)) -> 0.8135841249 | AY85: =IF(AW85="","",LOOKUP(AW85,'Retiree Details and Assumptions'!D$43:D$88,'Retiree Details and Assumptions'!H$43:H$88)) -> 10.98882934
A86: 85 | B86: 250000 | C86: =(B86-RSAInc!B86)*(1+RSARet!B86) -> 237325.1958 | D86: =(C86-RSAInc!C86)*(1+RSARet!C86) -> 227685.8266 | E86: =(D86-RSAInc!D86)*(1+RSARet!D86) -> 206971.3272 | F86: =(E86-RSAInc!E86)*(1+RSARet!E86) -> 203818.0028 | G86: =(F86-RSAInc!F86)*(1+RSARet!F86) -> 196324.2384 | H86: =(G86-RSAInc!G86)*(1+RSARet!G86) -> 187710.9384 | I86: =(H86-RSAInc!H86)*(1+RSARet!H86) -> 172348.8478 | J86: =(I86-RSAInc!I86)*(1+RSARet!I86) -> 162349.5417 | K86: =(J86-RSAInc!J86)*(1+RSARet!J86) -> 149432.4654 | L86: =(K86-RSAInc!K86)*(1+RSARet!K86) -> 144445.6156 | M86: =(L86-RSAInc!L86)*(1+RSARet!L86) -> 122306.319 | N86: =(M86-RSAInc!M86)*(1+RSARet!M86) -> 102194.2317 | O86: =(N86-RSAInc!N86)*(1+RSARet!N86) -> 83149.73934 | P86: =(O86-RSAInc!O86)*(1+RSARet!O86) -> 68649.5575 | Q86: =(P86-RSAInc!P86)*(1+RSARet!P86) -> 49926.37301 | R86: =(Q86-RSAInc!Q86)*(1+RSARet!Q86) -> 31707.63033 | S86: =(R86-RSAInc!R86)*(1+RSARet!R86) -> 12502.95484 | T86: =(S86-RSAInc!S86)*(1+RSARet!S86) -> 0 | U86: =(T86-RSAInc!T86)*(1+RSARet!T86) -> 0 | V86: =(U86-RSAInc!U86)*(1+RSARet!U86) -> 0 | W86: =(V86-RSAInc!V86)*(1+RSARet!V86) -> 0 | X86: =(W86-RSAInc!W86)*(1+RSARet!W86) -> 0 | Y86: =(X86-RSAInc!X86)*(1+RSARet!X86) -> 0 | Z86: =(Y86-RSAInc!Y86)*(1+RSARet!Y86) -> 0 | AA86: =(Z86-RSAInc!Z86)*(1+RSARet!Z86) -> 0 | AB86: =(AA86-RSAInc!AA86)*(1+RSARet!AA86) -> 0 | AC86: =(AB86-RSAInc!AB86)*(1+RSARet!AB86) -> 0 | AD86: =(AC86-RSAInc!AC86)*(1+RSARet!AC86) -> 0 | AE86: =(AD86-RSAInc!AD86)*(1+RSARet!AD86) -> 0 | AF86: =(AE86-RSAInc!AE86)*(1+RSARet!AE86) -> 0 | AG86: =(AF86-RSAInc!AF86)*(1+RSARet!AF86) -> 0 | AH86: =(AG86-RSAInc!AG86)*(1+RSARet!AG86) -> 0 | AI86: =(AH86-RSAInc!AH86)*(1+RSARet!AH86) -> 0 | AJ86: =(AI86-RSAInc!AI86)*(1+RSARet!AI86) -> 0 | AK86: =(AJ86-RSAInc!AJ86)*(1+RSARet!AJ86) -> 0 | AL86: =(AK86-RSAInc!AK86)*(1+RSARet!AK86) -> 0 | AM86: =(AL86-RSAInc!AL86)*(1+RSARet!AL86) -> 0 | AN86: =(AM86-RSAInc!AM86)*(1+RSARet!AM86) -> 0 | AO86: =(AN86-RSAInc!AN86)*(1+RSARet!AN86) -> 0 | AP86: =(AO86-RSAInc!AO86)*(1+RSARet!AO86) -> 0 | AQ86: =(AP86-RSAInc!AP86)*(1+RSARet!AP86) -> 0 | AR86: =(AQ86-RSAInc!AQ86)*(1+RSARet!AQ86) -> 0 | AS86: =(AR86-RSAInc!AR86)*(1+RSARet!AR86) -> 0 | AT86: =(AS86-RSAInc!AS86)*(1+RSARet!AS86) -> 0 | AU86: =(AT86-RSAInc!AT86)*(1+RSARet!AT86) -> 0 | AW86: 82 | AX86: =IF(AW86="",0,LOOKUP(AW86,'Retiree Details and Assumptions'!D$43:D$88,'Retiree Details and Assumptions'!E$43:E$88)) -> 0.7593955575 | AY86: =IF(AW86="","",LOOKUP(AW86,'Retiree Details and Assumptions'!D$43:D$88,'Retiree Details and Assumptions'!H$43:H$88)) -> 9.664105684
A87: 86 | B87: 250000 | C87: =(B87-RSAInc!B87)*(1+RSARet!B87) -> 244292.17 | D87: =(C87-RSAInc!C87)*(1+RSARet!C87) -> 233853.0876 | E87: =(D87-RSAInc!D87)*(1+RSARet!D87) -> 220172.7839 | F87: =(E87-RSAInc!E87)*(1+RSARet!E87) -> 216760.7545 | G87: =(F87-RSAInc!F87)*(1+RSARet!F87) -> 200722.8077 | H87: =(G87-RSAInc!G87)*(1+RSARet!G87) -> 181967.9147 | I87: =(H87-RSAInc!H87)*(1+RSARet!H87) -> 156543.7369 | J87: =(I87-RSAInc!I87)*(1+RSARet!I87) -> 144376.9729 | K87: =(J87-RSAInc!J87)*(1+RSARet!J87) -> 127414.4518 | L87: =(K87-RSAInc!K87)*(1+RSARet!K87) -> 127310.7812 | M87: =(L87-RSAInc!L87)*(1+RSARet!L87) -> 117350.0854 | N87: =(M87-RSAInc!M87)*(1+RSARet!M87) -> 99876.49937 | O87: =(N87-RSAInc!N87)*(1+RSARet!N87) -> 82665.55881 | P87: =(O87-RSAInc!O87)*(1+RSARet!O87) -> 68675.42546 | Q87: =(P87-RSAInc!P87)*(1+RSARet!P87) -> 51284.42199 | R87: =(Q87-RSAInc!Q87)*(1+RSARet!Q87) -> 33237.80645 | S87: =(R87-RSAInc!R87)*(1+RSARet!R87) -> 16133.77412 | T87: =(S87-RSAInc!S87)*(1+RSARet!S87) -> 0 | U87: =(T87-RSAInc!T87)*(1+RSARet!T87) -> 0 | V87: =(U87-RSAInc!U87)*(1+RSARet!U87) -> 0 | W87: =(V87-RSAInc!V87)*(1+RSARet!V87) -> 0 | X87: =(W87-RSAInc!W87)*(1+RSARet!W87) -> 0 | Y87: =(X87-RSAInc!X87)*(1+RSARet!X87) -> 0 | Z87: =(Y87-RSAInc!Y87)*(1+RSARet!Y87) -> 0 | AA87: =(Z87-RSAInc!Z87)*(1+RSARet!Z87) -> 0 | AB87: =(AA87-RSAInc!AA87)*(1+RSARet!AA87) -> 0 | AC87: =(AB87-RSAInc!AB87)*(1+RSARet!AB87) -> 0 | AD87: =(AC87-RSAInc!AC87)*(1+RSARet!AC87) -> 0 | AE87: =(AD87-RSAInc!AD87)*(1+RSARet!AD87) -> 0 | AF87: =(AE87-RSAInc!AE87)*(1+RSARet!AE87) -> 0 | AG87: =(AF87-RSAInc!AF87)*(1+RSARet!AF87) -> 0 | AH87: =(AG87-RSAInc!AG87)*(1+RSARet!AG87) -> 0 | AI87: =(AH87-RSAInc!AH87)*(1+RSARet!AH87) -> 0 | AJ87: =(AI87-RSAInc!AI87)*(1+RSARet!AI87) -> 0 | AK87: =(AJ87-RSAInc!AJ87)*(1+RSARet!AJ87) -> 0 | AL87: =(AK87-RSAInc!AK87)*(1+RSARet!AK87) -> 0 | AM87: =(AL87-RSAInc!AL87)*(1+RSARet!AL87) -> 0 | AN87: =(AM87-RSAInc!AM87)*(1+RSARet!AM87) -> 0 | AO87: =(AN87-RSAInc!AN87)*(1+RSARet!AN87) -> 0 | AP87: =(AO87-RSAInc!AO87)*(1+RSARet!AO87) -> 0 | AQ87: =(AP87-RSAInc!AP87)*(1+RSARet!AP87) -> 0 | AR87: =(AQ87-RSAInc!AQ87)*(1+RSARet!AQ87) -> 0 | AS87: =(AR87-RSAInc!AR87)*(1+RSARet!AR87) -> 0 | AT87: =(AS87-RSAInc!AS87)*(1+RSARet!AS87) -> 0 | AU87: =(AT87-RSAInc!AT87)*(1+RSARet!AT87) -> 0 | AW87: 82 | AX87: =IF(AW87="",0,LOOKUP(AW87,'Retiree Details and Assumptions'!D$43:D$88,'Retiree Details and Assumptions'!E$43:E$88)) -> 0.7593955575 | AY87: =IF(AW87="","",LOOKUP(AW87,'Retiree Details and Assumptions'!D$43:D$88,'Retiree Details and Assumptions'!H$43:H$88)) -> 9.664105684
A88: 87 | B88: 250000 | C88: =(B88-RSAInc!B88)*(1+RSARet!B88) -> 227207.1373 | D88: =(C88-RSAInc!C88)*(1+RSARet!C88) -> 221129.7429 | E88: =(D88-RSAInc!D88)*(1+RSARet!D88) -> 207334.8855 | F88: =(E88-RSAInc!E88)*(1+RSARet!E88) -> 196011.4416 | G88: =(F88-RSAInc!F88)*(1+RSARet!F88) -> 191329.5585 | H88: =(G88-RSAInc!G88)*(1+RSARet!G88) -> 175392.1169 | I88: =(H88-RSAInc!H88)*(1+RSARet!H88) -> 165000.619 | J88: =(I88-RSAInc!I88)*(1+RSARet!I88) -> 156302.1596 | K88: =(J88-RSAInc!J88)*(1+RSARet!J88) -> 142966.2399 | L88: =(K88-RSAInc!K88)*(1+RSARet!K88) -> 120760.157 | M88: =(L88-RSAInc!L88)*(1+RSARet!L88) -> 103298.742 | N88: =(M88-RSAInc!M88)*(1+RSARet!M88) -> 82229.18267 | O88: =(N88-RSAInc!N88)*(1+RSARet!N88) -> 68584.80815 | P88: =(O88-RSAInc!O88)*(1+RSARet!O88) -> 56577.24201 | Q88: =(P88-RSAInc!P88)*(1+RSARet!P88) -> 39144.93663 | R88: =(Q88-RSAInc!Q88)*(1+RSARet!Q88) -> 19873.99599 | S88: =(R88-RSAInc!R88)*(1+RSARet!R88) -> 1154.884263 | T88: =(S88-RSAInc!S88)*(1+RSARet!S88) -> 0 | U88: =(T88-RSAInc!T88)*(1+RSARet!T88) -> 0 | V88: =(U88-RSAInc!U88)*(1+RSARet!U88) -> 0 | W88: =(V88-RSAInc!V88)*(1+RSARet!V88) -> 0 | X88: =(W88-RSAInc!W88)*(1+RSARet!W88) -> 0 | Y88: =(X88-RSAInc!X88)*(1+RSARet!X88) -> 0 | Z88: =(Y88-RSAInc!Y88)*(1+RSARet!Y88) -> 0 | AA88: =(Z88-RSAInc!Z88)*(1+RSARet!Z88) -> 0 | AB88: =(AA88-RSAInc!AA88)*(1+RSARet!AA88) -> 0 | AC88: =(AB88-RSAInc!AB88)*(1+RSARet!AB88) -> 0 | AD88: =(AC88-RSAInc!AC88)*(1+RSARet!AC88) -> 0 | AE88: =(AD88-RSAInc!AD88)*(1+RSARet!AD88) -> 0 | AF88: =(AE88-RSAInc!AE88)*(1+RSARet!AE88) -> 0 | AG88: =(AF88-RSAInc!AF88)*(1+RSARet!AF88) -> 0 | AH88: =(AG88-RSAInc!AG88)*(1+RSARet!AG88) -> 0 | AI88: =(AH88-RSAInc!AH88)*(1+RSARet!AH88) -> 0 | AJ88: =(AI88-RSAInc!AI88)*(1+RSARet!AI88) -> 0 | AK88: =(AJ88-RSAInc!AJ88)*(1+RSARet!AJ88) -> 0 | AL88: =(AK88-RSAInc!AK88)*(1+RSARet!AK88) -> 0 | AM88: =(AL88-RSAInc!AL88)*(1+RSARet!AL88) -> 0 | AN88: =(AM88-RSAInc!AM88)*(1+RSARet!AM88) -> 0 | AO88: =(AN88-RSAInc!AN88)*(1+RSARet!AN88) -> 0 | AP88: =(AO88-RSAInc!AO88)*(1+RSARet!AO88) -> 0 | AQ88: =(AP88-RSAInc!AP88)*(1+RSARet!AP88) -> 0 | AR88: =(AQ88-RSAInc!AQ88)*(1+RSARet!AQ88) -> 0 | AS88: =(AR88-RSAInc!AR88)*(1+RSARet!AR88) -> 0 | AT88: =(AS88-RSAInc!AS88)*(1+RSARet!AS88) -> 0 | AU88: =(AT88-RSAInc!AT88)*(1+RSARet!AT88) -> 0 | AW88: 82 | AX88: =IF(AW88="",0,LOOKUP(AW88,'Retiree Details and Assumptions'!D$43:D$88,'Retiree Details and Assumptions'!E$43:E$88)) -> 0.7593955575 | AY88: =IF(AW88="","",LOOKUP(AW88,'Retiree Details and Assumptions'!D$43:D$88,'Retiree Details and Assumptions'!H$43:H$88)) -> 9.664105684
A89: 88 | B89: 250000 | C89: =(B89-RSAInc!B89)*(1+RSARet!B89) -> 252747.2581 | D89: =(C89-RSAInc!C89)*(1+RSARet!C89) -> 242960.0241 | E89: =(D89-RSAInc!D89)*(1+RSARet!D89) -> 224290.7515 | F89: =(E89-RSAInc!E89)*(1+RSARet!E89) -> 217795.3414 | G89: =(F89-RSAInc!F89)*(1+RSARet!F89) -> 190375.4854 | H89: =(G89-RSAInc!G89)*(1+RSARet!G89) -> 165455.8462 | I89: =(H89-RSAInc!H89)*(1+RSARet!H89) -> 143320.9379 | J89: =(I89-RSAInc!I89)*(1+RSARet!I89) -> 128364.8578 | K89: =(J89-RSAInc!J89)*(1+RSARet!J89) -> 109936.0542 | L89: =(K89-RSAInc!K89)*(1+RSARet!K89) -> 98942.31104 | M89: =(L89-RSAInc!L89)*(1+RSARet!L89) -> 87045.98697 | N89: =(M89-RSAInc!M89)*(1+RSARet!M89) -> 74622.51064 | O89: =(N89-RSAInc!N89)*(1+RSARet!N89) -> 61678.30558 | P89: =(O89-RSAInc!O89)*(1+RSARet!O89) -> 42396.35721 | Q89: =(P89-RSAInc!P89)*(1+RSARet!P89) -> 25072.49632 | R89: =(Q89-RSAInc!Q89)*(1+RSARet!Q89) -> 6441.907177 | S89: =(R89-RSAInc!R89)*(1+RSARet!R89) -> 0 | T89: =(S89-RSAInc!S89)*(1+RSARet!S89) -> 0 | U89: =(T89-RSAInc!T89)*(1+RSARet!T89) -> 0 | V89: =(U89-RSAInc!U89)*(1+RSARet!U89) -> 0 | W89: =(V89-RSAInc!V89)*(1+RSARet!V89) -> 0 | X89: =(W89-RSAInc!W89)*(1+RSARet!W89) -> 0 | Y89: =(X89-RSAInc!X89)*(1+RSARet!X89) -> 0 | Z89: =(Y89-RSAInc!Y89)*(1+RSARet!Y89) -> 0 | AA89: =(Z89-RSAInc!Z89)*(1+RSARet!Z89) -> 0 | AB89: =(AA89-RSAInc!AA89)*(1+RSARet!AA89) -> 0 | AC89: =(AB89-RSAInc!AB89)*(1+RSARet!AB89) -> 0 | AD89: =(AC89-RSAInc!AC89)*(1+RSARet!AC89) -> 0 | AE89: =(AD89-RSAInc!AD89)*(1+RSARet!AD89) -> 0 | AF89: =(AE89-RSAInc!AE89)*(1+RSARet!AE89) -> 0 | AG89: =(AF89-RSAInc!AF89)*(1+RSARet!AF89) -> 0 | AH89: =(AG89-RSAInc!AG89)*(1+RSARet!AG89) -> 0 | AI89: =(AH89-RSAInc!AH89)*(1+RSARet!AH89) -> 0 | AJ89: =(AI89-RSAInc!AI89)*(1+RSARet!AI89) -> 0 | AK89: =(AJ89-RSAInc!AJ89)*(1+RSARet!AJ89) -> 0 | AL89: =(AK89-RSAInc!AK89)*(1+RSARet!AK89) -> 0 | AM89: =(AL89-RSAInc!AL89)*(1+RSARet!AL89) -> 0 | AN89: =(AM89-RSAInc!AM89)*(1+RSARet!AM89) -> 0 | AO89: =(AN89-RSAInc!AN89)*(1+RSARet!AN89) -> 0 | AP89: =(AO89-RSAInc!AO89)*(1+RSARet!AO89) -> 0 | AQ89: =(AP89-RSAInc!AP89)*(1+RSARet!AP89) -> 0 | AR89: =(AQ89-RSAInc!AQ89)*(1+RSARet!AQ89) -> 0 | AS89: =(AR89-RSAInc!AR89)*(1+RSARet!AR89) -> 0 | AT89: =(AS89-RSAInc!AS89)*(1+RSARet!AS89) -> 0 | AU89: =(AT89-RSAInc!AT89)*(1+RSARet!AT89) -> 0 | AW89: 81 | AX89: =IF(AW89="",0,LOOKUP(AW89,'Retiree Details and Assumptions'!D$43:D$88,'Retiree Details and Assumptions'!E$43:E$88)) -> 0.787874053 | AY89: =IF(AW89="","",LOOKUP(AW89,'Retiree Details and Assumptions'!D$43:D$88,'Retiree Details and Assumptions'!H$43:H$88)) -> 10.31478692
A90: 89 | B90: 250000 | C90: =(B90-RSAInc!B90)*(1+RSARet!B90) -> 256568.5381 | D90: =(C90-RSAInc!C90)*(1+RSARet!C90) -> 253795.5711 | E90: =(D90-RSAInc!D90)*(1+RSARet!D90) -> 252758.8987 | F90: =(E90-RSAInc!E90)*(1+RSARet!E90) -> 237297.9762 | G90: =(F90-RSAInc!F90)*(1+RSARet!F90) -> 225721.3731 | H90: =(G90-RSAInc!G90)*(1+RSARet!G90) -> 214601.9356 | I90: =(H90-RSAInc!H90)*(1+RSARet!H90) -> 202836.6756 | J90: =(I90-RSAInc!I90)*(1+RSARet!I90) -> 196178.1808 | K90: =(J90-RSAInc!J90)*(1+RSARet!J90) -> 168190.0806 | L90: =(K90-RSAInc!K90)*(1+RSARet!K90) -> 162529.491 | M90: =(L90-RSAInc!L90)*(1+RSARet!L90) -> 148700.4698 | N90: =(M90-RSAInc!M90)*(1+RSARet!M90) -> 138071.4956 | O90: =(N90-RSAInc!N90)*(1+RSARet!N90) -> 122673.8202 | P90: =(O90-RSAInc!O90)*(1+RSARet!O90) -> 102498.708 | Q90: =(P90-RSAInc!P90)*(1+RSARet!P90) -> 90589.65456 | R90: =(Q90-RSAInc!Q90)*(1+RSARet!Q90) -> 75826.57295 | S90: =(R90-RSAInc!R90)*(1+RSARet!R90) -> 59566.58938 | T90: =(S90-RSAInc!S90)*(1+RSARet!S90) -> 42134.58361 | U90: =(T90-RSAInc!T90)*(1+RSARet!T90) -> 23709.13261 | V90: =(U90-RSAInc!U90)*(1+RSARet!U90) -> 5119.316162 | W90: =(V90-RSAInc!V90)*(1+RSARet!V90) -> 0 | X90: =(W90-RSAInc!W90)*(1+RSARet!W90) -> 0 | Y90: =(X90-RSAInc!X90)*(1+RSARet!X90) -> 0 | Z90: =(Y90-RSAInc!Y90)*(1+RSARet!Y90) -> 0 | AA90: =(Z90-RSAInc!Z90)*(1+RSARet!Z90) -> 0 | AB90: =(AA90-RSAInc!AA90)*(1+RSARet!AA90) -> 0 | AC90: =(AB90-RSAInc!AB90)*(1+RSARet!AB90) -> 0 | AD90: =(AC90-RSAInc!AC90)*(1+RSARet!AC90) -> 0 | AE90: =(AD90-RSAInc!AD90)*(1+RSARet!AD90) -> 0 | AF90: =(AE90-RSAInc!AE90)*(1+RSARet!AE90) -> 0 | AG90: =(AF90-RSAInc!AF90)*(1+RSARet!AF90) -> 0 | AH90: =(AG90-RSAInc!AG90)*(1+RSARet!AG90) -> 0 | AI90: =(AH90-RSAInc!AH90)*(1+RSARet!AH90) -> 0 | AJ90: =(AI90-RSAInc!AI90)*(1+RSARet!AI90) -> 0 | AK90: =(AJ90-RSAInc!AJ90)*(1+RSARet!AJ90) -> 0 | AL90: =(AK90-RSAInc!AK90)*(1+RSARet!AK90) -> 0 | AM90: =(AL90-RSAInc!AL90)*(1+RSARet!AL90) -> 0 | AN90: =(AM90-RSAInc!AM90)*(1+RSARet!AM90) -> 0 | AO90: =(AN90-RSAInc!AN90)*(1+RSARet!AN90) -> 0 | AP90: =(AO90-RSAInc!AO90)*(1+RSARet!AO90) -> 0 | AQ90: =(AP90-RSAInc!AP90)*(1+RSARet!AP90) -> 0 | AR90: =(AQ90-RSAInc!AQ90)*(1+RSARet!AQ90) -> 0 | AS90: =(AR90-RSAInc!AR90)*(1+RSARet!AR90) -> 0 | AT90: =(AS90-RSAInc!AS90)*(1+RSARet!AS90) -> 0 | AU90: =(AT90-RSAInc!AT90)*(1+RSARet!AT90) -> 0 | AW90: 85 | AX90: =IF(AW90="",0,LOOKUP(AW90,'Retiree Details and Assumptions'!D$43:D$88,'Retiree Details and Assumptions'!E$43:E$88)) -> 0.6553939526 | AY90: =IF(AW90="","",LOOKUP(AW90,'Retiree Details and Assumptions'!D$43:D$88,'Retiree Details and Assumptions'!H$43:H$88)) -> 7.870452049
A91: 90 | B91: 250000 | C91: =(B91-RSAInc!B91)*(1+RSARet!B91) -> 234615.0344 | D91: =(C91-RSAInc!C91)*(1+RSARet!C91) -> 222653.3875 | E91: =(D91-RSAInc!D91)*(1+RSARet!D91) -> 204417.8039 | F91: =(E91-RSAInc!E91)*(1+RSARet!E91) -> 179269.5061 | G91: =(F91-RSAInc!F91)*(1+RSARet!F91) -> 161813.3519 | H91: =(G91-RSAInc!G91)*(1+RSARet!G91) -> 143944.6441 | I91: =(H91-RSAInc!H91)*(1+RSARet!H91) -> 125219.3645 | J91: =(I91-RSAInc!I91)*(1+RSARet!I91) -> 111470.5604 | K91: =(J91-RSAInc!J91)*(1+RSARet!J91) -> 93346.12024 | L91: =(K91-RSAInc!K91)*(1+RSARet!K91) -> 76118.25715 | M91: =(L91-RSAInc!L91)*(1+RSARet!L91) -> 54456.99022 | N91: =(M91-RSAInc!M91)*(1+RSARet!M91) -> 33486.39959 | O91: =(N91-RSAInc!N91)*(1+RSARet!N91) -> 15449.72641 | P91: =(O91-RSAInc!O91)*(1+RSARet!O91) -> 0 | Q91: =(P91-RSAInc!P91)*(1+RSARet!P91) -> 0 | R91: =(Q91-RSAInc!Q91)*(1+RSARet!Q91) -> 0 | S91: =(R91-RSAInc!R91)*(1+RSARet!R91) -> 0 | T91: =(S91-RSAInc!S91)*(1+RSARet!S91) -> 0 | U91: =(T91-RSAInc!T91)*(1+RSARet!T91) -> 0 | V91: =(U91-RSAInc!U91)*(1+RSARet!U91) -> 0 | W91: =(V91-RSAInc!V91)*(1+RSARet!V91) -> 0 | X91: =(W91-RSAInc!W91)*(1+RSARet!W91) -> 0 | Y91: =(X91-RSAInc!X91)*(1+RSARet!X91) -> 0 | Z91: =(Y91-RSAInc!Y91)*(1+RSARet!Y91) -> 0 | AA91: =(Z91-RSAInc!Z91)*(1+RSARet!Z91) -> 0 | AB91: =(AA91-RSAInc!AA91)*(1+RSARet!AA91) -> 0 | AC91: =(AB91-RSAInc!AB91)*(1+RSARet!AB91) -> 0 | AD91: =(AC91-RSAInc!AC91)*(1+RSARet!AC91) -> 0 | AE91: =(AD91-RSAInc!AD91)*(1+RSARet!AD91) -> 0 | AF91: =(AE91-RSAInc!AE91)*(1+RSARet!AE91) -> 0 | AG91: =(AF91-RSAInc!AF91)*(1+RSARet!AF91) -> 0 | AH91: =(AG91-RSAInc!AG91)*(1+RSARet!AG91) -> 0 | AI91: =(AH91-RSAInc!AH91)*(1+RSARet!AH91) -> 0 | AJ91: =(AI91-RSAInc!AI91)*(1+RSARet!AI91) -> 0 | AK91: =(AJ91-RSAInc!AJ91)*(1+RSARet!AJ91) -> 0 | AL91: =(AK91-RSAInc!AK91)*(1+RSARet!AK91) -> 0 | AM91: =(AL91-RSAInc!AL91)*(1+RSARet!AL91) -> 0 | AN91: =(AM91-RSAInc!AM91)*(1+RSARet!AM91) -> 0 | AO91: =(AN91-RSAInc!AN91)*(1+RSARet!AN91) -> 0 | AP91: =(AO91-RSAInc!AO91)*(1+RSARet!AO91) -> 0 | AQ91: =(AP91-RSAInc!AP91)*(1+RSARet!AP91) -> 0 | AR91: =(AQ91-RSAInc!AQ91)*(1+RSARet!AQ91) -> 0 | AS91: =(AR91-RSAInc!AR91)*(1+RSARet!AR91) -> 0 | AT91: =(AS91-RSAInc!AS91)*(1+RSARet!AS91) -> 0 | AU91: =(AT91-RSAInc!AT91)*(1+RSARet!AT91) -> 0 | AW91: 78 | AX91: =IF(AW91="",0,LOOKUP(AW91,'Retiree Details and Assumptions'!D$43:D$88,'Retiree Details and Assumptions'!E$43:E$88)) -> 0.857536894 | AY91: =IF(AW91="","",LOOKUP(AW91,'Retiree Details and Assumptions'!D$43:D$88,'Retiree Details and Assumptions'!H$43:H$88)) -> 12.40129454
A92: 91 | B92: 250000 | C92: =(B92-RSAInc!B92)*(1+RSARet!B92) -> 242694.6254 | D92: =(C92-RSAInc!C92)*(1+RSARet!C92) -> 249019.1561 | E92: =(D92-RSAInc!D92)*(1+RSARet!D92) -> 239063.7788 | F92: =(E92-RSAInc!E92)*(1+RSARet!E92) -> 215207.8387 | G92: =(F92-RSAInc!F92)*(1+RSARet!F92) -> 195497.1279 | H92: =(G92-RSAInc!G92)*(1+RSARet!G92) -> 184748.3964 | I92: =(H92-RSAInc!H92)*(1+RSARet!H92) -> 174523.1707 | J92: =(I92-RSAInc!I92)*(1+RSARet!I92) -> 154476.7925 | K92: =(J92-RSAInc!J92)*(1+RSARet!J92) -> 139743.2831 | L92: =(K92-RSAInc!K92)*(1+RSARet!K92) -> 127566.7067 | M92: =(L92-RSAInc!L92)*(1+RSARet!L92) -> 106236.5613 | N92: =(M92-RSAInc!M92)*(1+RSARet!M92) -> 91526.59334 | O92: =(N92-RSAInc!N92)*(1+RSARet!N92) -> 76090.51472 | P92: =(O92-RSAInc!O92)*(1+RSARet!O92) -> 59766.15691 | Q92: =(P92-RSAInc!P92)*(1+RSARet!P92) -> 43047.61278 | R92: =(Q92-RSAInc!Q92)*(1+RSARet!Q92) -> 24149.20514 | S92: =(R92-RSAInc!R92)*(1+RSARet!R92) -> 5655.457325 | T92: =(S92-RSAInc!S92)*(1+RSARet!S92) -> 0 | U92: =(T92-RSAInc!T92)*(1+RSARet!T92) -> 0 | V92: =(U92-RSAInc!U92)*(1+RSARet!U92) -> 0 | W92: =(V92-RSAInc!V92)*(1+RSARet!V92) -> 0 | X92: =(W92-RSAInc!W92)*(1+RSARet!W92) -> 0 | Y92: =(X92-RSAInc!X92)*(1+RSARet!X92) -> 0 | Z92: =(Y92-RSAInc!Y92)*(1+RSARet!Y92) -> 0 | AA92: =(Z92-RSAInc!Z92)*(1+RSARet!Z92) -> 0 | AB92: =(AA92-RSAInc!AA92)*(1+RSARet!AA92) -> 0 | AC92: =(AB92-RSAInc!AB92)*(1+RSARet!AB92) -> 0 | AD92: =(AC92-RSAInc!AC92)*(1+RSARet!AC92) -> 0 | AE92: =(AD92-RSAInc!AD92)*(1+RSARet!AD92) -> 0 | AF92: =(AE92-RSAInc!AE92)*(1+RSARet!AE92) -> 0 | AG92: =(AF92-RSAInc!AF92)*(1+RSARet!AF92) -> 0 | AH92: =(AG92-RSAInc!AG92)*(1+RSARet!AG92) -> 0 | AI92: =(AH92-RSAInc!AH92)*(1+RSARet!AH92) -> 0 | AJ92: =(AI92-RSAInc!AI92)*(1+RSARet!AI92) -> 0 | AK92: =(AJ92-RSAInc!AJ92)*(1+RSARet!AJ92) -> 0 | AL92: =(AK92-RSAInc!AK92)*(1+RSARet!AK92) -> 0 | AM92: =(AL92-RSAInc!AL92)*(1+RSARet!AL92) -> 0 | AN92: =(AM92-RSAInc!AM92)*(1+RSARet!AM92) -> 0 | AO92: =(AN92-RSAInc!AN92)*(1+RSARet!AN92) -> 0 | AP92: =(AO92-RSAInc!AO92)*(1+RSARet!AO92) -> 0 | AQ92: =(AP92-RSAInc!AP92)*(1+RSARet!AP92) -> 0 | AR92: =(AQ92-RSAInc!AQ92)*(1+RSARet!AQ92) -> 0 | AS92: =(AR92-RSAInc!AR92)*(1+RSARet!AR92) -> 0 | AT92: =(AS92-RSAInc!AS92)*(1+RSARet!AS92) -> 0 | AU92: =(AT92-RSAInc!AT92)*(1+RSARet!AT92) -> 0 | AW92: 82 | AX92: =IF(AW92="",0,LOOKUP(AW92,'Retiree Details and Assumptions'!D$43:D$88,'Retiree Details and Assumptions'!E$43:E$88)) -> 0.7593955575 | AY92: =IF(AW92="","",LOOKUP(AW92,'Retiree Details and Assumptions'!D$43:D$88,'Retiree Details and Assumptions'!H$43:H$88)) -> 9.664105684
A93: 92 | B93: 250000 | C93: =(B93-RSAInc!B93)*(1+RSARet!B93) -> 240886.1437 | D93: =(C93-RSAInc!C93)*(1+RSARet!C93) -> 221275.5151 | E93: =(D93-RSAInc!D93)*(1+RSARet!D93) -> 193298.2258 | F93: =(E93-RSAInc!E93)*(1+RSARet!E93) -> 191342.4843 | G93: =(F93-RSAInc!F93)*(1+RSARet!F93) -> 172343.3971 | H93: =(G93-RSAInc!G93)*(1+RSARet!G93) -> 157613.2917 | I93: =(H93-RSAInc!H93)*(1+RSARet!H93) -> 137116.7054 | J93: =(I93-RSAInc!I93)*(1+RSARet!I93) -> 126414.7057 | K93: =(J93-RSAInc!J93)*(1+RSARet!J93) -> 111257.3811 | L93: =(K93-RSAInc!K93)*(1+RSARet!K93) -> 88627.34879 | M93: =(L93-RSAInc!L93)*(1+RSARet!L93) -> 66794.63729 | N93: =(M93-RSAInc!M93)*(1+RSARet!M93) -> 48890.0144 | O93: =(N93-RSAInc!N93)*(1+RSARet!N93) -> 30861.01004 | P93: =(O93-RSAInc!O93)*(1+RSARet!O93) -> 12442.39277 | Q93: =(P93-RSAInc!P93)*(1+RSARet!P93) -> 0 | R93: =(Q93-RSAInc!Q93)*(1+RSARet!Q93) -> 0 | S93: =(R93-RSAInc!R93)*(1+RSARet!R93) -> 0 | T93: =(S93-RSAInc!S93)*(1+RSARet!S93) -> 0 | U93: =(T93-RSAInc!T93)*(1+RSARet!T93) -> 0 | V93: =(U93-RSAInc!U93)*(1+RSARet!U93) -> 0 | W93: =(V93-RSAInc!V93)*(1+RSARet!V93) -> 0 | X93: =(W93-RSAInc!W93)*(1+RSARet!W93) -> 0 | Y93: =(X93-RSAInc!X93)*(1+RSARet!X93) -> 0 | Z93: =(Y93-RSAInc!Y93)*(1+RSARet!Y93) -> 0 | AA93: =(Z93-RSAInc!Z93)*(1+RSARet!Z93) -> 0 | AB93: =(AA93-RSAInc!AA93)*(1+RSARet!AA93) -> 0 | AC93: =(AB93-RSAInc!AB93)*(1+RSARet!AB93) -> 0 | AD93: =(AC93-RSAInc!AC93)*(1+RSARet!AC93) -> 0 | AE93: =(AD93-RSAInc!AD93)*(1+RSARet!AD93) -> 0 | AF93: =(AE93-RSAInc!AE93)*(1+RSARet!AE93) -> 0 | AG93: =(AF93-RSAInc!AF93)*(1+RSARet!AF93) -> 0 | AH93: =(AG93-RSAInc!AG93)*(1+RSARet!AG93) -> 0 | AI93: =(AH93-RSAInc!AH93)*(1+RSARet!AH93) -> 0 | AJ93: =(AI93-RSAInc!AI93)*(1+RSARet!AI93) -> 0 | AK93: =(AJ93-RSAInc!AJ93)*(1+RSARet!AJ93) -> 0 | AL93: =(AK93-RSAInc!AK93)*(1+RSARet!AK93) -> 0 | AM93: =(AL93-RSAInc!AL93)*(1+RSARet!AL93) -> 0 | AN93: =(AM93-RSAInc!AM93)*(1+RSARet!AM93) -> 0 | AO93: =(AN93-RSAInc!AN93)*(1+RSARet!AN93) -> 0 | AP93: =(AO93-RSAInc!AO93)*(1+RSARet!AO93) -> 0 | AQ93: =(AP93-RSAInc!AP93)*(1+RSARet!AP93) -> 0 | AR93: =(AQ93-RSAInc!AQ93)*(1+RSARet!AQ93) -> 0 | AS93: =(AR93-RSAInc!AR93)*(1+RSARet!AR93) -> 0 | AT93: =(AS93-RSAInc!AS93)*(1+RSARet!AS93) -> 0 | AU93: =(AT93-RSAInc!AT93)*(1+RSARet!AT93) -> 0 | AW93: 79 | AX93: =IF(AW93="",0,LOOKUP(AW93,'Retiree Details and Assumptions'!D$43:D$88,'Retiree Details and Assumptions'!E$43:E$88)) -> 0.8366936022 | AY93: =IF(AW93="","",LOOKUP(AW93,'Retiree Details and Assumptions'!D$43:D$88,'Retiree Details and Assumptions'!H$43:H$88)) -> 11.68531787
A94: 93 | B94: 250000 | C94: =(B94-RSAInc!B94)*(1+RSARet!B94) -> 237773.4595 | D94: =(C94-RSAInc!C94)*(1+RSARet!C94) -> 229176.2815 | E94: =(D94-RSAInc!D94)*(1+RSARet!D94) -> 214967.5474 | F94: =(E94-RSAInc!E94)*(1+RSARet!E94) -> 196693.5376 | G94: =(F94-RSAInc!F94)*(1+RSARet!F94) -> 176231.9542 | H94: =(G94-RSAInc!G94)*(1+RSARet!G94) -> 170892.8039 | I94: =(H94-RSAInc!H94)*(1+RSARet!H94) -> 163588.4611 | J94: =(I94-RSAInc!I94)*(1+RSARet!I94) -> 154039.4676 | K94: =(J94-RSAInc!J94)*(1+RSARet!J94) -> 134135.8482 | L94: =(K94-RSAInc!K94)*(1+RSARet!K94) -> 111557.1712 | M94: =(L94-RSAInc!L94)*(1+RSARet!L94) -> 100762.0555 | N94: =(M94-RSAInc!M94)*(1+RSARet!M94) -> 85489.91182 | O94: =(N94-RSAInc!N94)*(1+RSARet!N94) -> 72762.51222 | P94: =(O94-RSAInc!O94)*(1+RSARet!O94) -> 52273.55342 | Q94: =(P94-RSAInc!P94)*(1+RSARet!P94) -> 33221.09806 | R94: =(Q94-RSAInc!Q94)*(1+RSARet!Q94) -> 14397.71318 | S94: =(R94-RSAInc!R94)*(1+RSARet!R94) -> 0 | T94: =(S94-RSAInc!S94)*(1+RSARet!S94) -> 0 | U94: =(T94-RSAInc!T94)*(1+RSARet!T94) -> 0 | V94: =(U94-RSAInc!U94)*(1+RSARet!U94) -> 0 | W94: =(V94-RSAInc!V94)*(1+RSARet!V94) -> 0 | X94: =(W94-RSAInc!W94)*(1+RSARet!W94) -> 0 | Y94: =(X94-RSAInc!X94)*(1+RSARet!X94) -> 0 | Z94: =(Y94-RSAInc!Y94)*(1+RSARet!Y94) -> 0 | AA94: =(Z94-RSAInc!Z94)*(1+RSARet!Z94) -> 0 | AB94: =(AA94-RSAInc!AA94)*(1+RSARet!AA94) -> 0 | AC94: =(AB94-RSAInc!AB94)*(1+RSARet!AB94) -> 0 | AD94: =(AC94-RSAInc!AC94)*(1+RSARet!AC94) -> 0 | AE94: =(AD94-RSAInc!AD94)*(1+RSARet!AD94) -> 0 | AF94: =(AE94-RSAInc!AE94)*(1+RSARet!AE94) -> 0 | AG94: =(AF94-RSAInc!AF94)*(1+RSARet!AF94) -> 0 | AH94: =(AG94-RSAInc!AG94)*(1+RSARet!AG94) -> 0 | AI94: =(AH94-RSAInc!AH94)*(1+RSARet!AH94) -> 0 | AJ94: =(AI94-RSAInc!AI94)*(1+RSARet!AI94) -> 0 | AK94: =(AJ94-RSAInc!AJ94)*(1+RSARet!AJ94) -> 0 | AL94: =(AK94-RSAInc!AK94)*(1+RSARet!AK94) -> 0 | AM94: =(AL94-RSAInc!AL94)*(1+RSARet!AL94) -> 0 | AN94: =(AM94-RSAInc!AM94)*(1+RSARet!AM94) -> 0 | AO94: =(AN94-RSAInc!AN94)*(1+RSARet!AN94) -> 0 | AP94: =(AO94-RSAInc!AO94)*(1+RSARet!AO94) -> 0 | AQ94: =(AP94-RSAInc!AP94)*(1+RSARet!AP94) -> 0 | AR94: =(AQ94-RSAInc!AQ94)*(1+RSARet!AQ94) -> 0 | AS94: =(AR94-RSAInc!AR94)*(1+RSARet!AR94) -> 0 | AT94: =(AS94-RSAInc!AS94)*(1+RSARet!AS94) -> 0 | AU94: =(AT94-RSAInc!AT94)*(1+RSARet!AT94) -> 0 | AW94: 81 | AX94: =IF(AW94="",0,LOOKUP(AW94,'Retiree Details and Assumptions'!D$43:D$88,'Retiree Details and Assumptions'!E$43:E$88)) -> 0.787874053 | AY94: =IF(AW94="","",LOOKUP(AW94,'Retiree Details and Assumptions'!D$43:D$88,'Retiree Details and Assumptions'!H$43:H$88)) -> 10.31478692
